Workbook

Sheet PRESENTACION
A17: Autoridades: | E17: Esta publicación ha sido elaborada por los Integrantes del Departamento de Estadística Educativa y de las Secciones de Reportes Internacionales e Investigación Educativa de la División de Investigación y Estadística de la Dirección de Educación:
A18: Dr. Tabaré Vázquez
A19: Presidente de la República | E19: Mag. Gabriel Gómez (Director)
A20: Dra. María Julia Muñoz | E20: Departamento de Investigación Educativa | G20: Departamento de Estadística Educativa
A21: Ministra de Educación y Cultura | E21: Mag. Leandro Pereira (Encargado) | G21: Lic. Daniel Zoppis (Encargado)
A22: Mag. Edith Moraes | E22: Lic. Paola Cazulo | G22: Lic. Mariana Yozzi
A23: Subsecretaria de Educación y Cultura | E23: Lic. Daniel Velázquez | G23: Departamento de Reportes Internacionales
A24: Dra. Ana Gabriela González Gargano | E24: Mag. Richard Ferreira | G24: Lic. Carla Orós (Encargada)
A25: Directora General de Secretaría | E25: Departamento de Comunicación y Publicaciones: | G25: Lic. Daniel Manber
A26: Mag. Rosita Inés Angelo | E26: Nathalia Ascué (Encargada)
A27: Directora de Educación | E27: Corrección : | G27: Pilar Barreiro
G29: Departamento de Comunicación
G30: y Publicaciones
G31: Nathalia Ascué (Encargada)

Sheet ESTADÍSTICAS BÁSICAS
B3: ESTADÍSTICAS BÁSICAS
C10: PRIMERA INFANCIA E INICIAL | F10: TERCIARIA NO UNIVERSITARIA
C12: PRIMARIA | F12: FORMACIÓN EN EDUCACIÓN
C14: MEDIA BÁSICA | F14: EDUCACIÓN UNIVERSITARIA
C16: MEDIA SUPERIOR | F16: EDUCACIÓN DE JÓVENES Y ADULTOS

Sheet PRIMERA INFANCIA E INICIAL
B7: ESTABLECIMIENTOS
A8: Cuadro Nº II-1.1.1 | B8: CANTIDAD DE ESTABLECIMIENTOS DE EDUCACIÓN EN LA PRIMERA INFANCIA E INICIAL DEL CEIP POR FORMA DE ADMINISTRACIÓN Y MODALIDAD SEGÚN DEPARTAMENTO. AÑO 2016
A10: Cuadro Nº II-1.1.2 | B10: CANTIDAD DE ESTABLECIMIENTOS DE PRIMERA INFANCIA E INICIAL DEL MEC E INAU POR FORMA DE ADMINISTRACIÓN SEGÚN DEPARTAMENTO. AÑO 2016.
A13: Cuadro Nº II-1.2.1 | B13: ALUMNOS MATRICULADOS EN EDUCACIÓN EN LA PRIMERA INFANCIA E INICIAL POR FORMA DE ADMINISTRACIÓN, MODALIDAD Y SEXO SEGÚN DEPARTAMENTO. AÑO 2016.
A15: Cuadro Nº II-1.2.2 | B15: ALUMNOS MATRICULADOS EN EDUCACIÓN PÚBLICA EN LA PRIMERA INFANCIA E INICIAL DEL CEIP POR MODALIDAD Y EDAD SEGÚN DEPARTAMENTO. AÑO 2016.
A17: Cuadro Nº II-1.2.3 | B17: ALUMNOS MATRICULADOS EN EDUCACIÓN EN LA PRIMERA INFANCIA E INICIAL PRIVADA POR MODALIDAD Y NIVEL SEGÚN DEPARTAMENTO. AÑO 2016.
A19: Cuadro Nº II-1.2.4 | B19: ALUMNOS MATRICULADOS EN EDUCACIÓN EN LA PRIMERA INFANCIA E INICIAL POR FORMA DE ADMINISTRACIÓN Y SEXO SEGÚN DEPARTAMENTO. AÑO 2016.
A21: Cuadro Nº II-1.2.5 | B21: ALUMNOS MATRICULADOS EN EDUCACIÓN EN LA PRIMERA INFANCIA E INICIAL POR FORMA DE ADMINISTRACIÓN SEGÚN EDAD. AÑO 2016.
A23: Cuadro Nº II-1.2.6 | B23: ALUMNOS MATRICULADOS EN EDUCACIÓN EN LA PRIMERA INFANCIA E INICIAL PÚBLICA DEL CEIP POR ÁREA DEMOGRÁFICA SEGÚN DEPARTAMENTO. AÑO 2016.
A25: Cuadro Nº II-1.2.7 | B25: ALUMNOS MATRICULADOS EN EDUCACIÓN EN LA PRIMERA INFANCIA E INICIAL EN CENTROS PRIVADOS HABILITADOS POR EL MEC POR EDAD SEGÚN DEPARTAMENTO. AÑO 2016.
A28: Cuadro Nº II-1.3.1 | B28: PERSONAL DOCENTE DE EDUCACIÓN EN LA PRIMERA INFANCIA E INICIAL PÚBLICA DEL CEIP SEGÚN DEPARTAMENTO. AÑO 2016.
A30: Cuadro Nº II-1.3.2 | B30: PERSONAL DOCENTE DE EDUCACIÓN EN LA PRIMERA INFANCIA E INICIAL PRIVADA SEGÚN DEPARTAMENTO. AÑO 2016.
A32: Cuadro Nº II-1.3.3 | B32: PERSONAL DOCENTE EN EDUCACIÓN EN LA PRIMERA INFANCIA PRIVADA SUPERVISADA POR EL MEC SEGÚN FUNCIÓN Y DEPARTAMENTO. AÑO 2016.

Sheet II-1.1.1
A1: CONSEJO DE EDUCACIÓN INICIAL Y PRIMARIA | G1: ESTABLECIMIENTOS
A3: Cuadro Nº II-1.1.1 | I3: VOLVER
A5: CANTIDAD DE ESTABLECIMIENTOS DE EDUCACIÓN EN LA PRIMERA INFANCIA E INICIAL DEL CEIP POR FORMA DE ADMINISTRACIÓN Y MODALIDAD SEGÚN DEPARTAMENTO. AÑO 2016.
A6: DEPARTAMENTO | B6: TOTAL | C6: FORMA DE ADMINISTRACIÓN
C7: PÚBLICA | I7: PRIVADA
C8: Total Público | D8: Jardines de Infantes | E8: Aprender | F8: JICI | G8: CEPI* | H8: Jardines de Tiempo Completo | I8: Jardines de Infantes
A11: TOTAL | B11: =+B12+B13 -> 240 | C11: =+C12+C13 -> 191 | D11: =SUM(D12:D13) -> 123 | E11: =E12+E13 -> 10 | F11: =SUM(F12:F13) -> 2 | G11: =SUM(G12:G13) -> 1 | H11: =SUM(H12:H13) -> 55 | I11: =SUM(I12:I13) -> 49
A12: MONTEVIDEO | B12: =+C12+I12 -> 93 | C12: =+D12++E12+F12+G12+H12 -> 64 | D12: 38 | E12: 5 | F12: 1 | G12: 1 | H12: 19 | I12: 29
A13: RESTO DEL PAÍS | B13: =+C13+I13 -> 147 | C13: =+D13+E13+F13+G13+H13 -> 127 | D13: =SUM(D15:D32) -> 85 | E13: 5 | F13: 1 | G13: 0 | H13: 36 | I13: 20
A15: Artigas | B15: =+C15+I15 -> 3 | C15: =+D15+E15+F15+G15+H15 -> 3 | D15: 2 | E15: 1 | F15: 0 | G15: 0 | H15: 0 | I15: 0
A16: Canelones | B16: =+C16+I16 -> 38 | C16: =+D16+E16+F16+G16+H16 -> 33 | D16: 27 | E16: 2 | F16: 0 | G16: 0 | H16: 4 | I16: 5
A17: Cerro Largo | B17: 7 | C17: 7 | D17: 2 | E17: 1 | F17: 1 | G17: 0 | H17: 3 | I17: 0
A18: Colonia | B18: 7 | C18: 6 | D18: 6 | E18: 0 | F18: 0 | G18: 0 | H18: 0 | I18: 1
A19: Durazno | B19: 5 | C19: 5 | D19: 3 | E19: 0 | F19: 0 | G19: 0 | H19: 2 | I19: 0
A20: Flores | B20: 2 | C20: 2 | D20: 1 | E20: 0 | F20: 0 | G20: 0 | H20: 1 | I20: 0
A21: Florida | B21: 5 | C21: 4 | D21: 2 | E21: 0 | F21: 0 | G21: 0 | H21: 2 | I21: 1
A22: Lavalleja | B22: 7 | C22: 7 | D22: 4 | E22: 0 | F22: 0 | G22: 0 | H22: 3 | I22: 0
A23: Maldonado | B23: 10 | C23: 7 | D23: 7 | E23: 0 | F23: 0 | G23: 0 | H23: 0 | I23: 3
A24: Paysandú | B24: 5 | C24: 4 | D24: 2 | E24: 0 | F24: 0 | G24: 0 | H24: 2 | I24: 1
A25: Río Negro | B25: 6 | C25: 6 | D25: 3 | E25: 0 | F25: 0 | G25: 0 | H25: 3 | I25: 0
A26: Rivera | B26: 7 | C26: 7 | D26: 3 | E26: 0 | F26: 0 | G26: 0 | H26: 4 | I26: 0
A27: Rocha | B27: 7 | C27: 7 | D27: 5 | E27: 0 | F27: 0 | G27: 0 | H27: 2 | I27: 0
A28: Salto | B28: 9 | C28: 4 | D28: 3 | E28: 0 | F28: 0 | G28: 0 | H28: 1 | I28: 5
A29: San José | B29: 7 | C29: 6 | D29: 3 | E29: 1 | F29: 0 | G29: 0 | H29: 2 | I29: 1
A30: Soriano | B30: 6 | C30: 5 | D30: 4 | E30: 0 | F30: 0 | G30: 0 | H30: 1 | I30: 1
A31: Tacuarembó | B31: =+C31+I31 -> 11 | C31: 9 | D31: 6 | E31: 0 | F31: 0 | G31: 0 | H31: 3 | I31: 2
A32: Treinta y Tres | B32: =+C32+I32 -> 5 | C32: 5 | D32: 2 | E32: 0 | F32: 0 | G32: 0 | H32: 3 | I32: 0
A33: Fuente: Procesamiento propio en base a datos proporcionados por el D.E.E. — C.E.I.P.
A34: Nota: * Centro Educativo de Primera Infancia. Refiere a Guarderías en Anuarios Anteriores.
A35: Privados habilitados y supervisados por ANEP

Sheet II-1.1.2
A1: MINISTERIO DE EDUCACIÓN Y CULTURA | E1: Establecimientos
A2: Dirección de Educación
A4: Cuadro Nº II-1.1.2
A6: CANTIDAD DE ESTABLECIMIENTOS DE PRIMERA INFANCIA E INICIAL DEL MEC E INAU POR FORMA DE ADMINISTRACIÓN SEGÚN DEPARTAMENTO. AÑO 2016.
A7: DEPARTAMENTO
B8: TOTAL | C8: CAIF | D8: DIURNOS-INAU | E8: PRIVADOS
A11: TOTAL | B11: =C11+D11+E11 -> 829 | C11: =C12+C13 -> 390 | D11: =D12+D13 -> 37 | E11: =E12+E13 -> 402
A12: MONTEVIDEO | B12: 330 | C12: 80 | D12: 9 | E12: 241
A13: RESTO DEL PAÍS | B13: =C13+D13+E13 -> 499 | C13: =SUM(C15:C32) -> 310 | D13: =SUM(D15:D32) -> 28 | E13: =SUM(E15:E32) -> 161
A15: Artigas | B15: =C15+D15+E15 -> 20 | C15: 16 | D15: 2 | E15: 2
A16: Canelones | B16: 129 | C16: 62 | D16: 2 | E16: 65
A17: Cerro Largo | B17: 22 | C17: 19 | D17: 1 | E17: 2
A18: Colonia | B18: 29 | C18: 13 | D18: 2 | E18: 14
A19: Durazno | B19: 19 | C19: 15 | D19: 2 | E19: 2
A20: Flores | B20: 7 | C20: 5 | D20: 1 | E20: 1
A21: Florida | B21: 30 | C21: 20 | D21: 2 | E21: 8
A22: Lavalleja | B22: 13 | C22: 6 | D22: 2 | E22: 5
A23: Maldonado | B23: 31 | C23: 12 | D23: 2 | E23: 17
A24: Paysandú | B24: 32 | C24: 24 | D24: 1 | E24: 7
A25: Río Negro | B25: 15 | C25: 12 | D25: 1 | E25: 2
A26: Rivera | B26: 23 | C26: 15 | D26: 1 | E26: 7
A27: Rocha | B27: 20 | C27: 14 | D27: 1 | E27: 5
A28: Salto | B28: 30 | C28: 22 | D28: 1 | E28: 7
A29: San José | B29: 21 | C29: 13 | D29: 2 | E29: 6
A30: Soriano | B30: 25 | C30: 14 | D30: 2 | E30: 9
A31: Tacuarembó | B31: 20 | C31: 16 | D31: 2 | E31: 2
A32: Treinta y Tres | B32: 13 | C32: 12 | D32: 1 | E32: 0
A33: Fuente: Procesamiento propio en base a datos proporcionados por:
A34: Registro Nacional de Centros Educativos en la Primera Infancia. MEC
A35: Nota: Privados supervisados por el MEC
A36: Para CAIF Y CENTROS DIURNOS: SIPI de INAU.

Sheet II-1.2.1
A1: CONSEJO DE EDUCACIÓN INICIAL Y PRIMARIA | AN1: ALUMNOS MATRICULADOS
A3: Cuadro Nº II-1.2.1
A5: ALUMNOS MATRICULADOS EN EDUCACIÓN EN LA PRIMERA INFANCIA E INICIAL POR FORMA DE ADMINISTRACIÓN, MODALIDAD Y SEXO SEGÚN DEPARTAMENTO. AÑO 2016.
A6: DEPARTAMENTO | B6: FORMA DE ADMINISTRACIÓN
B7: TOTAL | E7: PÚBLICA | AM7: PRIVADA
E8: Total Público | F8: Educación Inicial | Q8: Inicial en Escuelas | AM8: Total Privada | AN8: Jardines de Infantes | AP8: Inicial en Colegios
B9: TOTAL | F9: INICIAL | H9: JARDÍN APRENDER | J9: JARDÍN COMÚN | L9: JARDÍN DE CICLO INICIAL | N9: JARDÍN DE JORNADA COMPLETA | Q9: APRENDER | S9: APRENDER H. DE PRÁCTICA | U9: COMÚN | W9: CON MAESTRO A CARGO | Y9: DE PRÁCTICA | AA9: DE TIEMPO COMPLETO | AC9: HABILITADA DE PRÁCTICA | AE9: INTERNADO RURAL | AG9: T.EXTENDIDO-DE PRÁCTICA | AI9: TIEMPO EXTENDIDO | AK9: UNIDOCENTE
C10: SEXO | F10: SEXO | H10: SEXO | J10: SEXO | L10: SEXO | N10: SEXO | Q10: SEXO | S10: SEXO | U10: SEXO | W10: SEXO | Y10: SEXO | AA10: SEXO | AC10: SEXO | AE10: SEXO | AG10: SEXO | AI10: SEXO | AK10: SEXO | AN10: SEXO | AP10: SEXO
C11: M | D11: F | F11: M | G11: F | H11: M | I11: F | J11: M | K11: F | L11: M | M11: F | N11: M | O11: F | Q11: M | R11: F | S11: M | T11: F | U11: M | V11: F | W11: M | X11: F | Y11: M | Z11: F | AA11: M | AB11: F | AC11: M | AD11: F | AE11: M | AF11: F | AG11: M | AH11: F | AI11: M | AJ11: F | AK11: M | AL11: F | AN11: M | AO11: F | AP11: M | AQ11: F
A12: TOTAL | B12: =+B13+B14 -> 114865 | C12: =+C13+C14 -> 56961 | D12: =+D13+D14 -> 57904 | E12: =+E13+E14 -> 84894 | F12: =F13+F14 -> 264 | G12: =G13+G14 -> 306 | H12: 1445 | I12: 1433 | J12: 12838 | K12: 12829 | L12: 103 | M12: 111 | N12: =N13+N14 -> 3684 | O12: =O13+O14 -> 3950 | Q12: =Q13+Q14 -> 6189 | R12: =R13+R14 -> 6265 | S12: =S13+S14 -> 78 | T12: =T13+T14 -> 92 | U12: =U13+U14 -> 6525 | V12: =V13+V14 -> 6802 | W12: =W13+W14 -> 1328 | X12: =X13+X14 -> 1362 | Y12: =Y13+Y14 -> 1452 | Z12: =Z13+Z14 -> 1636 | AA12: =AA13+AA14 -> 4290 | AB12: 4454 | AC12: 2403 | AD12: 2510 | AE12: =+AE13+AE14 -> 6 | AF12: =AF13+AF14 -> 7 | AG12: =AG14+AG13 -> 30 | AH12: =AH13+AH14 -> 24 | AI12: =AI13+AI14 -> 579 | AJ12: =AJ13+AJ14 -> 635 | AK12: =+AK13+AK14 -> 596 | AL12: =AL13+AL14 -> 668 | AM12: =+AM13+AM14 -> 29971 | AN12: =+AN13+AN14 -> 2406 | AO12: =+AO13+AO14 -> 2183 | AP12: =+AP13+AP14 -> 12745 | AQ12: =+AQ13+AQ14 -> 12637
A13: MONTEVIDEO | B13: =E13+AM13 -> 44181 | C13: =F13+H13+J13+L13+N13+Q13+S13+U13+W13+Y13+AA13+AC13+AE13+AG13+AI13+AK13+AN13+AP13 -> 21957 | D13: =G13+I13+K13+M13+O13+R13+T13+V13+X13+Z13+AB13+AD13+AF13+AH13+AJ13+AL13+AO13+AQ13 -> 22224 | E13: =SUM(F13:AL13) -> 26156 | F13: 0 | G13: 0 | H13: 903 | I13: 863 | J13: 4356 | K13: 4586 | L13: 0 | M13: 0 | N13: 1714 | O13: 1789 | Q13: 2122 | R13: 2120 | S13: 0 | T13: 0 | U13: 1838 | V13: 1928 | W13: 0 | X13: 0 | Y13: 436 | Z13: 449 | AA13: 1076 | AB13: 1210 | AC13: 201 | AD13: 230 | AE13: 0 | AF13: 0 | AG13: 30 | AH13: 24 | AI13: 126 | AJ13: 155 | AK13: 0 | AL13: 0 | AM13: =+AN13+AO13+AP13+AQ13 -> 18025 | AN13: 1741 | AO13: 1538 | AP13: 7414 | AQ13: 7332
A14: RESTO DEL PAÍS | B14: =SUM(B16:B33) -> 70684 | C14: =SUM(C16:C33) -> 35004 | D14: 35680 | E14: =SUM(F14:AL14) -> 58738 | F14: =SUM(F16:F33) -> 264 | G14: 306 | H14: 542 | I14: 570 | J14: 8482 | K14: 8243 | L14: 103 | M14: 111 | N14: 1970 | O14: 2161 | Q14: 4067 | R14: 4145 | S14: 78 | T14: 92 | U14: 4687 | V14: 4874 | W14: 1328 | X14: 1362 | Y14: 1016 | Z14: 1187 | AA14: 3214 | AB14: 3244 | AC14: 2202 | AD14: 2280 | AE14: 6 | AF14: 7 | AG14: 0 | AH14: 0 | AI14: 453 | AJ14: =SUM(AJ16:AJ33) -> 480 | AK14: 596 | AL14: 668 | AM14: 11946 | AN14: =SUM(AN16:AN33) -> 665 | AO14: =SUM(AO16:AO33) -> 645 | AP14: 5331 | AQ14: 5305
A16: Artigas | B16: =E16+AM16 -> 2637 | C16: =F16+H16+J16+L16+N16+Q16+S16+U16+W16+Y16+AA16+AC16+AE16+AG16+AI16+AK16+AN16+AP16 -> 1270 | D16: =G16+I16+K16+M16+O16+R16+T16+V16+X16+Z16+AB16+AD16+AF16+AH16+AJ16+AL16+AO16+AQ16 -> 1367 | E16: =SUM(F16:AL16) -> 2420 | F16: 0 | G16: 0 | H16: 74 | I16: 70 | J16: 215 | K16: 253 | L16: 0 | M16: 0 | N16: 0 | O16: 0 | Q16: 244 | R16: 245 | S16: 0 | T16: 0 | U16: 126 | V16: 126 | W16: 68 | X16: 73 | Y16: 55 | Z16: 67 | AA16: 224 | AB16: 238 | AC16: 135 | AD16: 132 | AE16: 3 | AF16: 3 | AG16: 0 | AH16: 0 | AI16: 18 | AJ16: 16 | AK16: 13 | AL16: 22 | AM16: =+AN16+AO16+AP16+AQ16 -> 217 | AN16: 0 | AO16: 0 | AP16: 95 | AQ16: 122
A17: Canelones | B17: 18089 | C17: 9027 | D17: 9062 | E17: =SUM(F17:AL17) -> 14206 | F17: 123 | G17: 161 | H17: 190 | I17: 210 | J17: 2974 | K17: 2957 | L17: 0 | M17: 0 | N17: 291 | O17: 330 | Q17: 1146 | R17: 1116 | S17: 0 | T17: 0 | U17: 805 | V17: 867 | W17: 232 | X17: 249 | Y17: 72 | Z17: 87 | AA17: 744 | AB17: 696 | AC17: 380 | AD17: 384 | AE17: 0 | AF17: 0 | AG17: 0 | AH17: 0 | AI17: 58 | AJ17: 53 | AK17: 34 | AL17: 47 | AM17: 3883 | AN17: 227 | AO17: 207 | AP17: 1751 | AQ17: 1698
A18: Cerro Largo | B18: 2964 | C18: 1407 | D18: 1557 | E18: =SUM(F18:AL18) -> 2734 | F18: 0 | G18: 0 | H18: 142 | I18: 142 | J18: 131 | K18: 160 | L18: 103 | M18: 111 | N18: 137 | O18: 151 | Q18: 199 | R18: 201 | S18: 0 | T18: 0 | U18: 96 | V18: 119 | W18: 57 | X18: 54 | Y18: 48 | Z18: 57 | AA18: 132 | AB18: 148 | AC18: 166 | AD18: 195 | AE18: 0 | AF18: 0 | AG18: 0 | AH18: 0 | AI18: 48 | AJ18: 47 | AK18: 39 | AL18: 51 | AM18: 230 | AN18: 0 | AO18: 0 | AP18: 109 | AQ18: 121
A19: Colonia | B19: 4452 | C19: 2202 | D19: 2250 | E19: =SUM(F19:AL19) -> 3818 | F19: 0 | G19: 0 | H19: 0 | I19: 0 | J19: 534 | K19: 570 | L19: 0 | M19: 0 | N19: 0 | O19: 0 | Q19: 46 | R19: 50 | S19: 0 | T19: 0 | U19: 651 | V19: 641 | W19: 92 | X19: 91 | Y19: 112 | Z19: 122 | AA19: 170 | AB19: 170 | AC19: 154 | AD19: 168 | AE19: 0 | AF19: 0 | AG19: 0 | AH19: 0 | AI19: 65 | AJ19: 58 | AK19: 66 | AL19: 58 | AM19: 634 | AN19: 0 | AO19: 0 | AP19: 312 | AQ19: 322
A20: Durazno | B20: 1904 | C20: 954 | D20: 950 | E20: 1625 | F20: 0 | G20: 0 | H20: 0 | I20: 0 | J20: 242 | K20: 235 | L20: 0 | M20: 0 | N20: 56 | O20: 71 | Q20: 108 | R20: 144 | S20: 0 | T20: 0 | U20: 64 | V20: 64 | W20: 13 | X20: 13 | Y20: 61 | Z20: 60 | AA20: 144 | AB20: 112 | AC20: 88 | AD20: 80 | AE20: 0 | AF20: 0 | AG20: 0 | AH20: 0 | AI20: 0 | AJ20: 0 | AK20: 36 | AL20: 34 | AM20: 279 | AN20: 0 | AO20: 0 | AP20: 142 | AQ20: 137
A21: Flores | B21: 874 | C21: 432 | D21: 442 | E21: 755 | F21: 0 | G21: 0 | H21: 0 | I21: 0 | J21: 83 | K21: 76 | L21: 0 | M21: 0 | N21: 41 | O21: 43 | Q21: 0 | R21: 0 | S21: 0 | T21: 0 | U21: 79 | V21: 100 | W21: 19 | X21: 12 | Y21: 21 | Z21: 26 | AA21: 74 | AB21: 77 | AC21: 23 | AD21: 19 | AE21: 0 | AF21: 0 | AG21: 0 | AH21: 0 | AI21: 10 | AJ21: 16 | AK21: 19 | AL21: 17 | AM21: 119 | AN21: 0 | AO21: 0 | AP21: 63 | AQ21: 56
A22: Florida | B22: 1876 | C22: 1027 | D22: 849 | E22: 1738 | F22: 0 | G22: 0 | H22: 0 | I22: 0 | J22: 274 | L22: 0 | M22: 0 | N22: 68 | O22: 93 | Q22: 48 | R22: 61 | S22: 0 | T22: 0 | U22: 202 | V22: 223 | W22: 61 | X22: 69 | Y22: 33 | Z22: 44 | AA22: 109 | AB22: 106 | AC22: 83 | AD22: 91 | AE22: 0 | AF22: 0 | AG22: 0 | AH22: 0 | AI22: 38 | AJ22: 60 | AK22: 37 | AL22: 38 | AM22: 138 | AN22: 11 | AO22: 7 | AP22: 63 | AQ22: 57
A23: Lavalleja | B23: 1925 | C23: 988 | D23: 937 | E23: 1585 | F23: 0 | G23: 0 | H23: 0 | I23: 0 | J23: 303 | K23: 252 | L23: 0 | M23: 0 | N23: 138 | O23: 179 | Q23: 28 | R23: 34 | S23: 42 | T23: 32 | U23: 96 | V23: 87 | W23: 27 | X23: 19 | Y23: 24 | Z23: 21 | AA23: 71 | AB23: 56 | AC23: 53 | AD23: 51 | AE23: 0 | AF23: 0 | AG23: 0 | AH23: 0 | AI23: 0 | AJ23: 0 | AK23: 31 | AL23: 41 | AM23: 340 | AN23: 0 | AO23: 0 | AP23: 175 | AQ23: 165
A24: Maldonado | B24: 6315 | C24: 3132 | D24: 3183 | E24: 4228 | F24: 0 | G24: 0 | H24: 0 | I24: 0 | J24: 823 | K24: 825 | L24: 0 | M24: 0 | N24: 0 | O24: 0 | Q24: 92 | R24: 80 | S24: 0 | T24: 0 | U24: 583 | V24: 616 | W24: 42 | X24: 53 | Y24: 59 | Z24: 56 | AA24: 221 | AB24: 204 | AC24: 221 | AD24: 249 | AE24: 0 | AF24: 0 | AG24: 0 | AH24: 0 | AI24: 30 | AJ24: 24 | AK24: 25 | AL24: 25 | AM24: 2087 | AN24: 82 | AO24: 87 | AP24: 954 | AQ24: 964
A25: Paysandú | B25: 3853 | C25: 1901 | D25: 1952 | E25: 3389 | F25: 0 | G25: 0 | H25: 0 | I25: 0 | J25: 236 | K25: 251 | L25: 0 | M25: 0 | N25: 143 | O25: 148 | Q25: 320 | R25: 320 | S25: 36 | T25: 60 | U25: 363 | V25: 336 | W25: 82 | X25: 86 | Y25: 120 | Z25: 158 | AA25: 149 | AB25: 153 | AC25: 179 | AD25: 191 | AE25: 1 | AF25: 0 | AG25: 0 | AH25: 0 | AI25: 0 | AJ25: 0 | AK25: 26 | AL25: 31 | AM25: 464 | AN25: 59 | AO25: 64 | AP25: 187 | AQ25: 154
A26: Río Negro | B26: 2180 | C26: 1071 | D26: 1109 | E26: 1905 | F26: 0 | G26: 0 | H26: 0 | I26: 0 | J26: 255 | K26: 270 | L26: 0 | M26: 0 | N26: 223 | O26: 230 | Q26: 36 | R26: 33 | S26: 0 | T26: 0 | U26: 185 | V26: 230 | W26: 54 | X26: 48 | Y26: 51 | Z26: 68 | AA26: 47 | AB26: 65 | AC26: 29 | AD26: 33 | AE26: 2 | AF26: 1 | AG26: 0 | AH26: 0 | AI26: 0 | AJ26: 0 | AK26: 23 | AL26: 22 | AM26: 275 | AN26: 0 | AO26: 0 | AP26: 166 | AQ26: 109
A27: Rivera | B27: 3737 | C27: 1875 | D27: 1862 | E27: 3393 | F27: 0 | G27: 0 | H27: 0 | I27: 0 | J27: 342 | K27: 292 | L27: 0 | M27: 0 | N27: 241 | O27: 261 | Q27: 397 | R27: 393 | S27: 0 | T27: 0 | U27: 135 | V27: 127 | W27: 81 | X27: 86 | Y27: 85 | Z27: 93 | AA27: 167 | AB27: 181 | AC27: 198 | AD27: 180 | AE27: 0 | AF27: 0 | AG27: 0 | AH27: 0 | AI27: 31 | AJ27: 28 | AK27: 36 | AL27: 39 | AM27: 344 | AN27: 0 | AO27: 0 | AP27: 162 | AQ27: 182
A28: Rocha | B28: 2532 | C28: 1266 | D28: 1266 | E28: 2222 | F28: 0 | G28: 0 | H28: 0 | I28: 0 | J28: 375 | K28: 353 | L28: 0 | M28: 0 | N28: 123 | O28: 117 | Q28: 146 | R28: 148 | S28: 0 | T28: 0 | U28: 235 | V28: 218 | W28: 21 | X28: 22 | Y28: 28 | Z28: 45 | AA28: 140 | AB28: 173 | AC28: 12 | AD28: 12 | AE28: 0 | AF28: 0 | AG28: 0 | AH28: 0 | AI28: 0 | AJ28: 0 | AK28: 29 | AL28: 25 | AM28: 310 | AN28: 0 | AO28: 0 | AP28: 157 | AQ28: 153
A29: Salto | B29: 5435 | C29: 2651 | D29: 2784 | E29: 4429 | F29: 141 | G29: 145 | H29: 0 | I29: 0 | J29: 405 | K29: 426 | L29: 0 | M29: 0 | N29: 0 | O29: 0 | Q29: 586 | R29: 608 | S29: 0 | T29: 0 | U29: 113 | V29: 122 | W29: 149 | X29: 189 | Y29: 51 | Z29: 45 | AA29: 364 | AB29: 420 | AC29: 260 | AD29: 254 | AE29: 0 | AF29: 3 | AG29: 0 | AH29: 0 | AI29: 30 | AJ29: 42 | AK29: 38 | AL29: 38 | AM29: 1006 | AN29: 158 | AO29: 124 | AP29: 356 | AQ29: 368
A30: San José | B30: 3981 | C30: 1963 | D30: 2018 | E30: 3449 | F30: 0 | G30: 0 | H30: 136 | I30: 148 | J30: 274 | K30: 326 | L30: 0 | M30: 0 | N30: 175 | O30: 174 | Q30: 136 | R30: 149 | S30: 0 | T30: 0 | U30: 490 | V30: 501 | W30: 138 | X30: 123 | Y30: 48 | Z30: 45 | AA30: 161 | AB30: 163 | AC30: 37 | AD30: 35 | AE30: 0 | AF30: 0 | AG30: 0 | AH30: 0 | AI30: 47 | AJ30: 54 | AK30: 43 | AL30: 46 | AM30: 532 | AN30: 48 | AO30: 57 | AP30: 230 | AQ30: 197
A31: Soriano | B31: 2731 | C31: 1337 | D31: 1394 | E31: 2461 | F31: 0 | G31: 0 | H31: 0 | I31: 0 | J31: 362 | K31: 363 | L31: 0 | M31: 0 | N31: 38 | O31: 35 | Q31: 242 | R31: 231 | S31: 0 | T31: 0 | U31: 204 | V31: 206 | W31: 45 | X31: 42 | Y31: 58 | Z31: 78 | AA31: 119 | AB31: 105 | AC31: 107 | AD31: 136 | AE31: 0 | AF31: 0 | AG31: 0 | AH31: 0 | AI31: 0 | AJ31: 0 | AK31: 44 | AL31: 46 | AM31: 270 | AN31: 19 | AO31: 24 | AP31: 99 | AQ31: 128
A32: Tacuarembó | B32: 3474 | C32: 1667 | D32: 1807 | E32: 2786 | F32: 0 | G32: 0 | H32: 0 | I32: 0 | J32: 441 | K32: 412 | L32: 0 | M32: 0 | N32: 122 | O32: 150 | Q32: 262 | R32: 294 | S32: 0 | T32: 0 | U32: 122 | V32: 137 | W32: 117 | X32: 113 | Y32: 46 | Z32: 55 | AA32: 122 | AB32: 114 | AC32: 35 | AD32: 37 | AE32: 0 | AF32: 0 | AG32: 0 | AH32: 0 | AI32: 60 | AJ32: 60 | AK32: 35 | AL32: 52 | AM32: 688 | AN32: 61 | AO32: 75 | AP32: 244 | AQ32: 308
A33: Treinta y Tres | B33: 1725 | C33: 834 | D33: 891 | E33: 1595 | F33: 0 | G33: 0 | H33: 0 | I33: 0 | J33: 213 | K33: 222 | L33: 0 | M33: 0 | N33: 174 | O33: 179 | Q33: 31 | R33: 38 | S33: 0 | T33: 0 | U33: 138 | V33: 154 | W33: 30 | X33: 20 | Y33: 44 | Z33: 60 | AA33: 56 | AB33: 63 | AC33: 42 | AD33: 33 | AE33: 0 | AF33: 0 | AG33: 0 | AH33: 0 | AI33: 18 | AJ33: 22 | AK33: 22 | AL33: 36 | AM33: 130 | AN33: 0 | AO33: 0 | AP33: 66 | AQ33: 64
A34: Fuente: Procesamiento propio en base a datos proporcionados por el D.E.E. — C.E.I.P.
A35: Privados habilitados o autorizados por ANEP

Sheet II-1.2.2
A1: CONSEJO DE EDUCACIÓN INICIAL Y PRIMARIA
I2: ALUMNOS MATRICULADOS
A3: Cuadro Nº II-1.2.2
CB4: VOLVER
A5: ALUMNOS MATRICULADOS EN EDUCACIÓN PÚBLICA EN LA PRIMERA INFANCIA E INICIAL DEL CEIP POR MODALIDAD Y EDAD SEGÚN DEPARTAMENTO. AÑO 2016.
A6: DEPARTAMENTO | B6: PÚBLICA
B7: Total Público | C7: EDUCACIÓN DE INICIAL | AB7: INICIAL EN ESCUELAS
C8: INICIAL | H8: JARDÍN APRENDER | M8: JARDÍN COMÚN | R8: JARDÍN DE CICLO INICIAL | W8: JARDÍN DE JORNADA COMPLETA | AB8: APRENDER | AG8: APRENDER H. DE PRÁCTICA | AL8: COMÚN | AQ8: CON MAESTRO A CARGO | AV8: DE PRÁCTICA | BA8: DE TIEMPO COMPLETO | BF8: HABILITADA DE PRÁCTICA | BK8: INTERNADO RURAL | BP8: T.EXTENDIDO-DE PRÁCTICA | BU8: TIEMPO EXTENDIDO | BY8: UNIDOCENTE
C9: AÑOS | H9: AÑOS | M9: AÑOS | R9: AÑOS | W9: AÑOS | AB9: AÑOS | AG9: AÑOS | AL9: AÑOS | AQ9: AÑOS | AV9: AÑOS | BA9: AÑOS | BF9: AÑOS | BK9: AÑOS | BP9: AÑOS | BU9: AÑOS | BY9: AÑOS
C10: <= 2 | D10: 3 | E10: 4 | F10: 5 | H10: <= 2 | I10: 3 | J10: 4 | K10: 5 | M10: <= 2 | N10: 3 | O10: 4 | P10: 5 | R10: <= 2 | S10: 3 | T10: 4 | U10: 5 | W10: <= 2 | X10: 3 | Y10: 4 | Z10: 5 | AB10: <= 2 | AC10: 3 | AD10: 4 | AE10: 5 | AG10: <= 2 | AH10: 3 | AI10: 4 | AJ10: 5 | AL10: <= 2 | AM10: 3 | AN10: 4 | AO10: 5 | AQ10: <= 2 | AR10: 3 | AS10: 4 | AT10: 5 | AV10: <= 2 | AW10: 3 | AX10: 4 | AY10: 5 | BA10: <= 2 | BB10: 3 | BC10: 4 | BD10: 5 | BF10: <= 2 | BG10: 3 | BH10: 4 | BI10: 5 | BK10: <= 2 | BL10: 3 | BM10: 4 | BN10: 5 | BP10: <= 2 | BQ10: 3 | BR10: 4 | BS10: 5 | BU10: <= 2 | BV10: 3 | BW10: 4 | BX10: 5 | BZ10: <= 2 | CA10: 3 | CB10: 4 | CC10: 5
A11: TOTAL | B11: =+B12+B13 -> 85130 | C11: =C12+C13 -> 21 | D11: =D12+D13 -> 197 | E11: =E12+E13 -> 202 | F11: =F12+F13 -> 150 | H11: =H12+H13 -> 34 | I11: =I12+I13 -> 701 | J11: =J12+J13 -> 1090 | K11: =K12+K13 -> 1053 | M11: =M12+M13 -> 701 | N11: =N12+N13 -> 8042 | O11: =O12+O13 -> 9441 | P11: =P12+P13 -> 7719 | R11: =R12+R13 -> 6 | S11: =S12+S13 -> 74 | T11: =T12+T13 -> 70 | U11: =U12+U13 -> 64 | W11: =W12+W13 -> 274 | X11: =X12+X13 -> 2262 | Y11: =Y12+Y13 -> 2760 | Z11: =Z12+Z13 -> 2338 | AB11: =AB12+AB13 -> 27 | AC11: =AC12+AC13 -> 820 | AD11: =AD12+AD13 -> 5803 | AE11: =AE12+AE13 -> 5804 | AG11: =AG12+AG13 -> 2 | AH11: =AH12+AH13 -> 46 | AI11: =AI12+AI13 -> 75 | AJ11: =AJ12+AJ13 -> 47 | AL11: =AL12+AL13 -> 41 | AM11: =AM12+AM13 -> 1044 | AN11: =AN12+AN13 -> 5887 | AO11: =AO12+AO13 -> 6355 | AQ11: =AQ12+AQ13 -> 27 | AR11: =AR12+AR13 -> 281 | AS11: =AS12+AS13 -> 1178 | AT11: =AT12+AT13 -> 1204 | AV11: =AV12+AV13 -> 4 | AW11: =AW12+AW13 -> 125 | AX11: =AX12+AX13 -> 1221 | AY11: =AY12+AY13 -> 1738 | BA11: =BA12+BA13 -> 24 | BB11: =BB12+BB13 -> 507 | BC11: =BC12+BC13 -> 4040 | BD11: =BD12+BD13 -> 4173 | BF11: =BF12+BF13 -> 15 | BG11: =BG12+BG13 -> 352 | BH11: =BH12+BH13 -> 2204 | BI11: =BI12+BI13 -> 2342 | BK11: =BK12+BK13 -> 0 | BL11: =BL12+BL13 -> 0 | BM11: =BM12+BM13 -> 6 | BN11: =BN12+BN13 -> 7 | BP11: =+BP12+BP13 -> 0 | BQ11: =BQ12+BQ13 -> 2 | BR11: =BR12+BR13 -> 23 | BS11: =BS12+BS13 -> 29 | BU11: =BU13+BU12 -> 2 | BV11: =BV13+BV12 -> 89 | BW11: =BW13+BW12 -> 550 | BX11: =BX13+BX12 -> 573 | BZ11: =BZ12+BZ13 -> 11 | CA11: =CA12+CA13 -> 136 | CB11: =CB12+CB13 -> 543 | CC11: =CC12+CC13 -> 574
A12: MONTEVIDEO | B12: =SUM(C12:CC12) -> 26156 | C12: 0 | D12: 0 | E12: 0 | F12: 0 | H12: 25 | I12: 445 | J12: 646 | K12: 650 | M12: 261 | N12: 2556 | O12: 3302 | P12: 2823 | R12: 0 | S12: 0 | T12: 0 | U12: 0 | W12: 176 | X12: 963 | Y12: 1207 | Z12: 1157 | AB12: 9 | AC12: 255 | AD12: 1987 | AE12: 1991 | AG12: 0 | AH12: 0 | AI12: 0 | AJ12: 0 | AL12: 9 | AM12: 255 | AN12: 1658 | AO12: 1844 | AQ12: 0 | AR12: 0 | AS12: 0 | AT12: 0 | AV12: 2 | AW12: 41 | AX12: 345 | AY12: 497 | BA12: 2 | BB12: 90 | BC12: 1058 | BD12: 1136 | BF12: 2 | BG12: 63 | BH12: 177 | BI12: 189 | BK12: 0 | BL12: 0 | BM12: 0 | BN12: 0 | BP12: 0 | BQ12: 2 | BR12: 23 | BS12: 29 | BU12: 0 | BV12: 8 | BW12: 113 | BX12: 160 | BZ12: 0 | CA12: 0 | CB12: 0 | CC12: 0
A13: RESTO DEL PAÍS | B13: =SUM(B15:B32) -> 58974 | C13: =SUM(C15:C32) -> 21 | D13: =SUM(D15:D32) -> 197 | E13: =SUM(E15:E32) -> 202 | F13: =SUM(F15:F32) -> 150 | H13: =SUM(H15:H32) -> 9 | I13: =SUM(I15:I32) -> 256 | J13: =SUM(J15:J32) -> 444 | K13: =SUM(K15:K32) -> 403 | M13: =SUM(M15:M32) -> 440 | N13: =SUM(N15:N32) -> 5486 | O13: =SUM(O15:O32) -> 6139 | P13: =SUM(P15:P32) -> 4896 | R13: =SUM(R15:R32) -> 6 | S13: =SUM(S15:S32) -> 74 | T13: =SUM(T15:T32) -> 70 | U13: =SUM(U15:U32) -> 64 | W13: =SUM(W15:W32) -> 98 | X13: =SUM(X15:X32) -> 1299 | Y13: =SUM(Y15:Y32) -> 1553 | Z13: =SUM(Z15:Z32) -> 1181 | AB13: =SUM(AB15:AB32) -> 18 | AC13: =SUM(AC15:AC32) -> 565 | AD13: =SUM(AD15:AD32) -> 3816 | AE13: =SUM(AE15:AE32) -> 3813 | AG13: =SUM(AG15:AG32) -> 2 | AH13: =SUM(AH15:AH32) -> 46 | AI13: =SUM(AI15:AI32) -> 75 | AJ13: =SUM(AJ15:AJ32) -> 47 | AL13: =SUM(AL15:AL32) -> 32 | AM13: =SUM(AM15:AM32) -> 789 | AN13: =SUM(AN15:AN32) -> 4229 | AO13: =SUM(AO15:AO32) -> 4511 | AQ13: =SUM(AQ15:AQ32) -> 27 | AR13: =SUM(AR15:AR32) -> 281 | AS13: =SUM(AS15:AS32) -> 1178 | AT13: =SUM(AT15:AT32) -> 1204 | AV13: =SUM(AV15:AV32) -> 2 | AW13: =SUM(AW15:AW32) -> 84 | AX13: =SUM(AX15:AX32) -> 876 | AY13: =SUM(AY15:AY32) -> 1241 | BA13: =SUM(BA15:BA32) -> 22 | BB13: =SUM(BB15:BB32) -> 417 | BC13: =SUM(BC15:BC32) -> 2982 | BD13: =SUM(BD15:BD32) -> 3037 | BF13: =SUM(BF15:BF32) -> 13 | BG13: =SUM(BG15:BG32) -> 289 | BH13: =SUM(BH15:BH32) -> 2027 | BI13: =SUM(BI15:BI32) -> 2153 | BK13: =SUM(BK15:BK32) -> 0 | BL13: =SUM(BL15:BL32) -> 0 | BM13: =SUM(BM15:BM32) -> 6 | BN13: =SUM(BN15:BN32) -> 7 | BP13: =SUM(BP15:BP32) -> 0 | BQ13: =SUM(BQ15:BQ32) -> 0 | BR13: 0 | BS13: 0 | BU13: =SUM(BU15:BU32) -> 2 | BV13: =SUM(BV15:BV32) -> 81 | BW13: 437 | BX13: 413 | BZ13: 11 | CA13: =SUM(CA15:CA32) -> 136 | CB13: =SUM(CB15:CB32) -> 543 | CC13: =SUM(CC15:CC32) -> 574
A15: Artigas | B15: =SUM(C15:CC15) -> 2420 | C15: 0 | D15: 0 | E15: 0 | F15: 0 | H15: 0 | I15: 23 | J15: 71 | K15: 50 | M15: 10 | N15: 155 | O15: 165 | P15: 138 | R15: 0 | S15: 0 | T15: 0 | U15: 0 | W15: 0 | X15: 0 | Y15: 0 | Z15: 0 | AB15: 0 | AC15: 30 | AD15: 245 | AE15: 214 | AG15: 0 | AH15: 0 | AI15: 0 | AJ15: 0 | AL15: 0 | AM15: 17 | AN15: 114 | AO15: 121 | AQ15: 0 | AR15: 9 | AS15: 72 | AT15: 60 | AV15: 0 | AW15: 3 | AX15: 57 | AY15: 62 | BA15: 0 | BB15: 24 | BC15: 232 | BD15: 206 | BF15: 0 | BG15: 6 | BH15: 139 | BI15: 122 | BK15: 0 | BL15: 0 | BM15: 3 | BN15: 3 | BP15: 0 | BQ15: 0 | BR15: 0 | BS15: 0 | BU15: 0 | BV15: 4 | BW15: 17 | BX15: 13 | BZ15: 0 | CA15: 5 | CB15: 14 | CC15: 16
A16: Canelones | B16: =SUM(C16:CC16) -> 14206 | C16: 11 | D16: 81 | E16: 95 | F16: 97 | H16: 6 | I16: 81 | J16: 153 | K16: 160 | M16: 138 | N16: 1756 | O16: 2074 | P16: 1963 | R16: 0 | S16: 0 | T16: 0 | U16: 0 | W16: 17 | X16: 207 | Y16: 240 | Z16: 157 | AB16: 3 | AC16: 110 | AD16: 1053 | AE16: 1096 | AG16: 0 | AH16: 0 | AI16: 0 | AJ16: 0 | AL16: 0 | AM16: 59 | AN16: 805 | AO16: 808 | AQ16: 0 | AR16: 20 | AS16: 222 | AT16: 239 | AV16: 0 | AW16: 8 | AX16: 60 | AY16: 91 | BA16: 3 | BB16: 78 | BC16: 667 | BD16: 692 | BF16: 4 | BG16: 65 | BH16: 332 | BI16: 363 | BK16: 0 | BL16: 0 | BM16: 0 | BN16: 0 | BP16: 0 | BQ16: 0 | BR16: 0 | BS16: 0 | BU16: 0 | BV16: 3 | BW16: 60 | BX16: 48 | BZ16: 1 | CA16: 5 | CB16: 35 | CC16: 40
A17: Cerro Largo | B17: 2734 | C17: 0 | D17: 0 | E17: 0 | F17: 0 | H17: 1 | I17: 52 | J17: 119 | K17: 112 | M17: 4 | N17: 74 | O17: 111 | P17: 102 | R17: 6 | S17: 74 | T17: 70 | U17: 64 | W17: 7 | X17: 83 | Y17: 101 | Z17: 97 | AB17: 5 | AC17: 62 | AD17: 179 | AE17: 154 | AG17: 0 | AH17: 0 | AI17: 0 | AJ17: 0 | AL17: 0 | AM17: 5 | AN17: 106 | AO17: 104 | AQ17: 2 | AR17: 17 | AS17: 35 | AT17: 57 | AV17: 0 | AW17: 2 | AX17: 48 | AY17: 55 | BA17: 4 | BB17: 37 | BC17: 129 | BD17: 110 | BF17: 0 | BG17: 14 | BH17: 194 | BI17: 153 | BK17: 0 | BL17: 0 | BM17: 0 | BN17: 0 | BP17: 0 | BQ17: 0 | BR17: 0 | BS17: 0 | BU17: 0 | BV17: 6 | BW17: 51 | BX17: 38 | BZ17: 0 | CA17: 6 | CB17: 41 | CC17: 43
A18: Colonia | B18: 3818 | C18: 0 | D18: 0 | E18: 0 | F18: 0 | H18: 0 | I18: 0 | J18: 0 | K18: 0 | M18: 46 | N18: 445 | O18: 373 | P18: 240 | R18: 0 | S18: 0 | T18: 0 | U18: 0 | W18: 0 | X18: 0 | Y18: 0 | Z18: 0 | AB18: 0 | AC18: 7 | AD18: 51 | AE18: 38 | AG18: 0 | AH18: 0 | AI18: 0 | AJ18: 0 | AL18: 15 | AM18: 187 | AN18: 562 | AO18: 528 | AQ18: 1 | AR18: 10 | AS18: 82 | AT18: 90 | AV18: 0 | AW18: 6 | AX18: 83 | AY18: 145 | BA18: 0 | BB18: 17 | BC18: 149 | BD18: 174 | BF18: 0 | BG18: 9 | BH18: 162 | BI18: 151 | BK18: 0 | BL18: 0 | BM18: 0 | BN18: 0 | BP18: 0 | BQ18: 0 | BR18: 0 | BS18: 0 | BU18: 0 | BV18: 3 | BW18: 56 | BX18: 64 | BZ18: 0 | CA18: 19 | CB18: 48 | CC18: 57
A19: Durazno | B19: 1625 | C19: 0 | D19: 0 | E19: 0 | F19: 0 | H19: 0 | I19: 0 | J19: 0 | K19: 0 | M19: 8 | N19: 144 | O19: 190 | P19: 135 | R19: 0 | S19: 0 | T19: 0 | U19: 0 | W19: 2 | X19: 30 | Y19: 58 | Z19: 37 | AB19: 0 | AC19: 8 | AD19: 104 | AE19: 140 | AG19: 0 | AH19: 0 | AI19: 0 | AJ19: 0 | AL19: 1 | AM19: 18 | AN19: 51 | AO19: 58 | AQ19: 1 | AR19: 1 | AS19: 9 | AT19: 15 | AV19: 0 | AW19: 2 | AX19: 70 | AY19: 49 | BA19: 1 | BB19: 31 | BC19: 112 | BD19: 112 | BF19: 1 | BG19: 26 | BH19: 79 | BI19: 62 | BK19: 0 | BL19: 0 | BM19: 0 | BN19: 0 | BP19: 0 | BQ19: 0 | BR19: 0 | BS19: 0 | BU19: 0 | BV19: 0 | BW19: 0 | BX19: 0 | BZ19: 0 | CA19: 7 | CB19: 24 | CC19: 39
A20: Flores | B20: 755 | C20: 0 | D20: 0 | E20: 0 | F20: 0 | H20: 0 | I20: 0 | J20: 0 | K20: 0 | M20: 9 | N20: 50 | O20: 61 | P20: 39 | R20: 0 | S20: 0 | T20: 0 | U20: 0 | W20: 6 | X20: 36 | Y20: 25 | Z20: 17 | AB20: 0 | AC20: 0 | AD20: 0 | AE20: 0 | AG20: 0 | AH20: 0 | AI20: 0 | AJ20: 0 | AL20: 0 | AM20: 43 | AN20: 65 | AO20: 71 | AQ20: 1 | AR20: 10 | AS20: 14 | AT20: 6 | AV20: 0 | AW20: 2 | AX20: 23 | AY20: 22 | BA20: 5 | BB20: 33 | BC20: 51 | BD20: 62 | BF20: 0 | BG20: 0 | BH20: 17 | BI20: 25 | BK20: 0 | BL20: 0 | BM20: 0 | BN20: 0 | BP20: 0 | BQ20: 0 | BR20: 0 | BS20: 0 | BU20: 0 | BV20: 0 | BW20: 11 | BX20: 15 | BZ20: 0 | CA20: 9 | CB20: 9 | CC20: 18
A21: Florida | B21: 1974 | C21: 0 | D21: 0 | E21: 0 | F21: 0 | H21: 0 | I21: 0 | J21: 0 | K21: 0 | M21: 20 | N21: 220 | O21: 202 | P21: 68 | R21: 0 | S21: 0 | T21: 0 | U21: 0 | W21: 2 | X21: 48 | Y21: 66 | Z21: 45 | AB21: 0 | AC21: 4 | AD21: 62 | AE21: 43 | AG21: 0 | AH21: 0 | AI21: 0 | AJ21: 0 | AL21: 1 | AM21: 40 | AN21: 142 | AO21: 242 | AQ21: 0 | AR21: 9 | AS21: 54 | AT21: 67 | AV21: 0 | AW21: 0 | AX21: 3 | AY21: 74 | BA21: 2 | BB21: 21 | BC21: 99 | BD21: 93 | BF21: 0 | BG21: 4 | BH21: 73 | BI21: 97 | BK21: 0 | BL21: 0 | BM21: 0 | BN21: 0 | BP21: 0 | BQ21: 0 | BR21: 0 | BS21: 0 | BU21: 0 | BV21: 2 | BW21: 44 | BX21: 52 | BZ21: 0 | CA21: 4 | CB21: 37 | CC21: 34
A22: Lavalleja | B22: 1585 | C22: 0 | D22: 0 | E22: 0 | F22: 0 | H22: 0 | I22: 0 | J22: 0 | M22: 13 | N22: 163 | O22: 195 | P22: 184 | R22: 0 | S22: 0 | T22: 0 | U22: 0 | W22: 9 | X22: 118 | Y22: 116 | Z22: 74 | AB22: 0 | AC22: 2 | AD22: 28 | AE22: 32 | AG22: 1 | AH22: 22 | AI22: 33 | AJ22: 18 | AL22: 2 | AM22: 26 | AN22: 71 | AO22: 84 | AQ22: 1 | AR22: 4 | AS22: 18 | AT22: 23 | AV22: 0 | AW22: 2 | AX22: 20 | AY22: 23 | BA22: 1 | BB22: 9 | BC22: 63 | BD22: 54 | BF22: 0 | BG22: 6 | BH22: 49 | BI22: 49 | BK22: 0 | BL22: 0 | BM22: 0 | BN22: 0 | BP22: 0 | BQ22: 0 | BR22: 0 | BS22: 0 | BU22: 0 | BV22: 0 | BW22: 0 | BX22: 0 | BZ22: 2 | CA22: 3 | CB22: 41 | CC22: 26
A23: Maldonado | B23: 4228 | C23: 0 | D23: 0 | E23: 0 | F23: 0 | H23: 0 | I23: 0 | J23: 0 | K23: 0 | M23: 43 | N23: 539 | O23: 581 | P23: 485 | R23: 0 | S23: 0 | T23: 0 | U23: 0 | W23: 0 | X23: 0 | Y23: 0 | Z23: 0 | AB23: 0 | AC23: 4 | AD23: 83 | AE23: 85 | AG23: 0 | AH23: 0 | AI23: 0 | AJ23: 0 | AL23: 2 | AM23: 101 | AN23: 587 | AO23: 509 | AQ23: 1 | AR23: 6 | AS23: 49 | AT23: 39 | AV23: 0 | AW23: 5 | AX23: 48 | AY23: 62 | BA23: 0 | BB23: 18 | BC23: 193 | BD23: 214 | BF23: 0 | BG23: 14 | BH23: 229 | BI23: 227 | BK23: 0 | BL23: 0 | BM23: 0 | BN23: 0 | BP23: 0 | BQ23: 0 | BR23: 0 | BS23: 0 | BU23: 0 | BV23: 0 | BW23: 28 | BX23: 26 | BZ23: 0 | CA23: 6 | CB23: 18 | CC23: 26
A24: Paysandú | B24: 3389 | C24: 0 | D24: 0 | E24: 0 | F24: 0 | H24: 0 | I24: 0 | J24: 0 | K24: 0 | M24: 19 | N24: 116 | O24: 189 | P24: 163 | R24: 0 | S24: 0 | T24: 0 | U24: 0 | W24: 9 | X24: 88 | Y24: 102 | Z24: 92 | AB24: 5 | AC24: 92 | AD24: 260 | AE24: 283 | AG24: 1 | AH24: 24 | AI24: 42 | AJ24: 29 | AL24: 5 | AM24: 91 | AN24: 293 | AO24: 310 | AQ24: 3 | AR24: 17 | AS24: 70 | AT24: 78 | AV24: 1 | AW24: 21 | AX24: 100 | AY24: 156 | BA24: 1 | BB24: 38 | BC24: 131 | BD24: 132 | BF24: 6 | BG24: 63 | BH24: 142 | BI24: 159 | BK24: 0 | BL24: 0 | BM24: 1 | BN24: 0 | BP24: 0 | BQ24: 0 | BR24: 0 | BS24: 0 | BU24: 0 | BV24: 0 | BW24: 0 | BX24: 0 | BZ24: 0 | CA24: 4 | CB24: 27 | CC24: 26
A25: Río Negro | B25: 1905 | C25: 0 | D25: 0 | E25: 0 | F25: 0 | H25: 0 | I25: 0 | J25: 0 | K25: 0 | M25: 13 | N25: 185 | O25: 185 | P25: 142 | R25: 0 | S25: 0 | T25: 0 | U25: 0 | W25: 12 | X25: 140 | Y25: 161 | Z25: 140 | AB25: 0 | AC25: 4 | AD25: 28 | AE25: 37 | AG25: 0 | AH25: 0 | AI25: 0 | AJ25: 0 | AL25: 2 | AM25: 30 | AN25: 206 | AO25: 177 | AQ25: 1 | AR25: 17 | AS25: 38 | AT25: 46 | AV25: 1 | AW25: 5 | AX25: 48 | AY25: 65 | BA25: 0 | BB25: 4 | BC25: 56 | BD25: 52 | BF25: 0 | BG25: 0 | BH25: 2 | BI25: 60 | BK25: 0 | BL25: 0 | BM25: 1 | BN25: 2 | BP25: 0 | BQ25: 0 | BR25: 0 | BS25: 0 | BU25: 0 | BV25: 0 | BW25: 0 | BX25: 0 | BZ25: 1 | CA25: 7 | CB25: 19 | CC25: 18
A26: Rivera | B26: 3393 | C26: 0 | D26: 0 | E26: 0 | F26: 0 | H26: 0 | I26: 0 | J26: 0 | K26: 0 | M26: 12 | N26: 191 | O26: 237 | P26: 194 | R26: 0 | S26: 0 | T26: 0 | U26: 0 | W26: 5 | X26: 126 | Y26: 213 | Z26: 158 | AB26: 0 | AC26: 36 | AD26: 395 | AE26: 359 | AG26: 0 | AH26: 0 | AI26: 0 | AJ26: 0 | AL26: 0 | AM26: 8 | AN26: 95 | AO26: 159 | AQ26: 5 | AR26: 27 | AS26: 71 | AT26: 64 | AV26: 0 | AW26: 4 | AX26: 88 | AY26: 86 | BA26: 1 | BB26: 20 | BC26: 169 | BD26: 158 | BF26: 0 | BG26: 15 | BH26: 167 | BI26: 196 | BK26: 0 | BL26: 0 | BM26: 0 | BN26: 0 | BP26: 0 | BQ26: 0 | BR26: 0 | BS26: 0 | BU26: 0 | BV26: 1 | BW26: 32 | BX26: 26 | BZ26: 0 | CA26: 2 | CB26: 40 | CC26: 33
A27: Rocha | B27: 2222 | C27: 0 | D27: 0 | E27: 0 | F27: 0 | H27: 0 | I27: 0 | J27: 0 | K27: 0 | M27: 18 | N27: 207 | O27: 330 | P27: 173 | R27: 0 | S27: 0 | T27: 0 | U27: 0 | W27: 2 | X27: 49 | Y27: 101 | Z27: 88 | AB27: 0 | AC27: 5 | AD27: 136 | AE27: 153 | AG27: 0 | AH27: 0 | AI27: 0 | AJ27: 0 | AL27: 0 | AM27: 26 | AN27: 200 | AO27: 227 | AQ27: 0 | AR27: 7 | AS27: 23 | AT27: 13 | AV27: 0 | AW27: 4 | AX27: 22 | AY27: 47 | BA27: 0 | BB27: 7 | BC27: 149 | BD27: 157 | BF27: 0 | BG27: 0 | BH27: 3 | BI27: 21 | BK27: 0 | BL27: 0 | BM27: 0 | BN27: 0 | BP27: 0 | BQ27: 0 | BR27: 0 | BS27: 0 | BU27: 0 | BV27: 0 | BW27: 0 | BX27: 0 | BZ27: 3 | CA27: 8 | CB27: 20 | CC27: 23
A28: Salto | B28: 4429 | C28: 10 | D28: 116 | E28: 107 | F28: 53 | H28: 0 | I28: 0 | J28: 0 | K28: 0 | M28: 16 | N28: 306 | O28: 283 | P28: 226 | R28: 0 | S28: 0 | T28: 0 | U28: 0 | W28: 0 | X28: 0 | Y28: 0 | Z28: 0 | AB28: 1 | AC28: 107 | AD28: 574 | AE28: 512 | AG28: 0 | AH28: 0 | AI28: 0 | AJ28: 0 | AL28: 0 | AM28: 10 | AN28: 89 | AO28: 136 | AQ28: 5 | AR28: 63 | AS28: 142 | AT28: 128 | AV28: 0 | AW28: 1 | AX28: 18 | AY28: 77 | BA28: 0 | BB28: 17 | BC28: 378 | BD28: 389 | BF28: 2 | BG28: 36 | BH28: 237 | BI28: 239 | BK28: 0 | BL28: 0 | BM28: 1 | BN28: 2 | BP28: 0 | BQ28: 0 | BR28: 0 | BS28: 0 | BU28: 1 | BV28: 17 | BW28: 30 | BX28: 24 | BZ28: 2 | CA28: 13 | CB28: 34 | CC28: 27
A29: San José | B29: 3449 | C29: 0 | D29: 0 | E29: 0 | F29: 0 | H29: 2 | I29: 100 | J29: 101 | K29: 81 | M29: 21 | N29: 214 | O29: 201 | P29: 164 | R29: 0 | S29: 0 | T29: 0 | U29: 0 | W29: 9 | X29: 135 | Y29: 122 | Z29: 83 | AB29: 0 | AC29: 26 | AD29: 133 | AE29: 126 | AG29: 0 | AH29: 0 | AI29: 0 | AJ29: 0 | AL29: 4 | AM29: 88 | AN29: 440 | AO29: 459 | AQ29: 1 | AR29: 23 | AS29: 112 | AT29: 125 | AV29: 0 | AW29: 2 | AX29: 44 | AY29: 47 | BA29: 0 | BB29: 12 | BC29: 144 | BD29: 168 | BF29: 0 | BG29: 19 | BH29: 29 | BI29: 24 | BK29: 0 | BL29: 0 | BM29: 0 | BN29: 0 | BP29: 0 | BQ29: 0 | BR29: 0 | BS29: 0 | BU29: 1 | BV29: 36 | BW29: 27 | BX29: 37 | BZ29: 0 | CA29: 6 | CB29: 36 | CC29: 47
A30: Soriano | B30: 2461 | C30: 0 | D30: 0 | E30: 0 | F30: 0 | H30: 0 | I30: 0 | J30: 0 | K30: 0 | M30: 22 | N30: 270 | O30: 271 | P30: 162 | R30: 0 | S30: 0 | T30: 0 | U30: 0 | W30: 1 | X30: 29 | Y30: 23 | Z30: 20 | AB30: 2 | AC30: 44 | AD30: 205 | AE30: 222 | AG30: 0 | AH30: 0 | AI30: 0 | AJ30: 0 | AL30: 0 | AM30: 10 | AN30: 182 | AO30: 218 | AQ30: 1 | AR30: 8 | AS30: 35 | AT30: 43 | AV30: 0 | AW30: 7 | AX30: 44 | AY30: 85 | BA30: 0 | BB30: 6 | BC30: 107 | BD30: 111 | BF30: 0 | BG30: 6 | BH30: 121 | BI30: 116 | BK30: 0 | BL30: 0 | BM30: 0 | BN30: 0 | BP30: 0 | BQ30: 0 | BR30: 0 | BS30: 0 | BU30: 0 | BV30: 0 | BW30: 0 | BX30: 0 | BZ30: 0 | CA30: 15 | CB30: 36 | CC30: 39
A31: Tacuarembó | B31: 2786 | C31: 0 | D31: 0 | E31: 0 | F31: 0 | H31: 0 | I31: 0 | J31: 0 | K31: 0 | M31: 19 | N31: 295 | O31: 342 | P31: 197 | R31: 0 | S31: 0 | T31: 0 | U31: 0 | W31: 8 | X31: 102 | Y31: 83 | Z31: 79 | AB31: 2 | AC31: 23 | AD31: 243 | AE31: 288 | AG31: 0 | AH31: 0 | AI31: 0 | AJ31: 0 | AL31: 0 | AM31: 15 | AN31: 76 | AO31: 168 | AQ31: 2 | AR31: 21 | AS31: 112 | AT31: 95 | AV31: 0 | AW31: 6 | AX31: 49 | AY31: 46 | BA31: 3 | BB31: 27 | BC31: 101 | BD31: 105 | BF31: 0 | BG31: 3 | BH31: 26 | BI31: 43 | BK31: 0 | BL31: 0 | BM31: 0 | BN31: 0 | BP31: 0 | BQ31: 0 | BR31: 0 | BS31: 0 | BU31: 0 | BV31: 9 | BW31: 60 | BX31: 51 | BZ31: 0 | CA31: 7 | CB31: 42 | CC31: 38
A32: Treinta y Tres | B32: 1595 | C32: 0 | D32: 0 | E32: 0 | F32: 0 | H32: 0 | I32: 0 | J32: 0 | K32: 0 | M32: 9 | N32: 156 | O32: 149 | P32: 121 | R32: 0 | S32: 0 | T32: 0 | U32: 0 | W32: 9 | X32: 108 | Y32: 142 | Z32: 94 | AB32: 0 | AC32: 1 | AD32: 37 | AE32: 31 | AG32: 0 | AH32: 0 | AI32: 0 | AJ32: 0 | AL32: 0 | AM32: 15 | AN32: 145 | AO32: 132 | AQ32: 2 | AR32: 12 | AS32: 20 | AT32: 16 | AV32: 0 | AW32: 4 | AX32: 51 | AY32: 49 | BA32: 1 | BB32: 18 | BC32: 52 | BD32: 48 | BF32: 0 | BG32: 3 | BH32: 26 | BI32: 46 | BK32: 0 | BL32: 0 | BM32: 0 | BN32: 0 | BP32: 0 | BQ32: 0 | BR32: 0 | BS32: 0 | BU32: 0 | BV32: 0 | BW32: 21 | BX32: 19 | BZ32: 2 | CA32: 10 | CB32: 22 | CC32: 24
A33: Fuente: Procesamiento propio en base a datos proporcionados por el D.E.E. — C.E.I.P.

Sheet II-1.2.3
A1: CONSEJO DE EDUCACIÓN INICIAL Y PRIMARIA | L1: ALUMNOS MATRICULADOS
A3: Cuadro Nº II-1.2.3
A5: ALUMNOS MATRICULADOS EN EDUCACIÓN EN LA PRIMERA INFANCIA E INICIAL PRIVADA POR MODALIDAD Y NIVEL SEGÚN DEPARTAMENTO. AÑO 2016.
A6: DEPARTAMENTO | D6: MODALIDAD
D7: JARDINES PRIVADOS | J7: INICIAL EN COLEGIOS
B8: TOTAL | D8: NIVEL | J8: NIVEL
C9: Total | D9: Nursery | E9: 2 años | F9: 3 años | G9: 4 años | H9: 5 años | I9: Total | J9: Nursery | K9: 2 años | L9: 3 años | M9: 4 años | N9: 5 años
A11: TOTAL | B11: =+B12+B13 -> 29911 | C11: =+C12+C13 -> 4589 | D11: =SUM(D12:D13) -> 725 | E11: 1117 | F11: 1119 | G11: 859 | H11: 769 | I11: =+I12+I13 -> 25322 | J11: =SUM(J12:J13) -> 1498 | K11: =SUM(K12:K13) -> 3827 | L11: =SUM(L12:L13) -> 5143 | M11: =SUM(M12:M13) -> 7061 | N11: =SUM(N12:N13) -> 7793
A12: MONTEVIDEO | B12: =+C12+I12 -> 18025 | C12: =SUM(D12:H12) -> 3279 | D12: 560 | E12: 773 | F12: 796 | G12: 617 | H12: 533 | I12: =SUM(J12:N12) -> 14746 | J12: 788 | K12: 2084 | L12: 2922 | M12: 4156 | N12: 4796
A13: RESTO DEL PAÍS | B13: =SUM(B15:B32) -> 11886 | C13: =SUM(C15:C32) -> 1310 | D13: 165 | E13: 344 | F13: 323 | G13: 242 | H13: 236 | I13: 10576 | J13: 710 | K13: 1743 | L13: 2221 | M13: 2905 | N13: 2997
A15: Artigas | B15: =+C15+I15 -> 217 | C15: =SUM(D15:H15) -> 0 | D15: 0 | E15: 0 | F15: 0 | G15: 0 | H15: 0 | I15: =+J15+K15+L15+M15+N15 -> 217 | J15: 39 | K15: 40 | L15: 51 | M15: 50 | N15: 37
A16: Canelones | B16: 3883 | C16: 434 | D16: 30 | E16: 98 | F16: 95 | G16: 113 | H16: 98 | I16: 3449 | J16: 220 | K16: 553 | L16: 658 | M16: 932 | N16: 1086
A17: Cerro Largo | B17: 230 | C17: 0 | D17: 0 | E17: 0 | F17: 0 | G17: 0 | H17: 0 | I17: 230 | J17: 0 | K17: 11 | L17: 40 | M17: 82 | N17: 97
A18: Colonia | B18: 634 | C18: 0 | D18: 0 | E18: 0 | F18: 0 | G18: 0 | H18: 0 | I18: 634 | J18: 96 | K18: 113 | L18: 163 | M18: 143 | N18: 119
A19: Durazno | B19: 279 | C19: 0 | D19: 0 | E19: 0 | F19: 0 | G19: 0 | H19: 0 | I19: 279 | J19: 22 | K19: 28 | L19: 80 | M19: 85 | N19: 64
A20: Flores | B20: 119 | C20: 0 | D20: 0 | E20: 0 | F20: 0 | G20: 0 | H20: 0 | I20: 119 | J20: 5 | K20: 30 | L20: 19 | M20: 24 | N20: 41
A21: Florida | B21: 138 | C21: 18 | D21: 8 | E21: 4 | F21: 4 | G21: 2 | H21: 0 | I21: 120 | J21: 0 | K21: 11 | L21: 34 | M21: 34 | N21: 41
A22: Lavalleja | B22: 280 | C22: 0 | D22: 0 | E22: 0 | F22: 0 | G22: 0 | H22: 0 | I22: 280 | J22: 40 | L22: 61 | M22: 84 | N22: 95
A23: Maldonado | B23: 2087 | C23: 169 | D23: 9 | E23: 32 | F23: 47 | G23: 36 | H23: 45 | I23: 1918 | J23: 76 | K23: 371 | L23: 431 | M23: 537 | N23: 503
A24: Paysandú | B24: 464 | C24: 123 | D24: 16 | E24: 38 | F24: 23 | G24: 20 | H24: 26 | I24: 341 | J24: 0 | K24: 11 | L24: 30 | M24: 152 | N24: 148
A25: Río Negro | B25: 275 | C25: 0 | D25: 0 | E25: 0 | F25: 0 | G25: 0 | H25: 0 | I25: 275 | J25: 16 | K25: 32 | L25: 56 | M25: 92 | N25: 79
A26: Rivera | B26: 344 | C26: 0 | D26: 0 | E26: 0 | F26: 0 | G26: 0 | H26: 0 | I26: 344 | J26: 19 | K26: 74 | L26: 72 | M26: 81 | N26: 98
A27: Rocha | B27: 310 | C27: 0 | D27: 0 | E27: 0 | F27: 0 | G27: 0 | H27: 0 | I27: 310 | J27: 36 | K27: 73 | L27: 65 | M27: 76 | N27: 60
A28: Salto | B28: 1006 | C28: 282 | D28: 50 | E28: 98 | F28: 89 | G28: 32 | H28: 13 | I28: 724 | J28: 68 | K28: 120 | L28: 144 | M28: 184 | N28: 208
A29: San José | B29: 532 | C29: 105 | D29: 22 | E29: 20 | F29: 34 | G29: 9 | H29: 20 | I29: 427 | J29: 6 | K29: 81 | L29: 108 | M29: 126 | N29: 106
A30: Soriano | B30: 270 | C30: 43 | D30: 13 | E30: 15 | F30: 8 | G30: 7 | H30: 0 | I30: 227 | J30: 0 | K30: 48 | L30: 49 | M30: 65 | N30: 65
A31: Tacuarembó | B31: 688 | C31: 136 | D31: 17 | E31: 39 | F31: 23 | G31: 23 | H31: 34 | I31: 552 | J31: 67 | K31: 122 | L31: 126 | M31: 119 | N31: 118
A32: Treinta y Tres | B32: 130 | C32: 0 | D32: 0 | E32: 0 | F32: 0 | G32: 0 | H32: 0 | I32: 130 | J32: 0 | K32: 25 | L32: 34 | M32: 39 | N32: 32
A33: Fuente: Procesamiento propio en base a datos proporcionados por el D.E.E. — C.E.I.P.
A34: Nota: Se refiere a centros privados habilitados o autorizados por ANEP

Sheet II-1.2.4
A1: MINISTERIO DE EDUCACIÓN Y CULTURA | I1: Alumnos Matriculados
A2: Dirección de Educación – Área de Educación en la Primera Infancia
A3: INAU-CAIF
A6: Cuadro Nº II-1.2.4
A8: ALUMNOS MATRICULADOS EN EDUCACIÓN EN LA PRIMERA INFANCIA E INICIAL POR FORMA DE ADMINISTRACIÓN Y SEXO SEGÚN DEPARTAMENTO. AÑO 2016.
A9: DEPARTAMENTO | E9: FORMA DE ADMINISTRACIÓN
B10: TOTAL | E10: CAIF,CAPI Y NUESTROS NIÑOS | G10: Centros Privados
B12: TOTAL | C12: SEXO | E12: SEXO
C13: M | D13: F | E13: M | F13: F | G13: M | H13: F
A14: TOTAL | B14: =+B15+B16 -> 73033 | C14: =E14+G14 -> 37361 | D14: 35672 | E14: =E15+E16 -> 28083 | F14: =F15+F16 -> 26993 | G14: =G15+G16 -> 9278 | H14: =H15+H16 -> 8679
A15: MONTEVIDEO | B15: =+C15+D15 -> 24693 | C15: 12821 | D15: 11872 | E15: 7037 | F15: 6667 | G15: 5784 | H15: 5205
A16: RESTO DEL PAÍS | B16: =+C16+D16 -> 48340 | C16: 24540 | D16: 23800 | E16: =SUM(E17:E35) -> 21046 | F16: =SUM(F17:F35) -> 20326 | G16: =SUM(G17:G35) -> 3494 | H16: =SUM(H17:H35) -> 3474
A18: Artigas | B18: =+C18+D18 -> 2570 | C18: =E18+G18 -> 1272 | D18: =F18+H18 -> 1298 | E18: 1201 | F18: 1212 | G18: 71 | H18: 86
A19: Canelones | B19: 10972 | C19: =E19+G19 -> 5628 | D19: 5344 | E19: 4314 | F19: 4035 | G19: 1314 | H19: 1309
A20: Cerro Largo | B20: 2812 | C20: 1382 | D20: 1430 | E20: 1371 | F20: 1410 | G20: 11 | H20: 20
A21: Colonia | B21: 2494 | C21: 1281 | D21: 1213 | E21: 999 | F21: 962 | G21: 282 | H21: 251
A22: Durazno | B22: 2223 | C22: 1156 | D22: 1067 | E22: 1027 | F22: 963 | G22: 129 | H22: 104
A23: Flores | B23: 900 | C23: 455 | D23: 445 | E23: 421 | F23: 387 | G23: 34 | H23: 58
A24: Florida | B24: 1802 | C24: 899 | D24: 903 | E24: 689 | F24: 682 | G24: 210 | H24: 221
A25: Lavalleja | B25: 1064 | C25: 549 | D25: 515 | E25: 479 | F25: 437 | G25: 70 | H25: 78
A26: Maldonado | B26: 2295 | C26: 1135 | D26: 1160 | E26: 806 | F26: 821 | G26: 329 | H26: 339
A27: Paysandú | B27: 3715 | C27: 1901 | D27: 1814 | E27: 1716 | F27: 1624 | G27: 185 | H27: 190
A28: Río Negro | B28: 1488 | C28: 730 | D28: 758 | E28: 673 | F28: 703 | G28: 57 | H28: 55
A29: Rivera | B29: 2978 | C29: 1488 | D29: 1490 | E29: 1262 | F29: 1265 | G29: 226 | H29: 225
A30: Rocha | B30: 1968 | C30: 984 | D30: 984 | E30: 939 | F30: 937 | G30: 45 | H30: 47
A31: Salto | B31: 3550 | C31: 1826 | D31: 1724 | E31: 1669 | F31: 1612 | G31: 157 | H31: 112
A32: San José | B32: 2055 | C32: 1045 | D32: 1010 | E32: 874 | F32: 850 | G32: 171 | H32: 160
A33: Soriano | B33: 2020 | C33: 1054 | D33: 966 | E33: 876 | F33: 780 | G33: 178 | H33: 186
A34: Tacuarembó | B34: 2200 | C34: 1115 | D34: 1085 | E34: 1090 | F34: 1052 | G34: 25 | H34: 33
A35: Treinta y Tres | B35: 1234 | C35: 640 | D35: 594 | E35: 640 | F35: 594 | G35: 0 | H35: 0
A36: Fuente: Procesamiento propio en base a datos proporcionados por:
A37: Registro Nacional de Centros de Educación Infantil Privados. MEC
A38: Para CAIF Y CENTROS DIURNOS: SIPI de INAU.
A39: Nota: Privados supervisados por el MEC
A40: Los centros pertenecientes al Proyecto Nuestros Niños de la Intendencia Municipal de Montevideo, se encuentran incluidos en la matrícula de Centros Privados, en tanto los mismos son supervisados por el MEC.
A41: CAIF y Centros Diurnos incluyen para este año la matrícula de Experiencia Oportuna.
A42: (0 a 1 año) que en el anuario 2012 solo se incluía en el cuadro II

Sheet II-1.2.5
A1: MINISTERIO DE EDUCACIÓN Y CULTURA | H1: ALUMNOS MATRICULADOS
A2: Dirección de Educación – Área de Educación en la Primera Infancia
A4: Cuadro Nº II-1.2.5
A5: ALUMNOS MATRICULADOS EN EDUCACIÓN EN LA PRIMERA INFANCIA E INICIAL POR FORMA DE ADMINISTRACIÓN SEGÚN EDAD. AÑO 2016.
C6: FORMA DE ADMINISTRACIÓN
A7: EDAD | C7: CEIP- PÚBLICOS | D7: CEIP-PRIVADOS (Habilitados y Autorizados) | E7: CAIF | F7: CAPI | G7: NUESTROS NIÑOS | H7: PRIVADOS MEC
A10: TOTAL | B10: =SUM(B11:B16) -> 188134 | C10: 85130 | D10: 29971 | E10: 52129 | F10: 1804 | G10: 1143 | H10: 17957
A11: 0 a 11 meses | B11: =SUM(C11:H11) -> 10745 | C11: 29 | D11: 2223 | E11: 7530 | F11: 124 | G11: 4 | H11: 835
A12: 1 año | B12: =SUM(C12:H12) -> 18756 | C12: 55 | E12: 14526 | F12: 499 | G12: 128 | H12: 3548
A13: 2 años | B13: 27200 | C13: 1104 | D13: 5004 | E13: 14813 | F13: 684 | G13: 435 | H13: 5160
A14: 3 años | B14: 39256 | C14: 14678 | D14: 6262 | E14: 12855 | F14: 410 | G14: 491 | H14: 4560
A15: 4 años | B15: 48039 | C15: 35093 | D15: 7920 | E15: 2405 | F15: 87 | G15: 85 | H15: 2449
A16: 5 años | B16: 44138 | C16: 34171 | D16: 8562 | F16: 0 | H16: 1405
A17: Fuente: Procesamiento propio en base a datos proporcionados por:
A18: Registro Nacional de Centros de Educación Infantil Privados. MEC
A19: La denomicación de Centros Diurnos pasó a ser CAPI (Centros de Atención a la Primera Infancia)
A20: Para CAIF, CAPI Y NUESTROS NIÑOS: SIPI de INAU.
A21: Para CAIF las edades de 0 y 1 año corresponden a la modalidad Experiencia Oportuna.

Sheet II-1.2.6
A1: CONSEJO DE EDUCACIÓN INICIAL Y PRIMARIA | F1: ALUMNOS MATRICULADOS
A3: Cuadro Nº II-1.2.6
A5: ALUMNOS MATRICULADOS EN EDUCACIÓN EN LA PRIMERA INFANCIA E INICIAL PÚBLICA DEL CEIP POR ÁREA DEMOGRÁFICA SEGÚN DEPARTAMENTO. AÑO 2016.
A6: DEPARTAMENTO | B6: TOTAL | C6: NIVEL
C7: Educación Inicial | E7: Inicial en Escuelas
C8: ÁREA DEMOGRÁFICA
C9: RURAL | D9: URBANA | E9: RURAL | F9: URBANA
A10: TOTAL | B10: =SUM(C10:F10) -> 85130 | C10: =SUM(C11:C12) -> 0 | D10: =SUM(D11:D12) -> 37199 | E10: 3968 | F10: 43963
A11: MONTEVIDEO | B11: =SUM(C11:F11) -> 26156 | C11: 0 | D11: 14211 | E11: 0 | F11: 11945
A12: RESTO DEL PAÍS | B12: 58974 | C12: =SUM(C14:C31) -> 0 | D12: =SUM(D14:D31) -> 22988 | E12: 3968 | F12: 32018
A14: Artigas | B14: =SUM(C14:F14) -> 2420 | C14: 0 | D14: 612 | E14: 182 | F14: 1626
A15: Canelones | B15: 14206 | C15: 0 | D15: 7236 | E15: 567 | F15: 6403
A16: Cerro Largo | B16: 2734 | C16: 0 | D16: 1077 | E16: 201 | F16: 1456
A17: Colonia | B17: 3818 | C17: 0 | D17: 1104 | E17: 307 | F17: 2407
A18: Durazno | B18: 1625 | C18: 0 | D18: 604 | E18: 96 | F18: 925
A19: Flores | B19: 755 | C19: 0 | D19: 243 | E19: 67 | F19: 445
A20: Florida | B20: 1974 | C20: 0 | D20: 671 | E20: 205 | F20: 1098
A21: Lavalleja | B21: 1585 | C21: 0 | D21: 872 | E21: 114 | F21: 599
A22: Maldonado | B22: 4228 | C22: 0 | D22: 1648 | E22: 145 | F22: 2435
A23: Paysandú | B23: 3389 | C23: 0 | D23: 778 | E23: 226 | F23: 2385
A24: Río Negro | B24: 1905 | C24: 0 | D24: 978 | E24: 150 | F24: 777
A25: Rivera | B25: 3393 | C25: 0 | D25: 1136 | E25: 242 | F25: 2015
A26: Rocha | B26: 2222 | C26: 0 | D26: 968 | E26: 97 | F26: 1157
A27: Salto | B27: 4429 | C27: 0 | D27: 1117 | E27: 417 | F27: 2895
A28: San José | B28: 3449 | C28: 0 | D28: 1233 | E28: 350 | F28: 1866
A29: Soriano | B29: 2461 | C29: 0 | D29: 798 | E29: 177 | F29: 1486
A30: Tacuarembó | B30: 2786 | C30: 0 | D30: 1125 | E30: 317 | F30: 1344
A31: Treinta y Tres | B31: 1595 | C31: 0 | D31: 788 | E31: 108 | F31: 699
A32: Fuente: Procesamiento propio en base a datos proporcionados
A33: por el D.E.E. — C.E.I.P.

Sheet II-1.3.1
A1: CONSEJO DE EDUCACIÓN INICIAL Y PRIMARIA | D1: PERSONAL DOCENTE
A3: Cuadro Nº II-1.3.1
A5: PERSONAL DOCENTE DE EDUCACIÓN EN LA PRIMERA INFANCIA E INICIAL PÚBLICA DEL CEIP SEGÚN DEPARTAMENTO. AÑO 2016.
A6: DEPARTAMENTO | B6: DOCENTES
A8: TOTAL | B8: =SUM(B9:B10) -> 2974
A9: MONTEVIDEO | B9: 1003
A10: RESTO DEL PAÍS | B10: =SUM(B12:B29) -> 1971
A12: Artigas | B12: 82
A13: Canelones | B13: 477
A14: Cerro Largo | B14: 89
A15: Colonia | B15: 107
A16: Durazno | B16: 54
A17: Flores | B17: 27
A18: Florida | B18: 73
A19: Lavalleja | B19: 60
A20: Maldonado | B20: 160
A21: Paysandú | B21: 100
A22: Río Negro | B22: 71
A23: Rivera | B23: 112
A24: Rocha | B24: 77
A25: Salto | B25: 131
A26: San José | B26: 111
A27: Soriano | B27: 85
A28: Tacuarembó | B28: 97
A29: Treinta y Tres | B29: 58
A30: Fuente: D.E.E. - C.E.I.P
A31: Nota: Personal docente solo considera maestro/a de clase.

Sheet II-1.2.7
A1: MINISTERIO DE EDUCACIÓN Y CULTURA | J1: ALUMNOS MATRICULADOS
A2: Dirección de Educación – Área de Educación en la Primera Infancia
A4: Cuadro Nº II-1.2.7
A6: ALUMNOS MATRICULADOS EN EDUCACIÓN EN LA PRIMERA INFANCIA E INICIAL EN CENTROS PRIVADOS HABILITADOS POR EL MEC POR EDAD SEGÚN DEPARTAMENTO. AÑO 2016.
A7: DEPARTAMENTO | C7: E D A D
B8: TOTAL | C8: 0 a 11 meses | D8: 1 año | E8: 2 años | F8: 3 años | G8: 4 años | H8: 5 años | I8: 6 años
A10: TOTAL | B10: =+B11+B12 -> 17957 | C10: 835 | D10: 3548 | E10: 5160 | F10: 4560 | G10: 2449 | H10: 1152 | I10: 253
A11: MONTEVIDEO | B11: =+C11+D11+E11+F11+G11+H11+I11 -> 10989 | C11: 643 | D11: 2230 | E11: 3142 | F11: 2767 | G11: 1453 | H11: 648 | I11: 106
A12: RESTO DEL PAÍS | B12: =SUM(B14:B31) -> 6968 | C12: =SUM(C14:C31) -> 192 | D12: 1318 | E12: 2018 | F12: 1793 | G12: 996 | H12: 504 | I12: 147
A14: Artigas | B14: =+C14+D14+E14+F14+G14+H14+I14 -> 157 | C14: 2 | D14: 26 | E14: 28 | F14: 48 | G14: 34 | H14: 10 | I14: 9
A15: Canelones | B15: =+C15+D15+E15+F15+G15+H15+I15 -> 2623 | C15: 96 | D15: 436 | E15: 707 | F15: 673 | G15: 438 | H15: 248 | I15: 25
A16: Cerro Largo | B16: 31 | C16: 0 | D16: 10 | E16: 11 | F16: 10 | G16: 0 | H16: 0 | I16: 0
A17: Colonia | B17: 533 | C17: 13 | D17: 137 | E17: 228 | F17: 151 | G17: 4 | H17: 0 | I17: 0
A18: Durazno | B18: 233 | C18: 0 | D18: 47 | E18: 48 | F18: 40 | G18: 58 | H18: 40 | I18: 0
A19: Flores | B19: 92 | C19: 0 | D19: 18 | E19: 19 | F19: 26 | G19: 19 | H19: 6 | I19: 4
A20: Florida | B20: 431 | C20: 7 | D20: 79 | E20: 123 | F20: 94 | G20: 60 | H20: 14 | I20: 54
A21: Lavalleja | B21: 148 | C21: 4 | D21: 32 | E21: 61 | F21: 41 | G21: 10 | H21: 0 | I21: 0
A22: Maldonado | B22: 668 | C22: 9 | D22: 107 | E22: 167 | F22: 167 | G22: 121 | H22: 52 | I22: 45
A23: Paysandú | B23: 375 | C23: 28 | D23: 85 | E23: 89 | F23: 102 | G23: 32 | H23: 39 | I23: 0
A24: Río Negro | B24: 112 | C24: 0 | D24: 26 | E24: 42 | F24: 29 | G24: 9 | H24: 6 | I24: 0
A25: Rivera | B25: 451 | C25: 6 | D25: 103 | E25: 115 | F25: 120 | G25: 70 | H25: 37 | I25: 0
A26: Rocha | B26: 92 | C26: 0 | D26: 21 | E26: 24 | F26: 14 | G26: 13 | H26: 11 | I26: 9
A27: Salto | B27: 269 | C27: 3 | D27: 63 | E27: 85 | F27: 85 | G27: 28 | H27: 5 | I27: 0
A28: San José | B28: 331 | C28: 13 | D28: 43 | E28: 116 | F28: 97 | G28: 44 | H28: 17 | I28: 1
A29: Soriano | B29: 364 | C29: 10 | D29: 69 | E29: 138 | F29: 81 | G29: 49 | H29: 17 | I29: 0
A30: Tacuarembó | B30: 58 | C30: 1 | D30: 16 | E30: 17 | F30: 15 | G30: 7 | H30: 2 | I30: 0
A31: Treinta y Tres | B31: 0 | C31: 0 | D31: 0 | E31: 0 | F31: 0 | G31: 0 | H31: 0 | I31: 0
A32: Fuente: Procesamiento propio en base a datos proporcionados por:
A33: Registro Nacional de Centros de Educación Infantil Privados. MEC

Sheet II-1.3.2
A1: CONSEJO DE EDUCACIÓN INICIAL Y PRIMARIA | E1: PERSONAL DOCENTE
A3: Cuadro Nº II-1.3.2.
A5: PERSONAL DOCENTE DE EDUCACIÓN EN LA PRIMERA INFANCIA E INICIAL PRIVADA SEGÚN DEPARTAMENTO. AÑO 2016.
A6: DEPARTAMENTO | C6: DOCENTES
B8: TOTAL | C8: Colegios Habilitados | D8: Colegios Autorizados | E8: Jardines de Infantes Autorizados
A10: TOTAL | B10: =SUM(B11:B12) -> 1089 | C10: =SUM(C11:C12) -> 751 | D10: =SUM(D11:D12) -> 33 | E10: =SUM(E11:E12) -> 305
A11: MONTEVIDEO | B11: =+C11+D11+E11 -> 667 | C11: 429 | D11: 28 | E11: 210
A12: RESTO DEL PAÍS | B12: =+C12+D12+E12 -> 422 | C12: =SUM(C14:C31) -> 322 | D12: =SUM(D14:D31) -> 5 | E12: =SUM(E14:E31) -> 95
A14: Artigas | B14: =+C14+D14+E14 -> 8 | C14: 8 | D14: 0 | E14: 0
A15: Canelones | B15: =+C15+D15+E15 -> 127 | C15: 93 | D15: 5 | E15: 29
A16: Cerro Largo | B16: 9 | C16: 5 | D16: 0 | E16: 4
A17: Colonia | B17: 25 | C17: 22 | D17: 0 | E17: 3
A18: Durazno | B18: 5 | C18: 5 | D18: 0 | E18: 0
A19: Flores | B19: 4 | C19: 4 | D19: 0 | E19: 0
A20: Florida | B20: 5 | C20: 4 | D20: 0 | E20: 1
A21: Lavalleja | B21: 9 | C21: 9 | D21: 0 | E21: 0
A22: Maldonado | B22: 70 | C22: 59 | D22: 0 | E22: 11
A23: Paysandú | B23: 16 | C23: 9 | D23: 0 | E23: 7
A24: Río Negro | B24: 12 | C24: 12 | D24: 0 | E24: 0
A25: Rivera | B25: 12 | C25: 12 | D25: 0 | E25: 0
A26: Rocha | B26: 10 | C26: 10 | D26: 0 | E26: 0
A27: Salto | B27: 49 | C27: 23 | D27: 0 | E27: 26
A28: San José | B28: 17 | C28: 13 | D28: 0 | E28: 4
A29: Soriano | B29: 10 | C29: 9 | D29: 0 | E29: 1
A30: Tacuarembó | B30: 31 | C30: 22 | D30: 0 | E30: 9
A31: Treinta y Tres | B31: 3 | C31: 3 | D31: 0 | E31: 0
A32: Fuente: D.E.E. — C.E.P. | B32: C.E.I.P
A33: Nota: Personal docente solo considera maestro/a de clase.
A34: Centros privados habilitados o autorizados por ANEP

Sheet II-1.3.3
A1: CONSEJO DE EDUCACIÓN INICIAL Y PRIMARIA | E1: PERSONAL DOCENTE
A3: Cuadro Nº II-1.3.3.
A5: PERSONAL DOCENTE EN EDUCACIÓN EN LA PRIMERA INFANCIA PRIVADA SUPERVISADA POR EL MEC SEGÚN FUNCIÓN Y DEPARTAMENTO. AÑO 2016.
C7: FUNCIÓN
A8: DEPARTAMENTO | B8: TOTAL | C8: Director responsable técnico | D8: Educadores | E8: Otros especialistas | F8: Profesores especiales | G8: Responsable legal
A10: TOTAL | B10: =SUM(C10:G10) -> 3768 | C10: =C12+C11 -> 356 | D10: =D11+D12 -> 2505 | E10: 218 | F10: 324 | G10: =G11+G12 -> 365
A11: MONTEVIDEO | B11: =SUM(C11:G11) -> 2450 | C11: 214 | D11: 1627 | E11: 160 | F11: 230 | G11: 219
A12: RESTO DEL PAIS | B12: =SUM(C12:G12) -> 1318 | C12: =SUM(C14:C31) -> 142 | D12: =SUM(D14:D31) -> 878 | E12: =SUM(E14:E31) -> 58 | F12: =SUM(F14:F31) -> 94 | G12: =SUM(G14:G31) -> 146
A14: Artigas | B14: =SUM(C14:G14) -> 29 | C14: 3 | D14: 22 | E14: 1 | F14: 0 | G14: 3
A15: Canelones | B15: =SUM(C15:G15) -> 518 | C15: 56 | D15: 344 | E15: 25 | F15: 36 | G15: 57
A16: Cerro Largo | B16: 11 | C16: 1 | D16: 6 | E16: 2 | F16: 1 | G16: 1
A17: Colonia | B17: 91 | C17: 13 | D17: 59 | E17: 2 | F17: 3 | G17: 14
A18: Durazno | B18: 41 | C18: 3 | D18: 32 | E18: 2 | F18: 2 | G18: 2
A19: Flores | B19: 14 | C19: 1 | D19: 10 | E19: 1 | F19: 1 | G19: 1
A20: Florida | B20: 53 | C20: 5 | D20: 34 | E20: 5 | F20: 3 | G20: 6
A21: Lavalleja | B21: 38 | C21: 5 | D21: 27 | E21: 0 | F21: 1 | G21: 5
A22: Maldonado | B22: 146 | C22: 13 | D22: 94 | E22: 7 | F22: 16 | G22: 16
A23: Paysandú | B23: 81 | C23: 7 | D23: 61 | E23: 1 | F23: 6 | G23: 6
A24: Rio Negro | B24: 15 | C24: 2 | D24: 7 | E24: 2 | F24: 2 | G24: 2
A25: Rivera | B25: 85 | C25: 7 | D25: 61 | E25: 2 | F25: 8 | G25: 7
A26: Rocha | B26: 21 | C26: 3 | D26: 12 | E26: 2 | F26: 1 | G26: 3
A27: Salto | B27: 43 | C27: 5 | D27: 30 | E27: 2 | F27: 2 | G27: 4
A28: San José | B28: 51 | C28: 8 | D28: 29 | E28: 2 | F28: 3 | G28: 9
A29: Soriano | B29: 67 | C29: 8 | D29: 42 | E29: 2 | F29: 7 | G29: 8
A30: Tacuarembó | B30: 14 | C30: 2 | D30: 8 | E30: 0 | F30: 2 | G30: 2
A31: Treinta y Tres | B31: 0 | C31: 0 | D31: 0 | E31: 0 | F31: 0 | G31: 0
A32: Fuente: Procesamiento propio en base a datos proporcionados por: Registro Nacional de Centros de Educación Infantil Privados. MEC
A33: Nota:
A34: Director responsable técnico: art 4. 268/014
A35: Educadores: Son aquellos que la tarea de docencia es directa, ya sea de carácter de docente propiamente dicho o de auxiliar. Informe Primer censo nacional de centros de Educaciòn Infanti Privados.
A36: Otros especialistas: Se refiere a profesionales que apoyan la tarea de los educadores sin ejercer educación directa. En esta categoría entran psicólogo, psicomotricistas, trabajadores sociales, nutricionistas, médico pediatra y otros especialistas.
A37: Profesores especiales: Son docentes que se especializan en un área en particular. Esta categoría incluye profesores de computación, inglés, plástica, eduación musical u artística.

Sheet PRIMARIA
A7: Cuadro Nº II-2.1.1 | B7: ESTABLECIMIENTOS DE EDUCACIÓN PRIMARIA POR FORMA DE ADMINISTRACIÓN Y TIPO DE EDUCACIÓN SEGÚN DEPARTAMENTO. AÑO 2016.
A9: Cuadro Nº II-2.1.2 | B9: ESTABLECIMIENTOS DE EDUCACIÓN PRIMARIA PÚBLICA COMÚN POR ÁREA DEMOGRÁFICA Y CATEGORÍA SEGÚN DEPARTAMENTO. AÑO 2016.
A11: Cuadro Nº II-2.1.3 | B11: ESTABLECIMIENTOS DE EDUCACIÓN PRIMARIA PÚBLICA ESPECIAL POR TIPO DE DISCAPACIDAD SEGÚN DEPARTAMENTO. AÑO 2016.
A13: Cuadro Nº II-2.1.4 | B13: ESTABLECIMIENTOS DE EDUCACIÓN PRIMARIA PRIVADA POR TIPO DE EDUCACIÓN SEGÚN DEPARTAMENTO. AÑO 2016.
A16: Cuadro Nº II-2.2.1 | B16: ALUMNOS MATRICULADOS EN EDUCACIÓN PRIMARIA COMÚN POR FORMA DE ADMINISTRACIÓN Y SEXO SEGÚN DEPARTAMENTO. AÑO 2016.
A18: Cuadro Nº II-2.2.2 | B18: ALUMNOS MATRICULADOS EN EDUCACIÓN PRIMARIA PÚBLICA POR TIPO DE EDUCACIÓN Y SEXO SEGÚN DEPARTAMENTO. AÑO 2016.
A20: Cuadro Nº II-2.2.3 | B20: ALUMNOS MATRICULADOS EN EDUCACIÓN PRIMARIA PÚBLICA COMÚN POR ÁREA DEMOGRÁFICA Y CATEGORÍA SEGÚN DEPARTAMENTO. AÑO 2016.
A22: Cuadro Nº II-2.2.4 | B22: ALUMNOS MATRICULADOS EN EDUCACIÓN PRIMARIA PÚBLICA ESPECIAL POR TIPO DE DISCAPACIDAD SEGÚN DEPARTAMENTO. AÑO 2016.
A24: Cuadro Nº II-2.2.5 | B24: ALUMNOS MATRICULADOS EN EDUCACIÓN ESPECIAL PÚBLICA POR EDADES SIMPLES Y SEXO SEGÚN DEPARTAMENTO. AÑO 2016.
A26: Cuadro Nº II-2.2.6 | B26: ALUMNOS MATRICULADOS EN EDUCACIÓN PRIMARIA PRIVADA POR TIPO DE EDUCACIÓN SEGÚN DEPARTAMENTO. AÑO 2016.
A28: Cuadro Nº II-2.2.7 | B28: ALUMNOS MATRICULADOS EN EDUCACIÓN ESPECIAL PRIVADA POR EDADES SIMPLES Y SEXO SEGÚN DEPARTAMENTO. AÑO 2016.
A30: Cuadro Nº II-2.2.8 | B30: ALUMNOS MATRICULADOS EN EDUCACIÓN PRIMARIA COMÚN POR GRADO Y FORMA DE ADMINISTRACIÓN SEGÚN EDAD. AÑO 2016.
A32: Cuadro Nº II-2.2.9 | B32: ALUMNOS MATRICULADOS EN EDUCACIÓN PRIMARIA COMÚN PÚBLICA POR GRADO Y SEXO SEGÚN EDAD. AÑO 2016.
A34: Cuadro Nº II-2.2.10 | B34: ALUMNOS MATRICULADOS EN EDUCACIÓN PRIMARIA COMÚN PRIVADA POR GRADO Y SEXO SEGÚN EDAD. AÑO 2016.
A36: Cuadro Nº II-2.2.11 | B36: ALUMNOS MATRICULADOS EN EDUCACIÓN PRIMARIA COMÚN POR GRADO Y FORMA DE ADMINISTRACIÓN SEGÚN DEPARTAMENTO. AÑO 2016.
A38: Cuadro Nº II-2.2.12 | B38: RENDIMIENTO ESCOLAR EDUCACIÓN PRIMARIA COMÚN PÚBLICA POR ÁREA DEMOGRÁFICA SEGÚN GRADO. AÑO 2016.
A40: Cuadro Nº II-2.2.13 | B40: RENDIMIENTO ESCOLAR EN EDUCACIÓN PRIMARIA COMÚN PÚBLICA POR ÁREA DEMOGRÁFICA SEGÚN DEPARTAMENTO. AÑO 2016.
A42: Cuadro Nº II-2.2.14 | B42: RENDIMIENTO ESCOLAR EN EDUCACIÓN PRIMARIA COMÚN PÚBLICA POR SEXO SEGÚN DEPARTAMENTO. AÑO 2016.
A44: Cuadro Nº II-2.2.15 | B44: RENDIMIENTO ESCOLAR EN EDUCACIÓN PRIMARIA COMÚN PRIVADA POR SEXO SEGÚN DEPARTAMENTO. AÑO 2016.
A46: Cuadro Nº II-2.2.16 | B46: RENDIMIENTO ESCOLAR DE EDUCACIÓN PRIMARIA COMÚN PÚBLICA POR ÁREA DEMOGRÁFICA SEGÚN DEPARTAMENTO. AÑO 2016.
A48: Cuadro Nº II-2.2.17 | B48: RENDIMIENTO ESCOLAR DE EDUCACIÓN PRIMARIA COMÚN POR FORMA DE ADMINISTRACIÓN SEGÚN DEPARTAMENTO. AÑO 2016.
A50: Cuadro Nº II-2.2.18 | B50: ASISTENCIA INSUFICIENTE Y ABANDONO INTERMITENTE DE 1º GRADO Y 1º A 6º GRADO EN EDUCACIÓN COMÚN PÚBLICA SEGÚN DEPARTAMENTO. AÑO 2016.
A53: Cuadro Nº II-2.3.1 | B53: PERSONAL DOCENTE DE EDUCACIÓN PRIMARIA PÚBLICA POR TIPO DE DESEMPEÑO DOCENTE SEGÚN DEPARTAMENTO. AÑO 2016.
A55: Cuadro Nº II-2.3.2 | B55: PERSONAL DOCENTE DE EDUCACIÓN PRIMARIA PRIVADA POR TIPO DE ESTABLECIMIENTO Y TIPO DE DESEMPEÑO DOCENTE SEGÚN DEPARTAMENTO. AÑO 2016.
A151: =MID(B101, 1,20) -> 
A186: =MID(B136, 1,20) -> 

Sheet II-2.1.1
A1: CONSEJO DE EDUCACIÓN PRIMARIA | E1: ESTABLECIMIENTOS
A3: Cuadro Nº II-2.1.1
A4: ESTABLECIMIENTOS DE EDUCACIÓN PRIMARIA POR FORMA DE ADMINISTRACIÓN Y TIPO DE EDUCACIÓN SEGÚN DEPARTAMENTO. AÑO 2016.
A5: DEPARTAMENTO | C5: FORMA DE ADMINISTRACIÓN
B6: TOTAL | C6: TIPO DE EDUCACIÓN
C7: PÚBLICA | E7: PRIVADA
C8: Común | D8: Especial | E8: Común | F8: Especial
A10: TOTAL | B10: =+C10+D10+E10+F10 -> 2524 | C10: =SUM(C11:C12) -> 2022 | D10: =SUM(D11:D12) -> 79 | E10: =SUM(E11,E12) -> 352 | F10: =SUM(F11:F12) -> 71
A11: MONTEVIDEO | B11: =+C11+D11+E11+F11 -> 485 | C11: 248 | D11: 26 | E11: 172 | F11: 39
A12: RESTO DEL PAÍS | B12: 2039 | C12: =SUM(C13:C30) -> 1774 | D12: =SUM(D13:D30) -> 53 | E12: =SUM(E13:E30) -> 180 | F12: =SUM(F13:F30) -> 32
A13: Artigas | B13: 84 | C13: 78 | D13: 2 | E13: 2 | F13: 2
A14: Canelones | B14: 310 | C14: 231 | D14: 10 | E14: 63 | F14: 6
A15: Cerro Largo | B15: 122 | C15: 113 | D15: 3 | E15: 6 | F15: 0
A16: Colonia | B16: 140 | C16: 125 | D16: 4 | E16: 9 | F16: 2
A17: Durazno | B17: 87 | C17: 80 | D17: 2 | E17: 5 | F17: 0
A18: Flores | B18: 37 | C18: 33 | D18: 1 | E18: 3 | F18: 0
A19: Florida | B19: 104 | C19: 97 | D19: 2 | E19: 4 | F19: 1
A20: Lavalleja | B20: 92 | C20: 83 | D20: 2 | E20: 7 | F20: 0
A21: Maldonado | B21: 113 | C21: 79 | D21: 4 | E21: 27 | F21: 3
A22: Paysandú | B22: 120 | C22: 103 | D22: 2 | E22: 10 | F22: 5
A23: Río Negro | B23: 68 | C23: 58 | D23: 2 | E23: 7 | F23: 1
A24: Rivera | B24: 132 | C24: 119 | D24: 4 | E24: 7 | F24: 2
A25: Rocha | B25: 79 | C25: 70 | D25: 3 | E25: 4 | F25: 2
A26: Salto | B26: 114 | C26: 100 | D26: 3 | E26: 7 | F26: 4
A27: San José | B27: 117 | C27: 107 | D27: 3 | E27: 7 | F27: 0
A28: Soriano | B28: 107 | C28: 96 | D28: 3 | E28: 4 | F28: 4
A29: Tacuarembó | B29: 141 | C29: 132 | D29: 2 | E29: 7 | F29: 0
A30: Treinta y Tres | B30: 72 | C30: 70 | D30: 1 | E30: 1 | F30: 0
A31: Fuente: Procesamiento propio en base a datos proporcionados por el D.E.E. — C.E.I.P.
A32: Nota: Pública no incluye JICI

Sheet II-2.1.2
A1: CONSEJO DE EDUCACIÓN PRIMARIA | L1: ESTABLECIMIENTOS
A3: Cuadro Nº II-2.1.2
A5: ESTABLECIMIENTOS DE EDUCACIÓN PRIMARIA PÚBLICA COMÚN POR ÁREA DEMOGRÁFICA Y CATEGORÍA SEGÚN DEPARTAMENTO. AÑO 2016.
A6: DEPARTAMENTO | B6: TOTAL | C6: ÁREA DEMOGRÁFICA
D7: URBANA | L7: RURAL
C8: Total Urbana | D8: CATEGORÍA | K8: Total Rural | L8: CATEGORÍA
D9: Común | E9: De Práctica | F9: Tiempo Completo | G9: Aprender | H9: Tiempo Extendido | I9: Habilitada de Práctica | J9: JICI | L9: Común | M9: Internado Rural
A11: TOTAL | B11: =+C11+K11 -> 1988 | C11: =SUM(D11:J11) -> 934 | D11: =SUM(D12:D13) -> 293 | E11: =SUM(E12:E13) -> 62 | F11: 209 | G11: 251 | H11: =H12+H13 -> 38 | I11: 79 | J11: 2 | K11: =SUM(K12:K13) -> 1054 | L11: 1084 | M11: 6
A12: MONTEVIDEO | B12: 249 | C12: =SUM(D12:J12) -> 249 | D12: 84 | E12: 18 | F12: 49 | G12: 82 | H12: 7 | I12: 8 | J12: 1 | K12: 0 | L12: 0 | M12: 0
A13: RESTO DEL PAÍS | B13: 1739 | C13: =SUM(D13:J13) -> 685 | D13: =SUM(D14:D31) -> 209 | E13: 44 | F13: 160 | G13: 169 | H13: =SUM(H14:H31) -> 31 | I13: 71 | J13: 1 | K13: 1054 | L13: 1084 | M13: 6
A14: Artigas | B14: 78 | C14: =SUM(D14:J14) -> 31 | D14: 5 | E14: 2 | F14: 9 | G14: 10 | H14: 1 | I14: 4 | J14: 0 | K14: =+L14+M14 -> 47 | L14: 46 | M14: 1
A15: Canelones | B15: 231 | C15: =SUM(D15:J15) -> 138 | D15: 38 | E15: 6 | F15: 30 | G15: 44 | H15: 7 | I15: 13 | J15: 0 | K15: =+L15+M15 -> 93 | L15: 93 | M15: 0
A16: Cerro Largo | B16: 114 | C16: 29 | D16: 3 | E16: 2 | F16: 9 | G16: 7 | H16: 2 | I16: 5 | J16: 1 | K16: 85 | L16: 85 | M16: 0
A17: Colonia | B17: 125 | C17: 42 | D17: 19 | E17: 4 | F17: 6 | G17: 6 | H17: 3 | I17: 4 | J17: 0 | K17: 83 | L17: 83 | M17: 0
A18: Durazno | B18: 80 | C18: 24 | D18: 5 | E18: 2 | F18: 7 | G18: 6 | H18: 0 | I18: 4 | J18: 0 | K18: 56 | L18: 56 | M18: 0
A19: Flores | B19: 33 | C19: 10 | D19: 3 | E19: 1 | F19: 4 | G19: 0 | H19: 1 | I19: 1 | J19: 0 | K19: 23 | L19: 22 | M19: 1
A20: Florida | B20: 97 | C20: 28 | D20: 10 | E20: 2 | F20: 8 | G20: 1 | H20: 4 | I20: 3 | J20: 0 | K20: 69 | L20: 69 | M20: 0
A21: Lavalleja | B21: 83 | C21: 24 | D21: 10 | E21: 2 | F21: 6 | G21: 3 | H21: 1 | I21: 2 | J21: 0 | K21: 59 | L21: 59 | M21: 0
A22: Maldonado | B22: 43 | C22: 43 | D22: 16 | E22: 2 | F22: 12 | G22: 5 | H22: 1 | I22: 7 | J22: 0 | L22: 35 | M22: 1
A23: Paysandú | B23: 103 | C23: 46 | D23: 16 | E23: 3 | F23: 9 | G23: 14 | H23: 0 | I23: 4 | J23: 0 | K23: 57 | L23: 55 | M23: 2
A24: Río Negro | B24: 58 | C24: 21 | D24: 11 | E24: 2 | F24: 5 | G24: 2 | H24: 0 | I24: 1 | J24: 0 | K24: 37 | L24: 36 | M24: 1
A25: Rivera | B25: 119 | C25: 41 | D25: 7 | E25: 3 | F25: 9 | G25: 17 | H25: 1 | I25: 4 | J25: 0 | K25: 78 | L25: 78 | M25: 0
A26: Rocha | B26: 70 | C26: 32 | D26: 12 | E26: 2 | F26: 9 | G26: 7 | H26: 0 | I26: 2 | J26: 0 | K26: 38 | L26: 38 | M26: 0
A27: Salto | B27: 100 | C27: 40 | D27: 5 | E27: 3 | F27: 12 | G27: 13 | H27: 2 | I27: 5 | J27: 0 | K27: 60 | L27: 60 | M27: 0
A28: San José | B28: 107 | C28: 36 | D28: 18 | E28: 2 | F28: 6 | G28: 5 | H28: 3 | I28: 2 | J28: 0 | K28: 71 | L28: 71 | M28: 0
A29: Soriano | B29: 96 | C29: 35 | D29: 13 | E29: 2 | F29: 7 | G29: 10 | H29: 0 | I29: 3 | J29: 0 | K29: 61 | L29: 61 | M29: 0
A30: Tacuarembó | B30: 132 | C30: 43 | D30: 10 | E30: 2 | F30: 7 | G30: 16 | H30: 5 | I30: 3 | J30: 0 | K30: 89 | L30: 89 | M30: 0
A31: Treinta y Tres | B31: 70 | C31: 22 | D31: 8 | E31: 2 | F31: 5 | G31: 3 | H31: 0 | I31: 4 | J31: 0 | K31: 48 | L31: 48 | M31: 0
A32: Fuente: Procesamiento propio en base a datos proporcionados por el DEE — CEIP | F32: D.E.E.-C.E.I.P.

Sheet II-2.1.3
A1: CONSEJO DE EDUCACIÓN PRIMARIA | D1: Establecimientos
A3: Cuadro Nº II-2.1.3
A5: ESTABLECIMIENTOS DE EDUCACIÓN PRIMARIA PÚBLICA ESPECIAL POR TIPO DE DISCAPACIDAD SEGÚN DEPARTAMENTO. AÑO 2016.
A6: DEPARTAMENTO | B6: TOTAL | C6: DISCAPACIDAD
C7: Intelectual | D7: Auditiva | E7: Visual
A9: TOTAL | B9: =+B10+B11 -> 79 | C9: =SUM(C10:C11) -> 73 | D9: =SUM(D10:D11) -> 4 | E9: =SUM(E10:E11) -> 2
A10: MONTEVIDEO | B10: =+C10+D10+E10 -> 26 | C10: 23 | D10: 1 | E10: 2
A11: RESTO DEL PAÍS | B11: =SUM(B12:B29) -> 53 | C11: =SUM(C12:C29) -> 50 | D11: =SUM(D12:D29) -> 3 | E11: =SUM(E12:E29) -> 0
A12: Artigas | B12: =+C12+D12+E12 -> 2 | C12: 2 | D12: 0 | E12: 0
A13: Canelones | B13: 10 | C13: 10 | D13: 0 | E13: 0
A14: Cerro Largo | B14: 3 | C14: 3 | D14: 0 | E14: 0
A15: Colonia | B15: 4 | C15: 4 | D15: 0 | E15: 0
A16: Durazno | B16: 2 | C16: 2 | D16: 0 | E16: 0
A17: Flores | B17: 1 | C17: 1 | D17: 0 | E17: 0
A18: Florida | B18: 2 | C18: 2 | D18: 0 | E18: 0
A19: Lavalleja | B19: 2 | C19: 2 | D19: 0 | E19: 0
A20: Maldonado | B20: 4 | C20: 3 | D20: 1 | E20: 0
A21: Paysandú | B21: 2 | C21: 2 | D21: 0 | E21: 0
A22: Río Negro | B22: 2 | C22: 2 | D22: 0 | E22: 0
A23: Rivera | B23: 4 | C23: 3 | D23: 1 | E23: 0
A24: Rocha | B24: 3 | C24: 3 | D24: 0 | E24: 0
A25: Salto | B25: 3 | C25: 2 | D25: 1 | E25: 0
A26: San José | B26: 3 | C26: 3 | D26: 0 | E26: 0
A27: Soriano | B27: 3 | C27: 3 | D27: 0 | E27: 0
A28: Tacuarembó | B28: 2 | C28: 2 | D28: 0 | E28: 0
A29: Treinta y Tres | B29: 1 | C29: 1 | D29: 0 | E29: 0
A30: Fuente: DEE — CEIP
A31: Nota: Los establecimientos que atienden discapacidades intelectuales, además de atender niños con disfunciones clásicamente tipificadas como “Intelectuales”, atienden a los niños con discapacidades de orden motriz o de carácter, lo que implica que la matrícula correspondiente los agrupa.

Sheet II-2.1.4
A1: CONSEJO DE EDUCACIÓN PRIMARIA | E1: ESTABLECIMIENTOS
A3: Cuadro Nº II-2.1.4
A5: ESTABLECIMIENTOS DE EDUCACIÓN PRIMARIA PRIVADA POR TIPO DE EDUCACIÓN SEGÚN DEPARTAMENTO. AÑO 2016.
A6: DEPARTAMENTO | B6: TOTAL | D6: TIPO DE EDUCACIÓN
C7: Total | D7: EDUCACIÓN COMÚN | F7: EDUCACIÓN ESPECIAL
D8: Habilitados | E8: Autorizados
A10: TOTAL DEL PAÍS | B10: =+C10+F10 -> 423 | C10: =+D10+E10 -> 352 | D10: =SUM(D11:D12) -> 334 | E10: =SUM(E11:E12) -> 18 | F10: =SUM(F11:F12) -> 71
A11: MONTEVIDEO | B11: =+C11+F11 -> 211 | C11: =+D11+E11 -> 172 | D11: 162 | E11: 10 | F11: 39
A12: RESTO DEL PAÍS | B12: 212 | C12: 180 | D12: =SUM(D13:D30) -> 172 | E12: =SUM(E13:E30) -> 8 | F12: =SUM(F13:F30) -> 32
A13: Artigas | B13: 4 | C13: 2 | D13: 2 | E13: 0 | F13: 2
A14: Canelones | B14: 69 | C14: 63 | D14: 59 | E14: 4 | F14: 6
A15: Cerro Largo | B15: 6 | C15: 6 | D15: 6 | E15: 0 | F15: 0
A16: Colonia | B16: 11 | C16: 9 | D16: 9 | E16: 0 | F16: 2
A17: Durazno | B17: 5 | C17: 5 | D17: 5 | E17: 0 | F17: 0
A18: Flores | B18: 3 | C18: 3 | D18: 3 | E18: 0 | F18: 0
A19: Florida | B19: 5 | C19: 4 | D19: 4 | E19: 0 | F19: 1
A20: Lavalleja | B20: 7 | C20: 7 | D20: 7 | E20: 0 | F20: 0
A21: Maldonado | B21: 30 | C21: 27 | D21: 27 | E21: 0 | F21: 3
A22: Paysandú | B22: 15 | C22: 10 | D22: 9 | E22: 1 | F22: 5
A23: Río Negro | B23: 8 | C23: 7 | D23: 5 | E23: 2 | F23: 1
A24: Rivera | B24: 9 | C24: 7 | D24: 7 | E24: 0 | F24: 2
A25: Rocha | B25: 6 | C25: 4 | D25: 4 | E25: 0 | F25: 2
A26: Salto | B26: 11 | C26: 7 | D26: 7 | E26: 0 | F26: 4
A27: San José | B27: 7 | C27: 7 | D27: 6 | E27: 1 | F27: 0
A28: Soriano | B28: 8 | C28: 4 | D28: 4 | E28: 0 | F28: 4
A29: Tacuarembó | B29: 7 | C29: 7 | D29: 7 | E29: 0 | F29: 0
A30: Treinta y Tres | B30: 1 | C30: 1 | D30: 1 | E30: 0 | F30: 0
A31: Fuente: Procesamiento propio en base a datos proporcionados por el D.E.E. — C.E.I.P.

Sheet II-2.2.1
A1: CONSEJO DE EDUCACIÓN PRIMARIA | H1: ALUMNOS MATRICULADOS
A3: Cuadro Nº II-2.2.1
A4: ALUMNOS MATRICULADOS EN EDUCACIÓN PRIMARIA COMÚN POR FORMA DE ADMINISTRACIÓN Y SEXO SEGÚN DEPARTAMENTO. AÑO 2016
A5: DEPARTAMENTO | B5: TOTAL | C5: FORMA DE ADMINISTRACIÓN
C6: TOTAL | E6: PÚBLICA | H6: PRIVADA
E7: TOTAL | F7: SEXO | H7: TOTAL | I7: SEXO
C8: M | D8: F | F8: M | G8: F | I8: M | J8: F
A9: TOTAL | B9: =E9+H9 -> 299765 | C9: =+F9+I9 -> 154158 | D9: =+G9+J9 -> 145607 | E9: =+F9+G9 -> 246239 | F9: =SUM(F10:F11) -> 127012 | G9: =SUM(G10:G11) -> 119227 | H9: =+I9+J9 -> 53526 | I9: =SUM(I10:I11) -> 27146 | J9: =SUM(J10:J11) -> 26380
A10: MONTEVIDEO | B10: =E10+H10 -> 109000 | C10: =+F10+I10 -> 56225 | D10: 52775 | E10: =+F10+G10 -> 76445 | F10: 39695 | G10: 36750 | H10: =+I10+J10 -> 32555 | I10: 16530 | J10: 16025
A11: RESTO DEL PAÍS | B11: 190765 | C11: 97933 | D11: 92832 | E11: =SUM(E12:E29) -> 169794 | F11: =SUM(F12:F29) -> 87317 | G11: =SUM(G12:G29) -> 82477 | H11: =+I11+J11 -> 20971 | I11: =SUM(I12:I29) -> 10616 | J11: =SUM(J12:J29) -> 10355
A12: Artigas | B12: 7545 | C12: 3952 | D12: 3593 | E12: =+F12+G12 -> 7358 | F12: 3843 | G12: 3515 | H12: =+I12+J12 -> 187 | I12: 109 | J12: 78
A13: Canelones | B13: 49601 | C13: 25532 | D13: 24069 | E13: =+F13+G13 -> 41897 | F13: 21605 | G13: 20292 | H13: 7704 | I13: 3927 | J13: 3777
A14: Cerro Largo | B14: 8456 | C14: 4289 | D14: 4167 | E14: 7830 | F14: 3988 | G14: 3842 | H14: 626 | I14: 301 | J14: 325
A15: Colonia | B15: 11022 | C15: 5625 | D15: 5397 | E15: 10243 | F15: 5232 | G15: 5011 | H15: 779 | I15: 393 | J15: 386
A16: Durazno | B16: 5457 | C16: 2757 | D16: 2700 | E16: 4803 | F16: 2438 | G16: 2365 | H16: 654 | I16: 319 | J16: 335
A17: Flores | B17: 2178 | C17: 1064 | D17: 1114 | E17: 1915 | F17: 940 | G17: 975 | H17: 263 | I17: 124 | J17: 139
A18: Florida | B18: 5864 | C18: 3011 | D18: 2853 | E18: 5591 | F18: 2871 | G18: 2720 | H18: 273 | I18: 140 | J18: 133
A19: Lavalleja | B19: 4892 | C19: 2475 | D19: 2417 | E19: 4274 | F19: 2168 | G19: 2106 | H19: 618 | I19: 307 | J19: 311
A20: Maldonado | B20: 16557 | C20: 8411 | D20: 8146 | E20: 12631 | F20: 6407 | G20: 6224 | H20: 3926 | I20: 2004 | J20: 1922
A21: Paysandú | B21: 11580 | C21: 5936 | D21: 5644 | E21: 10403 | F21: 5347 | G21: 5056 | H21: 1177 | I21: 589 | J21: 588
A22: Río Negro | B22: 5818 | C22: 2972 | D22: 2846 | E22: 5275 | F22: 2690 | G22: 2585 | H22: 543 | I22: 282 | J22: 261
A23: Rivera | B23: 10712 | C23: 5549 | D23: 5163 | E23: 10125 | F23: 5255 | G23: 4870 | H23: 587 | I23: 294 | J23: 293
A24: Rocha | B24: 6615 | C24: 3389 | D24: 3226 | E24: 6278 | F24: 3218 | G24: 3060 | H24: 337 | I24: 171 | J24: 166
A25: Salto | B25: 13436 | C25: 6931 | D25: 6505 | E25: 12229 | F25: 6329 | G25: 5900 | H25: 1207 | I25: 602 | J25: 605
A26: San José | B26: 10191 | C26: 5228 | D26: 4963 | E26: 9453 | F26: 4876 | G26: 4577 | H26: 738 | I26: 352 | J26: 386
A27: Soriano | B27: 8004 | C27: 4158 | D27: 3846 | E27: 7550 | F27: 3913 | G27: 3637 | H27: 454 | I27: 245 | J27: 209
A28: Tacuarembó | B28: 8577 | C28: 4413 | D28: 4164 | E28: 7852 | F28: 4049 | G28: 3803 | H28: 725 | I28: 364 | J28: 361
A29: Treinta y Tres | B29: 4260 | C29: 2241 | D29: 2019 | E29: 4087 | F29: 2148 | G29: 1939 | H29: 173 | I29: 93 | J29: 80
A30: Fuente: Procesamiento propio en base a datos proporcionados por el DEE — CEIP.
A31: Nota: Pública no incluye JICI.

Sheet II-2.2.2
A1: CONSEJO DE EDUCACIÓN PRIMARIA | H1: ALUMNOS MATRICULADOS
A3: Cuadro Nº II-2.2.2
A5: ALUMNOS MATRICULADOS EN EDUCACIÓN PRIMARIA PÚBLICA POR TIPO DE EDUCACIÓN Y SEXO SEGÚN DEPARTAMENTO. AÑO 2016.
A6: DEPARTAMENTO | B6: TOTAL | C6: TOTAL SEXO | E6: TIPO DE EDUCACIÓN
E7: COMÚN | H7: ESPECIAL
H8: Total | I8: ESCUELAS ESPECIALES | K8: CLASES ESPECIALES EN ESCUELAS COMUNES
E9: Total | F9: SEXO | I9: SEXO | K9: SEXO
C10: M | D10: F | F10: M | G10: F | I10: M | J10: F | K10: M | L10: F
A11: TOTAL | B11: =+C11+D11 -> 252676 | C11: =+F11+I11+K11 -> 130972 | D11: =+G11+J11+L11 -> 121704 | E11: =+F11+G11 -> 246239 | F11: =SUM(F12:F13) -> 127012 | G11: =SUM(G12:G13) -> 119227 | H11: =+I11+J11+K11+L11 -> 6437 | I11: =SUM(I12:I13) -> 3866 | J11: =SUM(J12:J13) -> 2416 | K11: =SUM(K12:K13) -> 94 | L11: =SUM(L12:L13) -> 61
A12: MONTEVIDEO | B12: =+C12+D12 -> 79038 | C12: =+F12+I12+K12 -> 41273 | D12: 37765 | E12: =+F12+G12 -> 76445 | F12: 39695 | G12: 36750 | H12: =+I12+J12+K12+L12 -> 2593 | I12: 1578 | J12: 1015 | K12: 0 | L12: 0
A13: RESTO DEL PAÍS | B13: 173638 | C13: 89699 | D13: 83939 | E13: =+F13+G13 -> 169794 | F13: =SUM(F14:F31) -> 87317 | G13: 82477 | H13: 3844 | I13: 2288 | J13: 1401 | K13: 94 | L13: 61
A14: Artigas | B14: 7539 | C14: 3955 | D14: 3584 | E14: =+F14+G14 -> 7358 | F14: 3843 | G14: 3515 | H14: 181 | I14: 106 | J14: 64 | K14: 6 | L14: 5
A15: Canelones | B15: 42609 | C15: 22042 | D15: 20567 | E15: 41897 | F15: 21605 | G15: 20292 | H15: 712 | I15: 407 | J15: 259 | K15: 30 | L15: 16
A16: Cerro Largo | B16: 8063 | C16: 4132 | D16: 3931 | E16: 7830 | F16: 3988 | G16: 3842 | H16: 233 | I16: 136 | J16: 86 | K16: 8 | L16: 3
A17: Colonia | B17: 10446 | C17: 5356 | D17: 5090 | E17: 10243 | F17: 5232 | G17: 5011 | H17: 203 | I17: 120 | J17: 76 | K17: 4 | L17: 3
A18: Durazno | B18: 4942 | C18: 2529 | D18: 2413 | E18: 4803 | F18: 2438 | G18: 2365 | H18: 139 | I18: 89 | J18: 44 | K18: 2 | L18: 4
A19: Flores | B19: 1948 | C19: 962 | D19: 986 | E19: 1915 | F19: 940 | G19: 975 | H19: 33 | I19: 22 | J19: 10 | K19: 0 | L19: 1
A20: Florida | B20: 5739 | C20: 2965 | D20: 2774 | E20: 5591 | F20: 2871 | G20: 2720 | H20: 148 | I20: 91 | J20: 52 | K20: 3 | L20: 2
A21: Lavalleja | B21: 4433 | C21: 2268 | D21: 2165 | E21: 4274 | F21: 2168 | G21: 2106 | H21: 159 | I21: 99 | J21: 57 | K21: 1 | L21: 2
A22: Maldonado | B22: 12934 | C22: 6582 | D22: 6352 | E22: 12631 | F22: 6407 | G22: 6224 | H22: 303 | I22: 175 | J22: 128 | L22: 0
A23: Paysandú | B23: 10613 | C23: 5489 | D23: 5124 | E23: 10403 | F23: 5347 | G23: 5056 | H23: 210 | I23: 129 | J23: 59 | K23: 13 | L23: 9
A24: Río Negro | B24: 5436 | C24: 2790 | D24: 2646 | E24: 5275 | F24: 2690 | G24: 2585 | H24: 161 | I24: 96 | J24: 58 | K24: 4 | L24: 3
A25: Rivera | B25: 10282 | C25: 5349 | D25: 4933 | E25: 10125 | F25: 5255 | G25: 4870 | H25: 157 | I25: 94 | J25: 63 | K25: 0 | L25: 0
A26: Rocha | B26: 6517 | C26: 3370 | D26: 3147 | E26: 6278 | F26: 3218 | G26: 3060 | H26: 239 | I26: 141 | J26: 80 | K26: 11 | L26: 7
A27: Salto | B27: 12534 | C27: 6517 | D27: 6017 | E27: 12229 | F27: 6329 | G27: 5900 | H27: 305 | I27: 187 | J27: 116 | K27: 1 | L27: 1
A28: San José | B28: 9657 | C28: 5006 | D28: 4651 | E28: 9453 | F28: 4876 | G28: 4577 | H28: 204 | I28: 125 | J28: 74 | K28: 5 | L28: 0
A29: Soriano | B29: 7736 | C29: 4031 | D29: 3705 | E29: 7550 | F29: 3913 | G29: 3637 | H29: 186 | I29: 116 | J29: 68 | K29: 2 | L29: 0
A30: Tacuarembó | B30: 8042 | C30: 4167 | D30: 3875 | E30: 7852 | F30: 4049 | G30: 3803 | H30: 190 | I30: 115 | J30: 69 | K30: 3 | L30: 3
A31: Treinta y Tres | B31: 4168 | C31: 2189 | D31: 1979 | E31: 4087 | F31: 2148 | G31: 1939 | H31: 81 | I31: 40 | J31: 38 | K31: 1 | L31: 2
A32: Fuente: Procesamiento propio en base a datos proporcionados por el D.E.E. — C.E.I.P.

Sheet II-2.2.3
A1: CONSEJO DE EDUCACIÓN PRIMARIA | N1: ALUMNOS MATRICULADOS
A3: Cuadro Nº II-2.2.3
A5: ALUMNOS MATRICULADOS EN EDUCACIÓN PRIMARIA PÚBLICA COMÚN POR ÁREA DEMOGRÁFICA Y CATEGORÍA SEGÚN DEPARTAMENTO. AÑO 2016. | T5: VOLVER
A6: DEPARTAMENTO | B6: TOTAL | C6: ÁREA DEMOGRÁFICA
C7: URBANA | O7: RURAL
C8: Total Urbana | D8: CATEGORÍA | N8: Total Rural | O8: CATEGORÍA
D9: Común | E9: De Práctica | F9: Habilitada de Práctica | G9: Tiempo Completo | H9: Aprender | I9: Aprender Habilitada de Práctica | J9: Tiempo Extendido | K9: Tiempo Extendido de Práctica | L9: Unidocente | M9: JICI | O9: con Maestro a cargo | P9: Internado Rural | Q9: Tiempo Extendido | R9: Unidocente
A11: TOTAL | B11: =+C11+N11 -> 246382 | C11: =SUM(D11:M11) -> 232388 | D11: =SUM(D12:D13) -> 77666 | E11: 19198 | F11: 25578 | G11: 36725 | H11: 66798 | I11: 488 | J11: 5481 | K11: 291 | L11: 20 | M11: 143 | N11: =SUM(O11:R11) -> 13994 | O11: =SUM(O12:O13) -> 9334 | P11: =SUM(P12:P13) -> 114 | Q11: =SUM(Q12:Q13) -> 68 | R11: =SUM(R12:R13) -> 4478
A12: MONTEVIDEO | B12: =+C12+N12 -> 76563 | C12: =SUM(D12:M12) -> 76563 | D12: 27383 | E12: 4898 | F12: 2026 | G12: 11218 | H12: 28941 | I12: 0 | J12: 1688 | K12: 291 | L12: 0 | M12: 118 | N12: 0 | O12: 0 | P12: 0 | Q12: 0 | R12: 0
A13: RESTO DEL PAÍS | B13: =+C13+N13 -> 169819 | C13: =SUM(D13:M13) -> 155825 | D13: =SUM(D14:D31) -> 50283 | E13: 14300 | F13: 23552 | G13: 25507 | H13: 37857 | I13: 488 | J13: 3793 | K13: 0 | L13: 20 | M13: 25 | N13: =SUM(O13:R13) -> 13994 | O13: =SUM(O14:O31) -> 9334 | P13: =SUM(P14:P31) -> 114 | Q13: =SUM(Q14:Q31) -> 68 | R13: =SUM(R14:R31) -> 4478
A14: Artigas | B14: =C14+N14 -> 7358 | C14: =SUM(D14:M14) -> 6788 | D14: 1396 | E14: 607 | F14: 1157 | G14: 1502 | H14: 2031 | I14: 0 | J14: 95 | K14: 0 | L14: 0 | M14: 0 | N14: =SUM(O14:R14) -> 570 | O14: 424 | P14: 34 | Q14: 0 | R14: 112
A15: Canelones | B15: =C15+N15 -> 41897 | C15: =SUM(D15:M15) -> 39414 | D15: 12941 | E15: 1876 | F15: 5447 | G15: 5437 | H15: 13194 | I15: 0 | J15: 519 | K15: 0 | L15: 0 | M15: 0 | N15: 2483 | O15: 2061 | P15: 0 | Q15: 68 | R15: 354
A16: Cerro Largo | B16: 7855 | C16: 7056 | D16: 954 | E16: 687 | F16: 1548 | G16: 1485 | H16: 1783 | I16: 0 | J16: 574 | K16: 0 | L16: 0 | M16: 25 | N16: 799 | O16: 457 | P16: 0 | Q16: 0 | R16: 342
A17: Colonia | B17: 10243 | C17: 9281 | D17: 4635 | E17: 1185 | F17: 1431 | G17: 1195 | H17: 343 | I17: 0 | J17: 492 | K17: 0 | L17: 0 | M17: 0 | N17: 962 | O17: 576 | P17: 0 | Q17: 0 | R17: 386
A18: Durazno | B18: 4803 | C18: 4392 | D18: 629 | E18: 769 | F18: 1010 | G18: 909 | H18: 1075 | I18: 0 | J18: 0 | K18: 0 | L18: 0 | M18: 0 | N18: 411 | O18: 135 | P18: 0 | Q18: 0 | R18: 276
A19: Flores | B19: 1915 | C19: 1721 | D19: 659 | E19: 255 | F19: 262 | G19: 450 | H19: 0 | I19: 0 | J19: 95 | K19: 0 | L19: 0 | M19: 0 | N19: 194 | O19: 69 | P19: 21 | Q19: 0 | R19: 104
A20: Florida | B20: 5591 | C20: 4792 | D20: 1774 | E20: 609 | F20: 822 | G20: 894 | H20: 329 | I20: 0 | J20: 364 | K20: 0 | L20: 0 | M20: 0 | N20: 799 | O20: 504 | P20: 0 | Q20: 0 | R20: 295
A21: Lavalleja | B21: 4274 | C21: 3863 | D21: 1339 | E21: 518 | F21: 573 | G21: 838 | H21: 216 | I21: 239 | J21: 120 | K21: 0 | L21: 20 | M21: 0 | N21: 411 | O21: 204 | P21: 0 | Q21: 0 | R21: 207
A22: Maldonado | B22: 12631 | C22: 12134 | D22: 4985 | E22: 888 | F22: 2652 | G22: 1583 | H22: 1768 | I22: 0 | J22: 258 | L22: 0 | M22: 0 | N22: 497 | O22: 332 | P22: 12 | Q22: 0 | R22: 153
A23: Paysandú | B23: 10403 | C23: 9517 | D23: 2969 | E23: 1146 | F23: 1323 | G23: 1498 | H23: 2332 | I23: 249 | J23: 0 | K23: 0 | L23: 0 | M23: 0 | N23: 886 | O23: 610 | P23: 12 | Q23: 0 | R23: 264
A24: Río Negro | B24: 5275 | C24: 4806 | D24: 2451 | E24: 681 | F24: 748 | G24: 715 | H24: 211 | I24: 0 | J24: 0 | K24: 0 | L24: 0 | M24: 0 | N24: 469 | O24: 282 | P24: 29 | Q24: 0 | R24: 158
A25: Rivera | B25: 10125 | C25: 9248 | D25: 1856 | E25: 777 | F25: 1386 | G25: 1653 | H25: 3417 | I25: 0 | J25: 159 | K25: 0 | L25: 0 | M25: 0 | N25: 877 | O25: 588 | P25: 0 | Q25: 0 | R25: 289
A26: Rocha | B26: 6278 | C26: 5971 | D26: 2805 | E26: 654 | F26: 166 | G26: 1185 | H26: 1161 | I26: 0 | J26: 0 | K26: 0 | L26: 0 | M26: 0 | N26: 307 | O26: 93 | P26: 0 | Q26: 0 | R26: 214
A27: Salto | B27: 12229 | C27: 11042 | D27: 1462 | E27: 1328 | F27: 1730 | G27: 2439 | H27: 3879 | I27: 0 | J27: 204 | K27: 0 | L27: 0 | M27: 0 | N27: 1187 | O27: 995 | P27: 6 | Q27: 0 | R27: 186
A28: San José | B28: 9453 | C28: 8275 | D28: 4244 | E28: 307 | F28: 652 | G28: 1249 | H28: 1554 | I28: 0 | J28: 269 | K28: 0 | L28: 0 | M28: 0 | N28: 1178 | O28: 865 | P28: 0 | Q28: 0 | R28: 313
A29: Soriano | B29: 7550 | C29: 6957 | D29: 2291 | E29: 809 | F29: 1044 | G29: 955 | H29: 1858 | I29: 0 | J29: 0 | K29: 0 | L29: 0 | M29: 0 | N29: 593 | O29: 282 | P29: 0 | Q29: 0 | R29: 311
A30: Tacuarembó | B30: 7852 | C30: 6799 | D30: 1655 | E30: 535 | F30: 756 | G30: 927 | H30: 2441 | I30: 0 | J30: 485 | K30: 0 | L30: 0 | M30: 0 | N30: 1053 | O30: 713 | P30: 0 | Q30: 0 | R30: 340
A31: Treinta y Tres | B31: 4087 | C31: 3769 | D31: 1238 | E31: 669 | F31: 845 | G31: 593 | H31: 265 | I31: 0 | J31: 159 | K31: 0 | L31: 0 | M31: 0 | N31: 318 | O31: 144 | P31: 0 | Q31: 0 | R31: 174
A32: Fuente: Procesamiento propio en base a datos proporcionados por el D.E.E .— C.E.I.P.

Sheet II-2.2.4
A1: CONSEJO DE EDUCACIÓN PRIMARIA | I1: Alumnos matriculados
A3: Cuadro Nº II-2.2.4
A5: ALUMNOS MATRICULADOS EN EDUCACIÓN PRIMARIA PÚBLICA ESPECIAL POR TIPO DE DISCAPACIDAD SEGÚN DEPARTAMENTO. AÑO 2016.
A6: DEPARTAMENTO | C6: TOTAL | D6: DISCAPACIDAD
D7: Auditiva | E7: Intelectual | F7: Motriz | G7: Visual | H7: Problemas de conducta | I7: Problemas de personalidad | J7: Trastornos generalizados del desarrollo
A9: TOTAL | C9: =SUM(D9:J9) -> 6282 | D9: =SUM(D11:D12) -> 202 | E9: =SUM(E11:E12) -> 5728 | F9: 103 | G9: 83 | H9: 40 | I9: 76 | J9: 50
A11: MONTEVIDEO | C11: =SUM(D11:J11) -> 2593 | D11: 107 | E11: 2184 | F11: 103 | G11: 83 | H11: 40 | I11: 76 | J11: 0
A12: RESTO DEL PAÍS | C12: =SUM(D12:J12) -> 3689 | D12: =SUM(D13:D30) -> 95 | E12: =SUM(E13:E30) -> 3544 | F12: 0 | G12: 0 | H12: 0 | I12: 0 | J12: 50
A13: Artigas | C13: =SUM(D13:J13) -> 170 | D13: 0 | E13: 170 | F13: 0 | G13: 0 | H13: 0 | I13: 0 | J13: 0
A14: Canelones | C14: 666 | D14: 0 | E14: 666 | F14: 0 | G14: 0 | H14: 0 | I14: 0 | J14: 0
A15: Cerro Largo | C15: 222 | D15: 0 | E15: 222 | F15: 0 | G15: 0 | H15: 0 | I15: 0 | J15: 0
A16: Colonia | C16: 196 | D16: 0 | E16: 196 | F16: 0 | G16: 0 | H16: 0 | I16: 0 | J16: 0
A17: Durazno | C17: 133 | D17: 0 | E17: 133 | F17: 0 | G17: 0 | H17: 0 | I17: 0 | J17: 0
A18: Flores | C18: 32 | D18: 0 | E18: 32 | F18: 0 | G18: 0 | H18: 0 | I18: 0 | J18: 0
A19: Florida | C19: 143 | D19: 0 | E19: 143 | F19: 0 | G19: 0 | H19: 0 | I19: 0 | J19: 0
A20: Lavalleja | C20: 156 | D20: 0 | E20: 156 | F20: 0 | G20: 0 | H20: 0 | I20: 0 | J20: 0
A21: Maldonado | C21: 303 | D21: 25 | E21: 278 | F21: 0 | G21: 0 | H21: 0 | I21: 0 | J21: 0
A22: Paysandú | C22: 188 | D22: 0 | E22: 188 | F22: 0 | G22: 0 | H22: 0 | I22: 0 | J22: 0
A23: Río Negro | C23: 154 | D23: 0 | E23: 154 | F23: 0 | G23: 0 | H23: 0 | I23: 0 | J23: 0
A24: Rivera | C24: 157 | D24: 16 | E24: 141 | F24: 0 | G24: 0 | H24: 0 | I24: 0 | J24: 0
A25: Rocha | C25: 221 | D25: 0 | E25: 221 | F25: 0 | G25: 0 | H25: 0 | I25: 0 | J25: 0
A26: Salto | C26: 303 | D26: 54 | E26: 199 | F26: 0 | G26: 0 | H26: 0 | I26: 0 | J26: 50
A27: San José | C27: 199 | D27: 0 | E27: 199 | F27: 0 | G27: 0 | H27: 0 | I27: 0 | J27: 0
A28: Soriano | C28: 184 | D28: 0 | E28: 184 | F28: 0 | G28: 0 | H28: 0 | I28: 0 | J28: 0
A29: Tacuarembó | C29: 184 | D29: 0 | E29: 184 | F29: 0 | G29: 0 | H29: 0 | I29: 0 | J29: 0
A30: Treinta y Tres | C30: 78 | D30: 0 | E30: 78 | F30: 0 | G30: 0 | H30: 0 | I30: 0 | J30: 0
A31: Fuente: D.E.E. — C.E.P.
A32: Nota: No incluye Clases Especiales en Escuelas Comunes

Sheet II-2.2.5
A1: CONSEJO DE EDUCACIÓN PRIMARIA | N1: ALUMNOS MATRICULADOS
A3: Cuadro Nº II-2.2.5
A5: ALUMNOS MATRICULADOS EN EDUCACIÓN ESPECIAL PÚBLICA POR EDADES SIMPLES Y SEXO SEGÚN DEPARTAMENTO. AÑO 2016.
A6: DEPARTAMENTO | B6: TOTAL GENERAL | C6: TOTAL FEMENINO | D6: TOTAL MASCULINO | E6: EDAD
E7: Menos de 3 años | G7: 3 años | I7: 4 años | K7: 5 años | M7: 6 años | O7: 7 años | Q7: 8 años | S7: 9 años | U7: 10 años | W7: 11 años | Y7: 12 años | AA7: 13 años | AC7: 14 años | AE7: 15 años | AG7: 16 años | AI7: 17 años | AK7: 18 años | AM7: 19 años | AO7: 20 años | AQ7: 21 años | AS7: Más de 21 años
E8: SEXO
E9: F | F9: M | G9: F | H9: M | I9: F | J9: M | K9: F | L9: M | M9: F | N9: M | O9: F | P9: M | Q9: F | R9: M | S9: F | T9: M | U9: F | V9: M | W9: F | X9: M | Y9: F | Z9: M | AA9: F | AB9: M | AC9: F | AD9: M | AE9: F | AF9: M | AG9: F | AH9: M | AI9: F | AJ9: M | AK9: F | AL9: M | AM9: F | AN9: M | AO9: F | AP9: M | AQ9: F | AR9: M | AS9: F | AT9: M
A11: TOTAL | B11: =C11+D11 -> 6436 | C11: =E11+G11+I11+K11+M11+O11+Q11+S11+U11+W11+Y11+AA11+AC11+AE11+AG11+AI11+AK11+AM11+AO11+AQ11+AS11 -> 2476 | D11: =F11+H11+J11+L11+N11+P11+R11+T11+V11+X11+Z11+AB11+AD11+AF11+AH11+AJ11+AL11+AN11+AP11+AR11+AT11 -> 3960 | E11: =SUM(E12:E13) -> 5 | F11: 3 | G11: 8 | H11: 8 | I11: 17 | J11: 30 | K11: 23 | L11: 57 | M11: 82 | N11: 139 | O11: 136 | P11: 218 | Q11: =SUM(Q12:Q13) -> 181 | R11: 307 | S11: 228 | T11: 381 | U11: 239 | V11: 394 | W11: 272 | X11: 476 | Y11: 288 | Z11: 436 | AA11: 293 | AB11: 475 | AC11: 254 | AD11: 385 | AE11: 179 | AF11: 267 | AG11: 116 | AH11: 165 | AI11: 76 | AJ11: 107 | AK11: 30 | AL11: 51 | AM11: 23 | AN11: 20 | AO11: 9 | AP11: 16 | AQ11: 2 | AR11: 10 | AS11: 15 | AT11: 15
A12: MONTEVIDEO | B12: =C12+D12 -> 2593 | C12: 1015 | D12: 1578 | E12: 2 | F12: 1 | G12: 6 | H12: 3 | I12: 10 | J12: 15 | K12: 10 | L12: 22 | M12: 35 | N12: 42 | O12: 56 | P12: 78 | Q12: 61 | R12: 105 | S12: 100 | T12: 150 | U12: 87 | V12: 145 | W12: 103 | X12: 194 | Y12: 118 | Z12: 161 | AA12: 125 | AB12: 191 | AC12: 91 | AD12: 160 | AE12: 74 | AF12: 101 | AG12: 52 | AH12: 82 | AI12: 39 | AJ12: 57 | AK12: 17 | AL12: 31 | AM12: 16 | AN12: 14 | AO12: 7 | AP12: 14 | AQ12: 0 | AR12: 6 | AS12: 6 | AT12: 6
A13: RESTO DEL PAÍS | B13: 3843 | C13: 1461 | D13: 2382 | E13: =SUM(E14:E31) -> 3 | F13: 2 | G13: 2 | H13: 5 | I13: 7 | J13: 15 | K13: 13 | L13: 35 | M13: 47 | N13: 97 | O13: 80 | P13: 140 | Q13: 120 | R13: 202 | S13: 128 | T13: 231 | U13: 152 | V13: 249 | W13: 169 | X13: 282 | Y13: 170 | Z13: 275 | AA13: 168 | AB13: 284 | AC13: 163 | AD13: 225 | AE13: 105 | AF13: 166 | AG13: 64 | AH13: 83 | AI13: 37 | AJ13: 50 | AK13: 13 | AL13: 20 | AM13: 7 | AN13: 6 | AO13: 2 | AP13: 2 | AQ13: 2 | AR13: 4 | AS13: 9 | AT13: 9
A14: Artigas | B14: =C14+D14 -> 181 | C14: =E14+G14+I14+K14+M14+O14+Q14+S14+U14+W14+Y14+AA14+AC14+AE14+AG14+AI14+AK14+AM14+AO14+AQ14+AS14 -> 69 | D14: =F14+H14+J14+L14+N14+P14+R14+T14+V14+X14+Z14+AB14+AD14+AF14+AH14+AJ14+AL14+AN14+AP14+AR14+AT14 -> 112 | E14: 0 | F14: 0 | G14: 0 | H14: 0 | I14: 0 | J14: 0 | K14: 1 | L14: 1 | M14: 1 | N14: 5 | O14: 3 | P14: 6 | Q14: 7 | R14: 6 | S14: 1 | T14: 13 | U14: 7 | V14: 7 | W14: 12 | X14: 18 | Y14: 7 | Z14: 13 | AA14: 3 | AB14: 15 | AC14: 15 | AD14: 8 | AE14: 6 | AF14: 14 | AG14: 5 | AH14: 2 | AI14: 1 | AJ14: 3 | AK14: 0 | AL14: 1 | AM14: 0 | AN14: 0 | AO14: 0 | AP14: 0 | AQ14: 0 | AR14: 0 | AS14: 0 | AT14: 0
A15: Canelones | B15: 712 | C15: =E15+G15+I15+K15+M15+O15+Q15+S15+U15+W15+Y15+AA15+AC15+AE15+AG15+AI15+AK15+AM15+AO15+AQ15+AS15 -> 275 | D15: =F15+H15+J15+L15+N15+P15+R15+T15+V15+X15+Z15+AB15+AD15+AF15+AH15+AJ15+AL15+AN15+AP15+AR15+AT15 -> 437 | E15: 0 | F15: 0 | G15: 0 | H15: 0 | I15: 0 | J15: 2 | K15: 5 | L15: 11 | M15: 13 | N15: 11 | O15: 17 | P15: 31 | Q15: 29 | R15: 40 | S15: 25 | T15: 44 | U15: 27 | V15: 47 | W15: 39 | X15: 64 | Y15: 35 | Z15: 57 | AA15: 37 | AB15: 45 | AC15: 21 | AD15: 36 | AE15: 11 | AF15: 26 | AG15: 9 | AH15: 7 | AI15: 5 | AJ15: 7 | AK15: 1 | AL15: 5 | AM15: 0 | AN15: 0 | AO15: 0 | AP15: 1 | AQ15: 0 | AR15: 1 | AS15: 1 | AT15: 2
A16: Cerro Largo | B16: 233 | C16: 89 | D16: 144 | E16: 0 | F16: 0 | G16: 0 | H16: 0 | I16: 0 | J16: 0 | K16: 0 | L16: 1 | M16: 2 | N16: 6 | O16: 6 | P16: 7 | Q16: 5 | R16: 13 | S16: 10 | T16: 8 | U16: 7 | V16: 15 | W16: 7 | X16: 20 | Y16: 9 | Z16: 16 | AA16: 9 | AB16: 22 | AC16: 15 | AD16: 12 | AE16: 7 | AF16: 8 | AG16: 3 | AH16: 3 | AI16: 4 | AJ16: 7 | AK16: 2 | AL16: 0 | AM16: 1 | AN16: 1 | AO16: 1 | AP16: 1 | AQ16: 0 | AR16: 0 | AS16: 1 | AT16: 4
A17: Colonia | B17: 203 | C17: 79 | D17: 124 | E17: 0 | F17: 0 | G17: 1 | H17: 0 | I17: 2 | J17: 1 | K17: 1 | L17: 2 | M17: 2 | N17: 4 | O17: 10 | P17: 4 | Q17: 7 | R17: 8 | S17: 8 | T17: 5 | U17: 5 | V17: 16 | W17: 8 | X17: 9 | Y17: 6 | Z17: 16 | AA17: 11 | AB17: 14 | AC17: 6 | AD17: 16 | AE17: 4 | AF17: 14 | AG17: 1 | AH17: 10 | AI17: 4 | AJ17: 4 | AK17: 2 | AL17: 1 | AM17: 1 | AN17: 0 | AO17: 0 | AP17: 0 | AQ17: 0 | AR17: 0 | AS17: 0 | AT17: 0
A18: Durazno | B18: 139 | C18: 48 | D18: 91 | E18: 0 | F18: 0 | G18: 0 | H18: 0 | I18: 0 | J18: 0 | K18: 0 | L18: 0 | M18: 2 | N18: 5 | O18: 1 | P18: 2 | Q18: 3 | R18: 12 | S18: 3 | T18: 6 | U18: 5 | V18: 4 | W18: 3 | X18: 10 | Y18: 4 | Z18: 9 | AA18: 9 | AB18: 9 | AC18: 3 | AD18: 14 | AE18: 8 | AF18: 8 | AG18: 1 | AH18: 2 | AI18: 0 | AJ18: 4 | AK18: 2 | AL18: 4 | AM18: 0 | AN18: 0 | AO18: 0 | AP18: 0 | AQ18: 2 | AR18: 2 | AS18: 2 | AT18: 0
A19: Flores | B19: 33 | C19: 11 | D19: 22 | E19: 0 | F19: 0 | G19: 0 | H19: 0 | I19: 0 | J19: 0 | K19: 0 | L19: 0 | M19: 0 | N19: 2 | O19: 0 | P19: 1 | Q19: 0 | R19: 2 | S19: 2 | T19: 1 | U19: 2 | V19: 4 | W19: 2 | X19: 1 | Y19: 1 | Z19: 2 | AA19: 0 | AB19: 1 | AC19: 1 | AD19: 1 | AE19: 0 | AF19: 3 | AG19: 3 | AH19: 1 | AI19: 0 | AJ19: 1 | AK19: 0 | AL19: 1 | AM19: 0 | AN19: 1 | AO19: 0 | AP19: 0 | AQ19: 0 | AR19: 0 | AS19: 0 | AT19: 0
A20: Florida | B20: 148 | C20: 54 | D20: 94 | E20: 0 | F20: 0 | G20: 0 | H20: 0 | I20: 0 | J20: 1 | K20: 0 | L20: 1 | M20: 0 | N20: 4 | O20: 1 | P20: 8 | Q20: 5 | R20: 8 | S20: 2 | T20: 7 | U20: 6 | V20: 4 | W20: 11 | X20: 14 | Y20: 7 | Z20: 16 | AA20: 8 | AB20: 10 | AC20: 7 | AD20: 13 | AE20: 2 | AF20: 5 | AG20: 1 | AH20: 2 | AI20: 2 | AJ20: 0 | AK20: 1 | AL20: 0 | AM20: 0 | AN20: 1 | AO20: 0 | AP20: 0 | AQ20: 0 | AR20: 0 | AS20: 1 | AT20: 0
A21: Lavalleja | B21: 159 | C21: 59 | D21: 100 | E21: 1 | F21: 0 | G21: 0 | H21: 1 | I21: 0 | J21: 0 | K21: 0 | L21: 1 | M21: 3 | N21: 9 | O21: 3 | P21: 3 | Q21: 1 | R21: 4 | S21: 1 | T21: 10 | U21: 9 | V21: 7 | W21: 4 | X21: 11 | Y21: 8 | Z21: 4 | AA21: 7 | AB21: 11 | AC21: 5 | AD21: 11 | AE21: 8 | AF21: 9 | AG21: 3 | AH21: 12 | AI21: 4 | AJ21: 6 | AK21: 1 | AL21: 1 | AM21: 1 | AN21: 0 | AO21: 0 | AP21: 0 | AQ21: 0 | AR21: 0 | AS21: 0 | AT21: 0
A22: Maldonado | B22: 302 | C22: 127 | D22: 175 | E22: 0 | F22: 1 | G22: 0 | H22: 3 | I22: 1 | J22: 5 | L22: 6 | M22: 5 | N22: 6 | O22: 7 | P22: 12 | Q22: 9 | R22: 14 | S22: 11 | T22: 17 | U22: 18 | V22: 23 | W22: 20 | X22: 18 | Y22: 16 | Z22: 17 | AA22: 12 | AB22: 21 | AC22: 9 | AD22: 13 | AE22: 9 | AF22: 6 | AG22: 6 | AH22: 6 | AI22: 1 | AJ22: 3 | AK22: 1 | AL22: 3 | AM22: 1 | AN22: 1 | AO22: 0 | AP22: 0 | AQ22: 0 | AR22: 0 | AS22: 1 | AT22: 0
A23: Paysandú | B23: 210 | C23: 68 | D23: 142 | E23: 0 | F23: 0 | G23: 0 | H23: 0 | I23: 0 | J23: 3 | K23: 1 | L23: 1 | M23: 3 | N23: 4 | O23: 4 | P23: 13 | Q23: 6 | R23: 12 | S23: 11 | T23: 20 | U23: 7 | V23: 21 | W23: 5 | X23: 14 | Y23: 9 | Z23: 13 | AA23: 8 | AB23: 17 | AC23: 3 | AD23: 9 | AE23: 2 | AF23: 5 | AG23: 6 | AH23: 8 | AI23: 1 | AJ23: 1 | AK23: 0 | AL23: 0 | AM23: 0 | AN23: 0 | AO23: 0 | AP23: 0 | AQ23: 0 | AR23: 0 | AS23: 2 | AT23: 1
A24: Río Negro | B24: 161 | C24: 61 | D24: 100 | E24: 0 | F24: 0 | G24: 0 | H24: 0 | I24: 1 | J24: 1 | K24: 1 | L24: 1 | M24: 1 | N24: 4 | O24: 6 | P24: 8 | Q24: 7 | R24: 11 | S24: 3 | T24: 17 | U24: 6 | V24: 12 | W24: 3 | X24: 15 | Y24: 9 | Z24: 6 | AA24: 8 | AB24: 8 | AC24: 7 | AD24: 9 | AE24: 4 | AF24: 4 | AG24: 4 | AH24: 4 | AI24: 1 | AJ24: 0 | AK24: 0 | AL24: 0 | AM24: 0 | AN24: 0 | AO24: 0 | AP24: 0 | AQ24: 0 | AR24: 0 | AS24: 0 | AT24: 0
A25: Rivera | B25: 157 | C25: 63 | D25: 94 | E25: 0 | F25: 0 | G25: 0 | H25: 0 | I25: 0 | J25: 0 | K25: 1 | L25: 0 | M25: 0 | N25: 1 | O25: 2 | P25: 4 | Q25: 5 | R25: 7 | S25: 9 | T25: 5 | U25: 8 | V25: 12 | W25: 8 | X25: 10 | Y25: 8 | Z25: 18 | AA25: 7 | AB25: 16 | AC25: 10 | AD25: 9 | AE25: 2 | AF25: 9 | AG25: 2 | AH25: 0 | AI25: 1 | AJ25: 3 | AK25: 0 | AL25: 0 | AM25: 0 | AN25: 0 | AO25: 0 | AP25: 0 | AQ25: 0 | AR25: 0 | AS25: 0 | AT25: 0
A26: Rocha | B26: 239 | C26: 87 | D26: 152 | E26: 0 | F26: 1 | G26: 0 | H26: 0 | I26: 1 | J26: 0 | K26: 0 | L26: 2 | M26: 2 | N26: 12 | O26: 6 | P26: 13 | Q26: 10 | R26: 18 | S26: 10 | T26: 18 | U26: 11 | V26: 16 | W26: 12 | X26: 19 | Y26: 16 | Z26: 17 | AA26: 3 | AB26: 16 | AC26: 5 | AD26: 5 | AE26: 5 | AF26: 6 | AG26: 2 | AH26: 2 | AI26: 1 | AJ26: 2 | AK26: 0 | AL26: 1 | AM26: 2 | AN26: 1 | AO26: 1 | AP26: 0 | AQ26: 0 | AR26: 1 | AS26: 0 | AT26: 2
A27: Salto | B27: 305 | C27: 117 | D27: 188 | E27: 1 | F27: 0 | G27: 1 | H27: 1 | I27: 2 | J27: 0 | K27: 1 | L27: 4 | M27: 6 | N27: 8 | O27: 6 | P27: 6 | Q27: 12 | R27: 19 | S27: 10 | T27: 22 | U27: 8 | V27: 18 | W27: 8 | X27: 17 | Y27: 8 | Z27: 19 | AA27: 15 | AB27: 23 | AC27: 14 | AD27: 23 | AE27: 14 | AF27: 20 | AG27: 9 | AH27: 6 | AI27: 1 | AJ27: 1 | AK27: 1 | AL27: 1 | AM27: 0 | AN27: 0 | AO27: 0 | AP27: 0 | AQ27: 0 | AR27: 0 | AS27: 0 | AT27: 0
A28: San José | B28: 204 | C28: 74 | D28: 130 | E28: 0 | F28: 0 | G28: 0 | H28: 0 | I28: 0 | J28: 0 | K28: 0 | L28: 1 | M28: 3 | N28: 4 | O28: 1 | P28: 3 | Q28: 3 | R28: 6 | S28: 6 | T28: 9 | U28: 11 | V28: 16 | W28: 8 | X28: 16 | Y28: 7 | Z28: 18 | AA28: 9 | AB28: 22 | AC28: 17 | AD28: 21 | AE28: 7 | AF28: 9 | AG28: 2 | AH28: 4 | AI28: 0 | AJ28: 0 | AK28: 0 | AL28: 1 | AM28: 0 | AN28: 0 | AO28: 0 | AP28: 0 | AQ28: 0 | AR28: 0 | AS28: 0 | AT28: 0
A29: Soriano | B29: 186 | C29: 68 | D29: 118 | E29: 0 | F29: 0 | G29: 0 | H29: 0 | I29: 0 | J29: 2 | K29: 2 | L29: 2 | M29: 2 | N29: 5 | O29: 2 | P29: 8 | Q29: 3 | R29: 8 | S29: 5 | T29: 13 | U29: 4 | V29: 13 | W29: 5 | X29: 13 | Y29: 12 | Z29: 15 | AA29: 12 | AB29: 16 | AC29: 8 | AD29: 9 | AE29: 7 | AF29: 9 | AG29: 4 | AH29: 2 | AI29: 0 | AJ29: 1 | AK29: 0 | AL29: 1 | AM29: 1 | AN29: 1 | AO29: 0 | AP29: 0 | AQ29: 0 | AR29: 0 | AS29: 1 | AT29: 0
A30: Tacuarembó | B30: 190 | C30: 72 | D30: 118 | E30: 1 | F30: 0 | G30: 0 | H30: 0 | I30: 0 | J30: 0 | K30: 0 | L30: 1 | M30: 0 | N30: 6 | O30: 4 | P30: 9 | Q30: 4 | R30: 11 | S30: 7 | T30: 12 | U30: 10 | V30: 11 | W30: 5 | X30: 10 | Y30: 6 | Z30: 13 | AA30: 10 | AB30: 14 | AC30: 13 | AD30: 8 | AE30: 6 | AF30: 8 | AG30: 0 | AH30: 10 | AI30: 4 | AJ30: 5 | AK30: 2 | AL30: 0 | AM30: 0 | AN30: 0 | AO30: 0 | AP30: 0 | AQ30: 0 | AR30: 0 | AS30: 0 | AT30: 0
A31: Treinta y Tres | B31: 81 | C31: 40 | D31: 41 | E31: 0 | F31: 0 | G31: 0 | H31: 0 | I31: 0 | J31: 0 | K31: 0 | L31: 0 | M31: 2 | N31: 1 | O31: 1 | P31: 2 | Q31: 4 | R31: 3 | S31: 4 | T31: 4 | U31: 1 | V31: 3 | W31: 9 | X31: 3 | Y31: 2 | Z31: 6 | AA31: 0 | AB31: 4 | AC31: 4 | AD31: 8 | AE31: 3 | AF31: 3 | AG31: 3 | AH31: 2 | AI31: 7 | AJ31: 2 | AK31: 0 | AL31: 0 | AM31: 0 | AN31: 0 | AO31: 0 | AP31: 0 | AQ31: 0 | AR31: 0 | AS31: 0 | AT31: 0
A32: Fuente: Procesamiento propio en base a datos proporcionados por el DEE — CEIP

Sheet II-2.2.6
A1: CONSEJO DE EDUCACIÓN PRIMARIA | E1: ALUMNOS MATRICULADOS
A3: Cuadro Nº II-2.2.6
A5: ALUMNOS MATRICULADOS EN EDUCACIÓN PRIMARIA PRIVADA POR TIPO DE EDUCACIÓN SEGÚN DEPARTAMENTO. AÑO 2016.
A6: DEPARTAMENTO | B6: TIPO DE EDUCACIÓN
B7: TOTAL | C7: EDUCACIÓN COMÚN | F7: EDUCACIÓN ESPECIAL
C8: Total | D8: Habilitados | E8: Autorizados
A10: TOTAL DEL PAÍS | B10: =SUM(B11:B12) -> 57130 | C10: =+D10+E10 -> 53526 | D10: =D11+D12 -> 50862 | E10: =E11+E12 -> 2664 | F10: =F11+F12 -> 3604
A11: MONTEVIDEO | B11: =+C11+F11 -> 34583 | C11: =+D11+E11 -> 32555 | D11: 30350 | E11: 2205 | F11: 2028 | AT11: MONTEVIDEO
A12: RESTO DEL PAÍS | B12: =+C12+F12 -> 22547 | C12: =+D12+E12 -> 20971 | D12: =SUM(D13:D30) -> 20512 | E12: =SUM(E13:E30) -> 459 | F12: =SUM(F13:F30) -> 1576 | AT12: RESTO DEL PAÍS
A13: Artigas | B13: =+C13+F13 -> 331 | C13: =+D13+E13 -> 187 | D13: 187 | E13: 0 | F13: 144 | AT13: Artigas
A14: Canelones | B14: 7790 | C14: =+D14+E14 -> 7704 | D14: 7270 | E14: 434 | F14: 86 | AT14: Canelones
A15: Cerro Largo | B15: 626 | C15: 626 | D15: 626 | E15: 0 | F15: 0 | AT15: Cerro Largo
A16: Colonia | B16: 828 | C16: 779 | D16: 779 | E16: 0 | F16: 49 | AT16: Colonia
A17: Durazno | B17: 654 | C17: 654 | D17: 654 | E17: 0 | F17: 0 | AT17: Durazno
A18: Flores | B18: 263 | C18: 263 | D18: 263 | E18: 0 | F18: 0 | AT18: Flores
A19: Florida | B19: 347 | C19: 273 | D19: 273 | E19: 0 | F19: 74 | AT19: Florida
A20: Lavalleja | B20: 618 | C20: 618 | D20: 618 | E20: 0 | F20: 0 | AT20: Lavalleja
A21: Maldonado | B21: 4014 | C21: 3926 | D21: 3926 | E21: 0 | F21: 88 | AT21: Maldonado
A22: Paysandú | B22: 1319 | C22: 1177 | D22: 1177 | E22: 0 | F22: 142 | AT22: Paysandú
A23: Río Negro | B23: 721 | C23: 543 | D23: 526 | E23: 17 | F23: 178 | AT23: Río Negro
A24: Rivera | B24: 587 | C24: 587 | D24: 587 | E24: 0 | F24: 0 | AT24: Rivera
A25: Rocha | B25: 337 | C25: 337 | D25: 337 | E25: 0 | F25: 0 | AT25: Rocha
A26: Salto | B26: 1796 | C26: 1207 | D26: 1207 | E26: 0 | F26: 589 | AT26: Salto
A27: San José | B27: 738 | C27: 738 | D27: 730 | E27: 8 | F27: 0 | AT27: San José
A28: Soriano | B28: 680 | C28: 454 | D28: 454 | E28: 0 | F28: 226 | AT28: Soriano
A29: Tacuarembó | B29: 725 | C29: 725 | D29: 725 | E29: 0 | F29: 0 | AT29: Tacuarembó
A30: Treinta y Tres | B30: 173 | C30: 173 | D30: 173 | E30: 0 | F30: 0 | AT30: Treinta y Tres
A31: Fuente: Procesamiento propio en base a datos proporcionados por el D.E.E. — C.E.I.P.
A32: Nota: Especial incluye la matrícula de clases especiales en escuelas comunes,
A33: Instrucción Temprana, Educación Inicial, Preparatorio y Talleres
A107: 30025 | B107: 2163 | C107: 2209
A108: 19484 | B108: 397 | C108: 1758
A109: 92 | B109: 0 | C109: 162
A110: 6669 | B110: 344 | C110: 0
A111: 615 | B111: 0 | C111: 0
A112: 724 | B112: 0 | C112: 0
A113: 634 | B113: 0 | C113: 0
A114: 361 | B114: 0 | C114: 7
A115: 296 | B115: 0 | C115: 62
A116: 615 | B116: 0 | C116: 0
A117: 3879 | B117: 0 | C117: 141
A118: 1175 | B118: 0 | C118: 276
A119: 428 | B119: 33 | C119: 149
A120: 673 | B120: 0 | C120: 7
A121: 413 | B121: 0 | C121: 87
A122: 1089 | B122: 0 | C122: 208
A123: 556 | B123: 20 | C123: 0
A124: 435 | B124: 0 | C124: 659
A125: 643 | B125: 0 | C125: 0
A126: 187 | B126: 0 | C126: 0

Sheet II-2.2.7
A1: CONSEJO DE EDUCACIÓN PRIMARIA | N1: ALUMNOS MATRICULADOS
A3: Cuadro Nº II-2.2.7
A5: ALUMNOS MATRICULADOS EN EDUCACIÓN ESPECIAL PRIVADA POR EDADES SIMPLES Y SEXO SEGÚN DEPARTAMENTO. AÑO 2016.
A6: DEPARTAMENTO | B6: TOTAL GENERAL | C6: TOTAL MASCULINO | D6: TOTAL FEMENINO | E6: EDAD
E7: Menos de 3 años | G7: 3 años | I7: 4 años | K7: 5 años | M7: 6 años | O7: 7 años | Q7: 8 años | S7: 9 años | U7: 10 años | W7: 11 años | Y7: 12 años | AA7: 13 años | AC7: 14 años | AE7: 15 años | AG7: 16 años | AI7: 17 años | AK7: 18 años | AM7: 19 años | AO7: 20 años | AQ7: 21 años
E8: SEXO
E9: M | F9: F | G9: M | H9: F | I9: M | J9: F | K9: M | L9: F | M9: M | N9: F | O9: M | P9: F | Q9: M | R9: F | S9: M | T9: F | U9: M | V9: F | W9: M | X9: F | Y9: M | Z9: F | AA9: M | AB9: F | AC9: M | AD9: F | AE9: M | AF9: F | AG9: M | AH9: F | AI9: M | AJ9: F | AK9: M | AL9: F | AM9: M | AN9: F | AO9: M | AP9: F | AQ9: M | AR9: F
A11: TOTAL | B11: =C11+D11 -> 3604 | C11: =E11+G11+I11+K11+M11+O11+Q11+S11+U11+W11+Y11+AA11+AC11+AE11+AG11+AI11+AK11+AM11+AO11+AQ11 -> 1989 | D11: =F11+H11+J11+L11+N11+P11+R11+T11+V11+X11+Z11+AB11+AD11+AF11+AH11+AJ11+AL11+AN11+AP11+AR11 -> 1615 | E11: =SUM(E12:E13) -> 13 | F11: 7 | G11: 15 | H11: 7 | I11: 38 | J11: 17 | K11: 53 | L11: 34 | M11: 132 | N11: 50 | O11: 127 | P11: 48 | Q11: 142 | R11: 77 | S11: 113 | T11: 82 | U11: 121 | V11: 65 | W11: 117 | X11: 73 | Y11: 123 | Z11: 101 | AA11: 76 | AB11: 50 | AC11: 98 | AD11: 49 | AE11: 93 | AF11: 47 | AG11: 77 | AH11: 63 | AI11: 60 | AJ11: 41 | AK11: 70 | AL11: 28 | AM11: 31 | AN11: 109 | AO11: 26 | AP11: 133 | AQ11: 464 | AR11: 534
A12: MONTEVIDEO | B12: =C12+D12 -> 2028 | C12: =E12+G12+I12+K12+M12+O12+Q12+S12+U12+W12+Y12+AA12+AC12+AE12+AG12+AI12+AK12+AM12+AO12+AQ12 -> 1065 | D12: =F12+H12+J12+L12+N12+P12+R12+T12+V12+X12+Z12+AB12+AD12+AF12+AH12+AJ12+AL12+AN12+AP12+AR12 -> 963 | E12: 7 | F12: 5 | G12: 7 | H12: 3 | I12: 9 | J12: 13 | K12: 20 | L12: 30 | M12: 78 | N12: 19 | O12: 79 | P12: 26 | Q12: 85 | R12: 41 | S12: 69 | T12: 29 | U12: 72 | V12: 33 | W12: 75 | X12: 43 | Y12: 58 | Z12: 54 | AA12: 41 | AB12: 27 | AC12: 35 | AD12: 23 | AE12: 38 | AF12: 24 | AG12: 32 | AH12: 24 | AI12: 26 | AJ12: 17 | AK12: 28 | AL12: 9 | AM12: 11 | AN12: 88 | AO12: 11 | AP12: 115 | AQ12: 284 | AR12: 340
A13: RESTO DEL PAÍS | B13: 1576 | C13: 924 | D13: 652 | E13: =SUM(E14:E31) -> 6 | F13: =SUM(F14:F31) -> 2 | G13: 8 | H13: 4 | I13: 29 | J13: 4 | K13: 33 | L13: =SUM(L14:L31) -> 4 | M13: 54 | N13: 31 | O13: 48 | P13: 22 | Q13: 57 | R13: 36 | S13: 44 | T13: 53 | U13: 49 | V13: 32 | W13: 42 | X13: 30 | Y13: 65 | Z13: 47 | AA13: 35 | AB13: 23 | AC13: 63 | AD13: 26 | AE13: 55 | AF13: 23 | AG13: 45 | AH13: 39 | AI13: 34 | AJ13: 24 | AK13: 42 | AL13: 19 | AM13: 20 | AN13: 21 | AO13: 15 | AP13: 18 | AQ13: 180 | AR13: 194
A14: Artigas | B14: 144 | C14: 75 | D14: 69 | E14: 0 | F14: 0 | G14: 0 | H14: 0 | I14: 0 | J14: 0 | K14: 0 | L14: 0 | M14: 0 | N14: 0 | O14: 0 | P14: 0 | Q14: 1 | R14: 0 | S14: 0 | T14: 0 | U14: 0 | V14: 0 | W14: 1 | X14: 0 | Y14: 2 | Z14: 3 | AA14: 3 | AB14: 4 | AC14: 4 | AD14: 0 | AE14: 1 | AF14: 2 | AG14: 3 | AH14: 4 | AI14: 8 | AJ14: 0 | AK14: 13 | AL14: 4 | AM14: 5 | AN14: 1 | AO14: 3 | AP14: 2 | AQ14: 31 | AR14: 49
A15: Canelones | B15: 86 | C15: 60 | D15: 26 | E15: 1 | F15: 0 | G15: 1 | H15: 0 | I15: 2 | J15: 0 | K15: 1 | L15: 0 | M15: 0 | N15: 0 | O15: 0 | P15: 0 | Q15: 3 | R15: 0 | S15: 0 | T15: 0 | U15: 1 | V15: 1 | W15: 0 | X15: 1 | Y15: 0 | Z15: 2 | AA15: 3 | AB15: 0 | AC15: 2 | AD15: 1 | AE15: 1 | AF15: 2 | AG15: 4 | AH15: 0 | AI15: 1 | AJ15: 1 | AK15: 6 | AL15: 3 | AM15: 6 | AN15: 1 | AO15: 1 | AP15: 3 | AQ15: 27 | AR15: 11
A16: Cerro Largo | B16: 0 | C16: 0 | D16: 0 | E16: 0 | F16: 0 | G16: 0 | H16: 0 | I16: 0 | J16: 0 | K16: 0 | L16: 0 | M16: 0 | N16: 0 | O16: 0 | P16: 0 | Q16: 0 | R16: 0 | S16: 0 | T16: 0 | U16: 0 | V16: 0 | W16: 0 | X16: 0 | Y16: 0 | Z16: 0 | AA16: 0 | AB16: 0 | AC16: 0 | AD16: 0 | AE16: 0 | AF16: 0 | AG16: 0 | AH16: 0 | AI16: 0 | AJ16: 0 | AK16: 0 | AL16: 0 | AM16: 0 | AN16: 0 | AO16: 0 | AP16: 0 | AQ16: 0 | AR16: 0
A17: Colonia | B17: 49 | C17: 27 | D17: 22 | E17: 0 | F17: 0 | G17: 0 | H17: 0 | I17: 1 | J17: 0 | K17: 1 | L17: 0 | M17: 0 | N17: 1 | O17: 3 | P17: 2 | Q17: 3 | R17: 1 | S17: 1 | T17: 1 | U17: 0 | V17: 1 | W17: 0 | X17: 3 | Y17: 2 | Z17: 1 | AA17: 2 | AB17: 4 | AC17: 1 | AD17: 3 | AE17: 2 | AF17: 1 | AG17: 6 | AH17: 1 | AI17: 1 | AJ17: 0 | AK17: 1 | AL17: 0 | AM17: 1 | AN17: 0 | AO17: 0 | AP17: 0 | AQ17: 2 | AR17: 3
A18: Durazno | B18: 0 | C18: 0 | D18: 0 | E18: 0 | F18: 0 | G18: 0 | H18: 0 | I18: 0 | J18: 0 | K18: 0 | L18: 0 | M18: 0 | N18: 0 | O18: 0 | P18: 0 | Q18: 0 | R18: 0 | S18: 0 | T18: 0 | U18: 0 | V18: 0 | W18: 0 | X18: 0 | Y18: 0 | Z18: 0 | AA18: 0 | AB18: 0 | AC18: 0 | AD18: 0 | AE18: 0 | AF18: 0 | AG18: 0 | AH18: 0 | AI18: 0 | AJ18: 0 | AK18: 0 | AL18: 0 | AM18: 0 | AN18: 0 | AO18: 0 | AP18: 0 | AQ18: 0 | AR18: 0
A19: Flores | B19: 0 | C19: 0 | D19: 0 | E19: 0 | F19: 0 | G19: 0 | H19: 0 | I19: 0 | J19: 0 | K19: 0 | L19: 0 | M19: 0 | N19: 0 | O19: 0 | P19: 0 | Q19: 0 | R19: 0 | S19: 0 | T19: 0 | U19: 0 | V19: 0 | W19: 0 | X19: 0 | Y19: 0 | Z19: 0 | AA19: 0 | AB19: 0 | AC19: 0 | AD19: 0 | AE19: 0 | AF19: 0 | AG19: 0 | AH19: 0 | AI19: 0 | AJ19: 0 | AK19: 0 | AL19: 0 | AM19: 0 | AN19: 0 | AO19: 0 | AP19: 0 | AQ19: 0 | AR19: 0
A20: Florida | B20: 74 | C20: 38 | D20: 36 | E20: 1 | F20: 2 | G20: 2 | H20: 1 | I20: 2 | J20: 0 | K20: 4 | L20: 1 | M20: 2 | N20: 1 | O20: 4 | P20: 2 | Q20: 1 | R20: 2 | S20: 3 | T20: 1 | U20: 2 | V20: 4 | W20: 2 | X20: 2 | Y20: 0 | Z20: 0 | AA20: 0 | AB20: 1 | AC20: 2 | AD20: 1 | AE20: 0 | AF20: 1 | AG20: 1 | AH20: 2 | AI20: 1 | AJ20: 1 | AK20: 0 | AL20: 1 | AM20: 0 | AN20: 1 | AO20: 0 | AP20: 2 | AQ20: 11 | AR20: 10
A21: Lavalleja | B21: 0 | C21: 0 | D21: 0 | E21: 0 | F21: 0 | G21: 0 | H21: 0 | I21: 0 | J21: 0 | K21: 0 | L21: 0 | M21: 0 | N21: 0 | O21: 0 | P21: 0 | Q21: 0 | R21: 0 | S21: 0 | T21: 0 | U21: 0 | V21: 0 | W21: 0 | X21: 0 | Y21: 0 | Z21: 0 | AA21: 0 | AB21: 0 | AC21: 0 | AD21: 0 | AE21: 0 | AF21: 0 | AG21: 0 | AH21: 0 | AI21: 0 | AJ21: 0 | AK21: 0 | AL21: 0 | AM21: 0 | AN21: 0 | AO21: 0 | AP21: 0 | AQ21: 0 | AR21: 0
A22: Maldonado | B22: 88 | C22: 44 | D22: 44 | E22: 0 | F22: 0 | G22: 1 | H22: 0 | I22: 0 | J22: 0 | L22: 1 | M22: 0 | N22: 0 | O22: 0 | P22: 1 | Q22: 1 | R22: 2 | S22: 0 | T22: 2 | U22: 1 | V22: 2 | W22: 0 | X22: 1 | Y22: 1 | Z22: 1 | AA22: 2 | AB22: 2 | AC22: 5 | AD22: 3 | AE22: 6 | AF22: 2 | AG22: 2 | AH22: 3 | AI22: 2 | AJ22: 1 | AK22: 2 | AL22: 3 | AM22: 4 | AN22: 6 | AO22: 0 | AP22: 3 | AQ22: 17 | AR22: 11
A23: Paysandú | B23: 142 | C23: 83 | D23: 59 | E23: 0 | F23: 0 | G23: 0 | H23: 0 | I23: 2 | J23: 0 | K23: 3 | L23: 1 | M23: 0 | N23: 0 | O23: 1 | P23: 1 | Q23: 2 | R23: 0 | S23: 1 | T23: 1 | U23: 1 | V23: 2 | W23: 1 | X23: 0 | Y23: 2 | Z23: 0 | AA23: 7 | AB23: 0 | AC23: 7 | AD23: 1 | AE23: 5 | AF23: 1 | AG23: 6 | AH23: 4 | AI23: 6 | AJ23: 6 | AK23: 3 | AL23: 2 | AM23: 0 | AN23: 3 | AO23: 0 | AP23: 3 | AQ23: 36 | AR23: 34
A24: Río Negro | B24: 178 | C24: 110 | D24: 68 | E24: 1 | F24: 0 | G24: 0 | H24: 2 | I24: 9 | J24: 1 | K24: 14 | L24: 0 | M24: 4 | N24: 2 | O24: 15 | P24: 4 | Q24: 10 | R24: 11 | S24: 9 | T24: 23 | U24: 15 | V24: 5 | W24: 14 | X24: 6 | Y24: 14 | Z24: 14 | AA24: 3 | AB24: 0 | AC24: 2 | AD24: 0 | AE24: 0 | AF24: 0 | AG24: 0 | AH24: 0 | AI24: 0 | AJ24: 0 | AK24: 0 | AL24: 0 | AM24: 0 | AN24: 0 | AO24: 0 | AP24: 0 | AQ24: 0 | AR24: 0
A25: Rivera | B25: 0 | C25: 0 | D25: 0 | E25: 0 | F25: 0 | G25: 0 | H25: 0 | I25: 0 | J25: 0 | K25: 0 | L25: 0 | M25: 0 | N25: 0 | O25: 0 | P25: 0 | Q25: 0 | R25: 0 | S25: 0 | T25: 0 | U25: 0 | V25: 0 | W25: 0 | X25: 0 | Y25: 0 | Z25: 0 | AA25: 0 | AB25: 0 | AC25: 0 | AD25: 0 | AE25: 0 | AF25: 0 | AG25: 0 | AH25: 0 | AI25: 0 | AJ25: 0 | AK25: 0 | AL25: 0 | AM25: 0 | AN25: 0 | AO25: 0 | AP25: 0 | AQ25: 0 | AR25: 0
A26: Rocha | B26: 0 | C26: 0 | D26: 0 | E26: 0 | F26: 0 | G26: 0 | H26: 0 | I26: 0 | J26: 0 | K26: 0 | L26: 0 | M26: 0 | N26: 0 | O26: 0 | P26: 0 | Q26: 0 | R26: 0 | S26: 0 | T26: 0 | U26: 0 | V26: 0 | W26: 0 | X26: 0 | Y26: 0 | Z26: 0 | AA26: 0 | AB26: 0 | AC26: 0 | AD26: 0 | AE26: 0 | AF26: 0 | AG26: 0 | AH26: 0 | AI26: 0 | AJ26: 0 | AK26: 0 | AL26: 0 | AM26: 0 | AN26: 0 | AO26: 0 | AP26: 0 | AQ26: 0 | AR26: 0
A27: Salto | B27: 589 | C27: 373 | D27: 216 | E27: 3 | F27: 0 | G27: 4 | H27: 1 | I27: 13 | J27: 3 | K27: 9 | L27: 0 | M27: 42 | N27: 27 | O27: 21 | P27: 12 | Q27: 34 | R27: 17 | S27: 26 | T27: 21 | U27: 26 | V27: 17 | W27: 23 | X27: 16 | Y27: 41 | Z27: 25 | AA27: 13 | AB27: 11 | AC27: 34 | AD27: 14 | AE27: 38 | AF27: 8 | AG27: 17 | AH27: 22 | AI27: 9 | AJ27: 11 | AK27: 9 | AL27: 1 | AM27: 2 | AN27: 5 | AO27: 3 | AP27: 2 | AQ27: 6 | AR27: 3
A28: San José | B28: 0 | C28: 0 | D28: 0 | E28: 0 | F28: 0 | G28: 0 | H28: 0 | I28: 0 | J28: 0 | K28: 0 | L28: 0 | M28: 0 | N28: 0 | O28: 0 | P28: 0 | Q28: 0 | R28: 0 | S28: 0 | T28: 0 | U28: 0 | V28: 0 | W28: 0 | X28: 0 | Y28: 0 | Z28: 0 | AA28: 0 | AB28: 0 | AC28: 0 | AD28: 0 | AE28: 0 | AF28: 0 | AG28: 0 | AH28: 0 | AI28: 0 | AJ28: 0 | AK28: 0 | AL28: 0 | AM28: 0 | AN28: 0 | AO28: 0 | AP28: 0 | AQ28: 0 | AR28: 0
A29: Soriano | B29: 226 | C29: 114 | D29: 112 | E29: 0 | F29: 0 | G29: 0 | H29: 0 | I29: 0 | J29: 0 | K29: 1 | L29: 1 | M29: 6 | N29: 0 | O29: 4 | P29: 0 | Q29: 2 | R29: 3 | S29: 4 | T29: 4 | U29: 3 | V29: 0 | W29: 1 | X29: 1 | Y29: 3 | Z29: 1 | AA29: 2 | AB29: 1 | AC29: 6 | AD29: 3 | AE29: 2 | AF29: 6 | AG29: 6 | AH29: 3 | AI29: 6 | AJ29: 4 | AK29: 8 | AL29: 5 | AM29: 2 | AN29: 4 | AO29: 8 | AP29: 3 | AQ29: 50 | AR29: 73
A30: Tacuarembó | B30: 0 | C30: 0 | D30: 0 | E30: 0 | F30: 0 | G30: 0 | H30: 0 | I30: 0 | J30: 0 | K30: 0 | L30: 0 | M30: 0 | N30: 0 | O30: 0 | P30: 0 | Q30: 0 | R30: 0 | S30: 0 | T30: 0 | U30: 0 | V30: 0 | W30: 0 | X30: 0 | Y30: 0 | Z30: 0 | AA30: 0 | AB30: 0 | AC30: 0 | AD30: 0 | AE30: 0 | AF30: 0 | AG30: 0 | AH30: 0 | AI30: 0 | AJ30: 0 | AK30: 0 | AL30: 0 | AM30: 0 | AN30: 0 | AO30: 0 | AP30: 0 | AQ30: 0 | AR30: 0
A31: Treinta y Tres | B31: 0 | C31: 0 | D31: 0 | E31: 0 | F31: 0 | G31: 0 | H31: 0 | I31: 0 | J31: 0 | K31: 0 | L31: 0 | M31: 0 | N31: 0 | O31: 0 | P31: 0 | Q31: 0 | R31: 0 | S31: 0 | T31: 0 | U31: 0 | V31: 0 | W31: 0 | X31: 0 | Y31: 0 | Z31: 0 | AA31: 0 | AB31: 0 | AC31: 0 | AD31: 0 | AE31: 0 | AF31: 0 | AG31: 0 | AH31: 0 | AI31: 0 | AJ31: 0 | AK31: 0 | AL31: 0 | AM31: 0 | AN31: 0 | AO31: 0 | AP31: 0 | AQ31: 0 | AR31: 0
A32: Fuente: Procesamiento propio en base a datos proporcionados por el DEE — CEIP

Sheet II-2.2.8
A1: CONSEJO DE EDUCACIÓN PRIMARIA | M1: ALUMNOS MATRICULADOS
A3: Cuadro Nº II-2.2.8
A5: ALUMNOS MATRICULADOS EN EDUCACIÓN PRIMARIA COMÚN POR GRADO Y FORMA DE ADMINISTRACIÓN SEGÚN EDAD. AÑO 2016.
A6: EDAD | D6: GRADO
B7: TOTAL | D7: Primero | F7: Segundo | H7: Tercero | J7: Cuarto | L7: Quinto | N7: Sexto
D9: FORMA DE ADMINISTRACIÓN
B10: Pública | C10: Privada | D10: Pública | E10: Privada | F10: Pública | G10: Privada | H10: Pública | I10: Privada | J10: Pública | K10: Privada | L10: Pública | M10: Privada | N10: Pública | O10: Privada
A11: TOTAL | B11: =SUM(B13:B22) -> 246239 | C11: =SUM(C13:C22) -> 53526 | D11: =SUM(D13:D22) -> 42977 | E11: =SUM(E13:E22) -> 9334 | F11: =SUM(F13:F22) -> 40569 | G11: 9107 | H11: =SUM(H13:H22) -> 40196 | I11: 8707 | J11: =SUM(J13:J22) -> 40382 | K11: 8961 | L11: =SUM(L13:L22) -> 39949 | M11: 8631 | N11: =SUM(N13:N22) -> 42166 | O11: 8786
A13: 5 años | B13: =+D13+F13+H13+J13+L13+N13 -> 3023 | C13: =+E13+G13+I13+K13+M13+O13 -> 8113 | D13: ='II-2.2.9'!E11+'II-2.2.9'!F11 -> 3010 | E13: 8113 | F13: ='II-2.2.9'!G11+'II-2.2.9'!H11 -> 4 | G13: 0 | H13: ='II-2.2.9'!I11+'II-2.2.9'!J11 -> 0 | I13: 0 | J13: ='II-2.2.9'!K11+'II-2.2.9'!L11 -> 2 | K13: 0 | L13: ='II-2.2.9'!M11+'II-2.2.9'!N11 -> 5 | M13: 0 | N13: ='II-2.2.9'!O11+'II-2.2.9'!P11 -> 2 | O13: 0
A14: 6 años | B14: 37391 | C14: =+E14+G14+I14+K14+M14+O14 -> 8966 | D14: ='II-2.2.9'!E12+'II-2.2.9'!F12 -> 34918 | E14: 1184 | F14: ='II-2.2.9'!G12+'II-2.2.9'!H12 -> 2468 | G14: 7782 | H14: ='II-2.2.9'!I12+'II-2.2.9'!J12 -> 3 | I14: 0 | J14: ='II-2.2.9'!K12+'II-2.2.9'!L12 -> 0 | K14: 0 | L14: ='II-2.2.9'!M12+'II-2.2.9'!N12 -> 0 | M14: 0 | N14: ='II-2.2.9'!O12+'II-2.2.9'!P12 -> 2 | O14: 0
A15: 7 años | B15: 37851 | C15: 8712 | D15: ='II-2.2.9'!E13+'II-2.2.9'!F13 -> 4744 | E15: 35 | F15: ='II-2.2.9'!G13+'II-2.2.9'!H13 -> 30740 | G15: 1271 | H15: ='II-2.2.9'!I13+'II-2.2.9'!J13 -> 2362 | I15: 7406 | J15: ='II-2.2.9'!K13+'II-2.2.9'!L13 -> 3 | K15: 0 | L15: ='II-2.2.9'!M13+'II-2.2.9'!N13 -> 1 | M15: 0 | N15: ='II-2.2.9'!O13+'II-2.2.9'!P13 -> 1 | O15: 0
A16: 8 años | B16: 38064 | C16: 8789 | D16: ='II-2.2.9'!E14+'II-2.2.9'!F14 -> 271 | E16: 2 | F16: ='II-2.2.9'!G14+'II-2.2.9'!H14 -> 6399 | G16: 45 | H16: ='II-2.2.9'!I14+'II-2.2.9'!J14 -> 29159 | I16: 1240 | J16: ='II-2.2.9'!K14+'II-2.2.9'!L14 -> 2232 | K16: 7502 | L16: ='II-2.2.9'!M14+'II-2.2.9'!N14 -> 0 | M16: 0 | N16: ='II-2.2.9'!O14+'II-2.2.9'!P14 -> 3 | O16: 0
A17: 9 años | B17: 39201 | C17: 8474 | D17: ='II-2.2.9'!E15+'II-2.2.9'!F15 -> 17 | E17: 0 | F17: ='II-2.2.9'!G15+'II-2.2.9'!H15 -> 852 | G17: 6 | H17: ='II-2.2.9'!I15+'II-2.2.9'!J15 -> 7148 | I17: 56 | J17: ='II-2.2.9'!K15+'II-2.2.9'!L15 -> 29015 | K17: 1375 | L17: ='II-2.2.9'!M15+'II-2.2.9'!N15 -> 2167 | M17: 7037 | N17: ='II-2.2.9'!O15+'II-2.2.9'!P15 -> 2 | O17: 0
A18: 10 años | B18: 38606 | C18: 8818 | D18: ='II-2.2.9'!E16+'II-2.2.9'!F16 -> 7 | E18: 0 | F18: ='II-2.2.9'!G16+'II-2.2.9'!H16 -> 81 | G18: 3 | H18: ='II-2.2.9'!I16+'II-2.2.9'!J16 -> 1356 | I18: 1 | J18: ='II-2.2.9'!K16+'II-2.2.9'!L16 -> 7109 | K18: 65 | L18: ='II-2.2.9'!M16+'II-2.2.9'!N16 -> 27809 | M18: 1488 | N18: ='II-2.2.9'!O16+'II-2.2.9'!P16 -> 2244 | O18: 7261
A19: 11 años | B19: 39052 | C19: 1528 | D19: ='II-2.2.9'!E17+'II-2.2.9'!F17 -> 2 | E19: 0 | F19: ='II-2.2.9'!G17+'II-2.2.9'!H17 -> 14 | G19: 0 | H19: ='II-2.2.9'!I17+'II-2.2.9'!J17 -> 136 | I19: 3 | J19: ='II-2.2.9'!K17+'II-2.2.9'!L17 -> 1770 | K19: 18 | L19: ='II-2.2.9'!M17+'II-2.2.9'!N17 -> 7704 | M19: 91 | N19: ='II-2.2.9'!O17+'II-2.2.9'!P17 -> 29426 | O19: 1416
A20: 12 años | B20: 9947 | C20: 97 | D20: ='II-2.2.9'!E18+'II-2.2.9'!F18 -> 5 | E20: 0 | F20: ='II-2.2.9'!G18+'II-2.2.9'!H18 -> 4 | G20: 0 | H20: ='II-2.2.9'!I18+'II-2.2.9'!J18 -> 22 | I20: 1 | J20: ='II-2.2.9'!K18+'II-2.2.9'!L18 -> 208 | K20: 0 | L20: ='II-2.2.9'!M18+'II-2.2.9'!N18 -> 1950 | M20: 10 | N20: ='II-2.2.9'!O18+'II-2.2.9'!P18 -> 7758 | O20: 86
A21: 13 años | B21: 2626 | C21: 29 | D21: ='II-2.2.9'!E19+'II-2.2.9'!F19 -> 0 | E21: 0 | F21: ='II-2.2.9'!G19+'II-2.2.9'!H19 -> 2 | G21: 0 | H21: ='II-2.2.9'!I19+'II-2.2.9'!J19 -> 8 | I21: 0 | J21: ='II-2.2.9'!K19+'II-2.2.9'!L19 -> 30 | K21: 1 | L21: ='II-2.2.9'!M19+'II-2.2.9'!N19 -> 273 | M21: 5 | N21: ='II-2.2.9'!O19+'II-2.2.9'!P19 -> 2313 | O21: 23
A22: 14 años y más | B22: 478 | C22: 0 | D22: ='II-2.2.9'!E20+'II-2.2.9'!F20 -> 3 | E22: 0 | F22: ='II-2.2.9'!G20+'II-2.2.9'!H20 -> 5 | G22: 0 | H22: ='II-2.2.9'!I20+'II-2.2.9'!J20 -> 2 | I22: 0 | J22: ='II-2.2.9'!K20+'II-2.2.9'!L20 -> 13 | L22: ='II-2.2.9'!M20+'II-2.2.9'!N20 -> 40 | M22: 0 | N22: ='II-2.2.9'!O20+'II-2.2.9'!P20 -> 415 | O22: 0
A23: Fuente: Procesamiento propio en base a datos proporcionados por el D.E.E .— C.E.I.P.
A24: Nota: Primaria Pública no incluye la matrícula correspondiente a JICI

Sheet II-2.2.9
A1: CONSEJO DE EDUCACIÓN PRIMARIA | M1: ALUMNOS MATRICULADOS
A3: Cuadro Nº II-2.2.9
A4: ALUMNOS MATRICULADOS EN EDUCACIÓN PRIMARIA COMÚN PÚBLICA POR GRADO Y SEXO SEGÚN EDAD. AÑO 2016.
A5: EDAD | E5: GRADO
C6: TOTAL SEXO | E6: Primero | G6: Segundo | I6: Tercero | K6: Cuarto | M6: Quinto | O6: Sexto
E7: SEXO
B8: TOTAL | C8: M | D8: F | E8: M | F8: F | G8: M | H8: F | I8: M | J8: F | K8: M | L8: F | M8: M | N8: F | O8: M | P8: F
A9: TOTAL | B9: =+C9+D9 -> 246239 | C9: =SUM(E9+G9+I9+K9+M9+O9) -> 127012 | D9: =+F9+H9+J9+L9+N9+P9 -> 119227 | E9: =SUM(E11:E20) -> 22572 | F9: =SUM(F11:F20) -> 20405 | G9: 20969 | H9: 19600 | I9: 20477 | J9: 19719 | K9: 20679 | L9: 19703 | M9: 20517 | N9: 19432 | O9: 21798 | P9: 20368
A11: 5 años | B11: =+C11+D11 -> 3023 | C11: =SUM(E11+G11+I11+K11+M11+O11) -> 1489 | D11: =+F11+H11+J11+L11+N11+P11 -> 1534 | E11: 1484 | F11: 1526 | G11: 0 | H11: 4 | I11: 0 | J11: 0 | K11: 2 | L11: 0 | M11: 3 | N11: 2 | O11: 0 | P11: 2
A12: 6 años | B12: =+C12+D12 -> 37391 | C12: =SUM(E12+G12+I12+K12+M12+O12) -> 19149 | D12: =+F12+H12+J12+L12+N12+P12 -> 18242 | E12: 17931 | F12: 16987 | G12: 1214 | H12: 1254 | I12: 3 | J12: 0 | K12: 0 | L12: 0 | M12: 0 | N12: 0 | O12: 1 | P12: 1
A13: 7 años | B13: =+C13+D13 -> 37851 | C13: =SUM(E13+G13+I13+K13+M13+O13) -> 19331 | D13: =+F13+H13+J13+L13+N13+P13 -> 18520 | E13: 2981 | F13: 1763 | G13: 15245 | H13: 15495 | I13: 1104 | J13: 1258 | K13: 1 | L13: 2 | M13: 0 | N13: 1 | O13: 0 | P13: 1
A14: 8 años | B14: 38064 | C14: 19361 | D14: 18703 | E14: 162 | F14: 109 | G14: 3930 | H14: 2469 | I14: 14220 | J14: 14939 | K14: 1048 | L14: 1184 | M14: 0 | N14: 0 | O14: 1 | P14: 2
A15: 9 años | B15: =+C15+D15 -> 39201 | C15: =SUM(E15+G15+I15+M15+K15+O15) -> 19918 | D15: =+F15+H15+J15+N15+L15+P15 -> 19283 | E15: 7 | F15: 10 | G15: 517 | H15: 335 | I15: 4203 | J15: 2945 | K15: 14134 | L15: 14881 | M15: 1055 | N15: 1112 | O15: 2 | P15: 0
A16: 10 años | B16: 38606 | C16: =SUM(E16+G16+I16+M16+K16+O16) -> 19628 | D16: =+F16+H16+J16+N16+L16+P16 -> 18978 | E16: 4 | F16: 3 | G16: 47 | H16: 34 | I16: 838 | J16: 518 | K16: 4178 | L16: 2931 | M16: 13510 | N16: 14299 | O16: 1051 | P16: 1193
A17: 11 años | B17: 39052 | C17: 20227 | D17: =+F17+H17+J17+N17+L17+P17 -> 18825 | E17: 1 | F17: 1 | G17: 9 | H17: 5 | I17: 92 | J17: 44 | K17: 1145 | L17: 625 | M17: 4511 | N17: 3193 | O17: 14469 | P17: 14957
A18: 12 años | B18: 9947 | C18: 5979 | D18: 3968 | E18: 2 | F18: 3 | G18: 3 | H18: 1 | I18: 13 | J18: 9 | K18: 143 | L18: 65 | M18: 1247 | N18: 703 | O18: 4571 | P18: 3187
A19: 13 años | B19: 2626 | C19: 1625 | D19: 1001 | E19: 0 | F19: 0 | G19: 2 | H19: 0 | I19: 3 | J19: 5 | K19: 20 | L19: 10 | M19: 163 | N19: 110 | O19: 1437 | P19: 876
A20: 14 años y más | B20: 478 | C20: 305 | D20: 173 | E20: 0 | F20: 3 | G20: 2 | H20: 3 | I20: 1 | J20: 1 | K20: 8 | L20: 5 | M20: 28 | N20: 12 | O20: 266 | P20: 149
A21: Fuente: Procesamiento propio en base a datos proporcionados por el D.E.E. — C.E.I.P.
A22: Nota: Primaria Pública no incluye la matrícula correspondiente a JICI

Sheet II-2.2.10
A1: CONSEJO DE EDUCACIÓN PRIMARIA | M1: ALUMNOS MATRICULADOS
A3: Cuadro Nº II-2.2.10
A4: ALUMNOS MATRICULADOS EN EDUCACIÓN PRIMARIA COMÚN PRIVADA POR GRADO Y SEXO SEGÚN EDAD. AÑO 2016.
A5: EDAD | E5: GRADO
B6: TOTAL SEXO | E6: Primero | G6: Segundo | I6: Tercero | K6: Cuarto | M6: Quinto | O6: Sexto
E7: SEXO
B8: TOTAL | C8: M | D8: F | E8: M | F8: F | G8: M | H8: F | I8: M | J8: F | K8: M | L8: F | M8: M | N8: F | O8: M | P8: F
A9: TOTAL | B9: =C9+D9 -> 53526 | C9: =SUM(C10:C18) -> 27145 | D9: =SUM(D10:D18) -> 26381 | E9: 4771 | F9: 4563 | G9: 4682 | H9: 4425 | I9: 4403 | J9: 4304 | K9: 4535 | L9: 4426 | M9: 4398 | N9: 4233 | O9: 4356 | P9: 4430
A10: 6 años | B10: =C10+D10 -> 8113 | C10: =E10+G10+I10+K10+M10+O10 -> 4113 | D10: =F10+H10+J10+L10+N10+P10 -> 4000 | E10: 4113 | F10: 4000 | G10: 0 | H10: 0 | I10: 0 | J10: 0 | K10: 0 | L10: 0 | M10: 0 | N10: 0 | O10: 0 | P10: 0
A11: 7 años | B11: 8966 | C11: =E11+G11+I11+K11+M11+O11 -> 4593 | D11: 4373 | E11: 638 | F11: 546 | G11: 3955 | H11: 3827 | I11: 0 | J11: 0 | K11: 0 | L11: 0 | M11: 0 | N11: 0 | O11: 0 | P11: 0
A12: 8 años | B12: 8712 | C12: 4422 | D12: 4290 | E12: 20 | F12: 15 | G12: 694 | H12: 577 | I12: 3708 | J12: 3698 | K12: 0 | L12: 0 | M12: 0 | N12: 0 | O12: 0 | P12: 0
A13: 9 años | B13: 8789 | C13: 4456 | D13: 4333 | E13: 0 | F13: 2 | G13: 28 | H13: 17 | I13: 656 | J13: 584 | K13: 3772 | L13: 3730 | M13: 0 | N13: 0 | O13: 0 | P13: 0
A14: 10 años | B14: 8474 | C14: 4268 | D14: 4206 | E14: 0 | F14: 0 | G14: 4 | H14: 2 | I14: 37 | J14: 19 | K14: 707 | L14: 668 | M14: 3520 | N14: 3517 | O14: 0 | P14: 0
A15: 11 años | B15: 8818 | C15: 4421 | D15: 4397 | E15: 0 | F15: 0 | G15: 1 | H15: 2 | I15: 1 | J15: 0 | K15: 46 | L15: 19 | M15: 806 | N15: 682 | O15: 3567 | P15: 3694
A16: 12 años | B16: 1528 | C16: 799 | D16: 729 | E16: 0 | F16: 0 | G16: 0 | H16: 0 | I16: 1 | J16: 2 | K16: 10 | L16: 8 | M16: 63 | N16: 28 | O16: 725 | P16: 691
A17: 13 años | B17: 97 | C17: 57 | D17: 40 | E17: 0 | F17: 0 | G17: 0 | H17: 0 | I17: 0 | J17: 1 | K17: 0 | L17: 0 | M17: 6 | N17: 4 | O17: 51 | P17: 35
A18: 14 años y más | B18: 29 | C18: 16 | D18: 13 | E18: 0 | F18: 0 | G18: 0 | H18: 0 | I18: 0 | J18: 0 | K18: 0 | L18: 1 | M18: 3 | N18: 2 | O18: 13 | P18: 10
A19: Fuente: Procesamiento propio en base a datos proporcionados por el D.E.E. — C.E.I.P.

Sheet II-2.2.11
A1: CONSEJO DE EDUCACIÓN PRIMARIA | M1: ALUMNOS MATRICULADOS
A3: Cuadro Nº II-2.2.11
A5: ALUMNOS MATRICULADOS EN EDUCACIÓN PRIMARIA COMÚN POR GRADO Y FORMA DE ADMINISTRACIÓN SEGÚN DEPARTAMENTO. AÑO 2016.
A6: DEPARTAMENTO | B6: GRADO
B7: TOTAL | D7: Primero | F7: Segundo | H7: Tercero | J7: Cuarto | L7: Quinto | N7: Sexto
D8: FORMA DE ADMINISTRACIÓN
B9: Pública | C9: Privada | D9: Pública | E9: Privada | F9: Pública | G9: Privada | H9: Pública | I9: Privada | J9: Pública | K9: Privada | L9: Pública | M9: Privada | N9: Pública | O9: Privada
A11: TOTAL | B11: =SUM(B12:B13) -> 246239 | C11: 52880 | D11: 42977 | E11: 9334 | F11: 40569 | G11: 9107 | H11: 40196 | I11: 8707 | J11: 40382 | K11: 8315 | L11: 39949 | M11: 8631 | N11: 42166 | O11: 8786
A12: MONTEVIDEO | B12: =+D12+F12+H12+J12+L12+N12 -> 76445 | C12: =+E12+G12+I12+K12+M12+O12 -> 32555 | D12: 14231 | E12: 5667 | F12: 12729 | G12: 5554 | H12: 12655 | I12: 5287 | J12: 12533 | K12: 5450 | L12: 12067 | M12: 5270 | N12: 12230 | O12: 5327
A13: RESTO DEL PAÍS | B13: =SUM(B14:B31) -> 169794 | C13: =SUM(C14:C31) -> 20325 | D13: 28746 | E13: 3667 | F13: 27840 | G13: 3553 | H13: 27541 | I13: 3420 | J13: 27849 | K13: 2865 | L13: 27882 | M13: 3361 | N13: 29936 | O13: 3459
A14: Artigas | B14: =+D14+F14+H14+J14+L14+N14 -> 7358 | C14: =+E14+G14+I14+K14+M14+O14 -> 187 | D14: 1256 | E14: 29 | F14: 1246 | G14: 36 | H14: 1239 | I14: 34 | J14: 1122 | K14: 32 | L14: 1211 | M14: 25 | N14: 1284 | O14: 31
A15: Canelones | B15: =+D15+F15+H15+J15+L15+N15 -> 41897 | C15: =+E15+G15+I15+K15+M15+O15 -> 7704 | D15: 7205 | E15: 1352 | F15: 6812 | G15: 1333 | H15: 6883 | I15: 1285 | J15: 6954 | K15: 1265 | L15: 6895 | M15: 1237 | N15: 7148 | O15: 1232
A16: Cerro Largo | B16: =+D16+F16+H16+J16+L16+N16 -> 7830 | C16: 626 | D16: 1271 | E16: 107 | F16: 1268 | G16: 105 | H16: 1253 | I16: 83 | J16: 1274 | K16: 121 | L16: 1309 | M16: 99 | N16: 1455 | O16: 111
A17: Colonia | B17: =+D17+F17+H17+J17+L17+N17 -> 10243 | C17: 779 | D17: 1753 | E17: 133 | F17: 1718 | G17: 144 | H17: 1623 | I17: 118 | J17: 1669 | K17: 132 | L17: 1693 | M17: 140 | N17: 1787 | O17: 112
A18: Durazno | B18: 4803 | C18: 654 | D18: 804 | E18: 115 | F18: 747 | G18: 97 | H18: 771 | I18: 105 | J18: 764 | K18: 124 | L18: 793 | M18: 90 | N18: 924 | O18: 123
A19: Flores | B19: 1915 | C19: 263 | D19: 318 | E19: 41 | F19: 301 | G19: 41 | H19: 313 | I19: 38 | J19: 300 | K19: 40 | L19: 312 | M19: 58 | N19: 371 | O19: 45
A20: Florida | B20: 5591 | C20: 273 | D20: 917 | E20: 63 | F20: 888 | G20: 47 | H20: 897 | I20: 31 | J20: 937 | K20: 44 | L20: 920 | M20: 36 | N20: 1032 | O20: 52
A21: Lavalleja | B21: 4274 | C21: 618 | D21: 692 | E21: 91 | F21: 644 | G21: 101 | H21: 681 | I21: 106 | J21: 752 | K21: 96 | L21: 741 | M21: 114 | N21: 764 | O21: 110
A22: Maldonado | B22: 12631 | C22: 3280 | D22: 2082 | E22: 640 | F22: 2088 | G22: 670 | H22: 2062 | I22: 644 | J22: 2091 | L22: 2071 | M22: 641 | N22: 2237 | O22: 685
A23: Paysandú | B23: 10403 | C23: 1177 | D23: 1677 | E23: 197 | F23: 1643 | G23: 207 | H23: 1711 | I23: 203 | J23: 1784 | K23: 194 | L23: 1727 | M23: 171 | N23: 1861 | O23: 205
A24: Río Negro | B24: 5275 | C24: 543 | D24: 976 | E24: 96 | F24: 885 | G24: 106 | H24: 815 | I24: 89 | J24: 894 | K24: 89 | L24: 808 | M24: 76 | N24: 897 | O24: 87
A25: Rivera | B25: 10125 | C25: 587 | D25: 1762 | E25: 115 | F25: 1747 | G25: 89 | H25: 1555 | I25: 99 | J25: 1636 | K25: 95 | L25: 1646 | M25: 96 | N25: 1779 | O25: 93
A26: Rocha | B26: 6278 | C26: 337 | D26: 1142 | E26: 65 | F26: 1033 | G26: 52 | H26: 1023 | I26: 47 | J26: 979 | K26: 48 | L26: 1000 | M26: 51 | N26: 1101 | O26: 74
A27: Salto | B27: 12229 | C27: 1207 | D27: 2067 | E27: 226 | F27: 2088 | G27: 207 | H27: 1994 | I27: 177 | J27: 2009 | K27: 182 | L27: 2004 | M27: 213 | N27: 2067 | O27: 202
A28: San José | B28: 9453 | C28: 738 | D28: 1613 | E28: 146 | F28: 1573 | G28: 117 | H28: 1587 | I28: 122 | J28: 1531 | K28: 137 | L28: 1553 | M28: 110 | N28: 1596 | O28: 106
A29: Soriano | B29: 7550 | C29: 454 | D29: 1221 | E29: 88 | F29: 1224 | G29: 72 | H29: 1263 | I29: 67 | J29: 1233 | K29: 87 | L29: 1231 | M29: 75 | N29: 1378 | O29: 65
A30: Tacuarembó | B30: 7852 | C30: 725 | D30: 1280 | E30: 130 | F30: 1278 | G30: 106 | H30: 1259 | I30: 148 | J30: 1246 | K30: 136 | L30: 1296 | M30: 101 | N30: 1493 | O30: 104
A31: Treinta y Tres | B31: 4087 | C31: 173 | D31: 710 | E31: 33 | F31: 657 | G31: 23 | H31: 612 | I31: 24 | J31: 674 | K31: 43 | L31: 672 | M31: 28 | N31: 762 | O31: 22
A32: Fuente: Procesamiento propio en base a datos proporcionados por el DEE — CEIP
A33: Nota: Primaria Pública no incluye la matrícula correspondiente a JICI

Sheet II-2.2.12
A1: CONSEJO DE EDUCACIÓN PRIMARIA | F1: RENDIMIENTO ESCOLAR
A3: Cuadro Nº II-2.2.12
A5: RENDIMIENTO ESCOLAR EN EDUCACIÓN PRIMARIA COMÚN PÚBLICA POR ÁREA DEMOGRÁFICA SEGÚN GRADO. AÑO 2016.
A6: GRADO | B6: RENDIMIENTO ESCOLAR
B7: PROMOVIDOS | E7: NO PROMOVIDOS
B8: TOTAL | C8: ÁREA DEMOGRÁFICA | E8: TOTAL | F8: ÁREA DEMOGRÁFICA
C9: Urbana | D9: Rural | F9: Urbana | G9: Rural
A11: TOTAL | B11: =+C11+D11 -> 234627 | C11: =SUM(C12:C17) -> 221099 | D11: =SUM(D12:D17) -> 13528 | E11: =+F11+G11 -> 11612 | F11: =SUM(F12:F17) -> 11146 | G11: =SUM(G12:G17) -> 466
A12: Primero | B12: =+C12+D12 -> 37766 | C12: 35695 | D12: 2071 | E12: =+F12+G12 -> 5211 | F12: 5034 | G12: 177
A13: Segundo | B13: 38158 | C13: 35978 | D13: 2180 | E13: 2411 | F13: 2305 | G13: 106
A14: Tercero | B14: 38491 | C14: 36321 | D14: 2170 | E14: 1705 | F14: 1649 | G14: 56
A15: Cuarto | B15: 39263 | C15: 36987 | D15: 2276 | E15: 1119 | F15: 1075 | G15: 44
A16: Quinto | B16: 39197 | C16: 36882 | D16: 2315 | E16: 752 | F16: 703 | G16: 49
A17: Sexto | B17: 41752 | C17: 39236 | D17: 2516 | E17: 414 | F17: 380 | G17: 34
A19: Fuente: Procesamiento propio en base a datos proporcionados por el D.E.E .— C.E.I.P.
A20: Notas: - No incluye datos correspondientes a JICI - No se presenta información para la Educación Primaria Privada porque no existen establecimientos privados en el área demográfica rural

Sheet II-2.2.13
A1: CONSEJO DE EDUCACIÓN PRIMARIA | F1: RENDIMIENTO ESCOLAR
A3: Cuadro Nº II-2.2.13
A5: RENDIMIENTO ESCOLAR EN EDUCACIÓN PRIMARIA COMÚN PÚBLICA POR ÁREA DEMOGRÁFICA SEGÚN DEPARTAMENTO. AÑO 2016.
A6: DEPARTAMENTO | B6: RENDIMIENTO ESCOLAR
B7: PROMOVIDOS | F7: NO PROMOVIDOS
B8: TOTAL | C8: ÁREA DEMOGRÁFICA | E8: TOTAL | F8: ÁREA DEMOGRÁFICA
C9: Urbana | D9: Rural | F9: Urbana | G9: Rural
A11: TOTAL | B11: =+C11+D11 -> 234627 | C11: =SUM(C12:C13) -> 221099 | D11: =SUM(D12:D13) -> 13528 | E11: =+F11+G11 -> 11612 | F11: =SUM(F12:F13) -> 11146 | G11: =SUM(G12:G13) -> 466
A12: MONTEVIDEO | B12: =+C12+D12 -> 70641 | C12: 70641 | D12: 0 | E12: =+F12+G12 -> 5804 | F12: 5804 | G12: 0
A13: RESTO DEL PAÍS | B13: =+C13+D13 -> 163986 | C13: =SUM(C14:C31) -> 150458 | D13: =SUM(D14:D31) -> 13528 | E13: =+F13+G13 -> 5808 | F13: =SUM(F14:F31) -> 5342 | G13: =SUM(G14:G31) -> 466
A14: Artigas | B14: =+C14+D14 -> 7320 | C14: 6753 | D14: 567 | E14: =+F14+G14 -> 38 | F14: 35 | G14: 3
A15: Canelones | B15: 39599 | C15: 37218 | D15: 2381 | E15: 2298 | F15: 2196 | G15: 102
A16: Cerro Largo | B16: 7598 | C16: 6832 | D16: 766 | E16: 232 | F16: 199 | G16: 33
A17: Colonia | B17: 9977 | C17: 9034 | D17: 943 | E17: 266 | F17: 247 | G17: 19
A18: Durazno | B18: 4770 | C18: 4363 | D18: 407 | E18: 33 | F18: 29 | G18: 4
A19: Flores | B19: 1901 | C19: 1709 | D19: 192 | E19: 14 | F19: 12 | G19: 2
A20: Florida | B20: 5423 | C20: 4641 | D20: 782 | E20: 168 | F20: 151 | G20: 17
A21: Lavalleja | B21: 4173 | C21: 3771 | D21: 402 | E21: 101 | F21: 92 | G21: 9
A22: Maldonado | B22: 12179 | C22: 11701 | D22: 478 | E22: 452 | F22: 433 | G22: 19
A23: Paysandú | B23: 10057 | C23: 9212 | D23: 845 | E23: 346 | F23: 305 | G23: 41
A24: Río Negro | B24: 5115 | C24: 4658 | D24: 457 | E24: 160 | F24: 148 | G24: 12
A25: Rivera | B25: 9913 | C25: 9058 | D25: 855 | E25: 212 | F25: 190 | G25: 22
A26: Rocha | B26: 6125 | C26: 5826 | D26: 299 | E26: 153 | F26: 145 | G26: 8
A27: Salto | B27: 11724 | C27: 10597 | D27: 1127 | E27: 505 | F27: 445 | G27: 60
A28: San José | B28: 9154 | C28: 8003 | D28: 1151 | E28: 299 | F28: 272 | G28: 27
A29: Soriano | B29: 7326 | C29: 6761 | D29: 565 | E29: 224 | F29: 196 | G29: 28
A30: Tacuarembó | B30: 7623 | C30: 6620 | D30: 1003 | E30: 229 | F30: 179 | G30: 50
A31: Treinta y Tres | B31: 4009 | C31: 3701 | D31: 308 | E31: 78 | F31: 68 | G31: 10
A32: Fuente: Procesamiento propio en base a datos proporcionados por el D.E.E .— C.E.I.P.
A33: Notas: No incluye datos correspondientes a JICI
A34: No se presenta información para la Educación Primaria Privada porque no existen establecimientos privados en el área demográfica rural

Sheet II-2.2.14
A1: CONSEJO DE EDUCACIÓN PRIMARIA | F1: RENDIMIENTOS ESCOLAR
A3: Cuadro Nº II-2.2.14
A5: RENDIMIENTO ESCOLAR EN EDUCACIÓN PRIMARIA COMÚN PÚBLICA POR SEXO SEGÚN DEPARTAMENTO. AÑO 2016.
A6: DEPARTAMENTO | B6: RENDIMIENTO ESCOLAR
B7: PROMOVIDOS | E7: NO PROMOVIDOS
B8: TOTAL | C8: SEXO | E8: TOTAL | F8: SEXO
C9: M | D9: F | F9: M | G9: F
A10: TOTAL | B10: =+C10+D10 -> 234627 | C10: =SUM(C11:C12) -> 119914 | D10: =SUM(D11:D12) -> 114713 | E10: =+F10+G10 -> 11612 | F10: =SUM(F11:F12) -> 7098 | G10: =SUM(G11:G12) -> 4514
A11: MONTEVIDEO | B11: =+C11+D11 -> 70641 | C11: 36214 | D11: 34427 | E11: =+F11+G11 -> 5804 | F11: 3481 | G11: 2323
A12: RESTO DEL PAÍS | B12: 163986 | C12: =SUM(C13:C30) -> 83700 | D12: =SUM(D13:D30) -> 80286 | E12: 5808 | F12: =SUM(F13:F30) -> 3617 | G12: =SUM(G13:G30) -> 2191
A13: Artigas | B13: 7320 | C13: 3818 | D13: 3502 | E13: 38 | F13: 25 | G13: 13
A14: Canelones | B14: 39599 | C14: 20177 | D14: 19422 | E14: 2298 | F14: 1428 | G14: 870
A15: Cerro Largo | B15: 7598 | C15: 3846 | D15: 3752 | E15: 232 | F15: 142 | G15: 90
A16: Colonia | B16: 9977 | C16: 5069 | D16: 4908 | E16: 266 | F16: 163 | G16: 103
A17: Durazno | B17: 4770 | C17: 2416 | D17: 2354 | E17: 33 | F17: 22 | G17: 11
A18: Flores | B18: 1901 | C18: 932 | D18: 969 | E18: 14 | F18: 8 | G18: 6
A19: Florida | B19: 5423 | C19: 2769 | D19: 2654 | E19: 168 | F19: 102 | G19: 66
A20: Lavalleja | B20: 4173 | C20: 2101 | D20: 2072 | E20: 101 | F20: 67 | G20: 34
A21: Maldonado | B21: 12179 | C21: 6132 | D21: 6047 | E21: 452 | F21: 275 | G21: 177
A22: Paysandú | B22: 10057 | C22: 5133 | D22: 4924 | E22: 346 | F22: 214 | G22: 132
A23: Río Negro | B23: 5115 | C23: 2585 | D23: 2530 | E23: 160 | F23: 105 | G23: 55
A24: Rivera | B24: 9913 | C24: 5118 | D24: 4795 | E24: 212 | F24: 137 | G24: 75
A25: Rocha | B25: 6125 | C25: 3120 | D25: 3005 | E25: 153 | F25: 98 | G25: 55
A26: Salto | B26: 11724 | C26: 6009 | D26: 5715 | E26: 505 | F26: 320 | G26: 185
A27: San José | B27: 9154 | C27: 4697 | D27: 4457 | E27: 299 | F27: 179 | G27: 120
A28: Soriano | B28: 7326 | C28: 3768 | D28: 3558 | E28: 224 | F28: 145 | G28: 79
A29: Tacuarembó | B29: 7623 | C29: 3914 | D29: 3709 | E29: 229 | F29: 135 | G29: 94
A30: Treinta y Tres | B30: 4009 | C30: 2096 | D30: 1913 | E30: 78 | F30: 52 | G30: 26
A31: Fuente: Procesamiento propio en base a datos proporcionados por el D.E.E. — C.E.I.P.
A32: Nota: No incluye datos correspondientes a JICI .

Sheet II-2.2.15
A1: CONSEJO DE EDUCACIÓN PRIMARIA | F1: RENDIMIENTO ESCOLAR
A3: Cuadro Nº II-2.2.15
A5: RENDIMIENTO ESCOLAR EN EDUCACIÓN PRIMARIA COMÚN PRIVADA POR SEXO SEGÚN DEPARTAMENTO. AÑO 2016.
A6: DEPARTAMENTO | B6: RENDIMIENTO ESCOLAR
B7: PROMOVIDOS | E7: NO PROMOVIDOS
B8: TOTAL | C8: SEXO | E8: TOTAL | F8: SEXO
C9: M | D9: F | F9: M | G9: F
A10: TOTAL | B10: =+C10+D10 -> 53006 | C10: =SUM(C11:C12) -> 26810 | D10: =SUM(D11:D12) -> 26196 | E10: =+F10+G10 -> 520 | F10: =SUM(F11:F12) -> 336 | G10: =SUM(G11:G12) -> 184
A11: MONTEVIDEO | B11: =+C11+D11 -> 32219 | C11: 16315 | D11: 15904 | E11: =+F11+G11 -> 336 | F11: 215 | G11: 121
A12: RESTO DEL PAÍS | B12: 20787 | C12: =SUM(C13:C30) -> 10495 | D12: =SUM(D13:D30) -> 10292 | E12: 184 | F12: =SUM(F13:F30) -> 121 | G12: =SUM(G13:G30) -> 63
A13: Artigas | B13: 186 | C13: 109 | D13: 77 | E13: 1 | F13: 0 | G13: 1
A14: Canelones | B14: 7615 | C14: 3865 | D14: 3750 | E14: 89 | F14: 62 | G14: 27
A15: Cerro Largo | B15: 623 | C15: 298 | D15: 325 | E15: 3 | F15: 3 | G15: 0
A16: Colonia | B16: 770 | C16: 389 | D16: 381 | E16: 9 | F16: 4 | G16: 5
A17: Durazno | B17: 649 | C17: 315 | D17: 334 | E17: 5 | F17: 4 | G17: 1
A18: Flores | B18: 258 | C18: 120 | D18: 138 | E18: 5 | F18: 4 | G18: 1
A19: Florida | B19: 270 | C19: 138 | D19: 132 | E19: 3 | F19: 2 | G19: 1
A20: Lavalleja | B20: 615 | C20: 304 | D20: 311 | E20: 3 | F20: 3 | G20: 0
A21: Maldonado | B21: 3899 | C21: 1990 | D21: 1909 | E21: 27 | F21: 14 | G21: 13
A22: Paysandú | B22: 1168 | C22: 583 | D22: 585 | E22: 9 | F22: 6 | G22: 3
A23: Río Negro | B23: 537 | C23: 278 | D23: 259 | E23: 6 | F23: 4 | G23: 2
A24: Rivera | B24: 583 | C24: 291 | D24: 292 | E24: 4 | F24: 3 | G24: 1
A25: Rocha | B25: 336 | C25: 171 | D25: 165 | E25: 1 | F25: 0 | G25: 1
A26: Salto | B26: 1199 | C26: 597 | D26: 602 | E26: 8 | F26: 5 | G26: 3
A27: San José | B27: 728 | C27: 346 | D27: 382 | E27: 10 | F27: 6 | G27: 4
A28: Soriano | B28: 454 | C28: 245 | D28: 209 | E28: 0 | F28: 0 | G28: 0
A29: Tacuarembó | B29: 724 | C29: 363 | D29: 361 | E29: 1 | F29: 1 | G29: 0
A30: Treinta y Tres | B30: 173 | C30: 93 | D30: 80 | E30: 0 | F30: 0 | G30: 0
A31: Fuente: Procesamiento propio en base a datos proporcionados por el D.E.E. — C.E.I.P.

Sheet II-2.2.16
A1: CONSEJO DE EDUCACIÓN PRIMARIA | E1: RENDIMIENTO ESCOLAR
A3: Cuadro Nº II-2.2.16
A5: ESTUDIANTES MATRICULADOS EGRESADOS DE EDUCACIÓN PRIMARIA COMÚN PÚBLICA POR ÁREA DEMOGRÁFICA SEGÚN DEPARTAMENTO. AÑO 2016.
A6: DEPARTAMENTO | C6: ÁREA DEMOGRÁFICA
B7: TOTAL
C8: Urbana | D8: Rural
A10: TOTAL | B10: =+C10+D10 -> 41752 | C10: =SUM(C11:C12) -> 39236 | D10: =SUM(D11:D12) -> 2516
A11: MONTEVIDEO | B11: =C11+D11 -> 12042 | C11: 12042 | D11: 0
A12: RESTO DEL PAÍS | B12: =+C12+D12 -> 29710 | C12: =SUM(C13:C30) -> 27194 | D12: =SUM(D13:D30) -> 2516
A13: Artigas | B13: =+C13+D13 -> 1281 | C13: 1160 | D13: 121
A14: Canelones | B14: 7068 | C14: 6667 | D14: 401
A15: Cerro Largo | B15: 1447 | C15: 1289 | D15: 158
A16: Colonia | B16: 1786 | C16: 1610 | D16: 176
A17: Durazno | B17: 920 | C17: 848 | D17: 72
A18: Flores | B18: 369 | C18: 326 | D18: 43
A19: Florida | B19: 1024 | C19: 860 | D19: 164
A20: Lavalleja | B20: 757 | C20: 696 | D20: 61
A21: Maldonado | B21: 2219 | C21: 2134 | D21: 85
A22: Paysandú | B22: 1843 | C22: 1685 | D22: 158
A23: Río Negro | B23: 895 | C23: 819 | D23: 76
A24: Rivera | B24: 1764 | C24: 1591 | D24: 173
A25: Rocha | B25: 1100 | C25: 1047 | D25: 53
A26: Salto | B26: 2046 | C26: 1833 | D26: 213
A27: San José | B27: 1586 | C27: 1399 | D27: 187
A28: Soriano | B28: 1369 | C28: 1265 | D28: 104
A29: Tacuarembó | B29: 1477 | C29: 1265 | D29: 212
A30: Treinta y Tres | B30: 759 | C30: 700 | D30: 59
A31: Fuente: Procesamiento propio en base a datos proporcionados por el D.E.E .— C.E.I.P.
A32: Nota: No se presenta información para Montevideo Rural por que no existen establecimientos en el área demográfica rural.

Sheet II-2.2.17
A1: CONSEJO DE EDUCACIÓN PRIMARIA | G1: RENDIMIENTO ESCOLAR
A3: Cuadro Nº II-2.2.17
A5: ESTUDIANTES MATRICULADOS EGRESADOS DE EDUCACIÓN PRIMARIA COMÚN POR FORMA DE ADMINISTRACIÓN SEGÚN DEPARTAMENTO. AÑO 2016.
A6: DEPARTAMENTO | B6: TOTAL | C6: PÚBLICA | G6: PRIVADA
C7: TOTAL | D7: SEXO | G7: TOTAL | H7: SEXO
D8: M | E8: M | F8: F | H8: M | I8: F
A9: TOTAL | B9: =+C9+G9 -> 50520 | C9: =+E9+F9 -> 41752 | E9: =SUM(E10:E11) -> 21541 | F9: =SUM(F10:F11) -> 20211 | G9: =+H9+I9 -> 8768 | H9: =SUM(H10,H11) -> 4346 | I9: =SUM(I10,I11) -> 4422
A10: MONTEVIDEO | B10: =+C10+G10 -> 17358 | C10: =+E10+F10 -> 12042 | D10: 6560 | E10: 6216 | F10: 5826 | G10: =+H10+I10 -> 5316 | H10: 2620 | I10: 2696
A11: RESTO DEL PAÍS | B11: =+C11+G11 -> 33162 | C11: 29710 | E11: =SUM(E12:E29) -> 15325 | F11: =SUM(F12:F29) -> 14385 | G11: 3452 | H11: =SUM(H12:H29) -> 1726 | I11: =SUM(I12:I29) -> 1726
A12: Artigas | B12: =+C12+G12 -> 1312 | C12: 1281 | D12: 765 | E12: 672 | F12: 609 | G12: 31 | H12: 17 | I12: 14
A13: Canelones | B13: 8296 | C13: 7068 | D13: 3826 | E13: 3667 | F13: 3401 | G13: 1228 | H13: 624 | I13: 604
A14: Cerro Largo | B14: 1558 | C14: 1447 | D14: 802 | E14: 703 | F14: 744 | G14: 111 | H14: 53 | I14: 58
A15: Colonia | B15: 1898 | C15: 1786 | D15: 891 | E15: 900 | F15: 886 | G15: 112 | H15: 48 | I15: 64
A16: Durazno | B16: 1043 | C16: 920 | D16: 502 | E16: 463 | F16: 457 | G16: 123 | H16: 60 | I16: 63
A17: Flores | B17: 412 | C17: 369 | D17: 192 | E17: 176 | F17: 193 | G17: 43 | H17: 19 | I17: 24
A18: Florida | B18: 1076 | C18: 1024 | D18: 502 | E18: 517 | F18: 507 | G18: 52 | H18: 26 | I18: 26
A19: Lavalleja | B19: 867 | C19: 757 | D19: 426 | E19: 380 | F19: 377 | G19: 110 | H19: 56 | I19: 54
A20: Maldonado | B20: 2904 | C20: 2219 | D20: 1183 | E20: 1152 | F20: 1067 | G20: 685 | H20: 344 | I20: 341
A21: Paysandú | B21: 2048 | C21: 1843 | D21: 976 | E21: 963 | F21: 880 | G21: 205 | H21: 115 | I21: 90
A22: Río Negro | B22: 982 | C22: 895 | D22: 501 | E22: 446 | F22: 449 | G22: 87 | H22: 38 | I22: 49
A23: Rivera | B23: 1857 | C23: 1764 | D23: 995 | E23: 923 | F23: 841 | G23: 93 | H23: 49 | I23: 44
A24: Rocha | B24: 1174 | C24: 1100 | D24: 603 | E24: 573 | F24: 527 | G24: 74 | H24: 38 | I24: 36
A25: Salto | B25: 2248 | C25: 2046 | D25: 1191 | E25: 1084 | F25: 962 | G25: 202 | H25: 97 | I25: 105
A26: San José | B26: 1691 | C26: 1586 | D26: 824 | E26: 807 | F26: 779 | G26: 105 | H26: 48 | I26: 57
A27: Soriano | B27: 1434 | C27: 1369 | D27: 717 | E27: 705 | F27: 664 | G27: 65 | H27: 32 | I27: 33
A28: Tacuarembó | B28: 1581 | C28: 1477 | D28: 845 | E28: 809 | F28: 668 | G28: 104 | H28: 50 | I28: 54
A29: Treinta y Tres | B29: 781 | C29: 759 | D29: 443 | E29: 385 | F29: 374 | G29: 22 | H29: 12 | I29: 10
A30: Fuente: Procesamiento propio en base a datos proporcionados por el D.E.E. — C.E.I.P.

Sheet II-2.2.18
A1: CONSEJO DE EDUCACIÓN PRIMARIA | D1: RENDIMIENTO ESCOLAR
A3: Cuadro Nº II-2.2.18
A5: ASISTENCIA INSUFICIENTE Y ABANDONO INTERMITENTE DE 1º GRADO Y 1º A 6º GRADO EN EDUCACIÓN COMÚN PÚBLICA SEGÚN DEPARTAMENTO. AÑO 2016.
A6: DEPARTAMENTO | B6: ASISTENCIA INSUFICIENTE | D6: ABANDONO INTERMITENTE
B7: Sólo 1.er año | C7: 1.º a 6.º años | D7: Sólo 1.er año | E7: 1.º a 6.º años
A8: TOTAL | B8: =SUM(B9:B10) -> 4877 | C8: =SUM(C9:C10) -> 18894 | D8: =SUM(D9:D10) -> 288 | E8: =SUM(E9:E10) -> 1210
A9: MONTEVIDEO | B9: 2520 | C9: 9416 | D9: 172 | E9: 669
A10: RESTO DEL PAÍS | B10: =SUM(B11:B28) -> 2357 | C10: =SUM(C11:C28) -> 9478 | D10: =SUM(D11:D28) -> 116 | E10: =SUM(E11:E28) -> 541
A11: Artigas | B11: 129 | C11: 572 | D11: 3 | E11: 17
A12: Canelones | B12: 788 | C12: 3081 | D12: 42 | E12: 186
A13: Cerro Largo | B13: 85 | C13: 367 | D13: 0 | E13: 15
A14: Colonia | B14: 74 | C14: 269 | D14: 4 | E14: 14
A15: Durazno | B15: 84 | C15: 369 | D15: 3 | E15: 16
A16: Flores | B16: 20 | C16: 72 | D16: 2 | E16: 7
A17: Florida | B17: 39 | C17: 205 | D17: 3 | E17: 12
A18: Lavalleja | B18: 37 | C18: 197 | D18: 1 | E18: 8
A19: Maldonado | B19: 222 | C19: 862 | D19: 9 | E19: 43
A20: Paysandú | B20: 120 | C20: 420 | D20: 8 | E20: 21
A21: Río Negro | B21: 73 | C21: 274 | D21: 1 | E21: 12
A22: Rivera | B22: 102 | C22: 489 | D22: 6 | E22: 36
A23: Rocha | B23: 93 | C23: 298 | D23: 12 | E23: 23
A24: Salto | B24: 180 | C24: 729 | D24: 6 | E24: 55
A25: San José | B25: 138 | C25: 551 | D25: 6 | E25: 30
A26: Soriano | B26: 86 | C26: 382 | D26: 4 | E26: 17
A27: Tacuarembó | B27: 54 | C27: 207 | D27: 5 | E27: 15
A28: Treinta y Tres | B28: 33 | C28: 134 | D28: 1 | E28: 14
A29: Fuente: Procesamiento propio en base a datos proporcionados por el D.E.E. — C.E.I.P.
A30: Nota: No incluye datos correspondientes a JICI .

Sheet II-2.3.1
A1: CONSEJO DE EDUCACIÓN PRIMARIA | G1: PERSONAL DOCENTE
A3: Cuadro Nº II-2.3.1
A5: PERSONAL DOCENTE DE EDUCACIÓN PRIMARIA PÚBLICA POR TIPO DE DESEMPEÑO DOCENTE SEGÚN DEPARTAMENTO. AÑO 2016.
A6: DEPARTAMENTO | C6: TIPO DE DESEMPEÑO DOCENTE
B7: TOTAL | C7: Inspección | D7: Educación Común | E7: Educación en Colonias | F7: Educación Especial | G7: Servicios Docentes Especiales | H7: Profesores Especiales | I7: Coordinación Apoyo
A9: TOTAL | B9: =SUM(B11:B12) -> 19799 | C9: 281 | D9: 15179 | E9: 39 | F9: 983 | G9: 208 | H9: 3016 | I9: 93
A11: MONTEVIDEO | B11: =SUM(C11:I11) -> 5776 | C11: 102 | D11: 4150 | E11: 14 | F11: 400 | G11: 159 | H11: 937 | I11: 14
A12: RESTO DEL PAÍS | B12: =SUM(B14:B31) -> 14023 | C12: 179 | D12: 11029 | E12: 25 | F12: 583 | G12: =SUM(G14:G31) -> 49 | H12: 2079 | I12: 79
A14: Artigas | B14: =SUM(C14:I14) -> 675 | C14: 7 | D14: 515 | E14: 0 | F14: 24 | G14: 0 | H14: 126 | I14: 3
A15: Canelones | B15: 2828 | C15: 33 | D15: 2294 | E15: 0 | F15: 115 | G15: 12 | H15: 362 | I15: 12
A16: Cerro Largo | B16: 736 | C16: 10 | D16: 565 | E16: 0 | F16: 34 | G16: 4 | H16: 120 | I16: 3
A17: Colonia | B17: 836 | C17: 11 | D17: 662 | E17: 0 | F17: 39 | G17: 3 | H17: 114 | I17: 7
A18: Durazno | B18: 467 | C18: 8 | D18: 371 | E18: 0 | F18: 21 | G18: 0 | H18: 63 | I18: 4
A19: Flores | B19: 216 | C19: 4 | D19: 159 | E19: 0 | F19: 9 | G19: 0 | H19: 42 | I19: 2
A20: Florida | B20: 542 | C20: 7 | D20: 408 | E20: 0 | F20: 26 | G20: 4 | H20: 92 | I20: 5
A21: Lavalleja | B21: 430 | C21: 6 | D21: 332 | E21: 0 | F21: 21 | G21: 4 | H21: 64 | I21: 3
A22: Maldonado | B22: 870 | C22: 11 | D22: 671 | E22: 15 | F22: 41 | G22: 7 | H22: 121 | I22: 4
A23: Paysandú | B23: 870 | C23: 10 | D23: 703 | E23: 0 | F23: 38 | G23: 5 | H23: 110 | I23: 4
A24: Río Negro | B24: 457 | C24: 6 | D24: 361 | E24: 0 | F24: 21 | G24: 1 | H24: 65 | I24: 3
A25: Rivera | B25: 895 | C25: 11 | D25: 674 | E25: 0 | F25: 30 | G25: 1 | H25: 174 | I25: 5
A26: Rocha | B26: 554 | C26: 8 | D26: 418 | E26: 0 | F26: 30 | G26: 0 | H26: 94 | I26: 4
A27: Salto | B27: 958 | C27: 13 | D27: 750 | E27: 9 | F27: 38 | G27: 1 | H27: 143 | I27: 4
A28: San José | B28: 773 | C28: 8 | D28: 632 | E28: 0 | F28: 30 | G28: 1 | H28: 98 | I28: 4
A29: Soriano | B29: 662 | C29: 9 | D29: 529 | E29: 0 | F29: 28 | G29: 2 | H29: 90 | I29: 4
A30: Tacuarembó | B30: 827 | C30: 11 | D30: 656 | E30: 1 | F30: 23 | G30: 4 | H30: 128 | I30: 4
A31: Treinta y Tres | B31: 427 | C31: 6 | D31: 329 | E31: 0 | F31: 15 | G31: 0 | H31: 73 | I31: 4
A32: Fuente: DEE — CEIP Listado de cargos de la División Hacienda a Julio 2016
A74: =SUM(A76:A77) -> 147
A76: 92
A77: =SUM(A79:A96) -> 55
A79: 0
A80: 14
A81: 4
A82: 3
A83: 0
A84: 0
A85: 5
A86: 4
A87: 7
A88: 5
A89: 0
A90: 1
A91: 3
A92: 2
A93: 0
A94: 2
A95: 5
A96: 0

Sheet II-2.3.2
A1: CONSEJO DE EDUCACIÓN PRIMARIA | J1: PERSONAL DOCENTE
A3: Cuadro Nº II-2.3.2
A5: PERSONAL DOCENTE DE EDUCACIÓN PRIMARIA PRIVADA POR TIPO DE ESTABLECIMIENTO Y TIPO DE DESEMPEÑO DOCENTE SEGÚN DEPARTAMENTO. AÑO 2016.
A6: DEPARTAMENTO | C6: TOTAL | D6: MAESTROS | E6: PROFESORES | F6: ESTABLECIMIENTOS
F7: HABILITADOS | I7: AUTORIZADOS
F8: Total | G8: Maestros | H8: Profesores | I8: Total | J8: Maestros | K8: Profesores
A10: TOTAL | C10: =+D10+E10 -> 8033 | D10: =+G10+J10 -> 3585 | E10: =+H10+K10 -> 4448 | F10: =+G10+H10 -> 7579 | G10: =SUM(G11:G12) -> 3402 | H10: =SUM(H11:H12) -> 4177 | I10: =+J10+K10 -> 454 | J10: =SUM(J11:J12) -> 183 | K10: =SUM(K11:K12) -> 271
A11: MONTEVIDEO | C11: =+D11+E11 -> 4721 | D11: =G11+J11 -> 2096 | E11: =H11+K11 -> 2625 | F11: =+G11+H11 -> 4342 | G11: 1951 | H11: 2391 | I11: =+J11+K11 -> 379 | J11: 145 | K11: 234
A12: RESTO DEL PAÍS | C12: =+D12+E12 -> 3312 | D12: =G12+J12 -> 1489 | E12: =H12+K12 -> 1823 | F12: =+G12+H12 -> 3237 | G12: =SUM(G13:G30) -> 1451 | H12: =SUM(H13:H30) -> 1786 | I12: =+J12+K12 -> 75 | J12: =SUM(J13:J30) -> 38 | K12: =SUM(K13:K30) -> 37
A13: Artigas | C13: =+F13+I13 -> 32 | D13: 17 | E13: 15 | F13: =+G13+H13 -> 32 | G13: 17 | H13: 15 | I13: 0 | J13: 0 | K13: 0
A14: Canelones | C14: 1160 | D14: 520 | E14: 640 | F14: 1093 | G14: 486 | H14: 607 | I14: 67 | J14: 34 | K14: 33
A15: Cerro Largo | C15: 90 | D15: 42 | E15: 48 | F15: 90 | G15: 42 | H15: 48 | I15: 0 | J15: 0 | K15: 0
A16: Colonia | C16: 163 | D16: 66 | E16: 97 | F16: 163 | G16: 66 | H16: 97 | I16: 0 | J16: 0 | K16: 0
A17: Durazno | C17: 57 | D17: 37 | E17: 20 | F17: 57 | G17: 37 | H17: 20 | I17: 0 | J17: 0 | K17: 0
A18: Flores | C18: 56 | D18: 28 | E18: 28 | F18: 56 | G18: 28 | H18: 28 | I18: 0 | J18: 0 | K18: 0
A19: Florida | C19: 44 | D19: 24 | E19: 20 | F19: 44 | G19: 24 | H19: 20 | I19: 0 | J19: 0 | K19: 0
A20: Lavalleja | C20: 106 | D20: 47 | E20: 59 | F20: 106 | G20: 47 | H20: 59 | I20: 0 | J20: 0 | K20: 0
A21: Maldonado | C21: 580 | D21: 261 | E21: 319 | F21: 580 | G21: 261 | H21: 319 | I21: 0 | J21: 0 | K21: 0
A22: Paysandú | C22: 186 | D22: 87 | E22: 99 | F22: 186 | G22: 87 | H22: 99 | I22: 0 | J22: 0
A23: Río Negro | C23: 123 | D23: 48 | E23: 75 | F23: 117 | G23: 45 | H23: 72 | I23: 6 | J23: 3 | K23: 3
A24: Rivera | C24: 111 | D24: 50 | E24: 61 | F24: 111 | G24: 50 | H24: 61 | I24: 0 | J24: 0 | K24: 0
A25: Rocha | C25: 73 | D25: 30 | E25: 43 | F25: 73 | G25: 30 | H25: 43 | I25: 0 | J25: 0 | K25: 0
A26: Salto | C26: 150 | D26: 72 | E26: 78 | F26: 150 | G26: 72 | H26: 78 | I26: 0 | J26: 0 | K26: 0
A27: San José | C27: 126 | D27: 54 | E27: 72 | F27: 124 | G27: 53 | H27: 71 | I27: 2 | J27: 1 | K27: 1
A28: Soriano | C28: 95 | D28: 39 | E28: 56 | F28: 95 | G28: 39 | H28: 56 | I28: 0 | J28: 0 | K28: 0
A29: Tacuarembó | C29: 134 | D29: 55 | E29: 79 | F29: 134 | G29: 55 | H29: 79 | I29: 0 | J29: 0 | K29: 0
A30: Treinta y Tres | C30: 26 | D30: 12 | E30: 14 | F30: 26 | G30: 12 | H30: 14 | I30: 0 | J30: 0 | K30: 0
A31: Fuente: DEE — CEIP Planillas enviadas por las Inspecciones Departamentales a abril de 2011.
A32: NOTA: El personal docente incluye exclusivamente docencia directa

Sheet MEDIA BASICA
A6: Cuadro Nº II-3.1.1 | B6: ESTABLECIMIENTOS DE EDUCACIÓN MEDIA BÁSICA POR MODALIDAD Y FORMA DE ADMINISTRACIÓN SEGÚN DEPARTAMENTO. AÑO 2016.
A8: Cuadro Nº II-3.1.2 | B8: ESTABLECIMIENTOS FÍSICOS DE EDUCACIÓN MEDIA POR FORMA DE ADMINISTRACIÓN SEGÚN DEPARTAMENTO. AÑO 2016.
A11: Cuadro Nº II-3.2.1 | B11: ALUMNOS MATRICULADOS EN EDUCACION MEDIA BÁSICA GENERAL POR GRADO SEGÚN GRANDES ÁREAS Y FORMA DE ADMINISTRACIÓN. AÑO 2016.
A13: Cuadro Nº II-3.2.2 | B13: ALUMNOS MATRICULADOS EN EL CETP EN EDUCACIÓN MEDIA BÁSICA TECNOLÓGICA POR TIPO DE CURSO SEGÚN GRANDES ÁREAS, DEPARTAMENTO Y SEXO. AÑO 2016.
A15: Cuadro Nº II-3.2.3 | B15: ALUMNOS MATRICULADOS EN SÉPTIMO, OCTAVO Y NOVENO GRADO DE CICLO BÁSICO RURAL POR SEXO SEGÚN DEPARTAMENTO. AÑO 2016.
A17: Cuadro Nº II-3.2.4 | B17: ALUMNOS MATRICULADOS DE EDUCACIÓN MEDIA BÁSICA GENERAL POR GRADO Y FORMA DE ADMINISTRACIÓN SEGÚN DEPARTAMENTO AÑO 2016.
A19: Cuadro Nº II-3.2.5 | B19: ALUMNOS MATRICULADOS DE EDUCACIÓN MEDIA BÁSICA PRIVADA POR GRADO Y SEXO SEGÚN DEPARTAMENTO. AÑO 2016.
A21: Cuadro Nº II-3.2.6 | B21: ALUMNOS MATRICULADOS DE EDUCACIÓN MEDIA BÁSICA PÚBLICA POR GRADO Y SEXO SEGÚN DEPARTAMENTO. AÑO 2016.
A23: Cuadro Nº II-3.2.7 | B23: ALUMNOS MATRICULADOS EN EDUCACIÓN TÉCNICA MEDIA BÁSICA POR TIPO DE CURSO SEGÚN EDAD. AÑO 2016.
A25: Cuadro Nº II-3.2.8 | B25: ALUMNOS MATRICULADOS EN EL CETP EN EDUCACIÓN MEDIA BÁSICA POR TIPO DE CURSO SEGÚN SECTORES DE ESTUDIO. AÑO 2016.
A28: Cuadro Nº II-3.3.1 | B28: PERSONAL DOCENTE Y HORAS DOCENTES DEL CES EN EDUACIÓN MEDIA BÁSICA GENERAL POR TITULACIÓN SEGÚN ASIGNATURAS. AÑO 2016.
A30: Cuadro Nº II-3.3.2 | B30: PERSONAL DOCENTE DEL CETP EN EDUCACIÓN MEDIA BÁSICA TECNOLÓGICA POR TIPO DE CURSO. AÑO 2016.
A33: Cuadro Nº II-3.4.1 | B33: GRUPOS DEL CES EN EDUCACIÓN MEDIA BÁSICA GENERAL COMPARADOS CON EL TOTAL DE GRUPOS EN EDUCACIÓN MEDIA GENERAL SEGÚN GRANDES ÁREAS Y FORMA DE ADMINISTRACIÓN. AÑO 2016.
A91: =MID(B63,1,20) -> 
A100: =MID(B72,1,20) -> 

Sheet II-3.1.1
A1: CONSEJO DE EDUCACIÓN INICIAL Y PRIMARIA (CEIP), | J1: ESTABLECIMIENTOS
A2: CONSEJO DE EDUCACIÓN SECUNDARIA (CES) Y CONSEJO DE EDUCACIÓN TÉCNICO PROFESIONAL (UTU)
A4: Cuadro Nº II-3.1.1
A6: ESTABLECIMIENTOS DE EDUCACIÓN MEDIA BÁSICA POR MODALIDAD Y FORMA DE ADMINISTRACIÓN SEGÚN DEPARTAMENTO. AÑO 2016.
A7: DEPARTAMENTO | D7: MODALIDAD
B8: TOTAL GENERAL | C8: TOTAL LICEOS PÚBLICOS | D8: CES | K8: CEIP | M8: CETP
D9: FORMA DE ADMINISTRACIÓN
D10: LICEOS PÚBLICOS | H10: TOTAL LICEOS PRIVADOS | I10: Liceos Privados | K10: Escuelas con Ciclo Básico Rural | L10: TOTAL ESCUELAS DE CBT Y TÈCNICA
M11: Escuelas de CBT y Técnica
D12: Diurnos Oficiales | F12: Extra Edad Oficiales (Nocturno Y Diurno)
D15: Ciclo Básico | E15: C.Básico y Bachillerato | F15: Ciclo Básico | G15: C.Básico y Bachillerato | I15: Ciclo Básico | J15: C.Básico y Bachillerato | M15: Escuelas de CBT y Técnica | N15: Reparticiones
A16: TOTAL | B16: =C16+H16+K16+L16 -> 770 | C16: =SUM(C17,C18) -> 333 | D16: =D17+D18 -> 100 | E16: =E17+E18 -> 154 | F16: =F17+F18 -> 15 | G16: =G17+G18 -> 64 | H16: =SUM(I16:J16) -> 181 | I16: =I17+I18 -> 25 | J16: =J17+J18 -> 156 | K16: =K17+K18 -> 52 | L16: =M16+N16 -> 204 | M16: =M17+M18 -> 111 | N16: =N17+N18 -> 93
A17: MONTEVIDEO | B17: =C17+H17+K17+L17 -> 212 | C17: =SUM(D17:G17) -> 74 | D17: 45 | E17: 10 | F17: 3 | G17: 16 | H17: =SUM(I17:J17) -> 103 | I17: 13 | J17: 90 | K17: 0 | L17: =M17+N17 -> 35 | M17: 21 | N17: 14
A18: RESTO DEL PAÍS | B18: =C18+H18+K18+L18 -> 558 | C18: =SUM(C19:C36) -> 259 | D18: =SUM(D19:D36) -> 55 | E18: =SUM(E19:E36) -> 144 | F18: =SUM(F19:F36) -> 12 | G18: =SUM(G19:G36) -> 48 | H18: =SUM(I18:J18) -> 78 | I18: =SUM(I19:I36) -> 12 | J18: =SUM(J19:J36) -> 66 | K18: =SUM(K19:K36) -> 52 | L18: 169 | M18: =SUM(M19:M36) -> 90 | N18: =SUM(N19:N36) -> 79
A19: Artigas | B19: 24 | C19: =SUM(D19:G19) -> 11 | D19: 3 | E19: 7 | F19: 0 | G19: 1 | H19: =SUM(I19:J19) -> 2 | I19: 0 | J19: 2 | K19: 3 | L19: 8 | M19: 4 | N19: 4
A20: Canelones | B20: 125 | C20: 64 | D20: 12 | E20: 31 | F20: 6 | G20: 15 | H20: =SUM(I20:J20) -> 26 | I20: 6 | J20: 20 | K20: 0 | L20: 35 | M20: 17 | N20: 18
A21: Cerro Largo | B21: 28 | C21: 10 | D21: 1 | E21: 7 | F21: 0 | G21: 2 | H21: 3 | I21: 0 | J21: 3 | K21: 4 | L21: 11 | M21: 5 | N21: 6
A22: Colonia* | B22: 27 | C22: 17 | D22: 2 | E22: 10 | F22: 0 | G22: 5 | H22: 1 | I22: 1 | J22: 0 | L22: 9 | M22: 9 | N22: 0
A23: Durazno | B23: 19 | C23: 8 | D23: 2 | E23: 5 | F23: 0 | G23: 1 | H23: 2 | I23: 0 | J23: 2 | K23: 1 | L23: 8 | M23: 3 | N23: 5
A24: Flores | B24: 11 | C24: 4 | D24: 1 | E24: 2 | F24: 0 | G24: 1 | H24: 2 | I24: 0 | J24: 2 | K24: 1 | L24: 4 | M24: 2 | N24: 2
A25: Florida | B25: 24 | C25: 12 | D25: 2 | E25: 9 | F25: 0 | G25: 1 | H25: 2 | I25: 0 | J25: 2 | K25: 2 | L25: 8 | M25: 2 | N25: 6
A26: Lavalleja | B26: 19 | C26: 9 | D26: 2 | E26: 6 | F26: 1 | G26: 0 | H26: 2 | I26: 1 | J26: 1 | K26: 2 | L26: 6 | M26: 2 | N26: 4
A27: Maldonado | B27: 44 | C27: 17 | D27: 4 | E27: 8 | F27: 1 | G27: 4 | H27: 12 | I27: 1 | J27: 11 | K27: 4 | L27: 11 | M27: 7 | N27: 4
A28: Paysandú | B28: 32 | C28: 13 | D28: 5 | E28: 7 | F28: 0 | G28: 1 | H28: 2 | I28: 0 | J28: 2 | K28: 9 | L28: 8 | M28: 4 | N28: 4
A29: Río Negro | B29: 21 | C29: 9 | D29: 3 | E29: 4 | F29: 0 | G29: 2 | H29: 2 | I29: 0 | J29: 2 | K29: 5 | L29: 5 | M29: 3 | N29: 2
A30: Rivera | B30: 33 | C30: 14 | D30: 4 | E30: 7 | F30: 2 | G30: 1 | H30: 5 | I30: 2 | J30: 3 | K30: 4 | L30: 10 | M30: 5 | N30: 5
A31: Rocha | B31: 23 | C31: 13 | D31: 3 | E31: 7 | F31: 0 | G31: 3 | H31: 2 | I31: 0 | J31: 2 | K31: 3 | L31: 5 | M31: 5 | N31: 0
A32: Salto | B32: 30 | C32: 12 | D32: 1 | E32: 9 | F32: 1 | G32: 1 | H32: 5 | I32: 0 | J32: 5 | K32: 0 | L32: 13 | M32: 4 | N32: 9
A33: San José | B33: 29 | C33: 13 | D33: 2 | E33: 6 | F33: 1 | G33: 4 | H33: 3 | I33: 0 | J33: 3 | K33: 7 | L33: 6 | M33: 6 | N33: 0
A34: Soriano | B34: 20 | C34: 11 | D34: 3 | E34: 5 | F34: 0 | G34: 3 | H34: 1 | I34: 0 | J34: 1 | K34: 1 | L34: 7 | M34: 6 | N34: 1
A35: Tacuarembó | B35: 30 | C35: 14 | D35: 3 | E35: 9 | F35: 0 | G35: 2 | H35: 4 | I35: 1 | J35: 3 | K35: 4 | L35: 8 | M35: 2 | N35: 6
A36: Treinta y Tres | B36: 19 | C36: 8 | D36: 2 | E36: 5 | F36: 0 | G36: 1 | H36: 2 | I36: 0 | J36: 2 | K36: 2 | L36: 7 | M36: 4 | N36: 3
A37: Fuente: D.E.- C.E.S .
A38: Notas: 1- Los establecimientos considerados en el Tipo de Educación Escuelas con Ciclo Básico Rural ya fueron considerados en los totales de establecimientos de Educación Primaria por lo cual, si bien se presentan en la columna correspondiente, no participan en el “Total” del presente cuadro. 2- En un mismo establecimiento de UTU coexisten ofertas educativas de diferentes niveles. Los establecimientos que se consideraron en este cuadro son aquellos en los que se dictan cursos clasificados como de EDUCACIÓN MEDIA BÁSICA.

Sheet II-3.1.2
A1: CONSEJO DE EDUCACIÓN INICIAL Y PRIMARIA (CEIP), | G1: ESTABLECIMIENTOS
A2: CONSEJO DE EDUCACIÓN SECUNDARIA (CES) Y CONSEJO DE EDUCACIÓN TÉCNICO PROFESIONAL (UTU)
A3: Cuadro Nº II-3.1.2
A5: ESTABLECIMIENTOS FÍSICOS DE EDUCACIÓN MEDIA POR FORMA DE ADMINISTRACIÓN SEGÚN DEPARTAMENTO. AÑO 2016.
A6: DEPARTAMENTO | C6: MODALIDAD
B7: TOTAL GENERAL | C7: CES | E7: CEIP | F7: CETP
C9: LICEOS PÚBLICOS | D9: LICEOS PRIVADOS | E9: Escuelas con Ciclo Básico Rural | F9: Escuelas de CBT y Técnica.
A10: TOTAL | B10: =B11+B12 -> 792 | C10: =C11+C12 -> 299 | D10: =D11+D12 -> 190 | E10: =E11+E12 -> 58 | F10: =F11+F12 -> 245
A11: MONTEVIDEO | B11: =SUM(C11:F11) -> 239 | C11: 75 | D11: 110 | E11: 0 | F11: 54
A12: RESTO DEL PAÍS | B12: =SUM(C12:F12) -> 553 | C12: =SUM(C13:C30) -> 224 | D12: =SUM(D13:D30) -> 80 | E12: =SUM(E13:E30) -> 58 | F12: =SUM(F13:F30) -> 191
A13: Artigas | B13: =C13+D13+E13+F13 -> 24 | C13: 12 | D13: 1 | E13: 3 | F13: 8
A14: Canelones | B14: 116 | C14: 51 | D14: 27 | E14: 0 | F14: 38
A15: Cerro Largo | B15: 26 | C15: 8 | D15: 3 | E15: 4 | F15: 11
A16: Colonia | B16: 34 | C16: 14 | D16: 1 | E16: 6 | F16: 13
A17: Durazno | B17: 20 | C17: 8 | D17: 2 | E17: 1 | F17: 9
A18: Flores | B18: 10 | C18: 3 | D18: 2 | E18: 1 | F18: 4
A19: Florida | B19: 25 | C19: 12 | D19: 2 | E19: 2 | F19: 9
A20: Lavalleja | B20: 19 | C20: 8 | D20: 2 | E20: 2 | F20: 7
A21: Maldonado | B21: 44 | C21: 13 | D21: 13 | E21: 4 | F21: 14
A22: Paysandú | B22: 38 | C22: 14 | D22: 3 | E22: 9 | F22: 12
A23: Río Negro | B23: 20 | C23: 8 | D23: 2 | E23: 5 | F23: 5
A24: Rivera | B24: 33 | C24: 13 | D24: 5 | E24: 4 | F24: 11
A25: Rocha | B25: 21 | C25: 11 | D25: 2 | E25: 3 | F25: 5
A26: Salto | B26: 30 | C26: 11 | D26: 5 | E26: 0 | F26: 14
A27: San José | B27: 27 | C27: 9 | D27: 3 | E27: 7 | F27: 8
A28: Soriano | B28: 18 | C28: 9 | D28: 1 | E28: 1 | F28: 7
A29: Tacuarembó | B29: 30 | C29: 13 | D29: 4 | E29: 4 | F29: 9
A30: Treinta y Tres | B30: 18 | C30: 7 | D30: 2 | E30: 2 | F30: 7
A31: Fuente: C.E.S - CETP- CEIP
A32: Nota: 1- A diferencia del cuadro anterior II-3.1.1, el presente consolida la cantidad de establecimientos físicos con independencia del nivel educativo al cual son dirigidos los programas de estudios impartidos. En el caso del CETP debe considerarse que además de Educación Media se dictan programas dirigidos a Educación Terciaria No Universitaria y Educación de Jóvenes y Adultos.
A33: 2- Dentro de la cantidad de establecimientos declarados por UTU en este apartado se encuentran 106 reparticiones (Montevideo=18; Resto del País=88). Son localizaciones en las cuales se imparten cursos administrados por el CETP-UTU. Estos locales no forman parte de los activos de ANEP.

Sheet II-3.2.1
A1: CONSEJO DE EDUCACIÓN SECUNDARIA | D1: ALUMNOS MATRICULADOS
A3: Cuadro Nº II-3.2.1
A5: ALUMNOS MATRICULADOS EN EDUCACION MEDIA BÁSICA GENERAL POR GRADO SEGÚN GRANDES ÁREAS Y FORMA DE ADMINISTRACIÓN. AÑO 2016.
A6: GRANDES ÁREAS Y FORMA DE ADMINISTRACIÓN | C6: GRADO
B7: TOTAL
C8: PRIMERO | D8: SEGUNDO | E8: TERCERO
A9: TOTAL DEL PAÍS | B9: =C9+D9+E9 -> 148486 | C9: =C14+C19 -> 52597 | D9: 47984 | E9: 47905
A10: MEDIA BÁSICA PÚBLICA | B10: 122764 | C10: 43791 | D10: 39624 | E10: 39349
A11: Diurna | B11: 107392 | C11: 40145 | D11: 35317 | E11: 31930
A12: Nocturna | B12: 15372 | C12: 3646 | D12: 4307 | E12: 7419
A13: MEDIA BÁSICA PRIVADA | B13: 25722 | C13: 8806 | D13: 8360 | E13: 8556
A14: TOTAL MONTEVIDEO | B14: 54108 | C14: =C15+C18 -> 19495 | D14: =D15+D18 -> 17399 | E14: =E15+E18 -> 17214
A15: MEDIA BÁSICA PÚBLICA | B15: 37572 | C15: =C16+C17 -> 13734 | D15: =D16+D17 -> 12053 | E15: =E16+E17 -> 11785
A16: Diurna | B16: 32468 | C16: 12581 | D16: 10559 | E16: 9328
A17: Nocturna | B17: 5104 | C17: 1153 | D17: 1494 | E17: 2457
A18: MEDIA BÁSICA PRIVADA | B18: 16536 | C18: 5761 | D18: 5346 | E18: 5429
A19: TOTAL RESTO DEL PAÍS | B19: 94378 | C19: =C20+C23 -> 33102 | D19: =D20+D23 -> 30585 | E19: =E20+E23 -> 30691
A20: MEDIA BÁSICA PÚBLICA | B20: 85192 | C20: =C21+C22 -> 30057 | D20: =D21+D22 -> 27571 | E20: =E21+E22 -> 27564
A21: Diurna | B21: 74924 | C21: 27564 | D21: 24758 | E21: 22602
A22: Nocturna | B22: 10268 | C22: 2493 | D22: 2813 | E22: 4962
A23: MEDIA BÁSICA PRIVADA | B23: 9186 | C23: 3045 | D23: 3014 | E23: 3127
A24: Fuente: D.E. — C.E.S.
A25: Nota: La referencia "Privada", (incluye los Habilitados "Liceo Naval" y "Liceo Militar"), se corresponde con la de "Liceos Habilitados" presente en ediciones anteriores del Anuario Estadístico del MEC.

Sheet II-3.2.2
A1: CONSEJO DE EDUCACIÓN TÉCNICO PROFESIONAL (U.T.U.) | H1: ALUMNOS MATRICULADOS
A5: Cuadro II-3.2.2.
A6: ALUMNOS MATRICULADOS EN EL CETP EN EDUCACIÓN MEDIA BÁSICA TECNOLÓGICA POR TIPO DE CURSO SEGÚN GRANDES ÁREAS, DEPARTAMENTO Y SEXO. AÑO 2016.
A9: GRANDES ÁREAS,DEPARTAMENTO Y SEXO | B9: TOTAL | D9: EDUCACIÓN MEDIA BÁSICA TECNOLÓGICA
C10: TOTAL | D10: Articulación Ed.Media Básica | F10: TOTAL | G10: C. B. T. Agrario | I10: TOTAL | J10: Ciclo Básico Tecnológico | L10: TOTAL | M10: Formación Profesional Básica 2007 | O10: TOTAL | P10: Articulación otras | R10: TOTAL | S10: Programa Centros Educ.Comunitarios
D11: Sexo | G11: Sexo | J11: Sexo | M11: Sexo | P11: Sexo | S11: Sexo
D12: M | E12: F | G12: M | H12: F | J12: M | K12: F | M12: M | N12: F | P12: M | Q12: F | S12: M | T12: F
A14: TOTAL | B14: =C14+F14+I14+L14+O14+R14 -> 32185 | C14: =SUM(C15:C16) -> 1112 | D14: 486 | E14: 626 | F14: 1936 | G14: =G15+G16 -> 1347 | H14: =H15+H16 -> 589 | I14: 16472 | J14: 9693 | K14: 6779 | L14: 11790 | M14: 7254 | N14: 4536 | O14: =P14+Q14 -> 340 | P14: 187 | Q14: 153 | R14: =S14+T14 -> 535 | S14: 350 | T14: 185
A15: Montevideo | B15: =C15+F15+I15+L15+O15+R15 -> 6985 | C15: =+D15+E15 -> 271 | D15: 146 | E15: 125 | F15: =+G15+H15 -> 155 | G15: 102 | H15: 53 | I15: =+J15+K15 -> 2744 | J15: 1641 | K15: 1103 | L15: =+M15+N15 -> 3324 | M15: 1981 | N15: 1343 | O15: =P15+Q15 -> 76 | P15: 33 | Q15: 43 | R15: =S15+T15 -> 415 | S15: 263 | T15: 152
A16: Resto del País | B16: 25200 | C16: =SUM(C17:C34) -> 841 | D16: 340 | E16: 501 | F16: 1781 | G16: 1245 | H16: 536 | I16: 13728 | J16: 8052 | K16: 5676 | L16: 8466 | M16: 5273 | N16: 3193 | O16: =P16+Q16 -> 264 | P16: =SUM(P17:P34) -> 154 | Q16: =SUM(Q17:Q34) -> 110 | R16: 120 | S16: =SUM(S17:S34) -> 87 | T16: =SUM(T17:T34) -> 33
A17: Artigas | B17: 1216 | C17: =+D17+E17 -> 38 | D17: 22 | E17: 16 | F17: =+G17+H17 -> 43 | G17: 30 | H17: 13 | I17: =+J17+K17 -> 740 | J17: 457 | K17: 283 | L17: =+M17+N17 -> 358 | M17: 180 | N17: 178 | O17: 37 | P17: 9 | Q17: 28 | R17: 0 | S17: 0 | T17: 0
A18: Canelones | B18: 5694 | C18: 280 | D18: 114 | E18: 166 | F18: 84 | G18: 53 | H18: 31 | I18: 2654 | J18: 1532 | K18: 1122 | L18: 2629 | M18: 1551 | N18: 1078 | O18: 47 | P18: 23 | Q18: 24 | R18: 0 | S18: 0 | T18: 0
A19: Cerro Largo | B19: 1580 | C19: 70 | D19: 24 | E19: 46 | F19: 106 | G19: 74 | H19: 32 | I19: 970 | J19: 567 | K19: 403 | L19: 434 | M19: 262 | N19: 172 | O19: 0 | P19: 0 | Q19: 0 | R19: 0 | S19: 0 | T19: 0
A20: Colonia | B20: 1687 | C20: 58 | D20: 23 | E20: 35 | F20: 107 | G20: 83 | H20: 24 | I20: 1176 | J20: 698 | K20: 478 | L20: 329 | M20: 206 | N20: 123 | O20: 17 | P20: 12 | Q20: 5 | R20: 0 | S20: 0 | T20: 0
A21: Durazno | B21: 1233 | C21: 0 | D21: 0 | E21: 0 | F21: 152 | G21: 99 | H21: 53 | I21: 788 | J21: 463 | K21: 325 | L21: 293 | M21: 181 | N21: 112 | O21: 0 | P21: 0 | Q21: 0 | R21: 0 | S21: 0 | T21: 0
A22: Flores | B22: 217 | C22: 0 | D22: 0 | E22: 0 | F22: 0 | G22: 0 | H22: 0 | I22: 80 | J22: 80 | L22: 137 | M22: 94 | N22: 43 | O22: 0 | P22: 0 | Q22: 0 | R22: 0 | S22: 0 | T22: 0
A23: Florida | B23: 697 | C23: 34 | D23: 16 | E23: 18 | F23: 0 | G23: 0 | H23: 0 | I23: 279 | J23: 163 | K23: 116 | L23: 367 | M23: 217 | N23: 150 | O23: 17 | P23: 13 | Q23: 4 | R23: 0 | S23: 0 | T23: 0
A24: Lavalleja | B24: 573 | C24: 25 | D24: 8 | E24: 17 | F24: 111 | G24: 76 | H24: 35 | I24: 140 | J24: 75 | K24: 65 | L24: 297 | M24: 174 | N24: 123 | O24: 0 | P24: 0 | Q24: 0 | R24: 0 | S24: 0 | T24: 0
A25: Maldonado | B25: 1714 | C25: 46 | D25: 25 | E25: 21 | F25: 69 | G25: 39 | H25: 30 | I25: 1062 | J25: 604 | K25: 458 | L25: 417 | M25: 272 | N25: 145 | O25: 0 | P25: 0 | Q25: 0 | R25: 120 | S25: 87 | T25: 33
A26: Paysandú | B26: 1717 | C26: 0 | D26: 0 | E26: 0 | F26: 310 | G26: 206 | H26: 104 | I26: 769 | J26: 475 | K26: 294 | L26: 581 | M26: 410 | N26: 171 | O26: 57 | P26: 43 | Q26: 14 | R26: 0 | S26: 0 | T26: 0
A27: Rio Negro | B27: 807 | C27: 0 | D27: 0 | E27: 0 | F27: 44 | G27: 40 | H27: 4 | I27: 480 | J27: 294 | K27: 186 | L27: 260 | M27: 179 | N27: 81 | O27: 23 | P27: 16 | Q27: 7 | R27: 0 | S27: 0 | T27: 0
A28: Rivera | B28: 1228 | C28: 0 | D28: 0 | E28: 0 | F28: 235 | G28: 181 | H28: 54 | I28: 570 | J28: 359 | K28: 211 | L28: 405 | M28: 287 | N28: 118 | O28: 18 | P28: 10 | Q28: 8 | R28: 0 | S28: 0 | T28: 0
A29: Rocha | B29: 782 | C29: 29 | D29: 14 | E29: 15 | F29: 51 | G29: 38 | H29: 13 | I29: 421 | J29: 225 | K29: 196 | L29: 281 | M29: 180 | N29: 101 | O29: 0 | P29: 0 | Q29: 0 | R29: 0 | S29: 0 | T29: 0
A30: Salto | B30: 1396 | C30: 125 | D30: 49 | E30: 76 | F30: 169 | G30: 106 | H30: 63 | I30: 692 | J30: 370 | K30: 322 | L30: 384 | M30: 241 | N30: 143 | O30: 26 | P30: 14 | Q30: 12 | R30: 0 | S30: 0 | T30: 0
A31: San José | B31: 1623 | C31: 52 | D31: 18 | E31: 34 | F31: 91 | G31: 69 | H31: 22 | I31: 1153 | J31: 654 | K31: 499 | L31: 327 | M31: 210 | N31: 117 | O31: 0 | P31: 0 | Q31: 0 | R31: 0 | S31: 0 | T31: 0
A32: Soriano | B32: 1523 | C32: 57 | D32: 17 | E32: 40 | F32: 104 | G32: 83 | H32: 21 | I32: 959 | J32: 553 | K32: 406 | L32: 403 | M32: 279 | N32: 124 | O32: 0 | P32: 0 | Q32: 0 | R32: 0 | S32: 0 | T32: 0
A33: Tacuarembó | B33: 998 | C33: 27 | D33: 10 | E33: 17 | F33: 15 | G33: 9 | H33: 6 | I33: 540 | J33: 333 | K33: 207 | L33: 416 | M33: 249 | N33: 167 | O33: 0 | P33: 0 | Q33: 0 | R33: 0 | S33: 0 | T33: 0
A34: Treinta y Tres | B34: 515 | C34: 0 | D34: 0 | E34: 0 | F34: 90 | G34: 59 | H34: 31 | I34: 255 | J34: 150 | K34: 105 | L34: 148 | M34: 101 | N34: 47 | O34: 22 | P34: 14 | Q34: 8 | R34: 0 | S34: 0 | T34: 0
A35: Fuente: Procesamiento propio en base a datos proporcionados por el D.E. - CETP (U.T.U) .

Sheet II-3.2.3
A1: CONSEJO DE EDUCACIÓN PRIMARIA | I1: ALUMNOS MATRICULADOS
A3: Cuadro Nº II-3.2.3
A6: ALUMNOS MATRICULADOS EN SÉPTIMO, OCTAVO Y NOVENO GRADO DE CICLO BÁSICO RURAL POR SEXO SEGÚN DEPARTAMENTO. AÑO 2016.
A7: DEPARTAMENTO | B7: TOTAL | E7: CICLO BÁSICO RURAL
E8: GRADO
E9: SÉPTIMO | H9: OCTAVO | K9: NOVENO
E10: SEXO | H10: SEXO | K10: SEXO
B11: T | C11: M | D11: F | E11: T | F11: M | G11: F | H11: T | I11: M | J11: F | K11: T | L11: M | M11: F
A13: TOTAL | B13: =B14+B15 -> 1583 | C13: =F13+I13+L13 -> 840 | D13: 743 | E13: =F13+G13 -> 573 | F13: =F14+F15 -> 318 | G13: =G14+G15 -> 255 | H13: =I13+J13 -> 522 | I13: =I14+I15 -> 274 | J13: =J14+J15 -> 248 | K13: =L13+M13 -> 488 | L13: =L14+L15 -> 248 | M13: =M14+M15 -> 240
A14: MONTEVIDEO | B14: 0 | C14: 0 | D14: 0 | E14: =F14+G14 -> 0 | H14: =I14+J14 -> 0 | K14: =L14+M14 -> 0
A15: RESTO DEL PAÍS | B15: =E15+H15+K15 -> 1583 | C15: 840 | D15: =G15+J15+M15 -> 743 | E15: =F15+G15 -> 573 | F15: =SUM(F16:F33) -> 318 | G15: =SUM(G16:G33) -> 255 | H15: =I15+J15 -> 522 | I15: =SUM(I16:I33) -> 274 | J15: =SUM(J16:J33) -> 248 | K15: =L15+M15 -> 488 | L15: =SUM(L16:L33) -> 248 | M15: =SUM(M16:M33) -> 240
A16: Artigas | B16: 127 | C16: 70 | D16: 57 | E16: =F16+G16 -> 35 | F16: 19 | G16: 16 | H16: 38 | I16: 22 | J16: 16 | K16: 54 | L16: 29 | M16: 25
A17: Canelones | B17: =E17+H17+K17 -> 0 | C17: =F17+I17+L17 -> 0 | D17: =G17+J17+M17 -> 0 | E17: 0 | F17: 0 | G17: 0 | H17: 0 | I17: 0 | J17: 0 | K17: 0 | L17: 0 | M17: 0
A18: Cerro Largo | B18: 87 | C18: 43 | D18: 44 | E18: 41 | F18: 18 | G18: 23 | H18: 26 | I18: 16 | J18: 10 | K18: 20 | L18: 9 | M18: 11
A19: Colonia | B19: 171 | C19: 94 | D19: 77 | E19: 50 | F19: 30 | G19: 20 | H19: 62 | I19: 34 | J19: 28 | K19: 59 | L19: 30 | M19: 29
A20: Durazno | B20: 31 | C20: 16 | D20: 15 | E20: 16 | F20: 11 | G20: 5 | H20: 7 | I20: 3 | J20: 4 | K20: 8 | L20: 2 | M20: 6
A21: Flores | B21: 13 | C21: 7 | D21: 6 | E21: 4 | F21: 1 | G21: 3 | H21: 5 | I21: 3 | J21: 2 | K21: 4 | L21: 3 | M21: 1
A22: Florida | B22: 38 | C22: 32 | D22: 23 | E22: 22 | F22: 14 | G22: 8 | H22: 16 | I22: 6 | J22: 10 | L22: 12 | M22: 5
A23: Lavalleja | B23: 67 | C23: 41 | D23: 26 | E23: 29 | F23: 21 | G23: 8 | H23: 25 | I23: 13 | J23: 12 | K23: 13 | L23: 7 | M23: 6
A24: Maldonado | B24: 58 | C24: 32 | D24: 26 | E24: 17 | F24: 9 | G24: 8 | H24: 16 | I24: 9 | J24: 7 | K24: 25 | L24: 14 | M24: 11
A25: Paysandú | B25: 288 | C25: 144 | D25: 144 | E25: 116 | F25: 57 | G25: 59 | H25: 98 | I25: 52 | J25: 46 | K25: 74 | L25: 35 | M25: 39
A26: Río Negro | B26: 98 | C26: 46 | D26: 52 | E26: 43 | F26: 22 | G26: 21 | H26: 22 | I26: 11 | J26: 11 | K26: 33 | L26: 13 | M26: 20
A27: Rivera | B27: 96 | C27: 47 | D27: 49 | E27: 30 | F27: 15 | G27: 15 | H27: 32 | I27: 17 | J27: 15 | K27: 34 | L27: 15 | M27: 19
A28: Rocha | B28: 75 | C28: 44 | D28: 31 | E28: 29 | F28: 17 | G28: 12 | H28: 28 | I28: 16 | J28: 12 | K28: 18 | L28: 11 | M28: 7
A29: Salto | B29: 0 | C29: 0 | D29: 0 | E29: 0 | F29: 0 | G29: 0 | H29: 0 | I29: 0 | J29: 0 | K29: 0 | L29: 0 | M29: 0
A30: San José | B30: 178 | C30: 100 | D30: 78 | E30: 50 | F30: 30 | G30: 20 | H30: 66 | I30: 33 | J30: 33 | K30: 62 | L30: 37 | M30: 25
A31: Soriano | B31: 61 | C31: 33 | D31: 28 | E31: 29 | F31: 21 | G31: 8 | H31: 16 | I31: 6 | J31: 10 | K31: 16 | L31: 6 | M31: 10
A32: Tacuarembó | B32: 119 | C32: 66 | D32: 53 | E32: 41 | F32: 22 | G32: 19 | H32: 47 | I32: 27 | J32: 20 | K32: 31 | L32: 17 | M32: 14
A33: Treinta y Tres | B33: 59 | C33: 25 | D33: 34 | E33: 21 | F33: 11 | G33: 10 | H33: 18 | I33: 6 | J33: 12 | K33: 20 | L33: 8 | M33: 12
A34: Fuente: DE — CES
A36: Nota: No se tienen datos por sexo

Sheet II-3.2.4
A1: CONSEJO DE EDUCACIÓN SECUNDARIA | E1: ALUMNOS MATRICULADOS
A3: Cuadro Nº II-3.2.4
A5: ALUMNOS MATRICULADOS DE EDUCACIÓN MEDIA BÁSICA GENERAL POR GRADO Y FORMA DE ADMINISTRACIÓN SEGÚN DEPARTAMENTO. AÑO 2016.
A7: DEPARTAMENTO | B7: GRADO
B8: PRIMERO | D8: SEGUNDO | F8: TERCERO
B9: FORMA DE ADMINISTRACIÓN
B10: Públicos | C10: Privados | D10: Públicos | E10: Privados | F10: Públicos | G10: Privados
A11: TOTAL | B11: =B12+B13 -> 43791 | C11: 8806 | D11: 39624 | E11: 8360 | F11: =F12+F13 -> 39349 | G11: 8556
A12: MONTEVIDEO | B12: 13734 | C12: 5761 | D12: 12053 | E12: 5346 | F12: 11785 | G12: 5429
A13: RESTO DEL PAÍS | B13: =SUM(B14:B31) -> 30057 | C13: 3045 | D13: 27571 | E13: 3014 | F13: 27564 | G13: 3127
A14: Artigas | B14: 1176 | C14: 29 | D14: 1171 | E14: 15 | F14: 1223 | G14: 19
A15: Canelones | B15: 7961 | C15: 1113 | D15: 7117 | E15: 1106 | F15: 7109 | G15: 1159
A16: Cerro Largo | B16: 1156 | C16: 128 | D16: 1084 | E16: 129 | F16: 1157 | G16: 129
A17: Colonia | B17: 1644 | C17: 22 | D17: 1572 | E17: 29 | F17: 1546 | G17: 10
A18: Durazno | B18: 738 | C18: 102 | D18: 776 | E18: 95 | F18: 737 | G18: 92
A19: Flores | B19: 407 | C19: 52 | D19: 397 | E19: 57 | F19: 339 | G19: 42
A20: Florida | B20: 899 | C20: 66 | D20: 846 | E20: 64 | F20: 838 | G20: 85
A21: Lavalleja | B21: 871 | C21: 52 | D21: 786 | E21: 60 | F21: 762 | G21: 51
A22: Maldonado | B22: 2322 | C22: 430 | D22: 2313 | E22: 456 | F22: 2245 | G22: 493
A23: Paysandú | B23: 1582 | C23: 206 | D23: 1378 | E23: 191 | F23: 1421 | G23: 204
A24: Río Negro | B24: 784 | C24: 48 | D24: 759 | E24: 42 | F24: 743 | G24: 46
A25: Rivera | B25: 2120 | C25: 62 | D25: 1769 | E25: 84 | F25: 1790 | G25: 101
A26: Rocha | B26: 1200 | C26: 56 | D26: 1114 | E26: 61 | F26: 1245 | G26: 60
A27: Salto | B27: 1821 | C27: 262 | D27: 1868 | E27: 236 | F27: 1749 | G27: 232
A28: San José | B28: 1597 | C28: 126 | D28: 1292 | E28: 151 | F28: 1359 | G28: 131
A29: Soriano | B29: 1337 | C29: 72 | D29: 1074 | E29: 57 | F29: 1108 | G29: 65
A30: Tacuarembó | B30: 1633 | C30: 139 | D30: 1492 | E30: 105 | F30: 1493 | G30: 134
A31: Treinta y Tres | B31: 809 | C31: 80 | D31: 763 | E31: 76 | F31: 700 | G31: 74
A32: Fuente: DE — CES
A33: Nota: Incluye la matrícula correspondiente a los liceos de cuarto turno (nocturnos).

Sheet II-3.2.5
A1: CONSEJO DE EDUCACIÓN SECUNDARIA
A2: Cuadro Nº II-3.2.5
A4: ALUMNOS MATRICULADOS DE EDUCACIÓN MEDIA BÁSICA PRIVADA POR GRADO Y SEXO SEGÚN DEPARTAMENTO. AÑO 2016.
A6: DEPARTAMENTO | B6: GRADO
B7: PRIMERO | D7: SEGUNDO | F7: TERCERO
B8: SEXO
B9: Mujeres | C9: Varones | D9: Mujeres | E9: Varones | F9: Mujeres | G9: Varones
A10: TOTAL | B10: =B11+B12 -> 4378 | C10: 4393 | D10: 4237 | E10: 4087 | F10: 4295 | G10: 4210
A11: MONTEVIDEO | B11: 2875 | C11: 2849 | D11: 2673 | E11: 2642 | F11: 2702 | G11: 2693
A12: RESTO DEL PAÍS | B12: =SUM(B13:B30) -> 1503 | C12: 1544 | D12: 1564 | E12: 1445 | F12: 1593 | G12: 1517
A13: Artigas | B13: 15 | C13: 14 | D13: 9 | E13: 6 | F13: 11 | G13: 8
A14: Canelones | B14: 555 | C14: 558 | D14: 575 | E14: 531 | F14: 600 | G14: 559
A15: Cerro Largo | B15: 54 | C15: 74 | D15: 65 | E15: 64 | F15: 68 | G15: 61
A16: Colonia | B16: 9 | C16: 13 | D16: 16 | E16: 13 | F16: 4 | G16: 6
A17: Durazno | B17: 45 | C17: 57 | D17: 48 | E17: 47 | F17: 43 | G17: 49
A18: Flores | B18: 28 | C18: 24 | D18: 38 | E18: 19 | F18: 23 | G18: 19
A19: Florida | B19: 33 | C19: 33 | D19: 39 | E19: 25 | F19: 47 | G19: 38
A20: Lavalleja | B20: 30 | C20: 22 | D20: 24 | E20: 36 | F20: 23 | G20: 28
A21: Maldonado | B21: 190 | C21: 240 | D21: 237 | E21: 219 | F21: 231 | G21: 262
A22: Paysandú | B22: 101 | C22: 113 | D22: 91 | E22: 100 | F22: 91 | G22: 113
A23: Río Negro | B23: 20 | C23: 28 | D23: 21 | E23: 21 | F23: 26 | G23: 20
A24: Rivera | B24: 25 | C24: 31 | D24: 32 | E24: 47 | F24: 49 | G24: 35
A25: Rocha | B25: 30 | C25: 26 | D25: 29 | E25: 32 | F25: 33 | G25: 27
A26: Salto | B26: 146 | C26: 116 | D26: 129 | E26: 107 | F26: 125 | G26: 107
A27: San José | B27: 72 | C27: 54 | D27: 82 | E27: 69 | F27: 66 | G27: 65
A28: Soriano | B28: 32 | C28: 40 | D28: 33 | E28: 24 | F28: 37 | G28: 28
A29: Tacuarembó | B29: 76 | C29: 63 | D29: 54 | E29: 51 | F29: 76 | G29: 58
A30: Treinta y Tres | B30: 42 | C30: 38 | D30: 42 | E30: 34 | F30: 40 | G30: 34
A31: Fuente: DE — CES
A32: Nota: Las diferencias con la matrícula de otros cuadros se debe a la ausencia de información sobre sexo en colegios de Montevideo, Paysandù y Rivera.

Sheet II-3.2.6
A1: CONSEJO DE EDUCACIÓN SECUNDARIA
A2: Cuadro Nº II-3.2.6
A4: ALUMNOS MATRICULADOS DE EDUCACIÓN MEDIA BÁSICA PÚBLICA POR GRADO Y SEXO SEGÚN DEPARTAMENTO. AÑO 2016.
A6: DEPARTAMENTO | B6: GRADO
B7: PRIMERO | D7: SEGUNDO | F7: TERCERO
B8: SEXO
B9: Mujeres | C9: Varones | D9: Mujeres | E9: Varones | F9: Mujeres | G9: Varones
A10: TOTAL | B10: =B11+B12 -> 19924 | C10: 20221 | D10: 18715 | E10: 16602 | F10: 16804 | G10: 15126
A11: MONTEVIDEO | B11: 6254 | C11: 6327 | D11: 5558 | E11: 5001 | F11: 4831 | G11: 4497
A12: RESTO DEL PAÍS | B12: =SUM(B13:B30) -> 13670 | C12: =SUM(C13:C30) -> 13894 | D12: 13157 | E12: 11601 | F12: 11973 | G12: 10629
A13: Artigas | B13: 563 | C13: 584 | D13: 598 | E13: 515 | F13: 561 | G13: 527
A14: Canelones | B14: 3506 | C14: 3676 | D14: 3244 | E14: 3061 | F14: 2978 | G14: 2645
A15: Cerro Largo | B15: 569 | C15: 527 | D15: 536 | E15: 469 | F15: 522 | G15: 444
A16: Colonia | B16: 776 | C16: 716 | D16: 724 | E16: 639 | F16: 659 | G16: 557
A17: Durazno | B17: 337 | C17: 316 | D17: 367 | E17: 297 | F17: 345 | G17: 247
A18: Flores | B18: 189 | C18: 174 | D18: 192 | E18: 159 | F18: 155 | G18: 114
A19: Florida | B19: 449 | C19: 434 | D19: 423 | E19: 397 | F19: 394 | G19: 376
A20: Lavalleja | B20: 400 | C20: 429 | D20: 375 | E20: 338 | F20: 344 | G20: 331
A21: Maldonado | B21: 1085 | C21: 1040 | D21: 1066 | E21: 1040 | F21: 966 | G21: 914
A22: Paysandú | B22: 743 | C22: 770 | D22: 723 | E22: 574 | F22: 686 | G22: 538
A23: Río Negro | B23: 372 | C23: 373 | D23: 378 | E23: 310 | F23: 343 | G23: 272
A24: Rivera | B24: 914 | C24: 975 | D24: 835 | E24: 725 | F24: 747 | G24: 704
A25: Rocha | B25: 531 | C25: 533 | D25: 515 | E25: 449 | F25: 474 | G25: 483
A26: Salto | B26: 824 | C26: 924 | D26: 909 | E26: 840 | F26: 792 | G26: 781
A27: San José | B27: 689 | C27: 694 | D27: 593 | E27: 473 | F27: 475 | G27: 439
A28: Soriano | B28: 620 | C28: 578 | D28: 543 | E28: 411 | F28: 510 | G28: 392
A29: Tacuarembó | B29: 755 | C29: 789 | D29: 746 | E29: 619 | F29: 713 | G29: 605
A30: Treinta y Tres | B30: 348 | C30: 362 | D30: 390 | E30: 285 | F30: 309 | G30: 260
A31: Fuente: DE — CES
A32: Nota: No incluye la matrícula correspondiente a los liceos de cuarto turno (nocturnos)

Sheet II-3.2.7
A1: CONSEJO DE EDUCACIÓN TÉCNICO PROFESIONAL (U.T.U.) | E1: ALUMNOS MATRICULADOS
A3: Cuadro Nº II-3.2.7
A5: ALUMNOS MATRICULADOS EN EDUCACIÓN TÉCNICA MEDIA BÁSICA POR TIPO DE CURSO SEGÚN EDAD. AÑO 2016.
A7: EDAD | B7: TOTAL | C7: TIPO DE CURSO
C8: Articulación Educación Media Básica | D8: C.T.B Agrario | E8: Ciclo Básico Tecnológico | F8: Formación Profesional Básica Plan 2007 | G8: Articulación Otras | H8: Programas Centros educ. comunitarios
A9: TOTAL | B9: =C9+D9+E9+F9+G9+H9 -> 32250 | C9: =SUM(C10:C20) -> 1112 | D9: 340 | E9: 1936 | F9: 16537 | G9: 11790 | H9: 535
A10: 11 y 12 años | B10: =C10+D10+E10+F10+G10+H10 -> 3617 | C10: 0 | D10: 0 | E10: 431 | F10: 3158 | G10: 4 | H10: 24
A11: 13 años | B11: 5696 | C11: 0 | D11: 0 | E11: 641 | F11: 4954 | G11: 26 | H11: 75
A12: 14 años | B12: 6344 | C12: 0 | D12: 24 | E12: 523 | F12: 4805 | G12: 856 | H12: 136
A13: 15 años | B13: 5262 | C13: 0 | D13: 78 | E13: 215 | F13: 2259 | G13: 2562 | H13: 148
A14: 16 años | B14: 4592 | C14: 3 | D14: 89 | E14: 94 | F14: 956 | G14: 3331 | H14: 119
A15: 17 años | B15: 3115 | C15: 6 | D15: 68 | E15: 22 | F15: 304 | G15: 2683 | H15: 32
A16: 18 años | B16: 1342 | C16: 64 | D16: 25 | E16: 6 | F16: 64 | G16: 1182 | H16: 1
A17: 19 años | B17: 520 | C17: 63 | D17: 14 | E17: 4 | F17: 17 | G17: 422 | H17: 0
A18: 20 a 24 años | B18: 757 | C18: 272 | D18: 27 | E18: 0 | F18: 18 | G18: 440 | H18: 0
A19: 25 a 29 años | B19: 291 | C19: 173 | D19: 7 | E19: 0 | F19: 2 | G19: 109 | H19: 0
A20: 30 años y más | B20: 714 | C20: 531 | D20: 8 | E20: 0 | F20: 0 | G20: 175 | H20: 0
A21: Fuente : Procesamiento propio en base a datos proporcionados por el D.E.-CETP (U.T.U.)

Sheet II-3.2.8
A1: CONSEJO DE EDUCACIÓN TÉCNICO PROFESIONAL (U.T.U.) | C1: ALUMNOS MATRICULADOS
A4: Cuadro Nº II-3.2.8.
A6: ALUMNOS MATRICULADOS EN EL CETP EN EDUCACIÓN MEDIA BÁSICA POR TIPO DE CURSO SEGÚN SECTORES DE ESTUDIO. AÑO 2016.
A7: SECTORES DE ESTUDIO | B7: TOTAL | C7: TIPO DE CURSO
C8: Articulación Educación Media | D8: CTB AGRARIO | E8: Ciclo Básico Tecnológico | F8: Formación Profesional Básica Plan 2007 | G8: Articulación Otras | H8: Programas Centros educ. Comuniotarios
A10: Prog. Ciclo Básico. Educación Media | B10: =C10+D10+E10+F10+G10+H10 -> 32250 | C10: =SUM(C11:C31) -> 1112 | D10: =SUM(D11:D31) -> 1936 | E10: =SUM(E11:E31) -> 16537 | F10: =SUM(F11:F33) -> 11790 | G10: =SUM(G11:G33) -> 340 | H10: =SUM(H11:H33) -> 535
A11: Agropecuario | B11: =C11+D11+E11+F11+G11+H11 -> 209 | C11: 0 | D11: 0 | E11: 0 | F11: 209 | G11: 0 | H11: 0
A12: Artes Escénicas | B12: 49 | C12: 0 | D12: 0 | E12: 0 | F12: 49 | G12: 0 | H12: 0
A13: Comunicación | B13: 329 | C13: 0 | D13: 0 | E13: 0 | F13: 329 | G13: 0 | H13: 0
A14: Construcción y Arquitectura | B14: 470 | C14: 0 | D14: 0 | E14: 0 | F14: 434 | G14: 36 | H14: 0
A15: Deporte y afines | B15: 34 | C15: 0 | D15: 0 | E15: 0 | F15: 0 | G15: 34 | H15: 0
A16: Deporte y Afines | B16: 1186 | C16: 0 | D16: 0 | E16: 0 | F16: 1186 | G16: 0 | H16: 0
A17: Electricidad y Electrónica | B17: 1265 | C17: 0 | D17: 0 | E17: 0 | F17: 1262 | G17: 3 | H17: 0
A18: Gastronomía | B18: 1984 | C18: 0 | D18: 0 | E18: 0 | F18: 1948 | G18: 36 | H18: 0
A19: Gráficos | B19: 45 | C19: 0 | D19: 0 | E19: 0 | F19: 45 | G19: 0 | H19: 0
A20: Hipica | B20: 62 | C20: 0 | D20: 0 | E20: 0 | F20: 62 | G20: 0 | H20: 0
A21: Hortifruticultura y Jardinería | B21: 122 | C21: 0 | D21: 0 | E21: 0 | F21: 122 | G21: 0 | H21: 0
A22: Informática | B22: 1218 | C22: 0 | D22: 0 | E22: 0 | F22: 1218 | G22: 0 | H22: 0
A23: Madera y Muebles | B23: 1170 | C23: 0 | D23: 0 | E23: 0 | F23: 1164 | G23: 6 | H23: 0
A24: Mantenimiento y Rep. de Vehículos | B24: 1173 | C24: 0 | D24: 0 | E24: 0 | F24: 1173 | G24: 0 | H24: 0
A25: Metal - Mecánica | B25: 488 | C25: 0 | D25: 0 | E25: 0 | F25: 488 | G25: 0 | H25: 0
A26: Producción de Alimentos | B26: 359 | C26: 0 | D26: 0 | E26: 0 | F26: 359 | G26: 0 | H26: 0
A27: Programa Articulación Rumbo y Otras | B27: 1313 | C27: 1112 | D27: 0 | E27: 0 | F27: 0 | G27: 201 | H27: 0
A28: Programa Ciclo Básico Agrario | B28: 1936 | C28: 0 | D28: 1936 | E28: 0 | F28: 0 | G28: 0 | H28: 0
A29: Programa Educación Media Básica | B29: 16537 | C29: 0 | D29: 0 | E29: 16537 | F29: 0 | G29: 0 | H29: 0
A30: Química, Termodinámica y Agroener. | B30: 609 | C30: 0 | D30: 0 | E30: 0 | F30: 74 | G30: 0 | H30: 535
A31: Sector no especificado | B31: 0 | C31: 0 | D31: 0 | E31: 0 | F31: 0 | G31: 0 | H31: 0
A32: Servicios Personales | B32: 1455 | C32: 0 | D32: 0 | E32: 0 | F32: 1435 | G32: 20 | H32: 0
A33: Textil y Confección de Vestimenta | B33: 237 | C33: 0 | D33: 0 | E33: 0 | F33: 233 | G33: 4
A36: Fuente : Procesamiento propio en base a datos proporcionados por el D.E.-CETP (U.T.U.)

Sheet II-3.3.1
A1: CONSEJO DE EDUCACIÓN SECUNDARIA | F1: PERSONAL DOCENTE
A3: Cuadro Nº II-3.3.1.
A5: PERSONAL DOCENTE Y HORAS DOCENTES DEL CES EN EDUACIÓN MEDIA BÁSICA GENERAL POR TITULACIÓN SEGÚN ASIGNATURAS. AÑO 2016.
A7: ASIGNATURAS | B7: TOTAL DOCENTES | C7: PERSONAL DOCENTE | E7: TOTAL HORAS | F7: HORAS DOCENTES
C8: Titulados | D8: No Titulados | F8: Titulados | G8: No Titulados
A9: TOTAL | B9: =SUM(C9:D9) -> 16722 | C9: =SUM(C10:C47) -> 9473 | D9: =SUM(D10:D47) -> 7249 | E9: =SUM(F9:G9) -> 236411 | F9: =SUM(F10:F47) -> 141115 | G9: =SUM(G10:G47) -> 95296
A10: ACT.ADAPTADAS AL MEDIO AMBIENT | B10: 66 | C10: 11 | D10: 55 | E10: 674 | F10: 98 | G10: 576
A11: ALEMÁN | B11: 7 | C11: 0 | D11: 7 | E11: 156 | F11: 0 | G11: 156
A12: ASTRONOMÍA | B12: 193 | C12: 56 | D12: 137 | E12: 2447 | F12: 636 | G12: 1811
A13: BIOLOGÍA | B13: 1421 | C13: 1068 | D13: 353 | E13: 17810 | F13: 14773 | G13: 3037
A14: CONTABILIDAD | B14: 3 | C14: 1 | D14: 2 | E14: 11 | F14: 2 | G14: 9
A15: DIBUJO | B15: 845 | C15: 496 | D15: 349 | E15: 12983 | F15: 8529 | G15: 4454
A16: DIRECTOR DE COROS | B16: 138 | C16: 73 | D16: 65 | E16: 1884 | F16: 1100 | G16: 784
A17: ECONOMÍA | B17: 1 | C17: 0 | D17: 1 | E17: 1 | F17: 0 | G17: 1
A18: ED.SOCIAL Y CÍVICA DERECHO | B18: =SUM(C18:D18) -> 536 | C18: 436 | D18: 100 | E18: =SUM(F18:G18) -> 4549 | F18: 3924 | G18: 625
A19: EDUCACIÓN FÍSICA | B19: 1166 | C19: 954 | D19: 212 | E19: 16305 | F19: 14239 | G19: 2066
A20: EDUCACIÓN MUSICAL | B20: 593 | C20: 135 | D20: 458 | E20: 9000 | F20: 2208 | G20: 6792
A21: EDUCADOR PARA LA SEXUALIDAD | B21: 46 | C21: 35 | D21: 11 | E21: 500 | F21: 380 | G21: 120
A22: ESPACIO CURRICULAR ABIERTO | B22: 669 | C22: 236 | D22: 433 | E22: 5494 | F22: 1867 | G22: 3627
A23: ESTUDIOS ECONÓMICOS Y SOCIALES | B23: 0 | C23: 0 | D23: 0 | E23: 0 | F23: 0 | G23: 0
A24: EXPRESIÓN CORPORAL Y DANZA | B24: 5 | C24: 1 | D24: 4 | E24: 43 | F24: 9 | G24: 34
A25: EXPRESIÓN CORPORAL Y TEATRO | B25: 4 | C25: 0 | D25: 4 | E25: 20 | F25: 0 | G25: 20
A26: FILOSOFÍA | B26: 428 | C26: 305 | D26: 123 | E26: 4782 | F26: 3682 | G26: 1100
A27: FÍSICA | B27: 656 | C27: 277 | D27: 379 | E27: 8273 | F27: 4001 | G27: 4272
A28: FRANCÉS | B28: 54 | C28: 15 | D28: 39 | E28: 1153 | F28: 318 | G28: 835
A29: GEOGRAFÍA | B29: 899 | C29: 667 | D29: 232 | E29: 13258 | F29: 10827 | G29: 2431
A30: GEOLOGÍA | B30: 3 | C30: 3 | D30: 0 | E30: 28 | F30: 28 | G30: 0
A31: HISTORIA | B31: 1578 | C31: 1271 | D31: 307 | E31: 19978 | F31: 17367 | G31: 2611
A32: IDIOMA ESPAÑOL | B32: 1209 | C32: 820 | D32: 389 | E32: 19958 | F32: 14436 | G32: 5522
A33: INFORMÁTICA | B33: 902 | C33: 146 | D33: 756 | E33: 14293 | F33: 2166 | G33: 12127
A34: INGLÉS | B34: 1377 | C34: 524 | D34: 853 | E34: 23800 | F34: 10491 | G34: 13309
A35: ITALIANO | B35: 63 | C35: 19 | D35: 44 | E35: 1190 | F35: 370 | G35: 820
A36: LABORATORIO DE INFORMÁTICA | B36: 376 | C36: 68 | D36: 308 | E36: 6382 | F36: 952 | G36: 5430
A37: LENG.COM.Y MED.AUDIOVISUALES | B37: 7 | C37: 1 | D37: 6 | E37: 83 | F37: 16 | G37: 67
A38: LENGUA DE SEÑAS | B38: 12 | C38: 2 | D38: 10 | E38: 243 | F38: 47 | G38: 196
A39: LITERATURA | B39: 873 | C39: 657 | D39: 216 | E39: 11210 | F39: 9088 | G39: 2122
A40: MANUALIDADES | B40: 1 | C40: 0 | D40: 1 | E40: 6 | F40: 0 | G40: 6
A41: MATEMÁTICA | B41: 1610 | C41: 622 | D41: 988 | E41: 28784 | F41: 12407 | G41: 16377
A42: PIANISTA ACOMPAÑANTE | B42: 119 | C42: 50 | D42: 69 | E42: 1373 | F42: 659 | G42: 714
A43: PORTUGUÉS | B43: =SUM(C43:D43) -> 80 | C43: 30 | D43: 50 | E43: =SUM(F43:G43) -> 1185 | F43: 495 | G43: 690
A44: QUÍMICA | B44: 779 | C44: 494 | D44: 285 | E44: 8540 | F44: 6000 | G44: 2540
A45: REC.NATUR.Y PAISAJE AGRARIO | B45: 0 | C45: 0 | D45: 0 | E45: 0 | F45: 0 | G45: 0
A46: TALLER EXPR.PLÁSTICA-ARTÍSTICA | B46: 1 | C46: 0 | D46: 1 | E46: 3 | F46: 0 | G46: 3
A47: TEATRO | B47: 2 | C47: 0 | D47: 2 | E47: 12 | F47: 0 | G47: 12
A48: Fuente: Departamento de Estadística — C.E.S.
A49: Nota: Los docentes que dictan más de una asignatura son considerados como personas distintas en cada asignatura.
A50: En 2019 la DIEE de la ANEP corrigió el dato
A51: Datos verificados por la DIEE de la ANEP en 2019.

Sheet II-3.3.2
A1: CONSEJO DE EDUCACIÓN TÉCNICO PROFESIONAL (U.T.U.) | E1: PERSONAL DOCENTE
A3: Cuadro Nº II-3.3.2.
A5: PERSONAL DOCENTE DEL CETP EN EDUCACIÓN MEDIA BÁSICA TECNOLÓGICA POR TIPO DE CURSO. AÑO 2016.
A6: EDUCACIÓN MEDIA BÁSICA | B6: TOTAL
A9: TOTAL | B9: =SUM(B10:B13) -> 7216
A10: Ciclo Básico Tecnológico | B10: 3952
A11: Ciclo Básico Tecnológico Agrario | B11: S/D
A12: Formación Profesional Básica Plan 2007 | B12: 2854
A13: Articulación Educ.Media Básica | B13: 410
A14: Fuente: U.T.U. División Informática.
A15: Nota: publicamos último dato disponible correspondiente al año 2015

Sheet II-3.4.1
A1: CONSEJO DE EDUCACIÓN SECUNDARIA | D1: GRUPOS
A3: Cuadro Nº II-3.4.1.
A5: GRUPOS DEL CES EN EDUCACIÓN MEDIA BÁSICA GENERAL COMPARADOS CON EL TOTAL DE GRUPOS EN EDUCACIÓN MEDIA GENERAL SEGÚN GRANDES ÁREAS Y FORMA DE ADMINISTRACIÓN. AÑO 2016.
A6: GRANDES ÁREAS Y FORMA DE ADMINISTRACIÓN | B6: FORMA DE ADMINISTRACIÓN
B8: Grupos en Educación Media Básica General | C8: Total de grupos en Educación Media General | D8: Promedio alumnos por grupo de Media Básica
A10: TOTAL DEL PAÍS | B10: =B15+B20 -> 5648 | C10: =C15+C20 -> 10286 | D10: ='II-3.2.1 '!B9/'II-3.4.1'!B10 -> 26.29001416
A11: MEDIA BÁSICA PÚBLICA | B11: =B12+B13 -> 4560 | C11: =C12+C13 -> 8035 | D11: ='II-3.2.1 '!B10/'II-3.4.1'!B11 -> 26.92192982
A12: Diurna | B12: =B17+B22 -> 4080 | C12: =C17+C22 -> 6833 | D12: ='II-3.2.1 '!B11/'II-3.4.1'!B12 -> 26.32156863
A13: Cuarto Turno | B13: 480 | C13: =C18+C23 -> 1202 | D13: ='II-3.2.1 '!B12/'II-3.4.1'!B13 -> 32.025
A14: MEDIA BÁSICA PRIVADA | B14: 1088 | C14: 2251 | D14: ='II-3.2.1 '!B13/'II-3.4.1'!B14 -> 23.64154412
A15: TOTAL MONTEVIDEO | B15: =B16+B19 -> 1989 | C15: =C16+C19 -> 3775 | D15: ='II-3.2.1 '!B14/'II-3.4.1'!B15 -> 27.20361991
A16: MEDIA BÁSICA PÚBLICA | B16: =B17+B18 -> 1314 | C16: =C17+C18 -> 2281 | D16: ='II-3.2.1 '!B15/'II-3.4.1'!B16 -> 28.59360731
A17: Diurna | B17: 1169 | C17: =B17+'II-4.4.1'!B15 -> 1831 | D17: ='II-3.2.1 '!B16/'II-3.4.1'!B17 -> 27.77416595
A18: Cuarto Turno | B18: 145 | C18: =B18+'II-4.4.1'!B16 -> 450 | D18: ='II-3.2.1 '!B17/'II-3.4.1'!B18 -> 35.2
A19: MEDIA BÁSICA PRIVADA | B19: 675 | C19: 1494 | D19: ='II-3.2.1 '!B18/'II-3.4.1'!B19 -> 24.49777778
A20: TOTAL RESTO DEL PAÍS | B20: =B21+B24 -> 3659 | C20: =C21+C24 -> 6511 | D20: ='II-3.2.1 '!B19/'II-3.4.1'!B20 -> 25.79338617
A21: MEDIA BÁSICA PÚBLICA | B21: =B22+B23 -> 3246 | C21: =C22+C23 -> 5754 | D21: ='II-3.2.1 '!B20/'II-3.4.1'!B21 -> 26.24522489
A22: Diurna | B22: 2911 | C22: =B22+'II-4.4.1'!B20 -> 5002 | D22: ='II-3.2.1 '!B21/'II-3.4.1'!B22 -> 25.73823428
A23: Cuarto Turno | B23: 335 | C23: =B23+'II-4.4.1'!B21 -> 752 | D23: ='II-3.2.1 '!B22/'II-3.4.1'!B23 -> 30.65074627
A24: MEDIA BÁSICA PRIVADA | B24: 413 | C24: 757 | D24: ='II-3.2.1 '!B23/'II-3.4.1'!B24 -> 22.24213075
A26: Fuente: D.E. — C.E.S.

Sheet MEDIA SUPERIOR
A8: Cuadro Nº II-4.1.1 | B8: ESTABLECIMIENTOS DE EDUCACIÓN MEDIA SUPERIOR POR MODALIDAD Y FORMA DE ADMINISTRACIÓN SEGÚN DEPARTAMENTO. AÑO 2016.
A11: Cuadro Nº II-4.2.1 | B11: ALUMNOS MATRICULADOS DEL CES EN EDUCACIÓN MEDIA SUPERIOR GENERAL POR GRADO SEGÚN GRANDES ÁREAS Y FORMA DE ADMINISTRACIÓN. AÑO 2016.
A13: Cuadro Nº II-4.2.2 | B13: ALUMNOS MATRICULADOS EN EL CETP EN EDUCACIÓN MEDIA SUPERIOR TECNOLÓGICA POR TIPO DE CURSO SEGÚN GRANDES ÁREAS, DEPARTAMENTO Y SEXO. AÑO 2016.
A15: Cuadro Nº II-4.2.3 | B15: ALUMNOS MATRICULADOS EN EL CETP EN EDUCACIÓN MEDIA SUPERIOR POR TIPO DE CURSO SEGÚN EDAD. AÑO 2016.
A17: Cuadro Nº II-4.2.4 | B17: ALUMNOS MATRICULADOS EN EL CETP EN EDUCACIÓN MEDIA SUPERIOR TECNOLÓGICA POR TIPO DE CURSO SEGÚN SECTORES DE ESTUDIO. AÑO 2016.
A19: Cuadro Nº II-4.2.5 | B19: ALUMNOS MATRICULADOS EN EL CES EN EDUCACIÓN MEDIA SUPERIOR GENERAL POR GRADO Y FORMA DE ADMINISTRACIÓN SEGÚN DEPARTAMENTO. AÑO 2016.
A21: Cuadro Nº II-4.2.6 | B21: ALUMNOS MATRICULADOS EN EL CES EN QUINTO GRADO DE EDUCACIÓN MEDIA GENERAL PÚBLICA POR PLAN Y ORIENTACIÓN SEGÚN DEPARTAMENTO. AÑO 2016.
A23: Cuadro Nº II-4.2.7 | B23: ALUMNOS MATRICULADOS EN EL CES EN QUINTO GRADO DE EDUCACIÓN MEDIA SUPERIOR DE EDUCACIÓN SECUNDARIA PRIVADA POR ORIENTACIÓN SEGÚN DEPARTAMENTO. AÑO 2016.
A25: Cuadro Nº II-4.2.8 | B25: ALUMNOS MATRICULADOS EN EL CES EN SEXTO GRADO DE EDUCACIÓN MEDIA GENERAL PÚBLICA POR PLAN Y OPCIÓN SEGÚN DEPARTAMENTO. AÑO 2016.
A27: Cuadro Nº II-4.2.9 | B27: ALUMNOS MATRICULADOS EN EL CES EN SEXTO GRADO DE EDUCACIÓN MEDIA GENERAL PRIVADA POR OPCIÓN SEGÚN DEPARTAMENTO. AÑO 2016.
A29: Cuadro Nº II-4.2.10 | B29: ALUMNOS MATRICULADOS DE EDUCACIÓN MEDIA SUPERIOR PRIVADA POR GRADO Y SEXO SEGÚN DEPARTAMENTO. AÑO 2016
A31: Cuadro Nº II-4.2.11 | B31: ALUMNOS MATRICULADOS DE EDUCACIÓN MEDIA SUPERIOR PRIVADA POR GRADO Y SEXO SEGÚN DEPARTAMENTO. AÑO 2016.
A34: Cuadro Nº II-4.3.1 | B34: PERSONAL DOCENTE Y HORAS DOCENTES DEL CES EN EDUCACIÓN MEDIA SUPERIOR GENERAL PÚBLICA POR CONDICIÓN DE TITULACIÓN. AÑO 2016.
A36: Cuadro Nº II-4.3.2 | B36: PERSONAL DOCENTE DEL CETP EN EDUCACIÓN MEDIA SUPERIOR TECNOLÓGICA POR TIPO DE CURSO. AÑO 2016.
A39: Cuadro Nº II-4.4.1 | B39: GRUPOS DE EDUCACIÓN MEDIA SUPERIOR GENERAL COMPARADOS CON EL TOTAL DE AMBOS CICLOS SEGÚN GRANDES ÁREAS Y FORMA DE ADMINISTRACIÓN. AÑO 2016.
A107: =MID(B70,1,20) -> 

Sheet II-4.1.1
A1: CONSEJO DE EDUCACIÓN SECUNDARIA (CES) Y CONSEJO DE EDUCACIÓN TÉCNICO PROFESIONAL (UTU) | H1: ESTABLECIMIENTOS
A3: Cuadro Nº II-4.1.1
A5: ESTABLECIMIENTOS DE EDUCACIÓN MEDIA SUPERIOR POR MODALIDAD Y FORMA DE ADMINISTRACIÓN SEGÚN DEPARTAMENTO. AÑO 2016.
A6: DEPARTAMENTO | C6: MODALIDAD
B7: TOTAL GENERAL | D7: CES | K7: CETP
D8: FORMA DE ADMINISTRACIÓN
C9: TOTAL LICEOS PÚBLICOS | D9: LICEOS PÚBLICOS | H9: TOTAL LICEOS PRIVADOS | I9: Liceos Privados | K9: TOTAL ESCUELAS DE CBT Y TÉCNICA
L10: Escuelas de CBT y Técnica.
D11: Diurnos Oficiales | F11: Extra Edad Oficiales (Nocturno Y Diurno)
D14: Bachillerato | E14: C.Básico y Bachillerato | F14: Bachillerato | G14: C.Básico y Bachillerato | I14: Bachillerato | J14: C.Básico y Bachillerato | L14: Escuelas de CBT y Técnica. | M14: Reparticiones
A15: TOTAL | B15: =C15+H15+K15 -> 616 | C15: =SUM(D15:G15) -> 298 | D15: =D16+D17 -> 42 | E15: =E16+E17 -> 154 | F15: =F16+F17 -> 38 | G15: =G16+G17 -> 64 | H15: =SUM(I15:J15) -> 164 | I15: =I16+I17 -> 8 | J15: =J16+J17 -> 156 | K15: =L15+M15 -> 154 | L15: =L16+L17 -> 127 | M15: =M16+M17 -> 27
A16: MONTEVIDEO | B16: =C16+H16+K16 -> 188 | C16: =SUM(D16:G16) -> 57 | D16: 17 | E16: 10 | F16: 14 | G16: 16 | H16: 96 | I16: 6 | J16: 90 | K16: =L16+M16 -> 35 | L16: 31 | M16: 4
A17: RESTO DEL PAÍS | B17: 428 | C17: =SUM(C18:C35) -> 241 | D17: =SUM(D18:D35) -> 25 | E17: =SUM(E18:E35) -> 144 | F17: =SUM(F18:F35) -> 24 | G17: =SUM(G18:G35) -> 48 | H17: 68 | I17: =SUM(I18:I35) -> 2 | J17: =SUM(J18:J35) -> 66 | K17: 119 | L17: =SUM(L18:L35) -> 96 | M17: =SUM(M18:M35) -> 23
A18: Artigas | B18: 19 | C18: =SUM(D18:G18) -> 11 | D18: 2 | E18: 7 | F18: 1 | G18: 1 | H18: 2 | I18: 0 | J18: 2 | K18: 6 | L18: 4 | M18: 2
A19: Canelones | B19: 101 | C19: 58 | D19: 8 | E19: 31 | F19: 4 | G19: 15 | H19: 21 | I19: 1 | J19: 20 | K19: 22 | L19: 17 | M19: 5
A20: Cerro Largo | B20: 18 | C20: 9 | D20: 0 | E20: 7 | F20: 0 | G20: 2 | H20: 3 | I20: 0 | J20: 3 | K20: 6 | L20: 5 | M20: 1
A21: Colonia | B21: 33 | C21: 20 | D21: 2 | E21: 10 | F21: 3 | G21: 5 | H21: 0 | I21: 0 | J21: 0 | K21: 13 | L21: 10 | M21: 3
A22: Durazno | B22: 11 | C22: 9 | D22: 1 | E22: 5 | F22: 2 | G22: 1 | H22: 2 | I22: 0 | J22: 2 | L22: 4 | M22: 1
A23: Flores | B23: 9 | C23: 4 | D23: 0 | E23: 2 | F23: 1 | G23: 1 | H23: 2 | I23: 0 | J23: 2 | K23: 3 | L23: 2 | M23: 1
A24: Florida | B24: 19 | C24: 13 | D24: 1 | E24: 9 | F24: 2 | G24: 1 | H24: 2 | I24: 0 | J24: 2 | K24: 4 | L24: 3 | M24: 1
A25: Lavalleja | B25: 12 | C25: 7 | D25: 0 | E25: 6 | F25: 1 | G25: 0 | H25: 1 | I25: 0 | J25: 1 | K25: 4 | L25: 3 | M25: 1
A26: Maldonado | B26: 33 | C26: 13 | D26: 1 | E26: 8 | F26: 0 | G26: 4 | H26: 12 | I26: 1 | J26: 11 | K26: 8 | L26: 7 | M26: 1
A27: Paysandú | B27: 21 | C27: 11 | D27: 2 | E27: 7 | F27: 1 | G27: 1 | H27: 2 | I27: 0 | J27: 2 | K27: 8 | L27: 6 | M27: 2
A28: Río Negro | B28: 13 | C28: 8 | D28: 1 | E28: 4 | F28: 1 | G28: 2 | H28: 2 | I28: 0 | J28: 2 | K28: 3 | L28: 3 | M28: 0
A29: Rivera | B29: 20 | C29: 11 | D29: 2 | E29: 7 | F29: 1 | G29: 1 | H29: 3 | I29: 0 | J29: 3 | K29: 6 | L29: 5 | M29: 1
A30: Rocha | B30: 19 | C30: 12 | D30: 1 | E30: 7 | F30: 1 | G30: 3 | H30: 2 | I30: 0 | J30: 2 | K30: 5 | L30: 5 | M30: 0
A31: Salto | B31: 25 | C31: 14 | D31: 1 | E31: 9 | F31: 3 | G31: 1 | H31: 5 | I31: 0 | J31: 5 | K31: 6 | L31: 4 | M31: 2
A32: San José | B32: 22 | C32: 12 | D32: 1 | E32: 6 | F32: 1 | G32: 4 | H32: 3 | I32: 0 | J32: 3 | K32: 7 | L32: 6 | M32: 1
A33: Soriano | B33: 18 | C33: 11 | D33: 1 | E33: 5 | F33: 2 | G33: 3 | H33: 1 | I33: 0 | J33: 1 | K33: 6 | L33: 6 | M33: 0
A34: Tacuarembó | B34: 19 | C34: 12 | D34: 1 | E34: 9 | F34: 0 | G34: 2 | H34: 3 | I34: 0 | J34: 3 | K34: 4 | L34: 3 | M34: 1
A35: Treinta y Tres | B35: 11 | C35: 6 | D35: 0 | E35: 5 | F35: 0 | G35: 1 | H35: 2 | I35: 0 | J35: 2 | K35: 3 | L35: 3 | M35: 0
A37: Fuente: D.E.- C.E.S .
A38: Nota: 1- Los establecimientos considerados en el Tipo de Educación Escuelas con "Ciclo Básico Rural” ya fueron considerados en los totales de establecimientos de Educación Primaria por lo cual, si bien se presentan en la columna correspondiente, no participan en el “Total” del presente cuadro.
A39: 2- En un mismo establecimiento del CETP coexisten cursos de distintos nivel edcuativo. En este cuadro se exponen las escuelas que dictan cursos de EDUCACIÓN MEDIA SUPERIOR. Se incluyeron reparticiones (localizaciones) que no son establecimientos de activos de ANEP.

Sheet II-4.2.1
A1: CONSEJO DE EDUCACIÓN SECUNDARIA | C1: ALUMNOS MATRICULADOS
A3: Cuadro Nº II-4.2.1
A5: ALUMNOS MATRICULADOS DEL CES EN EDUCACIÓN MEDIA SUPERIOR GENERAL POR GRADO SEGÚN GRANDES ÁREAS Y FORMA DE ADMINISTRACIÓN. AÑO 2016.
A6: GRANDES ÁREAS Y FORMA DE ADMINISTRACIÓN | B6: TOTAL | C6: GRADO
C8: CUARTO | D8: QUINTO | E8: SEXTO
A9: TOTAL DEL PAÍS | B9: =C9+D9+E9 -> 120525 | C9: =C10+C13 -> 44904 | D9: =D10+D13 -> 42319 | E9: =E10+E13 -> 33302
A10: MEDIA SUPERIOR PÚBLICA | B10: =C10+D10+E10 -> 103751 | C10: =C11+C12 -> 37880 | D10: =D11+D12 -> 37123 | E10: =E11+E12 -> 28748
A11: Diurna | B11: =C11+D11+E11 -> 69365 | C11: =C16+C21 -> 27606 | D11: 23696 | E11: 18063
A12: Cuarto Turno | B12: 34386 | C12: 10274 | D12: 13427 | E12: 10685
A13: MEDIA SUPERIOR PRIVADA | B13: 16774 | C13: 7024 | D13: 5196 | E13: 4554
A14: TOTAL MONTEVIDEO | B14: 46867 | C14: =C15+C18 -> 16735 | D14: =D15+D18 -> 16675 | E14: =E15+E18 -> 13457
A15: MEDIA SUPERIOR PÚBLICA | B15: 34535 | C15: =C16+C17 -> 11884 | D15: =D16+D17 -> 12758 | E15: =E16+E17 -> 9893
A16: Diurna | B16: 20128 | C16: 7869 | D16: 7073 | E16: 5186
A17: Cuarto Turno | B17: 14407 | C17: 4015 | D17: 5685 | E17: 4707
A18: MEDIA SUPERIOR PRIVADA | B18: 12332 | C18: 4851 | D18: 3917 | E18: 3564
A19: TOTAL RESTO DEL PAÍS | B19: 73658 | C19: =C20+C23 -> 28169 | D19: =D20+D23 -> 25644 | E19: =E20+E23 -> 19845
A20: MEDIA SUPERIOR PÚBLICA | B20: 69216 | C20: =C21+C22 -> 25996 | D20: =D21+D22 -> 24365 | E20: =E21+E22 -> 18855
A21: Diurna | B21: 49237 | C21: 19737 | D21: 16623 | E21: 12877
A22: Cuarto Turno | B22: 19979 | C22: 6259 | D22: 7742 | E22: 5978
A23: MEDIA SUPERIOR PRIVADA | B23: 4442 | C23: 2173 | D23: 1279 | E23: 990
A24: Fuente: DE — CES
A25: Nota: La referencia "Privada" (incluye los Habilitados "Liceo Naval" y "Liceo Militar"), se corresponde con la de "Liceos Habilitados" presente en ediciones anteriores del Anuario Estadístico del MEC

Sheet II-4.2.2
A1: CONSEJO DE EDUCACIÓN TÉCNICO PROFESIONAL (U.T.U.) | K1: ALUMNOS MATRICULADOS
A3: Cuadro Nº II-4.2.2
A5: ALUMNOS MATRICULADOS EN EL CETP EN EDUCACIÓN MEDIA SUPERIOR TECNOLÓGICA POR TIPO DE CURSO SEGÚN GRANDES ÁREAS, DEPARTAMENTO Y SEXO. AÑO 2016
A6: GRANDES ÁREAS,DEPARTAMENTO Y SEXO | B6: TOTAL | C6: TOTAL | E6: Tipo de curso
E7: EDUACIÓN MEDIA SUPERIOR TECONOLOGICA
E8: TOTAL | F8: Bachillerato Figari | H8: TOTAL | I8: Bachillerato Profesional Trayectos | K8: TOTAL | L8: Curso Técnico | O8: E. M. P. Especialización | Q8: TOTAL | R8: Educación Media Profesional | T8: TOTAL | U8: Educación Media Tecnológica | W8: TOTAL | X8: Tecnologica Finest | Z8: TOTAL | AA8: Formación Profesional Superior | AC8: TOTAL | AD8: BACHILLERATO PROFESIONAL
F9: Sexo | L9: Sexo | O9: Sexo | R9: Sexo | U9: Sexo | X9: Sexo | AA9: Sexo | AD9: Sexo
C10: F | D10: M | F10: F | G10: M | I10: F | J10: M | L10: F | M10: M | O10: F | P10: M | R10: F | S10: M | U10: F | V10: M
I11: Count | J11: Count | L11: Count | M11: Count | R11: Count | S11: Count | U11: Count | V11: Count
A12: TOTAL | B12: =C12+D12 -> 45180 | C12: =F12+I12+L12+O12+R12+U12+X12+AA12+AD12 -> 18568 | D12: =G12+J12+M12+P12+S12+V12+Y12+AB12+AE12 -> 26612 | E12: =F12+G12 -> 366 | F12: =F13+F14 -> 220 | G12: =G13+G14 -> 146 | H12: =I12+J12 -> 1315 | I12: =I13+I14 -> 298 | J12: =J13+J14 -> 1017 | K12: =L12+M12 -> 375 | L12: =L13+L14 -> 356 | M12: =M13+M14 -> 19 | N12: =O12+P12 -> 6 | O12: =O13+O14 -> 4 | P12: =P13+P14 -> 2 | Q12: =R12+S12 -> 14144 | R12: =R13+R14 -> 6277 | S12: =S13+S14 -> 7867 | T12: =U12+V12 -> 28699 | U12: =U13+U14 -> 11368 | V12: =V13+V14 -> 17331 | W12: =X12+Y12 -> 104 | X12: =X13+X14 -> 33 | Y12: =Y13+Y14 -> 71 | Z12: =AA12+AB12 -> 18 | AA12: =AA13+AA14 -> 6 | AB12: =AB13+AB14 -> 12 | AC12: =AD12+AE12 -> 153 | AD12: =AD13+AD14 -> 6 | AE12: =AE13+AE14 -> 147
A13: Montevideo | B13: =C13+D13 -> 18609 | C13: =F13+I13+L13+O13+R13+U13+X13+AA13+AD13 -> 6929 | D13: =G13+J13+M13+P13+S13+V13+Y13+AB13+AE13 -> 11680 | E13: 300 | F13: 174 | G13: 126 | H13: =I13+J13 -> 562 | I13: 115 | J13: 447 | K13: =L13+M13 -> 375 | L13: 356 | M13: 19 | N13: =O13+P13 -> 6 | O13: 4 | P13: 2 | Q13: =R13+S13 -> 5942 | R13: 2473 | S13: 3469 | T13: =U13+V13 -> 11221 | U13: 3786 | V13: 7435 | W13: =X13+Y13 -> 32 | X13: 9 | Y13: 23 | Z13: =AA13+AB13 -> 18 | AA13: 6 | AB13: 12 | AC13: 153 | AD13: 6 | AE13: 147
A14: RESTO DEL PAÍS | B14: 26571 | C14: 11639 | D14: 14932 | E14: =F14+G14 -> 66 | F14: =SUM(F15:F32) -> 46 | G14: =SUM(G15:G32) -> 20 | H14: 753 | I14: =SUM(I15:I32) -> 183 | J14: =SUM(J15:J32) -> 570 | K14: 0 | L14: =SUM(L15:L32) -> 0 | M14: =SUM(M15:M32) -> 0 | N14: 0 | O14: =SUM(O15:O32) -> 0 | P14: =SUM(P15:P32) -> 0 | Q14: 8202 | R14: =SUM(R15:R32) -> 3804 | S14: =SUM(S15:S32) -> 4398 | T14: 17478 | U14: =SUM(U15:U32) -> 7582 | V14: =SUM(V15:V32) -> 9896 | W14: 72 | X14: =SUM(X15:X32) -> 24 | Y14: =SUM(Y15:Y32) -> 48 | Z14: 0 | AA14: =SUM(AA15:AA32) -> 0 | AB14: 0 | AC14: 0 | AD14: 0 | AE14: 0
A15: Artigas | B15: 1700 | C15: 899 | D15: 801 | E15: =F15+G15 -> 22 | F15: 12 | G15: 10 | H15: =I15+J15 -> 43 | I15: 9 | J15: 34 | K15: =L15+M15 -> 0 | L15: 0 | M15: 0 | N15: =O15+P15 -> 0 | O15: 0 | P15: 0 | Q15: =R15+S15 -> 744 | R15: 396 | S15: 348 | T15: =U15+V15 -> 891 | U15: 482 | V15: 409 | W15: =X15+Y15 -> 0 | X15: 0 | Y15: 0 | Z15: =AA15+AB15 -> 0 | AA15: 0 | AB15: 0 | AC15: 0 | AD15: 0 | AE15: 0
A16: Canelones | B16: 5408 | C16: 2524 | D16: 2884 | E16: =F16+G16 -> 0 | F16: 0 | G16: 0 | H16: =I16+J16 -> 104 | I16: 32 | J16: 72 | K16: =L16+M16 -> 0 | L16: 0 | M16: 0 | N16: =O16+P16 -> 0 | O16: 0 | P16: 0 | Q16: =R16+S16 -> 1749 | R16: 913 | S16: 836 | T16: =U16+V16 -> 3543 | U16: 1576 | V16: 1967 | W16: =X16+Y16 -> 12 | X16: 3 | Y16: 9 | Z16: =AA16+AB16 -> 0 | AA16: 0 | AB16: 0 | AC16: 0 | AD16: 0 | AE16: 0
A17: Cerro Largo | B17: 1217 | C17: 559 | D17: 658 | E17: 0 | F17: 0 | G17: 0 | H17: 29 | I17: 7 | J17: 22 | K17: 0 | L17: 0 | M17: 0 | N17: 0 | O17: 0 | P17: 0 | Q17: 366 | R17: 198 | S17: 168 | T17: 822 | U17: 354 | V17: 468 | W17: 0 | X17: 0 | Y17: 0 | Z17: 0 | AA17: 0 | AB17: 0 | AC17: 0 | AD17: 0 | AE17: 0
A18: Colonia | B18: 1826 | C18: 756 | D18: 1070 | E18: 0 | F18: 0 | G18: 0 | H18: 79 | I18: 30 | J18: 49 | K18: 0 | L18: 0 | M18: 0 | N18: 0 | O18: 0 | P18: 0 | Q18: 590 | R18: 256 | S18: 334 | T18: 1157 | U18: 470 | V18: 687 | W18: 0 | X18: 0 | Y18: 0 | Z18: 0 | AA18: 0 | AB18: 0 | AC18: 0 | AD18: 0 | AE18: 0
A19: Durazno | B19: 713 | C19: 328 | D19: 385 | E19: 0 | F19: 0 | G19: 0 | H19: 0 | I19: 0 | J19: 0 | K19: 0 | L19: 0 | M19: 0 | N19: 0 | O19: 0 | P19: 0 | Q19: 59 | R19: 20 | S19: 39 | T19: 654 | U19: 308 | V19: 346 | W19: 0 | X19: 0 | Y19: 0 | Z19: 0 | AA19: 0 | AB19: 0 | AC19: 0 | AD19: 0 | AE19: 0
A20: Flores | B20: 257 | C20: 123 | D20: 134 | E20: 0 | F20: 0 | G20: 0 | H20: 11 | I20: 2 | J20: 9 | K20: 0 | L20: 0 | M20: 0 | N20: 0 | O20: 0 | P20: 0 | Q20: 11 | R20: 6 | S20: 5 | T20: 235 | U20: 115 | V20: 120 | W20: 0 | X20: 0 | Y20: 0 | Z20: 0 | AA20: 0 | AB20: 0 | AC20: 0 | AD20: 0 | AE20: 0
A21: Florida | B21: 809 | C21: 387 | D21: 422 | E21: 0 | F21: 0 | G21: 0 | H21: 0 | I21: 0 | J21: 0 | K21: 0 | L21: 0 | M21: 0 | N21: 0 | O21: 0 | P21: 0 | Q21: 146 | R21: 101 | S21: 45 | T21: 631 | U21: 272 | V21: 359 | W21: 32 | X21: 14 | Y21: 18 | Z21: 0 | AA21: 0 | AB21: 0 | AC21: 0 | AD21: 0 | AE21: 0
A22: Lavalleja | B22: 647 | C22: 298 | D22: 349 | E22: 0 | F22: 0 | G22: 0 | H22: 24 | I22: 6 | J22: 18 | L22: 0 | M22: 0 | N22: 0 | O22: 0 | P22: 0 | Q22: 329 | R22: 148 | S22: 181 | T22: 294 | U22: 144 | V22: 150 | W22: 0 | X22: 0 | Y22: 0 | Z22: 0 | AA22: 0 | AB22: 0 | AC22: 0 | AD22: 0 | AE22: 0
A23: Maldonado | B23: 2197 | C23: 867 | D23: 1330 | E23: 0 | F23: 0 | G23: 0 | H23: 120 | I23: 34 | J23: 86 | K23: 0 | L23: 0 | M23: 0 | N23: 0 | O23: 0 | P23: 0 | Q23: 826 | R23: 356 | S23: 470 | T23: 1242 | U23: 475 | V23: 767 | W23: 9 | X23: 2 | Y23: 7 | Z23: 0 | AA23: 0 | AB23: 0 | AC23: 0 | AD23: 0 | AE23: 0
A24: Paysandú | B24: 1927 | C24: 700 | D24: 1227 | E24: 0 | F24: 0 | G24: 0 | H24: 45 | I24: 9 | J24: 36 | K24: 0 | L24: 0 | M24: 0 | N24: 0 | O24: 0 | P24: 0 | Q24: 329 | R24: 161 | S24: 168 | T24: 1545 | U24: 528 | V24: 1017 | W24: 8 | X24: 2 | Y24: 6 | Z24: 0 | AA24: 0 | AB24: 0 | AC24: 0 | AD24: 0 | AE24: 0
A25: Rio Negro | B25: 910 | C25: 343 | D25: 567 | E25: 0 | F25: 0 | G25: 0 | H25: 16 | I25: 0 | J25: 16 | K25: 0 | L25: 0 | M25: 0 | N25: 0 | O25: 0 | P25: 0 | Q25: 183 | R25: 56 | S25: 127 | T25: 711 | U25: 287 | V25: 424 | W25: 0 | X25: 0 | Y25: 0 | Z25: 0 | AA25: 0 | AB25: 0 | AC25: 0 | AD25: 0 | AE25: 0
A26: Rivera | B26: 1286 | C26: 561 | D26: 725 | E26: 44 | F26: 34 | G26: 10 | H26: 9 | I26: 5 | J26: 4 | K26: 0 | L26: 0 | M26: 0 | N26: 0 | O26: 0 | P26: 0 | Q26: 202 | R26: 97 | S26: 105 | T26: 1031 | U26: 425 | V26: 606 | W26: 0 | X26: 0 | Y26: 0 | Z26: 0 | AA26: 0 | AB26: 0 | AC26: 0 | AD26: 0 | AE26: 0
A27: Rocha | B27: 679 | C27: 335 | D27: 344 | E27: 0 | F27: 0 | G27: 0 | H27: 13 | I27: 0 | J27: 13 | K27: 0 | L27: 0 | M27: 0 | N27: 0 | O27: 0 | P27: 0 | Q27: 299 | R27: 118 | S27: 181 | T27: 367 | U27: 217 | V27: 150 | W27: 0 | X27: 0 | Y27: 0 | Z27: 0 | AA27: 0 | AB27: 0 | AC27: 0 | AD27: 0 | AE27: 0
A28: Salto | B28: 2223 | C28: 910 | D28: 1313 | E28: 0 | F28: 0 | G28: 0 | H28: 130 | I28: 30 | J28: 100 | K28: 0 | L28: 0 | M28: 0 | N28: 0 | O28: 0 | P28: 0 | Q28: 769 | R28: 337 | S28: 432 | T28: 1313 | U28: 540 | V28: 773 | W28: 11 | X28: 3 | Y28: 8 | Z28: 0 | AA28: 0 | AB28: 0 | AC28: 0 | AD28: 0 | AE28: 0
A29: San José | B29: 1242 | C29: 575 | D29: 667 | E29: 0 | F29: 0 | G29: 0 | H29: 39 | I29: 11 | J29: 28 | K29: 0 | L29: 0 | M29: 0 | N29: 0 | O29: 0 | P29: 0 | Q29: 589 | R29: 243 | S29: 346 | T29: 614 | U29: 321 | V29: 293 | W29: 0 | X29: 0 | Y29: 0 | Z29: 0 | AA29: 0 | AB29: 0 | AC29: 0 | AD29: 0 | AE29: 0
A30: Soriano | B30: 1474 | C30: 628 | D30: 846 | E30: 0 | F30: 0 | G30: 0 | H30: 21 | I30: 0 | J30: 21 | K30: 0 | L30: 0 | M30: 0 | N30: 0 | O30: 0 | P30: 0 | Q30: 418 | R30: 174 | S30: 244 | T30: 1035 | U30: 454 | V30: 581 | W30: 0 | X30: 0 | Y30: 0 | Z30: 0 | AA30: 0 | AB30: 0 | AC30: 0 | AD30: 0 | AE30: 0
A31: Tacuarembó | B31: 1435 | C31: 589 | D31: 846 | E31: 0 | F31: 0 | G31: 0 | H31: 59 | I31: 7 | J31: 52 | K31: 0 | L31: 0 | M31: 0 | N31: 0 | O31: 0 | P31: 0 | Q31: 422 | R31: 144 | S31: 278 | T31: 954 | U31: 438 | V31: 516 | W31: 0 | X31: 0 | Y31: 0 | Z31: 0 | AA31: 0 | AB31: 0 | AC31: 0 | AD31: 0 | AE31: 0
A32: Treinta y Tres | B32: 621 | C32: 257 | D32: 364 | E32: 0 | F32: 0 | G32: 0 | H32: 11 | I32: 1 | J32: 10 | K32: 0 | L32: 0 | M32: 0 | N32: 0 | O32: 0 | P32: 0 | Q32: 171 | R32: 80 | S32: 91 | T32: 439 | U32: 176 | V32: 263 | W32: 0 | X32: 0 | Y32: 0 | Z32: 0 | AA32: 0 | AB32: 0 | AC32: 0 | AD32: 0 | AE32: 0
A33: Fuente : Procesamiento propio en base a datos proporcionados por el D.E. _ CETP (U.T.U. )
A34: Nota: Los matriculados en Formación Profesional Superior, potencialmente son estudiantes de Educación Media Superior, ya que con el curso de Articulación correspondiente adquieren continuidad educativa a nivel tericiario.
A35: En Educación Media Tecnológica se sumaron 4 mujeres y 13 hombres en Florida que corresponden al curso Educación Media Tecnológica Fines.

Sheet II-4.2.3
A1: CONSEJO DE EDUCACIÓN TÉCNICO PROFESIONAL (U.T.U.) | L1: ALUMNOS MATRICULADOS
A3: Cuadro Nº II-4.2.3
A5: ALUMNOS MATRICULADOS EN EL CETP EN EDUCACIÓN MEDIA SUPERIOR POR TIPO DE CURSO SEGÚN EDAD. AÑO 2016.
A6: EDAD | B6: TOTAL | C6: TIPO DE CURSO
C8: EDUCACIÓN MEDIA SUPERIOR TECNOLÓGICA
C9: Bachillerato Profesional Trayectos | D9: Bachillerato Figari | E9: Bachillerato Profesional | F9: Curso Técnico | G9: E. M. P. Especialización | H9: Educación Media Profesional | I9: Educación Media Tecnológica | J9: Tecnológica Finest | K9: Formación Profesional Superior
A10: TOTAL | B10: =C10+D10+E10++F10+G10+H10+I10+J10+K10 -> 45180 | C10: =SUM(C11:C21) -> 153 | D10: =SUM(D11:D21) -> 366 | E10: 1315 | F10: 375 | G10: 6 | H10: 14144 | I10: 28699 | J10: =SUM(J11:J21) -> 104 | K10: 18
A11: 11 y 12 años | B11: =C11+D11+E11++F11+G11+H11+I11+J11+K11 -> 3 | C11: 0 | D11: 0 | E11: 0 | F11: 0 | G11: 0 | H11: 1 | I11: 2 | J11: 0 | K11: 0
A12: 13 años | B12: 0 | C12: 0 | D12: 0 | E12: 0 | F12: 0 | G12: 0 | H12: 0 | I12: 0 | J12: 0 | K12: 0
A13: 14 años | B13: 26 | C13: 0 | D13: 0 | E13: 0 | F13: 0 | G13: 0 | H13: 2 | I13: 24 | J13: 0 | K13: 0
A14: 15 años | B14: 3692 | C14: 0 | D14: 15 | E14: 0 | F14: 15 | G14: 2 | H14: 710 | I14: 2950 | J14: 0 | K14: 0
A15: 16 años | B15: 6341 | C15: 0 | D15: 37 | E15: 2 | F15: 28 | G15: 2 | H15: 1522 | I15: 4749 | J15: 0 | K15: 1
A16: 17 años | B16: 7511 | C16: 0 | D16: 51 | E16: 189 | F16: 34 | G16: 1 | H16: 1842 | I16: 5392 | J16: 1 | K16: 1
A17: 18años | B17: 5934 | C17: 0 | D17: 33 | E17: 209 | F17: 55 | G17: 0 | H17: 1674 | I17: 3958 | J17: 2 | K17: 3
A18: 19años | B18: 4273 | C18: 0 | D18: 31 | E18: 181 | F18: 55 | G18: 0 | H18: 1363 | I18: 2631 | J18: 10 | K18: 2
A19: 20 a 24 años | B19: 9428 | C19: 6 | D19: 76 | E19: 360 | F19: 109 | G19: 1 | H19: 3466 | I19: 5373 | J19: 31 | K19: 6
A20: 25 a 29 años | B20: 3849 | C20: 40 | D20: 39 | E20: 153 | F20: 43 | G20: 0 | H20: 1569 | I20: 1980 | J20: 21 | K20: 4
A21: 30 años y más | B21: 4123 | C21: 107 | D21: 84 | E21: 221 | F21: 36 | G21: 0 | H21: 1995 | I21: 1640 | J21: 39 | K21: 1
A23: Fuente: Procesamiento propio en base a datos proporcionados por el D.E. - CETP (U.T.U)
A24: Nota: Los cursos de Articulación no corresponden estrictamente a Educación Media Superior. El curso de Articulación brinda la posibilidad de adquirir el nivel educativo para Terciario. De esta manera se entiende que su inclusión en Educación Media Superior parece más apropiada que su inclusión en nivel terciario dentro de la oferta educativa del CEPT.
A25: En Educación Media Tecnológica se sumaron 17 estudiantes que corresponden al curso Educación Media Tecnológica Fines.

Sheet II-4.2.4
A1: CONSEJO DE EDUCACIÓN TÉCNICO PROFESIONAL (U.T.U.) | J1: ALUMNOS MATRICULADOS
A3: Cuadro Nº II-4.2.4.
A5: ALUMNOS MATRICULADOS EN EL CETP EN EDUCACIÓN MEDIA SUPERIOR TECNOLÓGICA POR TIPO DE CURSO SEGÚN SECTORES DE ESTUDIO. AÑO 2016.
A6: SECTORES DE ESTUDIO | B6: TOTAL | C6: EDUCACIÓN MEDIA SUPERIOR TECNOLÓGICA
C7: BACHILLERATO PROFESIONAL TRAYECTOS | D7: Bachillerato Figari | E7: Bachillerato Profesional | F7: Curso Técnico | G7: E. M. P. Especialización | H7: Educación Media Profesional | I7: Educación Media Tecnológica | J7: Tecnológica Finest | K7: Formación Profesional Superior
A8: TOTAL | B8: =C8+D8+E8+F8+G8+H8+I8+J8+K8 -> 45180 | C8: =SUM(C9:C32) -> 153 | D8: =SUM(D9:D32) -> 366 | E8: 1315 | F8: 375 | G8: 6 | H8: 14144 | I8: 28699 | J8: 104 | K8: 18
A9: Agropecuario | B9: =C9+D9+E9+F9+G9+H9+I9+J9+K9 -> 2439 | C9: 0 | D9: 0 | E9: 47 | F9: 0 | G9: 0 | H9: 265 | I9: 2127 | J9: 0 | K9: 0
A10: Artes y Artesanías | B10: 330 | C10: 0 | D10: 330 | E10: 0 | F10: 0 | G10: 0 | H10: 0 | I10: 0 | J10: 0 | K10: 0
A11: Cerámica | B11: 36 | C11: 0 | D11: 36 | E11: 0 | F11: 0 | G11: 0 | H11: 0 | I11: 0 | J11: 0 | K11: 0
A12: Comercio y Administración | B12: 11280 | C12: 0 | D12: 0 | E12: 0 | F12: 0 | G12: 0 | H12: 3325 | I12: 7955 | J12: 0 | K12: 0
A13: Comunicación | B13: 205 | C13: 19 | D13: 0 | E13: 0 | F13: 0 | G13: 0 | H13: 0 | I13: 186 | J13: 0 | K13: 0
A14: Construcción y Arquitectura | B14: 2219 | C14: 0 | D14: 0 | E14: 88 | F14: 0 | G14: 6 | H14: 508 | I14: 1617 | J14: 0 | K14: 0
A15: Deporte y Afines | B15: 5501 | C15: 0 | D15: 0 | E15: 0 | F15: 0 | G15: 0 | H15: 166 | I15: 5335 | J15: 0 | K15: 0
A16: Electricidad y Electrónica | B16: 5730 | C16: 134 | D16: 0 | E16: 378 | F16: 0 | G16: 0 | H16: 2141 | I16: 3077 | J16: 0 | K16: 0
A17: Forestal | B17: 42 | C17: 0 | D17: 0 | E17: 0 | F17: 0 | G17: 0 | H17: 42 | I17: 0 | J17: 0 | K17: 0
A18: Gastronomía | B18: 2918 | C18: 0 | D18: 0 | E18: 424 | F18: 0 | G18: 0 | H18: 2494 | I18: 0 | J18: 0 | K18: 0
A19: Gráficos | B19: 112 | C19: 0 | D19: 0 | E19: 0 | F19: 0 | G19: 0 | H19: 0 | I19: 94 | J19: 0 | K19: 18
A20: Hortifruticultura y Jardinería | B20: 56 | C20: 0 | D20: 0 | E20: 13 | F20: 0 | G20: 0 | H20: 43 | I20: 0 | J20: 0 | K20: 0
A21: Hotelería | B21: 61 | C21: 0 | D21: 0 | E21: 0 | F21: 0 | G21: 0 | H21: 61 | I21: 0 | J21: 0 | K21: 0
A22: Informática | B22: 5884 | C22: 0 | D22: 0 | E22: 44 | F22: 0 | G22: 0 | H22: 336 | I22: 5504 | J22: 0
A23: Madera y Muebles | B23: 760 | C23: 0 | D23: 0 | E23: 64 | F23: 0 | G23: 0 | H23: 696 | I23: 0 | J23: 0 | K23: 0
A24: Mant. Rep. y Serv. a la Producción | B24: 137 | C24: 0 | D24: 0 | E24: 24 | F24: 0 | G24: 0 | H24: 113 | I24: 0 | J24: 0 | K24: 0
A25: Mantenimiento y Rep. de Vehículos | B25: 2064 | C25: 0 | D25: 0 | E25: 188 | F25: 0 | G25: 0 | H25: 1481 | I25: 395 | J25: 0 | K25: 0
A26: Metal - Mecánica | B26: 995 | C26: 0 | D26: 0 | E26: 29 | F26: 0 | G26: 0 | H26: 425 | I26: 541 | J26: 0 | K26: 0
A27: Nautica y Pesca | B27: 129 | C27: 0 | D27: 0 | E27: 16 | F27: 0 | G27: 0 | H27: 113 | I27: 0 | J27: 0 | K27: 0
A28: Protección al Medio Ambiente | B28: 37 | C28: 0 | D28: 0 | E28: 0 | F28: 0 | G28: 0 | H28: 37 | I28: 0 | J28: 0 | K28: 0
A29: Química, Termodinámica y Agroener. | B29: 834 | C29: 0 | D29: 0 | E29: 0 | F29: 0 | G29: 0 | H29: 153 | I29: 577 | J29: 104 | K29: 0
A30: Servicios Personales | B30: 1714 | C30: 0 | D30: 0 | E30: 0 | F30: 161 | G30: 0 | H30: 1553 | I30: 0 | J30: 0 | K30: 0
A31: Textil y Confección de Vestimenta | B31: 406 | C31: 0 | D31: 0 | E31: 0 | F31: 214 | G31: 0 | H31: 192 | I31: 0 | J31: 0 | K31: 0
A32: Turismo | B32: 1291 | C32: 0 | D32: 0 | E32: 0 | F32: 0 | G32: 0 | H32: 0 | I32: 1291 | J32: 0 | K32: 0
A33: Fuente: D.E.- CETP (U.T.U.)
A34: Nota: Los cursos de Articulación no corresponden estrictamente a Educación Media Superior. El curso de Articulación brinda la posibilidad de adquirir el nivel educativo para Terciario. De esta manera se entiende que su inclusión en Educación Media Superior parece más apropiada que su inclusión en nivel terciario dentro de la oferta educativa del CETP.
A35: En Educación Media Tecnológica se sumaron 17 estudiantes que corresponden al curso Educación Media Tecnológica Finest y sector de estudio Química, Termodinámica y Agroenergía

Sheet II-4.2.5
A1: CONSEJO DE EDUCACIÓN SECUNDARIA | E1: ALUMNOS MATRICULADOS
A3: Cuadro Nº II-4.2.5.
A5: ALUMNOS MATRICULADOS EN EL CES EN EDUCACIÓN MEDIA SUPERIOR GENERAL POR GRADO Y FORMA DE ADMINISTRACIÓN SEGÚN DEPARTAMENTO. AÑO 2016.
A6: DEPARTAMENTO | B6: GRADO
B7: CUARTO | D7: QUINTO | F7: SEXTO
B8: FORMA DE ADMINISTRACIÓN
B9: Públicos | C9: Privados | D9: Públicos | E9: Privados | F9: Públicos | G9: Privados
A10: TOTAL | B10: =SUM(B11:B12) -> 37880 | C10: 7024 | D10: 37123 | E10: 5196 | F10: =SUM(F11:F12) -> 28748 | G10: 4554
A11: MONTEVIDEO | B11: 11884 | C11: 4851 | D11: 12758 | E11: 3917 | F11: 9893 | G11: 3564
A12: RESTO DEL PAÍS | B12: =SUM(B13:B30) -> 25996 | C12: 2173 | D12: 24365 | E12: 1279 | F12: =SUM(F13:F30) -> 18855 | G12: 990
A13: Artigas | B13: 1094 | C13: 7 | D13: 1021 | E13: 0 | F13: 747 | G13: 0
A14: Canelones | B14: 6646 | C14: 756 | D14: 5864 | E14: 464 | F14: 4453 | G14: 374
A15: Cerro Largo | B15: 1192 | C15: 85 | D15: 1086 | E15: 62 | F15: 855 | G15: 52
A16: Colonia | B16: 1343 | C16: 0 | D16: 1298 | E16: 0 | F16: 1109 | G16: 0
A17: Durazno | B17: 663 | C17: 45 | D17: 685 | E17: 0 | F17: 557 | G17: 0
A18: Flores | B18: 309 | C18: 36 | D18: 336 | E18: 0 | F18: 250 | G18: 0
A19: Florida | B19: 778 | C19: 78 | D19: 781 | E19: 34 | F19: 597 | G19: 23
A20: Lavalleja | B20: 720 | C20: 25 | D20: 820 | E20: 16 | F20: 613 | G20: 11
A21: Maldonado | B21: 2177 | C21: 411 | D21: 2279 | E21: 402 | F21: 1808 | G21: 285
A22: Paysandú | B22: 1278 | C22: 157 | D22: 1331 | E22: 112 | F22: 982 | G22: 87
A23: Río Negro | B23: 658 | C23: 35 | D23: 560 | E23: 0 | F23: 471 | G23: 0
A24: Rivera | B24: 1599 | C24: 51 | D24: 1401 | E24: 21 | F24: 1136 | G24: 4
A25: Rocha | B25: 1248 | C25: 37 | D25: 1144 | E25: 0 | F25: 843 | G25: 0
A26: Salto | B26: 1622 | C26: 176 | D26: 1587 | E26: 59 | F26: 1314 | G26: 66
A27: San José | B27: 1442 | C27: 76 | D27: 1407 | E27: 40 | F27: 887 | G27: 33
A28: Soriano | B28: 1018 | C28: 66 | D28: 944 | E28: 0 | F28: 866 | G28: 0
A29: Tacuarembó | B29: 1398 | C29: 90 | D29: 1167 | E29: 69 | F29: 888 | G29: 55
A30: Treinta y Tres | B30: 811 | C30: 42 | D30: 654 | E30: 0 | F30: 479 | G30: 0
A31: Fuente: DE — CES
A32: Nota: La referencia "Privados" (incluye los Habilitados "Liceo Naval" y "Liceo Militar"), se corresponde con la de "Liceos Habilitados" presente en ediciones anteriores del Anuario Estadístico del MEC

Sheet II-4.2.6
A1: CONSEJO DE EDUCACIÓN SECUNDARIA | H1: ALUMNOS MATRICULADOS
A3: Cuadro Nº II-4.2.6
A5: ALUMNOS MATRICULADOS EN EL CES EN QUINTO GRADO DE EDUCACIÓN MEDIA GENERAL PÚBLICA POR PLAN Y ORIENTACIÓN SEGÚN DEPARTAMENTO. AÑO 2016.
A6: DEPARTAMENTO | B6: TOTAL GENERAL
C7: TOTAL PLAN 94 | D7: ORIENTACIÓN PLAN / 94 | G7: TOTAL PLAN 06 | H7: ORIENTACIÓN PLAN / REFORMULACIÓN 2006
D8: 2º H | E8: 2º B | F8: 2º C
H9: DivHum | I9: DivBiol | J9: DivCient | K9: DivArt
A11: TOTAL | B11: =SUM(C11+G11) -> 36954 | C11: =SUM(D11:F11) -> 13427 | D11: =SUM(D12:D13) -> 7694 | E11: 4890 | F11: 843 | G11: =SUM(H11:K11) -> 23527 | H11: =SUM(H12:H13) -> 9267 | I11: =SUM(I12:I13) -> 8847 | J11: =SUM(J12:J13) -> 3400 | K11: =SUM(K12:K13) -> 2013
A12: MONTEVIDEO | B12: 12758 | C12: 5685 | D12: 3246 | E12: 1938 | F12: 501 | G12: 7073 | H12: 2698 | I12: 2264 | J12: 1156 | K12: 955
A13: RESTO DEL PAÍS | B13: 24196 | C13: 7742 | D13: =SUM(D14:D31) -> 4448 | E13: 2952 | F13: 342 | G13: 16454 | H13: =SUM(H14:H31) -> 6569 | I13: =SUM(I14:I31) -> 6583 | J13: =SUM(J14:J31) -> 2244 | K13: =SUM(K14:K31) -> 1058
A14: Artigas | B14: 1021 | C14: 241 | D14: 152 | E14: 81 | F14: 8 | G14: 780 | H14: 330 | I14: 340 | J14: 81 | K14: 29
A15: Canelones | B15: 5864 | C15: 2189 | D15: 1337 | E15: 689 | F15: 163 | G15: 3675 | H15: 1394 | I15: 1279 | J15: 627 | K15: 375
A16: Cerro Largo | B16: 1086 | C16: 320 | D16: 188 | E16: 132 | F16: 0 | G16: 766 | H16: 349 | I16: 297 | J16: 70 | K16: 50
A17: Colonia | B17: 1298 | C17: 469 | D17: 258 | E17: 211 | F17: 0 | G17: 829 | H17: 285 | I17: 299 | J17: 178 | K17: 67
A18: Durazno | B18: 685 | C18: 185 | D18: 115 | E18: 70 | F18: 0 | G18: 500 | H18: 207 | I18: 201 | J18: 63 | K18: 29
A19: Flores | B19: 336 | C19: 100 | D19: 42 | E19: 58 | F19: 0 | G19: 236 | H19: 65 | I19: 104 | J19: 54 | K19: 13
A20: Florida | B20: 781 | C20: 223 | D20: 121 | E20: 102 | F20: 0 | G20: 558 | H20: 228 | I20: 229 | J20: 64 | K20: 37
A21: Lavalleja | B21: 820 | C21: 121 | D21: 69 | E21: 52 | F21: 0 | G21: 699 | H21: 337 | I21: 262 | J21: 71 | K21: 29
A22: Maldonado | B22: 2110 | C22: 671 | D22: 370 | E22: 255 | F22: 46 | G22: 1439 | H22: 630 | I22: 580 | J22: 229
A23: Paysandú | B23: 1331 | C23: 469 | D23: 221 | E23: 217 | F23: 31 | G23: 862 | H23: 295 | I23: 439 | J23: 97 | K23: 31
A24: Río Negro | B24: 560 | C24: 186 | D24: 114 | E24: 72 | F24: 0 | G24: 374 | H24: 155 | I24: 155 | J24: 38 | K24: 26
A25: Rivera | B25: 1401 | C25: 278 | D25: 189 | E25: 68 | F25: 21 | G25: 1123 | H25: 543 | I25: 430 | J25: 93 | K25: 57
A26: Rocha | B26: 1144 | C26: 444 | D26: 251 | E26: 193 | F26: 0 | G26: 700 | H26: 260 | I26: 291 | J26: 84 | K26: 65
A27: Salto | B27: 1587 | C27: 341 | D27: 183 | E27: 133 | F27: 25 | G27: 1246 | H27: 521 | I27: 538 | J27: 122 | K27: 65
A28: San José | B28: 1407 | C28: 666 | D28: 314 | E28: 304 | F28: 48 | G28: 741 | H28: 234 | I28: 337 | J28: 121 | K28: 49
A29: Soriano | B29: 944 | C29: 308 | D29: 216 | E29: 92 | F29: 0 | G29: 636 | H29: 220 | I29: 250 | J29: 115 | K29: 51
A30: Tacuarembó | B30: 1167 | C30: 291 | D30: 182 | E30: 109 | F30: 0 | G30: 876 | H30: 360 | I30: 373 | J30: 86 | K30: 57
A31: Treinta y Tres | B31: 654 | C31: 240 | D31: 126 | E31: 114 | F31: 0 | G31: 414 | H31: 156 | I31: 179 | J31: 51 | K31: 28
A32: Fuente: DE — CES

Sheet II-4.2.7
A1: CONSEJO DE EDUCACIÓN SECUNDARIA | F1: ALUMNOS MATRICULADOS
A3: Cuadro Nº II-4.2.7
A7: ALUMNOS MATRICULADOS EN EL CES EN QUINTO GRADO DE EDUCACIÓN MEDIA SUPERIOR DE EDUCACIÓN SECUNDARIA PRIVADA POR ORIENTACIÓN SEGÚN DEPARTAMENTO. AÑO 2016.
A9: DEPARTAMENTO | B9: TOTAL | C9: QUINTO GRADO DE EDUCACIÓN MEDIA GENERAL
C10: ORIENTACIÓN Planes 86+93+2006 | G10: OTROS (*)
C11: Humanística | D11: Biológica | E11: Científica | F11: Artístico | G11: BINT y/o BICUL
A13: TOTAL | B13: =C13+D13+E13+F13+G13 -> 5196 | C13: =C14+C15 -> 1654 | D13: =D14+D15 -> 1489 | E13: =E14+E15 -> 1576 | F13: =F14+F15 -> 325 | G13: =G14+G15 -> 152
A14: MONTEVIDEO | B14: =C14+D14+E14+F14+G14 -> 3917 | C14: 1250 | D14: 1007 | E14: 1233 | F14: 275 | G14: 152
A15: RESTO DEL PAÍS | B15: 1279 | C15: =SUM(C16:C33) -> 404 | D15: =SUM(D16:D33) -> 482 | E15: =SUM(E16:E33) -> 343 | F15: =SUM(F16:F33) -> 50 | G15: =SUM(G16:G33) -> 0
A16: Artigas | B16: 0 | C16: 0 | D16: 0 | E16: 0 | F16: 0 | G16: 0
A17: Canelones | B17: 464 | C17: 150 | D17: 153 | E17: 127 | F17: 34 | G17: 0
A18: Cerro Largo | B18: 62 | C18: 20 | D18: 22 | E18: 20 | F18: 0 | G18: 0
A19: Colonia | B19: 0 | C19: 0 | D19: 0 | E19: 0 | F19: 0 | G19: 0
A20: Durazno | B20: 0 | C20: 0 | D20: 0 | E20: 0 | F20: 0 | G20: 0
A21: Flores | B21: 0 | C21: 0 | D21: 0 | E21: 0 | F21: 0 | G21: 0
A22: Florida | B22: 34 | C22: 10 | D22: 13 | E22: 11 | F22: 0 | G22: 0
A23: Lavalleja | B23: 16 | C23: 7 | D23: 9 | E23: 0 | F23: 0 | G23: 0
A24: Maldonado | B24: 402 | C24: 138 | D24: 143 | E24: 105 | F24: 16 | G24: 0
A25: Paysandú | B25: 112 | C25: 31 | D25: 54 | E25: 27 | F25: 0 | G25: 0
A26: Río Negro | B26: 0 | C26: 0 | D26: 0 | E26: 0 | F26: 0 | G26: 0
A27: Rivera | B27: 21 | C27: 8 | D27: 8 | E27: 5 | F27: 0 | G27: 0
A28: Rocha | B28: 0 | C28: 0 | D28: 0 | E28: 0 | F28: 0 | G28: 0
A29: Salto | B29: 59 | C29: 12 | D29: 28 | E29: 19 | F29: 0 | G29: 0
A30: San José | B30: 40 | C30: 10 | D30: 19 | E30: 11 | F30: 0 | G30: 0
A31: Soriano | B31: 0 | C31: 0 | D31: 0 | E31: 0 | F31: 0 | G31: 0
A32: Tacuarembó | B32: 69 | C32: 18 | D32: 33 | E32: 18 | F32: 0 | G32: 0
A33: Treinta y Tres | B33: 0 | C33: 0 | D33: 0 | E33: 0 | F33: 0 | G33: 0
A34: Fuente: DE — CES
A35: Nota: Otros (*) Corresponde a los cursos de Bachillerato Internacional y
A36: Bachillerato Bicultural

Sheet II-4.2.8
A1: CONSEJO DE EDUCACIÓN SECUNDARIA | D1: ALUMNOS MATRICULADOS
A3: Cuadro Nº II-4.2.8 | C3: VOLVER
A5: ALUMNOS MATRICULADOS EN EL CES EN SEXTO GRADO DE EDUCACIÓN MEDIA GENERAL PÚBLICA POR PLAN Y OPCIÓN SEGÚN DEPARTAMENTO. AÑO 2016.
C6: SEXTO GRADO
A7: DEPARTAMENTO | B7: TOTAL GENERAL | C7: TOTAL Plan 94 | D7: O P C I Ó N P L A N / 94 | J7: Total Plan Ref. 06 | K7: O P C I Ó N P L A N / R E F O R M U L A C I Ó N 2006
D9: 3º DER | E9: 3º ECO | F9: 3º AGR | G9: 3º MED | H9: 3º ARQ | I9: 3º ING | K9: Social Humanístico | L9: Social Economía | M9: Ciencias Agrarias | N9: Ciencias Biológicas | O9: Física Matemática | P9: Matemática Diseño | Q9: Arte y Expresión
A12: TOTAL | B12: =SUM(C12+J12) -> 28527 | C12: =SUM(D12:I12) -> 10685 | D12: =D13+D14 -> 5131 | E12: 732 | F12: 111 | G12: 4025 | H12: 168 | I12: 518 | J12: =SUM(K12:Q12) -> 17842 | K12: =K13+K14 -> 5870 | L12: =L13+L14 -> 1796 | M12: 521 | N12: 6141 | O12: 1430 | P12: 693 | Q12: 1391
A13: MONTEVIDEO | B13: 9893 | C13: 4707 | D13: 2128 | E13: 512 | F13: 34 | G13: 1570 | H13: 119 | I13: 344 | J13: =SUM(K13:Q13) -> 5186 | K13: 1604 | L13: 706 | M13: 78 | N13: 1509 | O13: 435 | P13: 261 | Q13: 593
A14: RESTO DEL PAÍS | B14: 18634 | C14: 5978 | D14: =SUM(D15:D32) -> 3003 | E14: 220 | F14: 77 | G14: 2455 | H14: 49 | I14: 174 | J14: =SUM(J15:J32) -> 12656 | K14: =SUM(K15:K32) -> 4266 | L14: =SUM(L15:L32) -> 1090 | M14: 443 | N14: 4632 | O14: 995 | P14: 432 | Q14: 798
A15: Artigas | B15: 747 | C15: 160 | D15: 81 | G15: 79 | J15: =SUM(K15:Q15) -> 587 | K15: 226 | L15: 38 | M15: 15 | N15: 235 | O15: 38 | P15: 7 | Q15: 28
A16: Canelones | B16: 4453 | C16: 1679 | D16: 889 | E16: 86 | F16: 24 | G16: 593 | H16: 24 | I16: 63 | J16: 2774 | K16: 867 | L16: 294 | M16: 64 | N16: 901 | O16: 292 | P16: 115 | Q16: 241
A17: Cerro Largo | B17: 855 | C17: 250 | D17: 131 | G17: 119 | J17: 605 | K17: 256 | L17: 34 | M17: 23 | N17: 204 | O17: 28 | P17: 13 | Q17: 47
A18: Colonia | B18: 1109 | C18: 382 | D18: 174 | E18: 24 | G18: 184 | J18: 727 | K18: 206 | L18: 96 | M18: 44 | N18: 205 | O18: 73 | P18: 49 | Q18: 54
A19: Durazno | B19: 557 | C19: 162 | D19: 90 | G19: 72 | J19: 395 | K19: 138 | L19: 37 | M19: 17 | N19: 134 | O19: 26 | P19: 20 | Q19: 23
A20: Flores | B20: 250 | C20: 79 | D20: 39 | G20: 40 | J20: 171 | K20: 46 | L20: 12 | M20: 13 | N20: 54 | O20: 24 | P20: 6 | Q20: 16
A21: Florida | B21: 597 | C21: 135 | D21: 64 | G21: 71 | J21: 462 | K21: 185 | L21: 27 | M21: 9 | N21: 167 | O21: 33 | P21: 23 | Q21: 18
A22: Lavalleja | B22: 392 | C22: 98 | D22: 56 | G22: 42 | J22: 294 | L22: 51 | M22: 10 | N22: 163 | O22: 31 | P22: 10 | Q22: 29
A23: Maldonado | B23: 1808 | C23: 579 | D23: 261 | E23: 37 | F23: 28 | G23: 195 | H23: 25 | I23: 33 | J23: 1229 | K23: 452 | L23: 110 | M23: 40 | N23: 392 | O23: 87 | P23: 44 | Q23: 104
A24: Paysandú | B24: 982 | C24: 346 | D24: 142 | E24: 26 | F24: 12 | G24: 166 | J24: 636 | K24: 201 | L24: 43 | M24: 32 | N24: 283 | O24: 32 | P24: 25 | Q24: 20
A25: Río Negro | B25: 471 | C25: 155 | D25: 81 | E25: 6 | G25: 68 | J25: 316 | K25: 93 | L25: 17 | M25: 18 | N25: 131 | O25: 33 | Q25: 24
A26: Rivera | B26: 1136 | C26: 211 | D26: 136 | G26: 60 | I26: 15 | J26: 925 | K26: 399 | L26: 51 | M26: 26 | N26: 350 | O26: 52 | P26: 21 | Q26: 26
A27: Rocha | B27: 843 | C27: 347 | D27: 176 | G27: 171 | J27: 496 | K27: 156 | L27: 53 | M27: 13 | N27: 210 | O27: 19 | P27: 12 | Q27: 33
A28: Salto | B28: 1314 | C28: 331 | D28: 158 | E28: 17 | F28: 13 | G28: 118 | I28: 25 | J28: 983 | K28: 372 | L28: 45 | M28: 14 | N28: 439 | O28: 66 | P28: 19 | Q28: 28
A29: San José | B29: 887 | C29: 426 | D29: 178 | E29: 14 | G29: 202 | I29: 32 | J29: 461 | K29: 144 | L29: 43 | M29: 8 | N29: 169 | O29: 53 | P29: 17 | Q29: 27
A30: Soriano | B30: 866 | C30: 260 | D30: 133 | E30: 10 | G30: 111 | I30: 6 | J30: 606 | K30: 170 | L30: 50 | M30: 53 | N30: 218 | O30: 46 | P30: 29 | Q30: 40
A31: Tacuarembó | B31: 888 | C31: 221 | D31: 125 | G31: 96 | J31: 667 | K31: 241 | L31: 61 | M31: 27 | N31: 253 | O31: 41 | P31: 18 | Q31: 26
A32: Treinta y Tres | B32: 479 | C32: 157 | D32: 89 | G32: 68 | J32: 322 | K32: 114 | L32: 28 | M32: 17 | N32: 124 | O32: 21 | P32: 4 | Q32: 14
A33: Fuente: DE — CES

Sheet II-4.2.9
A1: CONSEJO DE EDUCACIÓN SECUNDARIA | E1: ALUMNOS MATRICULADOS
A3: Cuadro Nº II-4.2.9
A5: ALUMNOS MATRICULADOS EN EL CES EN SEXTO GRADO DE EDUCACIÓN MEDIA GENERAL PRIVADA POR OPCIÓN SEGÚN DEPARTAMENTO. AÑO 2016.
A6: DEPARTAMENTO | B6: TOTAL | C6: TODOS LOS PLANES OPCIÓN SEXTO GRADO | J6: Otros (*)
C7: Social Humanístico | D7: Social Economía | E7: Ciencias Agrarias | F7: Ciencias Biológicas | G7: Física Matemática | H7: Matemática Diseño | I7: Arte y Expresión | J7: B.INT.y/o BICUL.
A8: TOTAL | B8: =SUM(C8:J8) -> 4554 | C8: =C9+C10 -> 936 | D8: =D9+D10 -> 907 | E8: 175 | F8: 1067 | G8: 774 | H8: 332 | I8: 256 | J8: 107
A9: MONTEVIDEO | B9: =SUM(C9:J9) -> 3564 | C9: 747 | D9: 740 | E9: 96 | F9: 759 | G9: 633 | H9: 268 | I9: 214 | J9: 107
A10: RESTO DEL PAÍS | B10: 990 | C10: =SUM(C11:C28) -> 189 | D10: =SUM(D11:D28) -> 167 | E10: 79 | F10: 308 | G10: 141 | H10: 64 | I10: 42 | J10: 0
A11: Artigas | B11: 0 | C11: 0 | D11: 0 | E11: 0 | F11: 0 | G11: 0 | H11: 0 | I11: 0 | J11: 0
A12: Canelones | B12: 374 | C12: 64 | D12: 86 | E12: 27 | F12: 102 | G12: 50 | H12: 23 | I12: 22 | J12: 0
A13: Cerro Largo | B13: 52 | C13: 6 | D13: 9 | E13: 13 | F13: 8 | G13: 9 | H13: 7 | I13: 0 | J13: 0
A14: Colonia | B14: 0 | C14: 0 | D14: 0 | E14: 0 | F14: 0 | G14: 0 | H14: 0 | I14: 0 | J14: 0
A15: Durazno | B15: 0 | C15: 0 | D15: 0 | E15: 0 | F15: 0 | G15: 0 | H15: 0 | I15: 0 | J15: 0
A16: Flores | B16: 0 | C16: 0 | D16: 0 | E16: 0 | F16: 0 | G16: 0 | H16: 0 | I16: 0 | J16: 0
A17: Florida | B17: 23 | C17: 0 | D17: 0 | E17: 5 | F17: 11 | G17: 5 | H17: 2 | I17: 0 | J17: 0
A18: Lavalleja | B18: 11 | C18: 11 | D18: 0 | E18: 0 | F18: 0 | G18: 0 | H18: 0 | I18: 0 | J18: 0
A19: Maldonado | B19: 285 | C19: 58 | D19: 46 | E19: 8 | F19: 90 | G19: 37 | H19: 26 | I19: 20 | J19: 0
A20: Paysandú | B20: 87 | C20: 23 | D20: 10 | E20: 8 | F20: 31 | G20: 15 | H20: 0 | I20: 0 | J20: 0
A21: Río Negro | B21: 0 | C21: 0 | D21: 0 | E21: 0 | F21: 0 | G21: 0 | H21: 0 | I21: 0 | J21: 0
A22: Rivera | B22: 4 | C22: 0 | D22: 0 | E22: 0 | F22: 0 | G22: 4 | H22: 0 | I22: 0 | J22: 0
A23: Rocha | B23: 0 | C23: 0 | D23: 0 | E23: 0 | F23: 0 | G23: 0 | H23: 0 | I23: 0 | J23: 0
A24: Salto | B24: 66 | C24: 14 | D24: 5 | E24: 2 | F24: 25 | G24: 14 | H24: 6 | I24: 0 | J24: 0
A25: San José | B25: 33 | C25: 4 | D25: 5 | E25: 4 | F25: 18 | G25: 2 | H25: 0 | I25: 0 | J25: 0
A26: Soriano | B26: 0 | C26: 0 | D26: 0 | E26: 0 | F26: 0 | G26: 0 | H26: 0 | I26: 0 | J26: 0
A27: Tacuarembó | B27: 55 | C27: 9 | D27: 6 | E27: 12 | F27: 23 | G27: 5 | H27: 0 | I27: 0 | J27: 0
A28: Treinta y Tres | B28: 0 | C28: 0 | D28: 0 | E28: 0 | F28: 0 | G28: 0 | H28: 0 | I28: 0 | J28: 0
A29: Fuente D.E - CES
A30: Nota: Otros (*) Corresponde a los cursos de Bachillerato Internacional y Bachillerato Bicultural.

Sheet II-4.2.10
A1: CONSEJO DE EDUCACIÓN SECUNDARIA
A3: Cuadro Nº II-4.2.10
A5: ALUMNOS MATRICULADOS DE EDUCACIÓN MEDIA SUPERIOR PRIVADA POR GRADO Y SEXO SEGÚN DEPARTAMENTO. AÑO 2016.
A7: DEPARTAMENTO | B7: GRADO
B8: CUARTO | D8: QUINTO | F8: SEXTO
B9: SEXO
B10: Mujeres | C10: Varones | D10: Mujeres | E10: Varones | F10: Mujeres | G10: Varones
A11: TOTAL | B11: =B12+B13 -> 3628 | C11: 3331 | D11: 2620 | E11: 2458 | F11: 2359 | G11: 2111
A12: MONTEVIDEO | B12: 2516 | C12: 2270 | D12: 1988 | E12: 1866 | F12: 1858 | G12: 1673
A13: RESTO DEL PAÍS | B13: =SUM(B14:B31) -> 1112 | C13: 1061 | D13: 632 | E13: 592 | F13: 501 | G13: 438
A14: Artigas | B14: 3 | C14: 4 | D14: 0 | E14: 0 | F14: 0 | G14: 0
A15: Canelones | B15: 385 | C15: 371 | D15: 238 | E15: 226 | F15: 212 | G15: 162
A16: Cerro Largo | B16: 39 | C16: 46 | D16: 31 | E16: 31 | F16: 25 | G16: 27
A17: Colonia | B17: 0 | C17: 0 | D17: 0 | E17: 0 | F17: 0 | G17: 0
A18: Durazno | B18: 22 | C18: 23 | D18: 0 | E18: 0 | F18: 0 | G18: 0
A19: Flores | B19: 15 | C19: 21 | D19: 0 | E19: 0 | F19: 0 | G19: 0
A20: Florida | B20: 42 | C20: 36 | D20: 17 | E20: 17 | F20: 9 | G20: 14
A21: Lavalleja | B21: 14 | C21: 11 | D21: 8 | E21: 8 | F21: 8 | G21: 3
A22: Maldonado | B22: 195 | C22: 216 | D22: 202 | E22: 200 | F22: 142 | G22: 143
A23: Paysandú | B23: 89 | C23: 68 | D23: 36 | E23: 21 | F23: 20 | G23: 16
A24: Río Negro | B24: 22 | C24: 13 | D24: 0 | E24: 0 | F24: 0 | G24: 0
A25: Rivera | B25: 29 | C25: 22 | D25: 9 | E25: 12 | F25: 1 | G25: 3
A26: Rocha | B26: 19 | C26: 18 | D26: 0 | E26: 0 | F26: 0 | G26: 0
A27: Salto | B27: 90 | C27: 86 | D27: 36 | E27: 23 | F27: 40 | G27: 26
A28: San José | B28: 41 | C28: 35 | D28: 16 | E28: 24 | F28: 15 | G28: 18
A29: Soriano | B29: 41 | C29: 25 | D29: 0 | E29: 0 | F29: 0 | G29: 0
A30: Tacuarembó | B30: 46 | C30: 44 | D30: 39 | E30: 30 | F30: 29 | G30: 26
A31: Treinta y Tres | B31: 20 | C31: 22 | D31: 0 | E31: 0 | F31: 0 | G31: 0
A32: Fuente: DE — CES
A33: Nota: Las diferencias con la matrícula de otros cuadros se debe a la ausencia de información sobre sexo en colegios de Montevideo, Maldonado, Paysandú y Rivera.

Sheet II-4.2.11
A1: CONSEJO DE EDUCACIÓN SECUNDARIA
A3: Cuadro Nº II-4.2.11
A5: ALUMNOS MATRICULADOS DE EDUCACIÓN MEDIA SUPERIOR PÚBLICA POR GRADO Y SEXO SEGÚN DEPARTAMENTO. AÑO 2016.
A7: DEPARTAMENTO | B7: GRADO
B8: CUARTO | D8: QUINTO | F8: SEXTO
B9: SEXO
B10: Mujeres | C10: Varones | D10: Mujeres | E10: Varones | F10: Mujeres | G10: Varones
A11: TOTAL | B11: =B12+B13 -> 15956 | C11: 11650 | D11: 14319 | E11: 9377 | F11: 11095 | G11: 6968
A12: MONTEVIDEO | B12: 4577 | C12: 3292 | D12: 4196 | E12: 2877 | F12: 3195 | G12: 1991
A13: RESTO DEL PAÍS | B13: =SUM(B14:B31) -> 11379 | C13: 8358 | D13: 10123 | E13: 6500 | F13: 7900 | G13: 4977
A14: Artigas | B14: 550 | C14: 375 | D14: 512 | E14: 268 | F14: 368 | G14: 219
A15: Canelones | B15: 2837 | C15: 2072 | D15: 2188 | E15: 1487 | F15: 1691 | G15: 1083
A16: Cerro Largo | B16: 496 | C16: 394 | D16: 458 | E16: 308 | F16: 369 | G16: 236
A17: Colonia | B17: 551 | C17: 424 | D17: 507 | E17: 322 | F17: 439 | G17: 288
A18: Durazno | B18: 294 | C18: 191 | D18: 296 | E18: 204 | F18: 228 | G18: 167
A19: Flores | B19: 108 | C19: 99 | D19: 114 | E19: 122 | F19: 94 | G19: 77
A20: Florida | B20: 353 | C20: 242 | D20: 334 | E20: 224 | F20: 272 | G20: 190
A21: Lavalleja | B21: 356 | C21: 273 | D21: 439 | E21: 260 | F21: 292 | G21: 223
A22: Maldonado | B22: 881 | C22: 807 | D22: 962 | E22: 646 | F22: 736 | G22: 493
A23: Paysandú | B23: 665 | C23: 377 | D23: 580 | E23: 282 | F23: 440 | G23: 196
A24: Río Negro | B24: 281 | C24: 208 | D24: 238 | E24: 136 | F24: 210 | G24: 106
A25: Rivera | B25: 762 | C25: 552 | D25: 690 | E25: 433 | F25: 575 | G25: 350
A26: Rocha | B26: 432 | C26: 404 | D26: 379 | E26: 321 | F26: 283 | G26: 213
A27: Salto | B27: 841 | C27: 576 | D27: 778 | E27: 468 | F27: 613 | G27: 370
A28: San José | B28: 555 | C28: 374 | D28: 470 | E28: 271 | F28: 294 | G28: 167
A29: Soriano | B29: 399 | C29: 276 | D29: 390 | E29: 246 | F29: 387 | G29: 219
A30: Tacuarembó | B30: 677 | C30: 480 | D30: 545 | E30: 331 | F30: 418 | G30: 249
A31: Treinta y Tres | B31: 341 | C31: 234 | D31: 243 | E31: 171 | F31: 191 | G31: 131
A32: Fuente: DE — CES
A33: Nota: No incluye la matrícula correspondiente a los liceos de cuarto turno (nocturnos)

Sheet II-4.3.1
A1: CONSEJO DE EDUCACIÓN SECUNDARIA | F1: PERSONAL DOCENTE
A3: Cuadro Nº II-4.3.1
A5: PERSONAL DOCENTE Y HORAS DOCENTES DEL CES EN EDUCACIÓN MEDIA SUPERIOR GENERAL PÚBLICA POR CONDICIÓN DE TITULACIÓN. AÑO 2016.
A7: ASIGNATURAS | B7: TOTAL DOCENTES | C7: PERSONAL DOCENTE | E7: TOTAL HORAS | F7: HORAS DOCENTES
C8: Titulados | D8: No Titulados | F8: Titulados | G8: No Titulados
A9: TOTAL | B9: =SUM(C9:D9) -> 8225 | C9: =SUM(C10:C48) -> 5706 | D9: =SUM(D10:D48) -> 2519 | E9: =SUM(F9:G9) -> 103302 | F9: =SUM(F10:F48) -> 76177 | G9: =SUM(G10:G48) -> 27125
A10: ACT.ADAPTADAS AL MEDIO AMBIENT | B10: =+C10+D10 -> 0 | C10: 0 | D10: 0 | E10: =+F10+G10 -> 0 | F10: 0 | G10: 0
A11: ALEMÁN | B11: 0 | C11: 0 | D11: 0 | E11: 0 | F11: 0 | G11: 0
A12: ASTRONOMÍA | B12: 28 | C12: 6 | D12: 22 | E12: 156 | F12: 32 | G12: 124
A13: BIOLOGÍA | B13: 708 | C13: 580 | D13: 128 | E13: 8992 | F13: 7672 | G13: 1320
A14: DIBUJO | B14: 390 | C14: 250 | D14: 140 | E14: 3778 | F14: 2549 | G14: 1229
A15: DIRECTOR DE COROS | B15: 20 | C15: 11 | D15: 9 | E15: 222 | F15: 126 | G15: 96
A16: ECONOMÍA | B16: 140 | C16: 78 | D16: 62 | E16: 1069 | F16: 516 | G16: 553
A17: ED.SOCIAL Y CÍVICA DERECHO | B17: 729 | C17: 600 | D17: 129 | E17: 8328 | F17: 7418 | G17: 910
A18: EDUCACIÓN FÍSICA | B18: 198 | C18: 170 | D18: 28 | E18: 1679 | F18: 1470 | G18: 209
A19: EDUCACIÓN MUSICAL | B19: 105 | C19: 43 | D19: 62 | E19: 906 | F19: 347 | G19: 559
A20: EDUCADOR PARA LA SEXUALIDAD | B20: 191 | C20: 157 | D20: 34 | E20: 2445 | F20: 2000 | G20: 445
A21: EDUCADOR SOCIAL | B21: 0 | C21: 0 | D21: 0 | E21: 0 | F21: 0 | G21: 0
A22: ESPACIO CURRICULAR ABIERTO | B22: 3 | C22: 2 | D22: 1 | E22: 40 | F22: 30 | G22: 10
A23: ESTUDIOS ECONÓMICOS Y SOCIALES | B23: 231 | C23: 199 | D23: 32 | E23: 1541 | F23: 1344 | G23: 197
A24: EXPRESIÓN CORPORAL Y DANZA | B24: 46 | C24: 4 | D24: 42 | E24: 339 | F24: 36 | G24: 303
A25: EXPRESIÓN CORPORAL Y TEATRO | B25: 55 | C25: 12 | D25: 43 | E25: 332 | F25: 98 | G25: 234
A26: FACILITADOR PROCES | B26: 0 | C26: 0 | D26: 0 | E26: 0 | F26: 0 | G26: 0
A27: FILOSOFÍA | B27: 621 | C27: 455 | D27: 166 | E27: 7724 | F27: 5979 | G27: 1745
A28: FÍSICA | B28: 565 | C28: 355 | D28: 210 | E28: 8428 | F28: 5779 | G28: 2649
A29: FRANCÉS | B29: 1 | C29: 0 | D29: 1 | E29: 20 | F29: 0 | G29: 20
A30: GEOGRAFÍA | B30: 222 | C30: 171 | D30: 51 | E30: 1795 | F30: 1428 | G30: 367
A31: GEOLOGÍA | B31: 8 | C31: 3 | D31: 5 | E31: 35 | F31: 12 | G31: 23
A32: HISTORIA | B32: 710 | C32: 614 | D32: 96 | E32: 8732 | F32: 7756 | G32: 976
A33: IDIOMA ESPAÑOL | B33: 31 | C33: 20 | D33: 11 | E33: 450 | F33: 302 | G33: 148
A34: INFORMÁTICA | B34: 49 | C34: 11 | D34: 38 | E34: 676 | F34: 160 | G34: 516
A35: INGLÉS | B35: 604 | C35: 274 | D35: 330 | E35: 8021 | F35: 4225 | G35: 3796
A36: ITALIANO | B36: 78 | C36: 26 | D36: 52 | E36: 1069 | F36: 428 | G36: 641
A37: LABORATORIO DE INFORMÁTICA | B37: 23 | C37: 5 | D37: 18 | E37: 288 | F37: 60 | G37: 228
A38: LENG.COM.Y MED.AUDIOVISUALES | B38: 44 | C38: 9 | D38: 35 | E38: 246 | F38: 30 | G38: 216
A39: LENGUA DE SEÑAS | B39: 7 | C39: 1 | D39: 6 | E39: 111 | F39: 20 | G39: 91
A40: LITERATURA | B40: 696 | C40: 560 | D40: 136 | E40: 8522 | F40: 7247 | G40: 1275
A41: MANUALIDADES | B41: 0 | C41: 0 | D41: 0 | E41: 0 | F41: 0 | G41: 0
A42: MATEMÁTICA | B42: 1050 | C42: 637 | D42: 413 | E42: 18338 | F42: 12383 | G42: 5955
A43: PIANISTA ACOMPAÑANTE | B43: 13 | C43: 7 | D43: 6 | E43: 114 | F43: 70 | G43: 44
A44: PORTUGUÉS | B44: 0 | C44: 0 | D44: 0 | E44: 0 | F44: 0 | G44: 0
A45: QUÍMICA | B45: =+C45+D45 -> 558 | C45: 404 | D45: 154 | E45: =+F45+G45 -> 8431 | F45: 6506 | G45: 1925
A46: REC.NATUR.Y PAISAJE AGRARIO | B46: 48 | C46: 32 | D46: 16 | E46: 140 | F46: 82 | G46: 58
A47: TALLER EXPR.PLÁSTICA-ARTÍSTICA | B47: 0 | C47: 0 | D47: 0 | E47: 0 | F47: 0 | G47: 0
A48: TEATRO | B48: 53 | C48: 10 | D48: 43 | E48: 335 | F48: 72 | G48: 263
A49: Fuente: Departamento de Estadística — CES
A50: Nota: Los docentes que dictan más de una asignatura son considerados como personas distintas en cada asignatura
A51: Datos verificados por la DIEE de la ANEP en 2019.

Sheet II-4.3.2
A1: CONSEJO DE EDUCACIÓN TÉCNICO PROFESIONAL (U.T.U.) | E1: PERSONAL DOCENTE
A3: Cuadro Nº II-4.3.2
A5: PERSONAL DOCENTE DEL CETP EN EDUCACIÓN MEDIA SUPERIOR TECNOLÓGICA POR TIPO DE CURSO. AÑO 2016.
A6: EDUCACIÓN MEDIA SUPERIOR TECNOLÓGICA | B6: TOTAL
A8: TOTAL | B8: =SUM(B9:B18) -> 14851
A9: Bachillerato Figari | B9: 150
A10: Bachillerato Profesional | B10: 777
A11: Educación Media Profesional | B11: 2948
A12: Educación Media Prof. De Especialización | B12: 4
A13: Educación Media Tecnológica | B13: 4802
A14: EMS | B14: 6012
A15: Articulación a Nivel Terciario | B15: 2
A16: Curso Técnico | B16: 93
A17: Tutorias | B17: 6
A18: Educación Media Tecnológica Fin. | B18: 57
A19: Fuente: U.T.U. División Informática.
A20: Nota: publicamos último dato disponible correspondiente al año 2015
A21: Los cursos EMP Especialización, fueron reubicados en el Nivel Superior de Formación Profesional.

Sheet II-4.4.1
A1: CONSEJO DE EDUCACIÓN SECUNDARIA | C1: GRUPOS
A3: Cuadro Nº II-4.4.1
A5: GRUPOS DE EDUCACIÓN MEDIA SUPERIOR GENERAL COMPARADOS CON EL TOTAL DE AMBOS CICLOS SEGÚN GRANDES ÁREAS Y FORMA DE ADMINISTRACIÓN. AÑO 2016.
B6: FORMA DE ADMINISTRACIÓN
B7: Grupos en Educación Media Superior General | C7: Total de Grupos en Educación Media General | D7: Promedio de alumnos por grupo de Media Superior
A8: TOTAL DEL PAÍS | B8: =B9+B12 -> 4638 | C8: =C9+C12 -> 10286 | D8: ='II-4.2.1 '!B9/'II-4.4.1'!B8 -> 25.98641656
A9: EDUCACIÓN MEDIA SUPERIOR PÚBLICA | B9: =B10+B11 -> 3475 | C9: =C10+C11 -> 8035 | D9: ='II-4.2.1 '!B10/'II-4.4.1'!B9 -> 29.85640288
A10: Diurna | B10: =B15+B20 -> 2753 | C10: 6833 | D10: ='II-4.2.1 '!B11/'II-4.4.1'!B10 -> 25.19614965
A11: Nocturna | B11: 722 | C11: 1202 | D11: ='II-4.2.1 '!B12/'II-4.4.1'!B11 -> 47.62603878
A12: EDUCACIÓN MEDIA SUPERIOR PRIVADA | B12: 1163 | C12: 2251 | D12: ='II-4.2.1 '!B13/'II-4.4.1'!B12 -> 14.42304385
A13: TOTAL MONTEVIDEO | B13: =B14+B17 -> 1786 | C13: =C14+C17 -> 3775 | D13: ='II-4.2.1 '!B14/'II-4.4.1'!B13 -> 26.24132139
A14: EDUCACIÓN MEDIA SUPERIOR PÚBLICA | B14: =B15+B16 -> 967 | C14: =C15+C16 -> 2281 | D14: ='II-4.2.1 '!B15/'II-4.4.1'!B14 -> 35.71354705
A15: Diurna | B15: 662 | C15: ='II-3.4.1'!C17 -> 1831 | D15: ='II-4.2.1 '!B16/'II-4.4.1'!B15 -> 30.40483384
A16: Nocturna | B16: 305 | C16: ='II-3.4.1'!C18 -> 450 | D16: ='II-4.2.1 '!B17/'II-4.4.1'!B16 -> 47.23606557
A17: EDUCACIÓN MEDIA SUPERIOR PRIVADA | B17: 819 | C17: 1494 | D17: ='II-4.2.1 '!B18/'II-4.4.1'!B17 -> 15.05738706
A18: TOTAL RESTO DEL PAÍS | B18: =B19+B22 -> 2852 | C18: =C19+C22 -> 6511 | D18: ='II-4.2.1 '!B19/'II-4.4.1'!B18 -> 25.82678822
A19: EDUCACIÓN MEDIA SUPERIOR PÚBLICA | B19: =B20+B21 -> 2508 | C19: =C20+C21 -> 5754 | D19: ='II-4.2.1 '!B20/'II-4.4.1'!B19 -> 27.59808612
A20: Diurna | B20: 2091 | C20: ='II-3.4.1'!C22 -> 5002 | D20: ='II-4.2.1 '!B21/'II-4.4.1'!B20 -> 23.54710665
A21: Nocturna | B21: 417 | C21: ='II-3.4.1'!C23 -> 752 | D21: ='II-4.2.1 '!B22/'II-4.4.1'!B21 -> 47.91127098
A22: EDUCACIÓN MEDIA SUPERIOR PRIVADA | B22: 344 | C22: 757 | D22: ='II-4.2.1 '!B23/'II-4.4.1'!B22 -> 12.9127907
A23: Fuente: DE — CES
A24: Nota: El “Total de ambos Ciclos” presenta de manera agregada la cantidad total de grupos con que cuente Educación Secundaria y es el resultado de adicionar al total de Grupos del presente cuadro (Ciclo Superior de Educación Secundaria), el total de los grupos presentados en el Cuadro II-3.4.1 (Ciclo Básico de Educación Secundaria)

Sheet TERCIARIA NO UNIVERSITARIA
A8: Cuadro II-5.1.1 | B8: MATRÍCULA Y PERSONAL DOCENTE POR SEXO SEGÚN GRANDES ÁREAS, DEPARTAMENTOS E INSTITUCIONES. AÑO 2016.
A11: Cuadro II-5.2.1 | B11: ALUMNOS INGRESADOS, MATRICULADOS Y EGRESADOS EN NIVEL TERCIARIO NO UNIVERSITARIO DEL ÁREA SEGURIDAD Y DEFENSA POR SEXO SEGÚN INSTITUCIÓN Y CARRERA. AÑO 2016.
A13: Cuadro II-5.2.2 | B13: ALUMNOS INGRESADOS, MATRICULADOS Y EGRESADOS EN OTRAS OFERTAS DE NIVEL TERCIARIO NO UNIVERSITARIO POR SEXO SEGÚN INSTITUCIÓN Y CARRERA. AÑO 2016.
A16: Cuadro II-5.3.1 | B16: PERSONAL ACADÉMICO DE NIVEL TERCIARIO NO UNIVERSITARIO DEL ÁREA SEGURIDAD Y DEFENSA POR CARGA HORARIA, SEXO, SEGÚN INSTITUCIÓN Y FORMACIÓN. AÑO 2016.
A18: Cuadro II-5.3.2 | B18: PERSONAL ACADÉMICO DE NIVEL TERCIARIO NO UNIVERSITARIO POR CARGA HORARIA SEMANAL, SEXO, SEGÚN INSTITUCIÓN Y FORMACIÓN . AÑO 2016.
A31: =MID(B19,1,20) -> 
A85: =MID(B73,1,20) -> 

Sheet II-5.1.1
A1: OFERTAS TERCIARIAS NO UNIVERSITARIAS | D1: INSTITUCIONES
A3: Cuadro Nº II-5.1.1
A5: MATRÍCULA Y PERSONAL DOCENTE POR SEXO SEGÚN GRANDES ÁREAS, DEPARTAMENTOS E INSTITUCIONES. AÑO 2016.
A6: GRANDES ÁREAS / DEPARTAMENTO / INSTITUCIÓN | B6: TOTAL | C6: MATRICULA | E6: DOCENTES
C7: SEXO
C9: M | D9: F
A11: TOTAL | B11: =+B13+B22 -> 11547 | C11: =+C13+C22 -> 7039 | D11: =+D13+D22 -> 4508 | E11: =+E13+E22 -> 2151
A13: MONTEVIDEO | B13: =+C13+D13 -> 7743 | C13: =SUM(C15:C20) -> 4740 | D13: =SUM(D15:D20) -> 3003 | E13: =SUM(E15:E20) -> 1387
A15: ESCUELA NAVAL | B15: =C15+D15 -> 136 | C15: 107 | D15: 29 | E15: 132 | G15: =F13:I18 -> 0
A16: ESCUELA NACIONAL DE POLICÍA* | B16: =C16+D16 -> 322 | C16: 239 | D16: 83 | E16: 53
A17: ESCUELA MILITAR | B17: 285 | C17: 240 | D17: 45 | E17: 78
A18: ESCUELA MILITAR DE AERONÁUTICA | B18: 122 | C18: 105 | D18: 17 | E18: 80
A19: EMAD | B19: 102 | C19: 35 | D19: 67 | E19: 62
A20: UTU | B20: =+C20+D20 -> 6776 | C20: 4014 | D20: 2762 | E20: 982
A22: RESTO DEL PAÍS | B22: =SUM(B24:B41) -> 3804 | C22: =SUM(C24:C41) -> 2299 | D22: =SUM(D24:D41) -> 1505 | E22: =SUM(E24:E41) -> 764
A24: Artigas | B24: =C24+D24 -> 121 | C24: 47 | D24: 74 | E24: 38
A25: Canelones | B25: =C25+D25 -> 280 | C25: 128 | D25: 152 | E25: 93
A26: Cerro Largo | B26: 178 | C26: 92 | D26: 86 | E26: 30
A27: Colonia | B27: 207 | C27: 95 | D27: 112 | E27: 64
A28: Durazno | B28: 47 | C28: 20 | D28: 27 | E28: 4
A29: Flores | B29: 133 | C29: 102 | D29: 31 | E29: 13
A30: Florida | B30: 132 | C30: 77 | D30: 55 | E30: 31
A31: Lavalleja | B31: 0 | C31: 0 | D31: 0 | E31: 5
A32: Maldonado | B32: 327 | C32: 221 | D32: 106 | E32: 57
A33: Paysandú | B33: 862 | C33: 585 | D33: 277 | E33: 135
A34: Río Negro | B34: 102 | C34: 36 | D34: 66 | E34: 31
A35: Rivera | B35: 571 | C35: 342 | D35: 229 | E35: 49
A36: Rocha | B36: 21 | C36: 10 | D36: 11 | E36: 11
A37: Salto | B37: 366 | C37: 293 | D37: 73 | E37: 101
A38: San José | B38: 60 | C38: 45 | D38: 15 | E38: 24
A39: Soriano | B39: 172 | C39: 106 | D39: 66 | E39: 51
A40: Tacuarembó | B40: 190 | C40: 77 | D40: 113
A41: Treinta y Tres | B41: 35 | C41: 23 | D41: 12 | E41: 27
A42: Fuente:
A43: D.E - UTU-
A44: Secretaría General EMAD
A45: Gestión Educativa - Escuela Naval
A46: Jefatura de Estudios - Escuela Nacional de Policía
A47: Escuela Militar
A48: Departamento de Bedelía - Escuela Militar de Aeronáutica
A49: Instituto Militar de Estudios Superiores
A51: * Los datos corresponden al curso de Cadetes de 1°,2° y3°

Sheet II-5.2.1
A1: OFERTAS TERCIARIAS NO UNIVERSITARIAS DEL ÁREA SEGURIDAD Y DEFENSA | G1: ALUMNOS MATRICULADOS
A3: Cuadro Nº II-5.2.1
A5: ALUMNOS INGRESADOS, MATRICULADOS Y EGRESADOS EN NIVEL TERCIARIO NO UNIVERSITARIO DEL ÁREA SEGURIDAD Y DEFENSA POR SEXO SEGÚN INSTITUCIÓN Y CARRERA. AÑO 2016.
A7: INSTITUCION / CARRERA | B7: TOTAL | C7: INGRESADOS | E7: TOTAL | F7: MATRICULADOS | H7: TOTAL | I7: EGRESADOS
C8: SEXO | F8: SEXO | I8: SEXO
C9: M | D9: F | F9: M | G9: F | I9: M | J9: F
A10: TOTAL | B10: =D10+C10 -> 341 | C10: =+C12+C16+C19+C23 -> 265 | D10: =+D12+D16+D19+D23 -> 76 | E10: =G10+F10 -> 865 | F10: =+F12+F16+F19+F23 -> 691 | G10: =+G12+G16+G19+G23 -> 174 | H10: =J10+I10 -> 208 | I10: =+I12+I16+I19+I23 -> 164 | J10: =+J12+J16+J19+J23 -> 44
A12: ESCUELA NAVAL | B12: =SUM(B13:B14) -> 54 | C12: 40 | D12: 14 | E12: 136 | F12: 107 | G12: 29 | H12: 24 | I12: 18 | J12: 6
A13: Marina de Guerra | B13: =SUM(C13:D13) -> 40 | C13: 26 | D13: 14 | E13: =SUM(F13:G13) -> 89 | F13: 63 | G13: 26 | H13: =SUM(I13:J13) -> 11 | I13: 6 | J13: 5
A14: Marina Mercante | B14: =SUM(C14:D14) -> 14 | C14: 14 | D14: 0 | E14: =SUM(F14:G14) -> 47 | F14: 44 | G14: 3 | H14: =SUM(I14:J14) -> 13 | I14: 12 | J14: 1
A16: ESCUELA NACIONAL DE POLICÍA | B16: =+C16+D16 -> 112 | C16: =+C17 -> 85 | D16: =+D17 -> 27 | E16: =+F16+G16 -> 322 | F16: =+F17 -> 239 | G16: =+G17 -> 83 | H16: =+I16+J16 -> 113 | I16: =+I17 -> 82 | J16: =+J17 -> 31
A17: Curso de Cadetes (1º,2º y 3er.año) | B17: =SUM(C17:D17) -> 112 | C17: 85 | D17: 27 | E17: =SUM(F17:G17) -> 322 | F17: 239 | G17: 83 | H17: =SUM(I17:J17) -> 113 | I17: 82 | J17: 31
A19: ESCUELA MILITAR | B19: =SUM(C19:D19) -> 105 | C19: =C20+C21 -> 81 | D19: =D20+D21 -> 24 | E19: =SUM(F19:G19) -> 285 | F19: =F20+F21 -> 240 | G19: =G20+G21 -> 45 | H19: =SUM(I19:J19) -> 71 | I19: =I20+I21 -> 64 | J19: =J20+J21 -> 7
A20: Alférez de Cuerpo de Comando | B20: =+C20+D20 -> 92 | C20: 71 | D20: 21 | E20: =+F20+G20 -> 264 | F20: 225 | G20: 39 | H20: =SUM(I20:J20) -> 63 | I20: 59 | J20: 4
A21: Alférez de Apoyo de Servicios y Combate | B21: =+C21+D21 -> 13 | C21: 10 | D21: 3 | E21: =+F21+G21 -> 21 | F21: 15 | G21: 6 | H21: =SUM(I21:J21) -> 8 | I21: 5 | J21: 3
A23: ESCUELA MILITAR DE AERONÁUTICA | B23: =SUM(C23:D23) -> 70 | C23: =SUM(C24:C29) -> 59 | D23: =SUM(D24:D29) -> 11 | E23: =SUM(F23:G23) -> 122 | F23: =SUM(F24:F29) -> 105 | G23: =SUM(G24:G29) -> 17 | H23: =SUM(I23:J23) -> 0 | I23: =SUM(I24:I29) -> 0 | J23: =SUM(J24:J29) -> 0
A24: Aspirantes | B24: =+C24+D24 -> 70 | C24: 59 | D24: 11 | E24: =+F24+G24 -> 70 | F24: 59 | G24: 11 | H24: =SUM(I24:J24) -> 0 | I24: 0 | J24: 0
A25: Cadetes 1º | B25: =+C25+D25 -> 0 | C25: 0 | D25: 0 | E25: =+F25+G25 -> 12 | F25: 9 | G25: 3 | H25: 0 | I25: 0 | J25: 0
A26: Cadetes 2º (Aviadores) | B26: 0 | C26: 0 | D26: 0 | E26: 11 | F26: 11 | G26: 0 | H26: 0 | I26: 0 | J26: 0
A27: Cadetes 2º (Navegantes) | B27: 0 | C27: 0 | D27: 0 | E27: 6 | F27: 5 | G27: 1 | H27: 0 | I27: 0 | J27: 0
A28: Cadetes 3º (Aviadores) | B28: 0 | C28: 0 | D28: 0 | E28: 18 | F28: 17 | G28: 1 | H28: 0 | I28: 0 | J28: 0
A29: Cadetes 3º (Navegantes) | B29: 0 | C29: 0 | D29: 0 | E29: 5 | F29: 4 | G29: 1 | H29: 0 | I29: 0 | J29: 0
A32: Fuentes: Escuela Nacional de Policía
A33: Dirección de Formación. Ministerio de Defensa Nacional

Sheet II-5.2.2
A1: OTRAS OFERTAS TERCIARIAS NO UNIVERSITARIAS | G1: ALUMNOS MATRICULADOS
A3: Cuadro Nº II-5.2.2
A5: ALUMNOS INGRESADOS, MATRICULADOS Y EGRESADOS EN OTRAS OFERTAS DE NIVEL TERCIARIO NO UNIVERSITARIO POR SEXO SEGÚN INSTITUCIÓN Y CARRERA. AÑO 2016.
A6: INSTITUCION / CARRERA | B6: TOTAL | C6: INGRESADOS | E6: TOTAL | F6: MATRICULADOS | H6: TOTAL | I6: EGRESADOS
C7: SEXO | F7: SEXO | I7: SEXO
C8: M | D8: F | F8: M | G8: F | I8: M | J8: F
A10: EMAD Margarita Xirgu | B10: =C10+D10 -> 41 | C10: =C11+C12 -> 13 | D10: =D11+D12 -> 28 | E10: =F10+G10 -> 102 | F10: =F11+F12 -> 35 | G10: =G11+G12 -> 67 | H10: =I10+J10 -> 19 | I10: =I11+I12 -> 2 | J10: =J11+J12 -> 17
A11: Carrera de actuación | B11: =C11+D11 -> 20 | C11: 9 | D11: 11 | E11: =F11+G11 -> 63 | F11: 24 | G11: 39 | H11: =I11+J11 -> 12 | I11: 1 | J11: 11
A12: Carrera de diseño teatral | B12: =C12+D12 -> 21 | C12: 4 | D12: 17 | E12: =F12+G12 -> 39 | F12: 11 | G12: 28 | H12: =I12+J12 -> 7 | I12: 1 | J12: 6
A14: CETP (UTU) | B14: - | C14: - | D14: - | E14: =+F14+G14 -> 10580 | F14: =SUM(F15:F91) -> 6313 | G14: =SUM(G15:G91) -> 4267 | H14: - | I14: - | J14: -
A15: ADMINISTRACIÓN | B15: - | C15: - | D15: - | E15: =+F15+G15 -> 294 | F15: 76 | G15: 218 | H15: - | I15: - | J15: -
A16: ADMINISTRACIÓN PÚBLICA | B16: - | C16: - | D16: - | E16: 21 | F16: 4 | G16: 17 | H16: - | I16: - | J16: -
A17: AERONÁUTICA | B17: - | C17: - | D17: - | E17: 35 | F17: 32 | G17: 3 | H17: - | I17: - | J17: -
A18: AGRÓNICA ÉNFASIS AGRÍCOLA | B18: - | C18: - | D18: - | E18: 21 | F18: 21 | G18: 0 | H18: - | I18: - | J18: -
A19: ANALISTA EN MARKETING | B19: - | C19: - | D19: - | E19: 149 | F19: 54 | G19: 95 | H19: - | I19: - | J19: -
A20: ÁREA ELECTROTÉCNIA ELECTRÓNICA | B20: - | C20: - | D20: - | E20: 236 | F20: 217 | G20: 19 | H20: - | I20: - | J20: -
A21: AREA OPTATIVA D. GRÁFICO COM.VISUAL | B21: - | C21: - | D21: - | E21: 273 | F21: 99 | G21: 174 | H21: - | I21: - | J21: -
A22: ARTICULACIÓN TECNÓLOGO QUÍMICO | B22: - | C22: - | D22: - | E22: 84 | F22: 25 | G22: 59 | H22: - | I22: - | J22: -
A23: AUDIOVISUALES | B23: - | C23: - | D23: - | E23: 112 | F23: 70 | G23: 42 | H23: - | I23: - | J23: -
A24: AUTOTRÓNICA LAB. S. DE CONTROL | B24: - | C24: - | D24: - | E24: 57 | F24: 57 | G24: 0 | H24: - | I24: - | J24: -
A25: BIOTECNOLOGÍA INDUSTRIAL | B25: - | C25: - | D25: - | E25: 37 | F25: 13 | G25: 24 | H25: - | I25: - | J25: -
A26: COM. SOCIAL OP. PRENSA | B26: - | C26: - | D26: - | E26: 48 | F26: 19 | G26: 29 | H26: - | I26: - | J26: -
A27: COM. SOCIAL OP. RADIODIFUSIÓN | B27: - | C27: - | D27: - | E27: 86 | F27: 39 | G27: 47 | H27: - | I27: - | J27: -
A28: COM. SOCIAL OP. RR.PP. | B28: - | C28: - | D28: - | E28: 46 | F28: 13 | G28: 33 | H28: - | I28: - | J28: -
A29: COM. SOCIAL OP.TELEVISIÓN | B29: - | C29: - | D29: - | E29: 34 | F29: 18 | G29: 16 | H29: - | I29: - | J29: -
A30: COM.SOCIAL OP. PUBLICIDAD | B30: - | C30: - | D30: - | E30: 59 | F30: 23 | G30: 36 | H30: - | I30: - | J30: -
A31: COMPONENTE OPCIONAL CTT LOGÍSTICA | B31: - | C31: - | D31: - | E31: 263 | F31: 134 | G31: 129 | H31: - | I31: - | J31: -
A32: CONSERV. GESTION AREAS NATUR | B32: - | C32: - | D32: - | E32: 51 | F32: 23 | G32: 28 | H32: - | I32: - | J32: -
A33: CONSTRUCCIÓN | B33: - | C33: - | D33: - | E33: 176 | F33: 128 | G33: 48 | H33: - | I33: - | J33: -
A34: CONSTRUCCIÓN DE OBRA CIVIL | B34: - | C34: - | D34: - | E34: 53 | F34: 29 | G34: 24 | H34: - | I34: - | J34: -
A35: CONTROL AMBIENTAL | B35: - | C35: - | D35: - | E35: 281 | F35: 107 | G35: 174 | H35: - | I35: - | J35: -
A36: CORREDOR DE SEGUROS | B36: - | C36: - | D36: - | E36: 42 | F36: 26 | G36: 16 | H36: - | I36: - | J36: -
A37: D. ITINERARIO TURÍSTICO SOSTENIBLE | B37: - | C37: - | D37: - | E37: 128 | F37: 34 | G37: 94 | H37: - | I37: - | J37: -
A38: DEPORTES NAUTICOS | B38: - | C38: - | D38: - | E38: 51 | F38: 40 | G38: 11 | H38: - | I38: - | J38: -
A39: DISEÑO GRÁFICO EN COM. VISUAL | B39: - | C39: - | D39: - | E39: 311 | F39: 118 | G39: 193 | H39: - | I39: - | J39: -
A40: ELECTRÓNICA | B40: - | C40: - | D40: - | E40: 283 | F40: 274 | G40: 9 | H40: - | I40: - | J40: -
A41: ELECTROTÉCNIA | B41: - | C41: - | D41: - | E41: 728 | F41: 705 | G41: 23 | H41: - | I41: - | J41: -
A42: ENERGIA EÓLICA | B42: - | C42: - | D42: - | E42: 12 | F42: 11 | G42: 1 | H42: - | I42: - | J42: -
A43: ENERGIA SOLAR FOTOVOLTAICA | B43: - | C43: - | D43: - | E43: 29 | F43: 21 | G43: 8 | H43: - | I43: - | J43: -
A44: ENOLOGÍA MÓDULO ENOLÓGICO II | B44: - | C44: - | D44: - | E44: 8 | F44: 5 | G44: 3 | H44: - | I44: - | J44: -
A45: ENOLOGÍA MÓDULO VITIVINÍCOLA | B45: - | C45: - | D45: - | E45: 8 | F45: 6 | G45: 2 | H45: - | I45: - | J45: -
A46: ENOLOGÍA PASANTÍA PROYECTO FINAL | B46: - | C46: - | D46: - | E46: 8 | F46: 4 | G46: 4 | H46: - | I46: - | J46: -
A47: FORESTAL | B47: - | C47: - | D47: - | E47: 35 | F47: 23 | G47: 12 | H47: - | I47: - | J47: -
A48: GASTRONOMIA - BINACIONAL | B48: - | C48: - | D48: - | E48: 26 | F48: 8 | G48: 18 | H48: - | I48: - | J48: -
A49: GESTIÓN DE ALOJAMIENTO | B49: - | C49: - | D49: - | E49: 30 | F49: 9 | G49: 21 | H49: - | I49: - | J49: -
A50: GESTIÓN EMPRESAS TURÍSTICAS | B50: - | C50: - | D50: - | E50: 55 | F50: 15 | G50: 40 | H50: - | I50: - | J50: -
A51: GESTIÓN HUMANA | B51: - | C51: - | D51: - | E51: 50 | F51: 9 | G51: 41 | H51: - | I51: - | J51: -
A52: INDUSTRIAS LÁCTEAS | B52: - | C52: - | D52: - | E52: 55 | F52: 37 | G52: 18 | H52: - | I52: - | J52: -
A53: INFOGRAFÍA DE ARQUITECTURA | B53: - | C53: - | D53: - | E53: 86 | F53: 34 | G53: 52 | H53: - | I53: - | J53: -
A54: INFORMÁTICA PARA INTERNET | B54: - | C54: - | D54: - | E54: 124 | F54: 82 | G54: 42 | H54: - | I54: - | J54: -
A55: INMOBILIARIO (OPERADOR) | B55: - | C55: - | D55: - | E55: 54 | F55: 29 | G55: 25 | H55: - | I55: - | J55: -
A56: INSTALACIONES ELÉCTRICAS | B56: - | C56: - | D56: - | E56: 56 | F56: 55 | G56: 1 | H56: - | I56: - | J56: -
A57: INSTALACIONES SANITARIAS | B57: - | C57: - | D57: - | E57: 46 | F57: 44 | G57: 2 | H57: - | I57: - | J57: -
A58: INSTRUMENTACIÓN Y CONTROL | B58: - | C58: - | D58: - | E58: 45 | F58: 41 | G58: 4 | H58: - | I58: - | J58: -
A59: LOGÍSTICA | B59: - | C59: - | D59: - | E59: 494 | F59: 246 | G59: 248 | H59: - | I59: - | J59: -
A60: LOGÍSTICA - BINACIONAL | B60: - | C60: - | D60: - | E60: 34 | F60: 11 | G60: 23 | H60: - | I60: - | J60: -
A61: MANTENIMIENTO MECÁNICO INDUSTRIAL | B61: - | C61: - | D61: - | E61: 74 | F61: 70 | G61: 4 | H61: - | I61: - | J61: -
A62: MAQUINISTA NAVAL | B62: - | C62: - | D62: - | E62: 148 | F62: 146 | G62: 2 | H62: - | I62: - | J62: -
A63: MECATRÓNICA - INT. AUT. Y CONTROL | B63: - | C63: - | D63: - | E63: 7 | F63: 7 | G63: 0 | H63: - | I63: - | J63: -
A64: MECATRÓNICA - MANT. ELECTROMECÁNICO | B64: - | C64: - | D64: - | E64: 5 | F64: 5 | G64: 0 | H64: - | I64: - | J64: -
A65: MOTORES DE COMBUSTIÓN INTERNA | B65: - | C65: - | D65: - | E65: 18 | F65: 18 | G65: 0 | H65: - | I65: - | J65: -
A66: NAUTICA Y PESCA | B66: - | C66: - | D66: - | E66: 13 | F66: 12 | G66: 1 | H66: - | I66: - | J66: -
A67: ÓPTICO | B67: - | C67: - | D67: - | E67: 135 | F67: 54 | G67: 81 | H67: - | I67: - | J67: -
A68: ORGANIZACION DE EVENTOS | B68: - | C68: - | D68: - | E68: 98 | F68: 17 | G68: 81 | H68: - | I68: - | J68: -
A69: PREVENCIONISTA | B69: - | C69: - | D69: - | E69: 945 | F69: 498 | G69: 447 | H69: - | I69: - | J69: -
A70: PREVENCIONISTA SEMIPRESENCIAL | B70: - | C70: - | D70: - | E70: 379 | F70: 177 | G70: 202 | H70: - | I70: - | J70: -
A71: PREVENCIONISTA EN SEG.INDUSTRIAL | B71: - | C71: - | D71: - | E71: 659 | F71: 358 | G71: 301 | H71: - | I71: - | J71: -
A72: PRODUCCIÓN AGRICOLA GANADERA | B72: - | C72: - | D72: - | E72: 311 | F72: 218 | G72: 93 | H72: - | I72: - | J72: -
A73: PRODUCCIÓN AGROPECUARIA FAMILIAR | B73: - | C73: - | D73: - | E73: 22 | F73: 10 | G73: 12 | H73: - | I73: - | J73: -
A74: PRODUCTOS EN GEMAS | B74: - | C74: - | D74: - | E74: 23 | F74: 8 | G74: 15 | H74: - | I74: - | J74: -
A75: RECREACION | B75: - | C75: - | D75: - | E75: 263 | F75: 113 | G75: 150 | H75: - | I75: - | J75: -
A76: REDES | B76: - | C76: - | D76: - | E76: 217 | F76: 198 | G76: 19 | H76: - | I76: - | J76: -
A77: REDES Y COMUNICACIONES ÓPTICAS | B77: - | C77: - | D77: - | E77: 55 | F77: 54 | G77: 1 | H77: - | I77: - | J77: -
A78: REMATADOR | B78: - | C78: - | D78: - | E78: 113 | F78: 73 | G78: 40 | H78: - | I78: - | J78: -
A79: REMATADOR - OP. INMOBILIARIO | B79: - | C79: - | D79: - | E79: =+F79+G79 -> 129 | F79: 71 | G79: 58 | H79: - | I79: - | J79: -
A80: S. P. ARROZ PASTURAS - BINACIONAL | B80: - | C80: - | D80: - | E80: 14 | F80: 10 | G80: 4 | H80: - | I80: - | J80: -
A81: SECRETARIADO BILINGÜE - INGLÉS | B81: - | C81: - | D81: - | E81: 36 | F81: 4 | G81: 32 | H81: - | I81: - | J81: -
A82: SISTEMAS DE PROD. ARROZ-PASTURAS | B82: - | C82: - | D82: - | E82: 5 | F82: 3 | G82: 2 | H82: - | I82: - | J82: -
A83: SISTEMAS ENERGÍAS RENOVABLES | B83: - | C83: - | D83: - | E83: 111 | F83: 73 | G83: 38 | H83: - | I83: - | J83: -
A84: TECNICO EN COMUNICACIÓN SOCIAL | B84: - | C84: - | D84: - | E84: 317 | F84: 127 | G84: 190 | H84: - | I84: - | J84: -
A85: TECNÓLOGO CÁRNICO | B85: - | C85: - | D85: - | E85: 33 | F85: 11 | G85: 22 | H85: - | I85: - | J85: -
A86: TECNÓLOGO EN INFORMÁTICA | B86: - | C86: - | D86: - | E86: 476 | F86: 414 | G86: 62 | H86: - | I86: - | J86: -
A87: TECNÓLOGO MADERA | B87: - | C87: - | D87: - | E87: 47 | F87: 31 | G87: 16 | H87: - | I87: - | J87: -
A88: TECNÓLOGO MECÁNICO | B88: - | C88: - | D88: - | E88: 322 | F88: 300 | G88: 22 | H88: - | I88: - | J88: -
A89: TECNÓLOGO QUÍMICO | B89: - | C89: - | D89: - | E89: 349 | F89: 108 | G89: 241 | H89: - | I89: - | J89: -
A90: TELECOMUNICACIONES | B90: - | C90: - | D90: - | E90: 42 | F90: 37 | G90: 5 | H90: - | I90: - | J90: -
A93: Fuente:
A94: D.E - UTU-
A95: Secretaría General EMAD

Sheet II-5.3.1
A1: OFERTAS TERCIARIAS NO UNIVERSITARIAS DEL ÁREA SEGURIDAD Y DEFENSA | E1: PERSONAL ACADÉMICO
A3: Cuadro Nº II-5.3.1
A5: PERSONAL ACADÉMICO DE NIVEL TERCIARIO NO UNIVERSITARIO DEL ÁREA SEGURIDAD Y DEFENSA POR CARGA HORARIA, SEXO, SEGÚN INSTITUCIÓN Y FORMACIÓN. AÑO 2016.
A6: INSTITUCIONES / FORMACIÓN | B6: TOTAL | C6: HORAS SEMANALES
C7: Total | D7: 20 horas o menos | F7: Total | G7: Entre 21 y 30 horas | I7: Total | J7: 31 horas y más
D8: SEXO | G8: SEXO | J8: SEXO
D9: M | E9: F | G9: M | H9: F | J9: M | K9: F
A10: TOTAL | B10: =C10+F10+I10 -> 352 | C10: =D10+E10 -> 343 | D10: =D12+D18+D24+D30 -> 269 | E10: =E12+E18+E24+E30 -> 74 | F10: =G10+H10 -> 1 | G10: =G12+G18+G24+G30 -> 0 | H10: =H12+H18+H24+H30 -> 1 | I10: =J10+K10 -> 8 | J10: =J12+J18+J24+J30 -> 4 | K10: =K12+K18+K24+K30 -> 4
A12: ESCUELA NAVAL | B12: =C12+F12+I12 -> 132 | C12: =D12+E12 -> 132 | D12: =SUM(D13:D16) -> 115 | E12: =SUM(E13:E16) -> 17 | F12: =G12+H12 -> 0 | G12: =SUM(G13:G16) -> 0 | H12: =SUM(H13:H16) -> 0 | I12: =J12+K12 -> 0 | J12: =SUM(J13:J16) -> 0 | K12: =SUM(K13:K16) -> 0
A13: Sin formación de grado completa | B13: =C13+F13+I13 -> 0 | C13: =D13+E13 -> 0 | D13: 0 | E13: 0 | F13: =G13+H13 -> 0 | G13: 0 | H13: 0 | I13: =J13+K13 -> 0 | J13: 0 | K13: 0
A14: Con formación de grado | B14: 122 | C14: =D14+E14 -> 122 | D14: 112 | E14: 10 | F14: =G14+H14 -> 0 | G14: 0 | H14: 0 | I14: =J14+K14 -> 0 | J14: 0 | K14: 0
A15: Con postgrado de especialización o maestría | B15: 1 | C15: =D15+E15 -> 1 | D15: 1 | E15: 0 | F15: 0 | G15: 0 | H15: 0 | I15: =J15+K15 -> 0 | J15: 0 | K15: 0
A16: Con doctorado | B16: 9 | C16: =D16+E16 -> 9 | D16: 2 | E16: 7 | F16: =G16+H16 -> 0 | G16: 0 | H16: 0 | I16: =J16+K16 -> 0 | J16: 0 | K16: 0
A18: ESCUELA NACIONAL DE POLICÍA | B18: =C18+F18+I18 -> 53 | C18: =D18+E18 -> 53 | D18: =SUM(D19:D22) -> 40 | E18: =SUM(E19:E22) -> 13 | F18: =G18+H18 -> 0 | G18: =SUM(G19:G22) -> 0 | H18: =SUM(H19:H22) -> 0 | I18: =J18+K18 -> 0 | J18: =SUM(J19:J22) -> 0 | K18: =SUM(K19:K22) -> 0
A19: Sin formación de grado completa | B19: =C19+F19+I19 -> 0 | C19: =D19+E19 -> 0 | D19: 0 | E19: 0 | F19: =G19+H19 -> 0 | G19: 0 | H19: 0 | I19: =J19+K19 -> 0 | J19: 0 | K19: 0
A20: Con formación de grado | B20: =C20+F20+I20 -> 44 | C20: =D20+E20 -> 44 | D20: 36 | E20: 8 | F20: =G20+H20 -> 0 | G20: 0 | H20: 0 | I20: =J20+K20 -> 0 | J20: 0 | K20: 0
A21: Con postgrado de especialización o maestría | B21: =C21+F21+I21 -> 1 | C21: =D21+E21 -> 1 | D21: 1 | E21: 0 | F21: =G21+H21 -> 0 | G21: 0 | H21: 0 | I21: =J21+K21 -> 0 | J21: 0 | K21: 0
A22: Con doctorado | B22: =C22+F22+I22 -> 8 | C22: =D22+E22 -> 8 | D22: 3 | E22: 5 | F22: =G22+H22 -> 0 | G22: 0 | H22: 0 | I22: =J22+K22 -> 0 | J22: 0
A24: ESCUELA MILITAR | B24: =C24+F24+I24 -> 87 | C24: =D24+E24 -> 78 | D24: =SUM(D25:D28) -> 56 | E24: =SUM(E25:E28) -> 22 | F24: =G24+H24 -> 1 | G24: =SUM(G25:G28) -> 0 | H24: =SUM(H25:H28) -> 1 | I24: =J24+K24 -> 8 | J24: =SUM(J25:J28) -> 4 | K24: =SUM(K25:K28) -> 4
A25: Sin formación de grado completa | B25: =C25+F25+I25 -> 13 | C25: =D25+E25 -> 13 | D25: 3 | E25: 10 | F25: =G25+H25 -> 0 | G25: 0 | H25: 0 | I25: =J25+K25 -> 0 | J25: 0 | K25: 0
A26: Con formación de grado | B26: =C26+F26+I26 -> 69 | C26: =D26+E26 -> 62 | D26: 51 | E26: 11 | F26: =G26+H26 -> 1 | G26: 0 | H26: 1 | I26: =J26+K26 -> 6 | J26: 3 | K26: 3
A27: Con postgrado de especialización o maestría | B27: 5 | C27: 3 | D27: 2 | E27: 1 | F27: =G27+H27 -> 0 | G27: 0 | H27: 0 | I27: =J27+K27 -> 2 | J27: 1 | K27: 1
A28: Con doctorado | B28: 0 | C28: 0 | D28: 0 | E28: 0 | F28: =G28+H28 -> 0 | G28: 0 | H28: 0 | I28: =J28+K28 -> 0 | J28: 0 | K28: 0
A30: ESCUELA MILITAR DE AERONÁUTICA | B30: =C30+F30+I30 -> 80 | C30: =D30+E30 -> 80 | D30: =SUM(D31:D34) -> 58 | E30: =SUM(E31:E34) -> 22 | F30: =G30+H30 -> 0 | G30: =SUM(G31:G34) -> 0 | H30: =SUM(H31:H34) -> 0 | I30: =J30+K30 -> 0 | J30: =SUM(J31:J34) -> 0 | K30: =SUM(K31:K34) -> 0
A31: Sin formación de grado completa | B31: =C31+F31+I31 -> 43 | C31: =D31+E31 -> 43 | D31: 37 | E31: 6 | F31: =G31+H31 -> 0 | G31: 0 | H31: 0 | I31: =J31+K31 -> 0 | J31: 0 | K31: 0
A32: Con formación de grado | B32: 37 | C32: 37 | D32: 21 | E32: 16 | F32: 0 | G32: 0 | H32: 0 | I32: 0 | J32: 0 | K32: 0
A33: Con postgrado de especialización o maestría | B33: 0 | C33: 0 | D33: 0 | E33: 0 | F33: 0 | G33: 0 | H33: 0 | I33: 0 | J33: 0 | K33: 0
A34: Con doctorado | B34: 0 | C34: 0 | D34: 0 | E34: 0 | F34: 0 | G34: 0 | H34: 0 | I34: 0 | J34: 0 | K34: 0
A37: Fuentes: Escuela Nacional de Policía
A38: Dirección de Formación. Ministerio de Defensa Nacional

Sheet II-5.3.2
A1: OTRAS OFERTAS TERCIARIAS NO UNIVERSITARIAS | C1: PERSONAL ACADÉMICO
A3: Cuadro Nº II-5.3.2
A5: PERSONAL ACADÉMICO DE NIVEL TERCIARIO NO UNIVERSITARIO POR CARGA HORARIA SEMANAL, SEXO, SEGÚN INSTITUCIÓN Y FORMACIÓN. AÑO 2016.
A6: INSTITUCIONES / FORMACIÓN | B6: TOTAL | C6: HORAS SEMANALES
C7: Total | D7: 20 horas o menos | F7: Total | G7: Entre 21 y 30 horas | I7: Total | J7: 31 horas y más
D8: SEXO | G8: SEXO | J8: SEXO
D9: M | E9: F | G9: M | H9: F | J9: M | K9: F
A10: EMAD Margarita Xirgu | B10: =C10+F10+I10 -> 60 | C10: =D10+E10 -> 60 | D10: =SUM(D11:D14) -> 33 | E10: =SUM(E11:E14) -> 27 | F10: =G10+H10 -> 0 | G10: =SUM(G11:G14) -> 0 | H10: =SUM(H11:H14) -> 0 | I10: =J10+K10 -> 0 | J10: =SUM(J11:J14) -> 0 | K10: =SUM(K11:K14) -> 0
A11: Sin formación de grado completa | B11: =C11+F11+I11 -> 38 | C11: =D11+E11 -> 38 | D11: 22 | E11: 16 | F11: =G11+H11 -> 0 | G11: 0 | H11: 0 | I11: =J11+K11 -> 0 | J11: 0 | K11: 0
A12: Con formación de grado | B12: =C12+F12+I12 -> 22 | C12: =D12+E12 -> 22 | D12: 11 | E12: 11 | F12: =G12+H12 -> 0 | G12: 0 | H12: 0 | I12: =J12+K12 -> 0 | J12: 0 | K12: 0
A13: Con postgrado de especialización o maestría | B13: =C13+F13+I13 -> 0 | C13: 0 | D13: 0 | E13: 0 | F13: =G13+H13 -> 0 | G13: 0 | H13: 0 | I13: =J13+K13 -> 0 | J13: 0 | K13: 0
A14: Con doctorado | B14: 0 | C14: 0 | D14: 0 | E14: 0 | F14: =G14+H14 -> 0 | G14: 0 | H14: 0 | I14: =J14+K14 -> 0 | J14: 0 | K14: 0
A15: Fuente:
A16: Secretaría General - EMAD

Sheet FORMACIÓN EN EDUCACIÓN
A9: Cuadro II-6.1.1 | B9: MATRÍCULA Y PERSONAL DOCENTE SEGÚN GRANDES ÁREAS, DEPARTAMENTOS E INSTITUCIONES. CFE. AÑO 2016.
A12: Cuadro II-6.2.1 | B12: ALUMNOS INGRESADOS, MATRICULADOS Y EGRESADOS EN FORMACIÓN EN EDUCACIÓN POR CARRERA SEGÚN DEPARTAMENTO Y ESTABLECIMIENTO. CFE. AÑO 2016.
A13: Cuadro II-6.2.2 | B13: ALUMNOS INGRESADOS, MATRICULADOS Y EGRESADOS EN FORMACIÓN EN EDUCACIÓN POR SEXO SEGÚN INSTITUCIÓN Y CARRERA. TERCIARIAS NO UNIVERSITARIAS. AÑO 2016.
A17: Cuadro II-6.3.1 | B17: PERSONAL DOCENTE DE LOS INSTITUTOS DE FORMACIÓN EN EDUCACIÓN Y CANTIDAD DE HORAS POR INSTITUCIÓN Y DEPARTAMENTO. AÑO 2016.
A18: Cuadro II-6.3.2 | B18: PERSONAL DOCENTE DE FORMACIÓN EN EDUCACIÓN POR CARGA HORARIA SEMANAL, SEXO, SEGÚN INSTITUCIÓN Y FORMACIÓN. TERCIARIAS NO UNIVERSITARIAS. AÑO 2016.
A19: Cuadro II-6.3.3 | B19: ESTUDIANTES INGRESADOS Y MATRICULADOS EN FORMACIÓN EN EDUCACIÓN SEGÚN ORIGEN GEOGRÁFICO. AÑO 2016.
A33: =MID(B22,1,20) -> 

Sheet II-6.1.1
A1: ANEP - CONSEJO DE FORMACIÓN EN EDUCACIÓN | C1: INSTITUCIONES
A3: Cuadro Nº II-6.1.1
A5: MATRÍCULA Y PERSONAL DOCENTE SEGÚN GRANDES ÁREAS, DEPARTAMENTOS E INSTITUCIONES. AÑO 2016.
A6: GRANDES ÁREAS / DEPARTAMENTO / INSTITUCIÓN | B6: TOTAL | C6: DOCENTES
A11: TOTAL | B11: =+B13+B20 -> 24369 | C11: =+C13+C20 -> 2478
A13: MONTEVIDEO | B13: =SUM(B15:B18) -> 9317 | C13: =SUM(C15:C18) -> 704
A15: IINN | B15: 2076 | C15: 196
A16: IPA | B16: 5240 | C16: 317
A17: INET | B17: 1254 | C17: 137
A18: IFES | B18: 747 | C18: 54
A20: RESTO DEL PAÍS | B20: =SUM(B22:B39) -> 15052 | C20: =SUM(C22:C39) -> 1774
A22: Artigas | B22: 557 | C22: 64
A23: Canelones | B23: 2702 | C23: 279
A24: Cerro Largo | B24: 937 | C24: 63
A25: Colonia | B25: 911 | C25: 158
A26: Durazno | B26: 417 | C26: 50
A27: Flores | B27: 173 | C27: 32
A28: Florida | B28: 651 | C28: 143
A29: Lavalleja | B29: 335 | C29: 44
A30: Maldonado | B30: 1212 | C30: 160
A31: Paysandú | B31: 1144 | C31: 105
A32: Río Negro | B32: 248 | C32: 27
A33: Rivera | B33: 1502 | C33: 165
A34: Rocha | B34: 543 | C34: 49
A35: Salto | B35: 1363 | C35: 208
A36: San José | B36: 362 | C36: 41
A37: Soriano | B37: 501 | C37: 47
A38: Tacuarembó | B38: 550 | C38: 70
A39: Treinta y Tres | B39: 944 | C39: 69
A40: Fuente: División Estudiantil del CFE
A41: Notas: 1) Matrícula considerada como el número de personas inscriptas inscriptas y validades en el sistema web, para cursar en el 2016 al menos una materia de las carreras que se ofrecen en el CFE. 2) A partir del año 2016, los estudiantes de Educador Social del IPA, pasan al nuevo Instutito de Formación en Educación Social (IFES)

Sheet II-6.2.1
A1: ANEP - CONSEJO DE FORMACIÓN EN EDUCACIÓN | I1: ALUMNOS MATRICULADOS
A3: Cuadro Nº II-6.2.1
A5: ALUMNOS INGRESADOS, MATRICULADOS Y EGRESADOS EN FORMACIÓN EN EDUCACIÓN POR CARRERA SEGÚN DEPARTAMENTO Y ESTABLECIMIENTO. AÑO 2016.
A6: DEPARTAMENTO / ESTABLECIMIENTO | C6: TOTAL | F6: CARRERA
F7: Magisterio | I7: Profesorado | L7: Educador Social | O7: Asistente técnico en Primera Infancia
C9: Ingr. | D9: Matr. | E9: Egr. | F9: Ingr. | G9: Matr. | H9: Egr. | I9: Ingr. | J9: Matr. | K9: Egr. | L9: Ingr. | M9: Matr. | N9: Egr. | O9: Ingr. | P9: Matr. | Q9: Egr.
A11: TOTAL | C11: S/D | D11: =G11+J11+M11+P11 -> 24369 | E11: =E13+E19 -> 1574 | F11: =+F13+F19 -> 0 | G11: =+G13+G19 -> 6451 | H11: =H13+H19 -> 763 | I11: =+I13+I19 -> 0 | J11: =+J13+J19 -> 15228 | K11: =K13+K19 -> 718 | L11: =+L13+L19 -> 0 | M11: =+M13+M19 -> 1587 | N11: =N13+N19 -> 6 | O11: =+O13+O19 -> 0 | P11: =+P13+P19 -> 1103 | Q11: =Q13+Q19 -> 87
A13: MONTEVIDEO | C13: S/D | D13: =G13+J13+M13+P13 -> 9317 | E13: =SUM(E14:E17) -> 512 | F13: =SUM(F14:F17) -> 0 | G13: =SUM(G14:G18) -> 1767 | H13: =SUM(H14:H17) -> 143 | I13: =SUM(I14:I17) -> 0 | J13: =SUM(J14:J18) -> 6558 | K13: 313 | L13: 0 | M13: =SUM(M14:M18) -> 747 | N13: 0 | O13: 0 | P13: =SUM(P14:P18) -> 245 | Q13: 56
A14: IINN | C14: =F14+I14+L14 -> 0 | D14: =G14+J14+M14+P14 -> 2076 | E14: =H14+K14+N14+Q13 -> 208 | F14: S/D | G14: 1767 | H14: 130 | I14: S/D | J14: 64 | K14: 22 | L14: N/C | M14: N/C | N14: N/C | O14: N/C | P14: 245 | Q14: 56
A15: IPA | C15: =F15+I15+L15 -> 0 | D15: =G15+J15+M15+P15 -> 5240 | E15: =H15+K15+N15+Q15 -> 257 | F15: N/C | G15: N/C | H15: N/C | I15: S/D | J15: 5240 | K15: 257 | L15: S/D | N15: S/D | O15: S/D | P15: N/C | Q15: S/D
A16: UM | C16: =F16+I16+L16 -> 0 | D16: 0 | E16: 17 | F16: N/C | H16: 13 | I16: S/D | J16: S/D | K16: 4 | L16: N/C | M16: N/C | N16: N/C | O16: N/C | P16: N/C | Q16: N/C
A17: INET | C17: =F17+I17+L17 -> 0 | D17: 1254 | E17: 30 | F17: N/C | G17: N/C | H17: N/C | I17: S/D | J17: 1254 | K17: 30 | L17: N/C | M17: N/C | N17: N/C | O17: N/C | P17: N/C | Q17: N/C
A18: I.F.E.S | M18: 747
A19: RESTO DEL PAÍS | C19: =SUM(C20:C54) -> 0 | D19: =G19+J19+M19+P19 -> 15052 | E19: 1062 | F19: =F20+F21+F28+F29+F34+F33+F35+F38+F39+F42+F43+F45+F47+F49+F51+F52+F53+F54 -> 0 | G19: =G20+G21+G28+G29+G33+G34+G35+G38+G39+G42+G43+G44+G47+G48+G51+G52+G53+G54 -> 4684 | H19: =H20+H21+H28+H29+H33+H34+H35+H38+H39+H42+H43+H44+H47+H48+H51+H52+H53+H54 -> 620 | I19: =I20+I21+I28+I29+I33+I34+I35+I38+I39+I42+I43+I44+I47+I48+I51+I52+I53+I54 -> 0 | J19: 8670 | K19: 405 | L19: 0 | M19: =M20+M21+M28+M29+M33+M34+M35+M38+M39+M42+M43+M44+M47+M48+M51+M52+M53+M54 -> 840 | N19: 6 | O19: 0 | P19: =P20+P21+P28+P29+P33+P34+P35+P38+P39+P42+P43+P44+P47+P48+P51+P52+P53+P54 -> 858 | Q19: 31
A20: Artigas Artigas | C20: S/D | D20: 557 | E20: 47 | F20: S/D | G20: 345 | H20: 39 | I20: S/D | J20: 187 | K20: 3 | L20: S/D | M20: 25 | N20: 5 | O20: S/D
A21: Canelones | C21: S/D | D21: =G21+J21+M21+P21 -> 2702 | E21: =H21+K21+N21+Q21 -> 159 | F21: S/D | G21: =SUM(G22:G27) -> 807 | H21: =SUM(H22:H27) -> 103 | I21: S/D | J21: =SUM(J22:J27) -> 1447 | K21: =SUM(K22:K27) -> 56 | L21: S/D | M21: =SUM(M22:M27) -> 160 | N21: =SUM(N22:N27) -> 0 | O21: S/D | P21: =SUM(P22:P27) -> 288
A22: Canelones | C22: =F22+I22+L22 -> 0 | D22: 694 | E22: =H22+K22+N22+Q22 -> 33 | F22: S/D | G22: 248 | H22: 33 | I22: S/D | J22: 286 | L22: S/D | M22: 160 | O22: S/D
A23: De la Costa | C23: =F23+I23+L23 -> 0 | D23: 644 | E23: =H23+K23+N23+Q23 -> 41 | F23: S/D | G23: 200 | H23: 17 | I23: S/D | J23: 277 | K23: 8 | L23: S/D | O23: S/D | P23: 167 | Q23: 16
A24: Pando | C24: 0 | D24: 619 | E24: =H24+K24+N24+Q24 -> 31 | F24: S/D | G24: 233 | H24: 23 | I24: S/D | J24: 265 | K24: 5 | L24: S/D | O24: S/D | P24: 121 | Q24: 3
A25: San Ramón | C25: 0 | D25: 231 | E25: =H25+K25+N25+Q25 -> 25 | F25: S/D | G25: 126 | H25: 23 | I25: S/D | J25: 105 | K25: 2 | L25: S/D | O25: S/D
A26: María Auxiliadora | E26: 7 | H26: 7
A27: Cerp Sur- Atlántida | C27: 0 | D27: 514 | E27: 41 | F27: S/D | I27: S/D | J27: 514 | K27: 41 | L27: S/D | O27: S/D
A28: Cerro Largo Melo | C28: S/D | D28: 937 | E28: 59 | F28: S/D | G28: 328 | H28: 44 | I28: S/D | J28: 609 | K28: 15 | L28: S/D | O28: S/D
A29: Colonia | C29: S/D | D29: 911 | E29: 33 | F29: S/D | G29: =SUM(G30:G32) -> 208 | H29: =H30+H31+H32 -> 33 | I29: S/D | J29: =SUM(J30:J32) -> 703 | L29: S/D | O29: S/D
A30: Colonia | C30: =F30+I30+L30 -> 0 | D30: 365 | E30: =H30+K30+M30+N30+Q30 -> 29 | F30: S/D | G30: 0 | I30: S/D | J30: 365 | K30: 29 | L30: S/D | O30: S/D
A31: Carmelo | C31: =F31+I31+L31 -> 0 | D31: 325 | E31: =H31+K31+N31+Q31 -> 21 | F31: S/D | G31: 106 | H31: 16 | I31: S/D | J31: 219 | K31: 5 | L31: S/D | O31: S/D
A32: Rosario | C32: 0 | D32: 221 | E32: =H32+K32+N32+Q32 -> 21 | F32: S/D | G32: 102 | H32: 17 | I32: S/D | J32: 119 | K32: 4 | L32: S/D | O32: S/D
A33: Durazno Durazno | C33: S/D | D33: 417 | E33: =H33+K33+N33+Q33 -> 30 | F33: S/D | G33: 201 | H33: 25 | I33: S/D | J33: 216 | K33: 5 | L33: S/D | O33: S/D
A34: Flores Trinidad | C34: S/D | D34: 173 | E34: 6 | F34: S/D | G34: 57 | H34: 6 | I34: S/D | J34: 116 | L34: S/D | O34: S/D
A35: Florida | C35: S/D | D35: 651 | E35: 113 | F35: S/D | G35: =SUM(G36:G37) -> 172 | H35: =H36+H37 -> 44 | I35: S/D | J35: =J36+J37 -> 401 | K35: =K36+K37 -> 57 | L35: S/D | M35: =M36+M37 -> 0 | N35: =N36+N37 -> 0 | O35: S/D | P35: =P36+P37 -> 78 | Q35: =Q36+Q37 -> 12
A36: Florida | C36: S/D | D36: 269 | E36: 59 | F36: S/D | G36: 172 | H36: 44 | I36: S/D | J36: 19 | K36: 3 | L36: S/D | O36: S/D | P36: 78 | Q36: 12
A37: Cerp Centro - Florida | C37: S/D | D37: 382 | E37: 54 | F37: S/D | G37: 0 | I37: S/D | J37: 382 | K37: 54 | L37: S/D | O37: S/D
A38: Lavalleja Minas | C38: S/D | D38: 335 | E38: 30 | F38: S/D | G38: 158 | H38: 26 | I38: S/D | J38: 177 | K38: 4 | L38: S/D | O38: S/D
A39: Maldonado | C39: S/D | D39: 1212 | E39: 93 | F39: S/D | G39: =SUM(G40:G41) -> 334 | H39: =H40+H41 -> 35 | I39: S/D | J39: =J40+J41 -> 696 | K39: =K40+K41 -> 58 | L39: S/D | M39: =M40+M41 -> 182 | N39: =N40+N41 -> 0 | O39: S/D | Q39: =Q40+Q41 -> 0
A40: Maldonado | D40: =G40+J40+M40+P40 -> 361 | E40: =H40+K40+M40+Q40 -> 42 | G40: 334 | H40: 35 | I40: S/D | J40: 27 | K40: 7 | L40: S/D | O40: S/D
A41: Cerp Este | D41: 851 | E41: =H41+K41+N41+Q41 -> 51 | G41: 0 | I41: S/D | J41: 669 | K41: 51 | L41: S/D | M41: 182 | O41: S/D
A42: Paysandú Paysandú | C42: S/D | D42: 1144 | E42: 106 | F42: S/D | G42: 314 | H42: 57 | I42: S/D | J42: 539 | K42: 29 | L42: S/D | M42: 142 | N42: 1 | O42: S/D | P42: 149 | Q42: 19
A43: Río Negro Fray Bentos | C43: S/D | D43: 248 | E43: 15 | F43: S/D | G43: 99 | H43: 12 | I43: S/D | J43: 149 | K43: 3 | L43: S/D | O43: S/D
A44: Rivera | D44: 1502 | E44: 99 | G44: =SUM(G45:G46) -> 356 | H44: =H45+H46 -> 37 | I44: S/D | J44: =J45+J46 -> 870 | K44: =K45+K46 -> 62 | L44: S/D | M44: =M45+M46 -> 276 | O44: S/D
A45: Rivera | C45: S/D | D45: 781 | E45: 37 | F45: S/D | G45: 356 | H45: 37 | I45: S/D | J45: 149 | L45: S/D | M45: 276 | O45: S/D
A46: Cerp Norte | D46: 721 | E46: 62 | I46: S/D | J46: 721 | K46: 62 | L46: S/D | O46: S/D
A47: Rocha Rocha | C47: S/D | D47: 543 | E47: 21 | F47: S/D | G47: 130 | H47: 15 | I47: S/D | J47: 292 | K47: 6 | L47: S/D | O47: S/D | P47: 121
A48: Salto | D48: 1363 | E48: 119 | G48: =SUM(G49:G50) -> 496 | H48: =H49+H50 -> 49 | I48: S/D | J48: =J49+J50 -> 867 | K48: =K49+K50 -> 70 | L48: S/D | O48: S/D
A49: Salto | C49: S/D | D49: 520 | E49: 50 | F49: S/D | G49: 496 | H49: 49 | I49: S/D | J49: 24 | K49: 1 | L49: S/D | O49: S/D
A50: Cerp Salto | C50: S/D | D50: 843 | E50: 69 | F50: S/D | I50: S/D | J50: 843 | K50: 69 | L50: S/D | O50: S/D
A51: San José San José | C51: S/D | D51: 362 | E51: 23 | F51: S/D | G51: 133 | H51: 19 | I51: S/D | J51: 229 | K51: 4 | L51: S/D | O51: S/D
A52: Soriano Mercedes | C52: S/D | D52: 501 | E52: =H52+K52+N52+Q52 -> 29 | F52: S/D | G52: 186 | H52: 25 | I52: S/D | J52: 315 | K52: 4 | L52: S/D | O52: S/D
A53: Tacuarembó Tacuarembó | C53: S/D | D53: 944 | E53: 54 | F53: S/D | G53: 203 | H53: 36 | I53: S/D | J53: 519 | K53: 18 | L53: S/D | O53: S/D | P53: 222
A54: Treinta y Tres Treinta y Tres | C54: S/D | D54: 550 | E54: =H54+K54+N54+Q54 -> 26 | F54: S/D | G54: 157 | H54: 15 | I54: S/D | J54: 338 | K54: 11 | L54: S/D | M54: 55 | O54: S/D
A55: Fuente: Informática - DFPD
A56: Nota: No se dispone de datos de ingreso.
A57: Matrícula considerada como el número de personas inscriptas inscriptas y validades en el sistema web, para cursar en el 2016 al menos una materia de las carreras que se ofrecen en el CFE.
A58: Los matriculados en Profesorado del INET corresponden tanto al profesorado de Informática como a Maestros Técnicos.
A59: La categoría profesora incluye a los maestros y profesores técnicos y a las certificaciones en lenguas extranejeras
A60: El I.F.E.S. es el Instituto de Formación en Educación Social

Sheet II-6.2.2
A1: OTRAS TERCIARIAS NO UNIVERSITARIAS | G1: ALUMNOS MATRICULADOS
A3: Cuadro Nº II-6.2.2
A5: ALUMNOS INGRESADOS, MATRICULADOS Y EGRESADOS EN FORMACIÓN EN EDUCACIÓN POR SEXO SEGÚN INSTITUCIÓN Y CARRERA. AÑO 2016.
A6: INSTITUCION / CARRERA | B6: TOTAL | C6: INGRESADOS | E6: TOTAL | F6: MATRICULADOS | H6: TOTAL | I6: EGRESADOS
C7: SEXO | F7: SEXO | I7: SEXO
C8: M | D8: F | F8: M | G8: F | I8: M | J8: F
A10: C.I.E.P | B10: =SUM(C10:D10) -> 20 | C10: =SUM(C11:C12) -> 0 | D10: =SUM(D11:D12) -> 20 | E10: =SUM(F10:G10) -> 42 | F10: =SUM(F11:F12) -> 0 | G10: =SUM(G11:G12) -> 42 | H10: =SUM(I10:J10) -> 25 | I10: =SUM(I11:I12) -> 0 | J10: =SUM(J11:J12) -> 25
A11: Educador Inicial | B11: =SUM(C11:D11) -> 14 | C11: 0 | D11: 14 | E11: =SUM(F11:G11) -> 36 | F11: 0 | G11: 36 | H11: 19 | I11: 0 | J11: 19
A12: Técnico en educación inicial y primera infancia | B12: =SUM(C12:D12) -> 6 | C12: 0 | D12: 6 | E12: =SUM(F12:G12) -> 6 | F12: 0 | G12: 6 | H12: 6 | I12: 0 | J12: 6
A13: INAU – CENFORES | B13: =SUM(C13:D13) -> 69 | C13: =+C14 -> 2 | D13: =+D14 -> 67 | E13: 155 | F13: 3 | G13: 152 | H13: 22 | I13: 0 | J13: 22
A14: Educación en Primera Infancia | B14: =SUM(C14:D14) -> 69 | C14: 2 | D14: 67 | E14: =SUM(F14:G14) -> 155 | F14: 3 | G14: 152 | H14: 22 | I14: 0 | J14: 22
A15: Fuente:
A16: CEN.FOR.ES - I.N.A.U.
A17: C.I.E.P

Sheet II-6.3.1
A1: ANEP - CONSEJO DE FORMACIÓN EN EDUCACIÓN | D1: FUNCIONARIOS
A3: Cuadro Nº II-6.3.1
A5: PERSONAL DOCENTE DE LOS INSTITUTOS DE FORMACIÓN EN EDUCACIÓN Y CANTIDAD DE HORAS POR INSTITUCIÓN Y DEPARTAMENTO. AÑO 2014.
A6: DEPARTAMENTO / ESTABLECIMIENTO
B8: Cantidad de Docentes | C8: Cantidad de Horas
A9: TOTAL | B9: =B11+B16 -> 2478 | C9: =C11+C16 -> 0
A11: MONTEVIDEO | B11: =B12+B13+B14+B15 -> 704 | C11: 0
A12: IINN | B12: 196 | C12: s/d
A13: IPA | B13: 317 | C13: s/d
A14: INET | B14: 137 | C14: s/d
A15: IFES | B15: 54 | C15: s/d
A16: RESTO DEL PAÍS | B16: =B17+B18+B24+B25+B29+B30+B31+B34+B35+B38+B39+B40+B43+B44+B47+B48+B49+B50 -> 1774 | C16: 0
A17: Artigas | B17: 64 | C17: s/d
A18: Canelones | B18: =SUM(B19:B23) -> 279 | C18: s/d
A19: IFD Canelones | B19: 63 | C19: s/d
A20: IFD de la Costa | B20: 55 | C20: s/d
A21: IFD Pando | B21: 57 | C21: s/d
A22: IFD San Ramón | B22: 29 | C22: s/d
A23: CERP del Sur | B23: 75 | C23: s/d
A24: Cerro Largo | B24: 63 | C24: s/d
A25: Colonia | B25: =SUM(B26:B28) -> 158 | C25: s/d
A26: IFD Carmelo | B26: 30 | C26: s/d
A27: IFD Rosario | B27: 39 | C27: s/d
A28: CERP del Suroeste | B28: 89 | C28: s/d
A29: Durazno | B29: 50 | C29: s/d
A30: Flores | B30: 32 | C30: s/d
A31: Florida | B31: =B32+B33 -> 143 | C31: s/d
A32: IFD Florida | B32: 50 | C32: s/d
A33: CERP del Centro | B33: 93 | C33: s/d
A34: Lavalleja | B34: 44 | C34: s/d
A35: Maldonado | B35: =B36+B37 -> 160 | C35: s/d
A36: IFD Maldonado | B36: 46 | C36: s/d
A37: CERP del Centro | B37: 114 | C37: s/d
A38: Paysandú | B38: 105 | C38: s/d
A39: Río Negro | B39: 27 | C39: s/d
A40: Rivera | B40: =B41+B42 -> 165 | C40: s/d
A41: IFD Rivera | B41: 73 | C41: s/d
A42: CERP del Norte | B42: 92 | C42: s/d
A43: Rocha | B43: 49 | C43: s/d
A44: Salto | B44: =B45+B46 -> 208 | C44: s/d
A45: IFD Salto | B45: 60 | C45: s/d
A46: CERP del Litoral | B46: 148 | C46: s/d
A47: San José | B47: 41 | C47: s/d
A48: Soriano | B48: 47 | C48: s/d
A49: Tacuarembó | B49: 70 | C49: s/d
A50: Treinta y Tres | B50: 69 | C50: s/d
A51: Fuente: Contralor Docente - CFE
A52: Nota: Dato 2014 último dato disponible
A53: Nota: En octubre del 2007 el CODICEN aprobó un Sistema Único Nacional de Formación Docente (SUNFD) y el nuevo Plan Integrado 2008, creándose además una estructura departamentalizada con el objetivo de fortalecer la labor de los IFD y promover las actividades de investigación y extensión en el espacio de formación en educación. Las horas de departamento representan horas de docencia indirecta destinadas a promover la producción académica de los docentes. Los Departamentos poseen alcance nacional. Su conducción está a cargo de un Coordinacionador/a Académico/a.

Sheet II-6.3.2
A1: OTRAS TERCIARIAS NO UNIVERSITARIAS | C1: PERSONAL ACADÉMICO
A3: Cuadro Nº II-6.3.2
A5: PERSONAL DOCENTE DE FORMACIÓN EN EDUCACIÓN POR CARGA HORARIA SEMANAL, SEXO, SEGÚN INSTITUCIÓN Y FORMACIÓN. AÑO 2016.
A6: INSTITUCIONES / FORMACIÓN | B6: TOTAL | C6: HORAS SEMANALES
C7: Total | D7: 20 horas o menos | F7: Total | G7: Entre 21 y 30 horas | I7: Total | J7: 31 horas y más
D8: SEXO | G8: SEXO | J8: SEXO
D9: M | E9: F | G9: M | H9: F | J9: M | K9: F
A10: CIEP | B10: =C10+F10+I10 -> 23 | C10: =D10+E10 -> 23 | D10: =SUM(D11:D14) -> 4 | E10: =SUM(E11:E14) -> 19 | F10: =G10+H10 -> 0 | G10: =SUM(G11:G14) -> 0 | H10: =SUM(H11:H14) -> 0 | I10: =J10+K10 -> 0 | J10: =SUM(J11:J14) -> 0 | K10: =SUM(K11:K14) -> 0
A11: Sin formación de grado completa | B11: =C11+F11+I11 -> 0 | C11: =D11+E11 -> 0 | D11: 0 | E11: 0 | F11: =G11+H11 -> 0 | G11: 0 | H11: 0 | I11: =J11+K11 -> 0 | J11: 0 | K11: 0
A12: Con formación de grado (incluye formación docente) | B12: =C12+F12+I12 -> 19 | C12: =D12+E12 -> 19 | D12: 2 | E12: 17 | F12: =G12+H12 -> 0 | G12: 0 | H12: 0 | I12: =J12+K12 -> 0 | J12: 0 | K12: 0
A13: Con posgrado de especialización o maestría | B13: =C13+F13+I13 -> 3 | C13: =D13+E13 -> 3 | D13: 2 | E13: 1 | F13: =G13+H13 -> 0 | G13: 0 | H13: 0 | I13: =J13+K13 -> 0 | J13: 0 | K13: 0
A14: Con doctorado | B14: =C14+F14+I14 -> 1 | C14: =D14+E14 -> 1 | D14: 0 | E14: 1 | F14: =G14+H14 -> 0 | G14: 0 | H14: 0 | I14: =J14+K14 -> 0 | J14: 0 | K14: 0
A16: CENFORES -INAU | B16: =C16+F16+I16 -> 31 | C16: =D16+E16 -> 31 | D16: =SUM(D17:D20) -> 3 | E16: =SUM(E17:E20) -> 28 | F16: =G16+H16 -> 0 | G16: =SUM(G17:G20) -> 0 | H16: =SUM(H17:H20) -> 0 | I16: =J16+K16 -> 0 | J16: =SUM(J17:J20) -> 0 | K16: =SUM(K17:K20) -> 0
A17: Sin formación de grado completa | B17: =C17+F17+I17 -> 31 | C17: =D17+E17 -> 31 | D17: 3 | E17: 28 | F17: =G17+H17 -> 0 | G17: 0 | H17: 0 | I17: =J17+K17 -> 0 | J17: 0 | K17: 0
A18: Con formación de grado (incluye formación docente) | B18: 0 | C18: =D18+E18 -> 0 | D18: 0 | E18: 0 | F18: =G18+H18 -> 0 | G18: 0 | H18: 0 | I18: =J18+K18 -> 0 | J18: 0 | K18: 0
A19: Con posgrado de especialización o maestría | B19: 0 | C19: =D19+E19 -> 0 | D19: 0 | E19: 0 | F19: =G19+H19 -> 0 | G19: 0 | H19: 0 | I19: =J19+K19 -> 0 | J19: 0 | K19: 0
A20: Con doctorado | B20: 0 | C20: =D20+E20 -> 0 | D20: 0 | E20: 0 | F20: =G20+H20 -> 0 | G20: 0 | H20: 0 | I20: =J20+K20 -> 0 | J20: 0 | K20: 0
A21: Fuente: CENFORES - INAU
A22: CIEP

Sheet II-6.3.3
A1: ANEP - CONSEJO DE FORMACIÓN EN EDUCACIÓN | D1: ALUMNOS MATRICULADOS
A3: Cuadro Nº II-6.3.3
A5: ESTUDIANTES INGRESADOS Y MATRICULADOS EN FORMACIÓN EN EDUCACIÓN SEGÚN ORIGEN GEOGRÁFICO. AÑO 2016.
A6: DEPARTAMENTO DONDE CURSÓ EL ÚLTIMO AÑO LICEAL | B6: ESTUDIANTES INGRESADOS | C6: ESTUDIANTES MATRICULADOS
A8: TOTAL | B8: s/d | C8: =SUM(C9:C27) -> 24369
A9: Montevideo | B9: s/d | C9: 9317
A10: Artigas | B10: s/d | C10: 557
A11: Canelones | B11: s/d | C11: 2702
A12: Cerro Largo | B12: s/d | C12: 937
A13: Colonia | B13: s/d | C13: 911
A14: Durazno | B14: s/d | C14: 417
A15: Flores | B15: s/d | C15: 173
A16: Florida | B16: s/d | C16: 651
A17: Lavalleja | B17: s/d | C17: 335
A18: Maldonado | B18: s/d | C18: 1212
A19: Paysandú | B19: s/d | C19: 1144
A20: Río Negro | B20: s/d | C20: 248
A21: Rivera | B21: s/d | C21: 1502
A22: Rocha | B22: s/d | C22: 543
A23: Salto | B23: s/d | C23: 1363
A24: San José | B24: s/d | C24: 362
A25: Soriano | B25: s/d | C25: 501
A26: Tacuarembó | B26: s/d | C26: 550
A27: Treinta y Tres | B27: s/d | C27: 944
A28: Fuente: Institutos de Formación Docente

Sheet EDUCACIÓN UNIVERSITARIA
A7: Cuadro II-7.1.1 | B7: ALUMNOS INGRESADOS, MATRICULADOS Y EGRESADOS EN PROGRAMAS DE GRADO POR SEXO SEGÚN GRANDES ÁREAS, DEPARTAMENTO E INSTITUCIÓN. AÑO 2016.
A8: Cuadro II-7.2.2 | B8: ALUMNOS INGRESADOS A CARRERAS 2015 Y EGRESADOS PRELIMINARES 2015 EN PROGRAMAS DE GRADO POR SEXO SEGÚN SERVICIO UNIVERSITARIO Y CARRERA. AÑO 2016.
A9: Cuadro II-7.2.3 | B9: ALUMNOS INGRESADOS, MATRICULADOS Y EGRESADOS EN PROGRAMAS DE GRADO EN UNIVERSIDADES PRIVADAS POR SEXO SEGÚN UNIVERSIDAD Y CARRERA. AÑO 2016.
A10: Cuadro II-7.2.4 | B10: ALUMNOS INGRESADOS, MATRICULADOS Y EGRESADOS EN PROGRAMAS DE GRADO DE INSTITUTOS UNIVERSITARIOS Y OFERTAS UNIVERSITAREAS DEL ÁREA SEGURIDAD Y DEFENSA POR SEXO SEGÚN INSTITUCIÓN Y CARRERA. AÑO 2016.
A11: Cuadro II-7.2.5 | B11: ALUMNOS INGRESADOS, MATRICULADOS Y EGRESADOS EN PROGRAMAS DE POSTGRADO POR SEXO SEGÚN INSTITUCIÓN. AÑO 2016.
A12: Cuadro II-7.2.6 | B12: ALUMNOS INGRESADOS 2015 Y EGRESADOS PRELIMINARES 2015 EN PROGRAMAS DE POSTGRADO DE LA UNIVERSIDAD DE LA REPÚBLICA POR SEXO SEGÚN SERVICIO UNIVERSITARIO Y ACREDITACIÓN. AÑO 2016.
A13: Cuadro II-7.2.7 | B13: ALUMNOS INGRESADOS, MATRICULADOS Y EGRESADOS EN PROGRAMAS DE POSTGRADO DE UNIVERSIDADES PRIVADAS POR SEXO SEGÚN UNIVERSIDAD Y ACREDITACIÓN. AÑO 2016.
A14: Cuadro II-7.2.8 | B14: ALUMNOS INGRESADOS, MATRICULADOS Y EGRESADOS EN PROGRAMAS DE POSTGRADO DE INSTITUTOS UNIVERSITARIOS POR SEXO SEGÚN INSTITUTO UNIVERSITARIO Y ACREDITACIÓN. AÑO 2016.
A15: Cuadro II-7.2.9 | B15: EVOLUCIÓN DE LA MATRÍCULA DE LAS INSTITUCIONES UNIVERSITARIAS (2000 – 2016)
A17: Cuadro II-7.2.10 | B17: PERSONAL DOCENTE Y NO DOCENTE DE INSTITUCIONES UNIVERSITARIAS PUBLICAS Y PRIVADAS EXPRESADAS EN POSICIONES FUNCIONALES POR CARGA HORARIA SEMANAL SEGÚN INSTITUCIÓN, ACTIVIDAD Y SEXO. AÑO 2016.
A18: Cuadro II-7.2.11 | B18: ALUMNOS INGRESADOS Y MATRICULADOS DE GRADO EN UNIVERSIDADES E INSTITUTOS UNIVERSITARIOS, SEGÚN INSTITUCIÓN Y LUGAR DE ORIGEN. AÑO 2016.
A58: =MID(B46,1,20) -> 

Sheet II-7.1.1
A1: OFERTA UNIVERSITARIA DE GRADO | D1: INSTITUCIONES
A3: Cuadro Nº II-7.1.1
A5: ALUMNOS INGRESADOS, MATRICULADOS Y EGRESADOS EN PROGRAMAS DE GRADO POR SEXO SEGÚN GRANDES ÁREAS, DEPARTAMENTO E INSTITUCIÓN. AÑO 2016.
A6: GRANDES ÁREAS / DEPARTAMENTO / INSTITUCIÓN | B6: TOTAL | C6: INGRESO | E6: TOTAL | F6: MATRÍCULA | H6: TOTAL | I6: EGRESADOS
C7: SEXO | F7: SEXO | I7: SEXO
C8: M | D8: F | F8: M | G8: F | I8: M | J8: F
A9: TOTAL PAÍS | B9: =+C9+D9 -> 31879 | C9: =+C13+C27 -> 12500 | D9: =+D13+D27 -> 19379 | E9: =+F9+G9 -> 22711 | F9: =+F13+F27 -> 11539 | G9: =+G13+G27 -> 11172 | H9: =+I9+J9 -> 8703 | I9: =+I13+I27 -> 3117 | J9: =+J13+J27 -> 5586
A10: PÚBLICO | B10: =+C10+D10 -> 28254 | C10: =C14+C28 -> 10668 | D10: =D14+D28 -> 17586 | E10: =+F10+G10 -> 358 | F10: =F14+F28 -> 231 | G10: =G14+G28 -> 127 | H10: =+I10+J10 -> 6630 | I10: =I14+I28 -> 2165 | J10: =J14+J28 -> 4465
A11: PRIVADO | B11: 3625 | C11: =C15+C29 -> 1832 | D11: =D15+D29 -> 1793 | E11: 22353 | F11: =F15+F29 -> 11308 | G11: =G15+G29 -> 11045 | H11: 2073 | I11: =I15+I29 -> 952 | J11: =J15+J29 -> 1121
A13: MONTEVIDEO | B13: =SUM(C13:D13) -> 26987 | C13: =C14+C15 -> 10601 | D13: =D14+D15 -> 16386 | E13: =SUM(F13:G13) -> 20581 | F13: =SUM(F16:F26) -> 10574 | G13: =SUM(G16:G26) -> 10007 | H13: =SUM(I13:J13) -> 8055 | I13: =I14+I15 -> 2859 | J13: =J14+J15 -> 5196
A14: PÚBLICO | B14: 23680 | C14: =C16+C26 -> 8923 | D14: =D16+D26 -> 14757 | E14: 0 | F14: =F16+F26 -> 0 | G14: =G16+G26 -> 0 | H14: 6137 | I14: =I16+I26 -> 1967 | J14: =J16+J26 -> 4170
A15: PRIVADO | B15: 3307 | C15: =SUM(C17:C25) -> 1678 | D15: =SUM(D17:D25) -> 1629 | E15: 20581 | F15: =SUM(F17:F25) -> 10574 | G15: 10007 | H15: 1918 | I15: =SUM(I17:I25) -> 892 | J15: 1026
A16: UdelaR * | B16: =SUM(C16:D16) -> 23680 | C16: 8923 | D16: 14757 | E16: - | F16: - | G16: - | H16: 6137 | I16: 1967 | J16: 4170
A17: UCUDAL | B17: 1114 | C17: 466 | D17: 648 | E17: =SUM(F17:G17) -> 6542 | F17: 2751 | G17: 3791 | H17: 708 | I17: 268 | J17: 440
A18: Universidad ORT Uruguay | B18: 1034 | C18: 569 | D18: 465 | E18: 7349 | F18: 4268 | G18: 3081 | H18: 570 | I18: 298 | J18: 272
A19: Universidad de Montevideo | B19: 421 | C19: 181 | D19: 240 | E19: 2738 | F19: 1271 | G19: 1467 | H19: 312 | I19: 143 | J19: 169
A20: Universidad de la Empresa | B20: 458 | C20: 289 | D20: 169 | E20: 3131 | F20: 1810 | G20: 1321 | H20: 128 | I20: 80 | J20: 48
A21: Inst Univ Asociación Cristiana de Jóvenes | B21: 202 | C21: 145 | D21: 57 | E21: 541 | F21: 386 | G21: 155 | H21: 138 | I21: 92 | J21: 46
A22: Inst Metodista Univ Crandon | B22: 1 | C22: 0 | D22: 1 | E22: 48 | F22: 3 | G22: 45 | H22: 0 | I22: 0 | J22: 0
A23: Inst Univ Monseñor Mariano Soler | B23: 19 | C23: 16 | D23: 3 | E23: 71 | F23: 64 | G23: 7 | H23: 9 | I23: 9 | J23: 0
A24: Inst Univ CEDIIAP | B24: 36 | C24: 6 | D24: 30 | E24: 107 | F24: 8 | G24: 99 | H24: 44 | I24: 2 | J24: 42
A25: Inst Univ CLAEH | B25: 22 | C25: 6 | D25: 16 | E25: 54 | F25: 13 | G25: 41 | H25: 9 | I25: 0 | J25: 9
A26: Escuela Nacional de Policía *** | B26: - | C26: - | D26: - | E26: - | F26: - | G26: - | H26: - | I26: - | J26: -
A27: RESTO DEL PAÍS | B27: =+C27+D27 -> 4892 | C27: =C28+C29 -> 1899 | D27: =D28+D29 -> 2993 | E27: =+F27+G27 -> 2130 | F27: =F28+F29 -> 965 | G27: =G28+G29 -> 1165 | H27: =+I27+J27 -> 648 | I27: =I28+I29 -> 258 | J27: =J28+J29 -> 390
A28: PÚBLICO | B28: =C28+D28 -> 4574 | C28: =C32+C34+C36+C43+C44+C46+C48+C50+C52+C55+C57+C59 -> 1745 | D28: =D32+D34+D36+D43+D44+D46+D48+D50+D52+D55+D57+D59 -> 2829 | E28: =F28+G28 -> 358 | F28: =F32+F34+F36+F43+F44+F46+F48+F50+F52+F55+F57+F59 -> 231 | G28: =G32+G34+G36+G43+G44+G46+G48+G50+G52+G55+G57+G59 -> 127 | H28: =I28+J28 -> 493 | I28: =I32+I34+I36+I43+I44+I46+I48+I50+I52+I55+I57+I59 -> 198 | J28: =J32+J34+J36+J43+J44+J46+J48+J50+J52+J55+J57+J59 -> 295
A29: PRIVADO | B29: =C29+D29 -> 318 | C29: =C31+C37+C38+C39+C40+C41+C53 -> 154 | D29: =D31+D37+D38+D39+D40+D41+D53 -> 164 | E29: =F29+G29 -> 1772 | F29: =F31+F37+F38+F39+F40+F41+F53 -> 734 | G29: =G31+G37+G38+G39+G40+G41+G53 -> 1038 | H29: =I29+J29 -> 155 | I29: =I31+I37+I38+I39+I40+I41+I53 -> 60 | J29: =J31+J37+J38+J39+J40+J41+J53 -> 95
A30: Colonia | B30: =SUM(C30:D30) -> 80 | C30: =C31+C32 -> 39 | D30: =D31+D32 -> 41 | E30: =SUM(F30:G30) -> 239 | F30: =F31+F32 -> 90 | G30: =G31+G32 -> 149 | H30: =SUM(I30:J30) -> 0 | I30: =I31+I32 -> 0 | J30: =J31+J32 -> 0
A31: Universidad de la Empresa | B31: 60 | C31: 28 | D31: 32 | E31: 180 | F31: 54 | G31: 126 | H31: 0 | I31: 0 | J31: 0
A32: UTEC ** | B32: 20 | C32: 11 | D32: 9 | E32: 59 | F32: 36 | G32: 23 | H32: 0 | I32: 0 | J32: 0
A33: Durazno
A34: UTEC ** | B34: 144 | C34: 105 | D34: 39 | E34: 194 | F34: 143 | G34: 51 | H34: 0 | I34: 0 | J34: 0
A35: Maldonado | B35: =SUM(C35:D35) -> 1484 | C35: =SUM(C36:C41) -> 631 | D35: =SUM(D36:D41) -> 853 | E35: 1053 | F35: =SUM(F36:F41) -> 422 | G35: =SUM(G36:G41) -> 631 | H35: 161 | I35: =SUM(I36:I41) -> 77 | J35: =SUM(J36:J41) -> 84
A36: UdelaR | B36: 1323 | C36: 557 | D36: 766 | E36: - | F36: - | G36: - | H36: 83 | I36: 51 | J36: 32
A37: UCUDAL | B37: 37 | C37: 21 | D37: 16 | E37: 247 | F37: 125 | G37: 122 | H37: 17 | I37: 8 | J37: 9
A38: Inst Univ CLAEH | B38: 57 | C38: 17 | D38: 40 | E38: 307 | F38: 110 | G38: 197 | H38: 30 | I38: 8 | J38: 22
A39: Fundación Politécnico de Punta del Este | B39: 0 | C39: 0 | D39: 0 | E39: 32 | F39: 12 | G39: 20 | H39: 2 | I39: 0 | J39: 2
A40: Inst Univ Francisco de Asís | B40: 33 | C40: 11 | D40: 22 | E40: 433 | F40: 150 | G40: 283 | H40: 29 | I40: 10 | J40: 19
A41: Inst Univ Asociación Cristiana de Jóvenes | B41: 34 | C41: 25 | D41: 9 | E41: 34 | F41: 25 | G41: 9 | H41: 0 | I41: 0 | J41: 0
A42: Paysandú | B42: 1031 | C42: =C43+C44 -> 327 | D42: =D43+D44 -> 704 | E42: 53 | F42: =F43+F44 -> 7 | G42: =G43+G44 -> 46 | H42: 186 | I42: =I43+I44 -> 79 | J42: =J43+J44 -> 107
A43: UdelaR | B43: 1007 | C43: 323 | D43: 684 | E43: 0 | F43: - | G43: - | H43: 186 | I43: 79 | J43: 107
A44: UTEC ** | B44: 24 | C44: 4 | D44: 20 | E44: 53 | F44: 7 | G44: 46 | H44: 0 | I44: 0 | J44: 0
A45: Río Negro
A46: UTEC ** | B46: =SUM(C46:D46) -> 36 | C46: 30 | D46: 6 | E46: 52 | F46: 45 | G46: 7 | H46: 0 | I46: 0 | J46: 0
A47: Rivera
A48: UdelaR | B48: 347 | C48: 135 | D48: 212 | E48: - | F48: - | G48: - | H48: 33 | I48: 14 | J48: 19
A49: Rocha
A50: UdelaR | B50: 230 | C50: 77 | D50: 153 | E50: - | F50: - | G50: - | H50: 16 | I50: 3 | J50: 13
A51: Salto | B51: 1239 | C51: =C52+C53 -> 434 | D51: =D52+D53 -> 805 | E51: 539 | F51: =F52+F53 -> 258 | G51: =G52+G53 -> 281 | H51: 217 | I51: =I52+I53 -> 72 | J51: =J52+J53 -> 145
A52: UdelaR | B52: 1142 | C52: 382 | D52: 760 | E52: 0 | F52: - | G52: - | H52: 140 | I52: 38 | J52: 102
A53: UCUDAL | B53: 97 | C53: 52 | D53: 45 | E53: 539 | F53: 258 | G53: 281 | H53: 77 | I53: 34 | J53: 43
A54: San José
A55: UdelaR | B55: 17 | C55: 15 | D55: 2 | E55: - | F55: - | G55: - | H55: 7 | I55: 7 | J55: 0
A56: Tacuarembó
A57: UdelaR | B57: 198 | C57: 81 | D57: 117 | E57: - | F57: - | G57: - | H57: 26 | I57: 4 | J57: 22
A58: Treinta y Tres
A59: UdelaR | B59: 86 | C59: 25 | D59: 61 | E59: - | F59: - | G59: - | H59: 2 | I59: 2 | J59: 0
A61: Fuente: Oficinas Productoras de cada una de las Instituciones.
A62: Nota:
A63: La expresión “Estudiantes” hace referencia a relaciones entre personas e instituciones y no al conteo de personas físicas. De manera que una persona puede ser estudiante de más de una institución o región, ostentando en cualquiera de ambas categorías inserciones múltiples y en cada caso será contada como personas diferentes.
A64: Para UdelaR:
A65: Según Res. N°15 del CDC de fecha 23/10/12, se entiende por Generación de Ingreso a Carrera a todos los estudiantes que ingresan por primera vez a una carrera terciaria y/o de grado, en un año dado. No se consideran los estudiantes que ingresan a la carrera a través de un CIO o de un ciclo básico común en años anteriores. No se incluyen los estudiantes provisorios por previas, ni los de intercambio. Se incluyen los estudiantes de cortesía diplomática.
A66: * La matrícula de UdelaR corresponde al dato del VII Censo de estudiantes de grado 2012. Son 124.200 estudiantes en Montevideo (43.748 hombres y 80.452 mujeres ) y 6.741 en el Interior del país (2.272 hombres y 4.469 mujeres).
A67: El dato de egreso 2016 de UdelaR es PRELIMINAR
A68: ** La UTEC comenzó a dictar los cursos en el año 2014
A69: *** En 2016 la Licenciatura en Seguridad Pública no fue dictada.

Sheet II-7.2.2
A1: UNIVERSIDADES PÚBLICAS: OFERTA DE GRADO | E1: ALUMNOS
A3: Cuadro Nº II-7.2.2
A5: UNIVERSIDADES PÚBLICAS: ALUMNOS INGRESADOS A CARRERAS 2016 Y EGRESADOS PRELIMINARES 2016 EN PROGRAMAS DE GRADO POR SEXO, SEGÚN SERVICIO UNIVERSITARIO Y CARRERA.
B6: TOTAL | C6: INGRESADOS (3) | E6: TOTAL | F6: EGRESADOS (datos preliminares) (4)
A7: SERVICIO UNIVERSITARIO / CARRERA | C7: SEXO | F7: SEXO
C8: M | D8: F | F8: M | G8: F
A10: TOTAL UNIVERSIDADES PÚBLICAS | B10: =C10+D10 -> 28254 | C10: =C12+C25 -> 10668 | D10: =D12+D25 -> 17586 | E10: =F10+G10 -> 6630 | F10: =F12+F25 -> 2165 | G10: =G12+G25 -> 4465
A12: UNIVERSIDAD TECNOLÓGICA -UTEC * | B12: =C12+D12 -> 224 | C12: =C13+C16+C20+C22 -> 150 | D12: =D13+D16+D20+D22 -> 74 | E12: =F12+G12 -> 0 | F12: =F13+F16+F20+F22 -> 0 | G12: =G13+G16+G20+G22 -> 0
A13: Colonia | B13: =C13+D13 -> 20 | C13: =C14+C15 -> 11 | D13: =D14+D15 -> 9 | E13: =F13+G13 -> 0 | F13: =F14+F15 -> 0 | G13: =G14+G15 -> 0
A14: Licenciatura en Ciencias y Tecnología de Lácteos | B14: 14 | C14: 8 | D14: 6 | E14: 0 | F14: 0 | G14: 0
A15: Tecnólogo en Manejo de Sistemas de Producción Lechera | B15: 6 | C15: 3 | D15: 3 | E15: 0 | F15: 0 | G15: 0
A16: Durazno | B16: 144 | C16: =C17+C18 -> 105 | D16: =D17+D18 -> 39 | E16: 0 | F16: =F17+F18 -> 0 | G16: =G17+G18 -> 0
A17: Ingeniería en Energías Renovables | B17: 43 | C17: 36 | D17: 7 | E17: 0 | F17: 0 | G17: 0
A18: Tecnicatura en Tecnologías de la Información | B18: 101 | C18: 69 | D18: 32 | E18: 0 | F18: 0 | G18: 0
A19: Paysandú
A20: Licenciatura en Análisis Alimentario | B20: 24 | C20: 4 | D20: 20 | E20: 0 | F20: 0 | G20: 0
A21: Río Negro
A22: Ingeniería en Mecatrónica | B22: 36 | C22: 30 | D22: 6 | E22: 0 | F22: 0 | G22: 0
A25: TOTAL UDELAR | B25: =SUM(C25:D25) -> 28030 | C25: =C27+C51+C59+C67+C89+C105+C122+C130+C143+C155+C166+C172+C190+C204+C211+C221+C227+C239+C274+C291+C305+C324+C328+C336+C354+C358+C364+C367+C370++C383+C387+C391+C395+C398+C401+C405+C409+C421+C424 -> 10518 | D25: =D27+D51+D59+D67+D89+D105+D122+D130+D143+D155+D166+D172+D190+D204+D211+D221+D227+D239+D274+D291+D305+D324+D328+D336+D354+D358+D364+D367+D370++D383+D387+D391+D395+D398+D401+D405+D409+D421+D424 -> 17512 | E25: =SUM(F25:G25) -> 6630 | F25: =F27+F51+F59+F67+F89+F105+F122+F130+F143+F155+F166+F172+F190+F204+F211+F221+F227+F239+F274+F291+F305+F324+F328+F336+F354+F358+F364+F367+F370++F383+F387+F391+F395+F398+F401+F405+F409+F421+F424 -> 2165 | G25: =G27+G51+G59+G67+G89+G105+G122+G130+G143+G155+G166+G172+G190+G204+G211+G221+G227+G239+G274+G291+G305+G324+G328+G336+G354+G358+G364+G367+G370++G383+G387+G391+G395+G398+G401+G405+G409+G421+G424 -> 4465
A27: FACULTAD DE HUMANIDADES Y CIENCIAS DE LA EDUCACIÓN | B27: =SUM(C27:D27) -> 1482 | C27: =C28+C38+C40+C42+C45+C48 -> 485 | D27: =D28+D38+D40+D42+D45+D48 -> 997 | E27: =SUM(F27:G27) -> 97 | F27: =F28+F38+F40+F42+F45+F48 -> 28 | G27: =G28+G38+G40+G42+G45+G48 -> 69
A28: Montevideo | B28: =SUM(C28:D28) -> 1338 | C28: =SUM(C29:C37) -> 432 | D28: =SUM(D29:D37) -> 906 | E28: 81 | F28: =SUM(F29:F37) -> 25 | G28: =SUM(G29:G37) -> 56
A29: Licenciado en Ciencias Antropológicas | B29: 200 | C29: 67 | D29: 133 | E29: 13 | F29: 2 | G29: 11
A30: Licenciado en Ciencias de la Educación | B30: 224 | C30: 55 | D30: 169 | E30: 20 | F30: 7 | G30: 13
A31: Licenciado en Historia | B31: 164 | C31: 96 | D31: 68 | E31: 3 | F31: 3 | G31: 0
A32: Licenciado en Filosofía | B32: 166 | C32: 91 | D32: 75 | E32: 9 | F32: 5 | G32: 4
A33: Licenciado en Letras | B33: 173 | C33: 52 | D33: 121 | E33: 5 | F33: 1 | G33: 4
A34: Licenciado en Lingüística | B34: 85 | C34: 26 | D34: 59 | E34: 5 | F34: 1 | G34: 4
A35: Técnico Universitario en Corrección de Estilo (Lengua Española) | B35: 263 | C35: 35 | D35: 228 | E35: 15 | F35: 2 | G35: 13
A36: Técnico Universitario en Interpretación LSU-ESP-LSU | B36: 63 | C36: 10 | D36: 53 | E36: 1 | F36: 0 | G36: 1
A37: Técnico Universitario en Museología | B37: 0 | C37: 0 | D37: 0 | E37: 10 | F37: 4 | G37: 6
A38: Maldonado | B38: 90 | C38: =C39 -> 39 | D38: =D39 -> 51 | E38: 11 | F38: =F39 -> 3 | G38: =G39 -> 8
A39: Licenciado en Turismo | B39: 90 | C39: 39 | D39: 51 | E39: =SUM(F39:G39) -> 11 | F39: 3 | G39: 8
A40: Paysandú | B40: 23 | C40: =C41 -> 4 | D40: =D41 -> 19 | E40: 0 | F40: =F41 -> 0 | G40: =G41 -> 0
A41: Técnico Universitario en Bienes Culturales | B41: =SUM(C41:D41) -> 23 | C41: 4 | D41: 19 | E41: 0 | F41: 0 | G41: 0
A42: Salto | B42: 16 | C42: =C43+C44 -> 4 | D42: =D43+D44 -> 12 | E42: 2 | F42: =F43+F44 -> 0 | G42: =G43+G44 -> 2
A43: Licenciado en Turismo | B43: 5 | C43: 3 | D43: 2 | E43: 2 | F43: 0 | G43: 2
A44: Técnico Universitario en Interpretación LSU-ESP-LSU | B44: 11 | C44: 1 | D44: 10 | E44: 0 | F44: 0 | G44: 0
A45: Tacuarembó | B45: 15 | C45: =C46+C47 -> 6 | D45: =D46+D47 -> 9 | E45: 3 | F45: =F46+F47 -> 0 | G45: =G46+G47 -> 3
A46: Técnico Universitario en Bienes Culturales | B46: =SUM(C46:D46) -> 15 | C46: 6 | D46: 9 | E46: 0 | F46: 0 | G46: 0
A47: Técnico Universitario en Interpretación LSU-ESP-LSU | B47: =SUM(C47:D47) -> 0 | C47: 0 | D47: 0 | E47: 3 | F47: 0 | G47: 3
A48: Tacuarembó-Paysandú | B48: =SUM(C48:D48) -> 0 | C48: =C49 -> 0 | D48: =D49 -> 0 | E48: 0 | F48: =F49 -> 0 | G48: =G49 -> 0
A49: Técnico Universitario en Prom. Bienes Culturales | B49: 0 | C49: 0 | D49: 0 | E49: 0 | F49: 0 | G49: 0
A51: FACULTAD DE AGRONOMÍA | B51: =SUM(C51:D51) -> 448 | C51: =C52+C54+C56 -> 280 | D51: =D52+D54+D56 -> 168 | E51: =SUM(F51:G51) -> 145 | F51: =F52+F54+F56 -> 109 | G51: =G52+G54+G56 -> 36
A52: Montevideo | B52: =SUM(C52:D52) -> 355 | C52: =C53 -> 224 | D52: =D53 -> 131 | E52: =SUM(F52:G52) -> 144 | F52: =F53 -> 108 | G52: =G53 -> 36
A53: Ingeniero Agrónomo | B53: =SUM(C53:D53) -> 355 | C53: 224 | D53: 131 | E53: =SUM(F53:G53) -> 144 | F53: 108 | G53: 36
A54: Salto | B54: 93 | C54: =C55 -> 56 | D54: =D55 -> 37 | E54: 1 | F54: =F55 -> 1 | G54: =G55 -> 0
A55: Ingeniero Agrónomo | B55: 93 | C55: 56 | D55: 37 | E55: 1 | F55: 1 | G55: 0
A56: Montevideo-Salto | B56: 0 | C56: =C57 -> 0 | D56: =D57 -> 0 | E56: 0 | F56: =F57 -> 0 | G56: =G57 -> 0
A57: Ingeniero Agrónomo | B57: 0 | C57: 0 | D57: 0 | E57: 0 | F57: 0 | G57: 0
A59: FACULTAD DE ARQUITECTURA, DISEÑO Y URBANISMO | B59: =SUM(C59:D59) -> 962 | C59: =C60+C64 -> 336 | D59: =D60+D64 -> 626 | E59: =SUM(F59:G59) -> 355 | F59: =F60+F64 -> 130 | G59: =G60+G64 -> 225
A60: Montevideo | B60: =SUM(C60:D60) -> 924 | C60: =C61+C62+C63 -> 321 | D60: =D61+D62+D63 -> 603 | E60: =SUM(F60:G60) -> 355 | F60: =F61+F62+F63 -> 130 | G60: =G61+G62+G63 -> 225
A61: Arquitecto | B61: 649 | C61: 263 | D61: 386 | E61: 329 | F61: 127 | G61: 202
A62: Licenciado en Diseño Industrial perfil Producto | B62: 138 | C62: 48 | D62: 90 | E62: 14 | F62: 3 | G62: 11
A63: Licenciado en Diseño Industrial perfil Textil-Indumentaria | B63: 137 | C63: 10 | D63: 127 | E63: 12 | F63: 0 | G63: 12
A64: Salto | B64: 38 | C64: =C65 -> 15 | D64: =D65 -> 23 | E64: 0 | F64: =F65 -> 0 | G64: =G65 -> 0
A65: Licenciado en Diseño Integrado | B65: 38 | C65: 15 | D65: 23 | E65: 0 | F65: 0 | G65: 0
A67: FACULTAD DE CIENCIAS ECONÓMICAS Y ADMINISTRACIÓN | B67: =SUM(C67:D67) -> 5074 | C67: =C68+C79+C81+C83+C85+C87 -> 2163 | D67: =D68+D79+D81+D83+D85+D87 -> 2911 | E67: =SUM(F67:G67) -> 1196 | F67: =F68+F79+F81+F83+F85+F87 -> 441 | G67: =G68+G79+G81+G83+G85+G87 -> 755
A68: Montevideo | B68: =C68+D68 -> 4627 | C68: =SUM(C69:C77) -> 1996 | D68: =SUM(D69:D77) -> 2631 | E68: =F68+G68 -> 1182 | F68: =SUM(F69:F77) -> 436 | G68: =SUM(G69:G77) -> 746
A69: Contador Público (Plan 2012) | B69: =C69+D69 -> 2024 | C69: 917 | D69: 1107 | E69: =F69+G69 -> 848 | F69: 308 | G69: 540
A70: Licenciado en Economía (Plan 2012) | B70: 536 | C70: 300 | D70: 236 | E70: =SUM(F70:G70) -> 133 | F70: 65 | G70: 68
A71: Licenciado en Administración (Plan 2012) | B71: 744 | C71: 313 | D71: 431 | E71: =SUM(F71:G71) -> 70 | F71: 28 | G71: 42
A72: Licenciado en Administración - Contador (Plan 1990) | B72: 0 | C72: 0 | D72: 0 | E72: 3 | F72: 1 | G72: 2
A73: Licenciado en Estadística | B73: 0 | C73: 0 | D73: 0 | E73: 3 | F73: 2 | G73: 1
A74: Técnico en Gestión Universitaria | B74: 21 | C74: 3 | D74: 18 | E74: 5 | F74: 3 | G74: 2
A75: Técnico en Administración | B75: 1302 | C75: 463 | D75: 839 | E75: 3 | F75: 0 | G75: 3
A76: Técnico en Administración de Empresas | B76: 0 | C76: 0 | D76: 0 | E76: 3 | F76: 1 | G76: 2
A77: Técnico Universitario en Administración | B77: 0 | C77: 0 | D77: 0 | E77: 114 | F77: 28 | G77: 86
A78: Maldonado
A79: Tecnólogo en Administración y Contabilidad (Plan 2012) | B79: 272 | C79: 101 | D79: 171 | E79: 4 | F79: 3 | G79: 1
A80: Rocha
A81: Tecnólogo en Administración y Contabilidad (Plan 2012) | B81: 39 | C81: 14 | D81: 25 | E81: 0 | F81: 0 | G81: 0
A82: Tacuarembó
A83: Tecnólogo en Administración y Contabilidad (Plan 2012) | B83: 95 | C83: 41 | D83: 54 | E83: 10 | F83: 2 | G83: 8
A84: Treinta y Tres
A85: Tecnólogo en Administración y Contabilidad (Plan 2012) | B85: 41 | C85: 11 | D85: 30 | E85: 0 | F85: 0 | G85: 0
A86: Treinta y Tres-Tacuarembó
A87: Tecnólogo en Administración y Contabilidad (Plan 2012) | B87: 0 | C87: 0 | D87: 0 | E87: 0 | F87: 0 | G87: 0
A89: FACULTAD DE DERECHO | B89: 2789 | C89: =+C90+C98+C103 -> 917 | D89: =+D90+D98+D103 -> 1872 | E89: 965 | F89: 238 | G89: 727
A90: Montevideo | B90: 2663 | C90: =SUM(C91:C97) -> 875 | D90: =SUM(D91:D97) -> 1788 | E90: 929 | F90: =SUM(F91:F97) -> 226 | G90: =SUM(G91:G97) -> 703
A91: Doctor en Derecho | B91: 4 | C91: 2 | D91: 2 | E91: 351 | F91: 116 | G91: 235
A92: Escribano Público | B92: 3 | C92: 0 | D92: 3 | E92: 299 | F92: 47 | G92: 252
A93: Doctor en Derecho-Escribano Público (*) | B93: 1310 | C93: 425 | D93: 885 | E93: 0 | F93: 0 | G93: 0
A94: Licenciado en Relaciones Internacionales | B94: 681 | C94: 274 | D94: 407 | E94: 109 | F94: 32 | G94: 77
A95: Traductor Público | B95: 39 | C95: 11 | D95: 28 | E95: 25 | F95: 2 | G95: 23
A96: Licenciado en Relaciones Laborales | B96: 626 | C96: 163 | D96: 463 | E96: 136 | F96: 27 | G96: 109
A97: Técnico en Relaciones Laborales | B97: 0 | C97: 0 | D97: 0 | E97: 9 | F97: 2 | G97: 7
A98: Salto | B98: 126 | C98: =SUM(C99:C101) -> 42 | D98: =SUM(D99:D101) -> 84 | E98: 36 | F98: =SUM(F99:F101) -> 12 | G98: =SUM(G99:G101) -> 24
A99: Escribano Público | B99: 0 | C99: 0 | D99: 0 | E99: 19 | F99: 4 | G99: 15
A100: Doctor en Derecho | B100: 0 | C100: 0 | D100: 0 | E100: 17 | F100: 8 | G100: 9
A101: Doctor en Derecho-Escribano Público (*) | B101: 126 | C101: 42 | D101: 84 | E101: 0 | F101: 0 | G101: 0
A102: Montevideo-Salto
A103: Doctor en Derecho-Escribano Público (*) | B103: 0 | C103: 0 | D103: 0 | E103: 0 | F103: 0 | G103: 0
